{"text_format":"1","workbook":"xlsx","n_sheets":9,"sheets":["Data_Entry","FSA-524","524A","524B","Adjustments","DAFP_Approved","FSA_Pmts","Instructions","st_cty_dropdowns"],"not_rendered":{"charts":0,"images":5,"macros":1,"external_links":0,"defined_names":12,"comments":0,"pivot_tables":0},"unopened":[],"bounds":{"document_bytes":16777216,"sheet_cells":100000,"rows_first":2000,"rows_last":500,"rows_between":2000,"halvings":0,"cell_chars":16384,"cell_head_chars":4096},"cells_cut":0,"cells_raw":0,"read":"whole","date_system":"1900"}

{"sheet":"Data_Entry","index":0,"n_rows":53,"n_cols":37,"rows_kept":53,"cut":false,"hidden":false,"merged":[[49,8,50,8],[45,9,46,9],[49,9,50,9],[38,8,39,8],[38,9,39,9],[49,2,49,5],[50,2,50,5],[51,2,51,5],[52,2,52,5],[41,2,41,5],[42,2,42,5],[43,2,43,5],[44,2,44,5],[45,2,45,5],[47,2,47,5],[46,2,46,5],[48,2,48,5],[14,1,14,4],[15,8,15,9],[45,6,46,6],[35,6,35,7],[31,2,31,6],[32,2,32,6],[27,1,27,3],[26,1,26,7],[27,5,27,6],[16,1,16,4],[17,1,17,4],[22,1,22,2],[28,5,28,6],[30,1,30,7],[45,7,46,7],[24,5,24,7],[39,2,39,5],[40,2,40,5],[38,2,38,5],[35,1,35,5],[36,1,37,4],[24,1,24,4],[23,1,23,2],[23,5,23,7],[30,8,32,8],[35,8,35,9],[25,1,25,4],[16,8,27,9],[19,1,19,4],[20,1,20,4],[21,1,21,4],[17,5,17,7],[18,1,18,4],[18,5,19,5],[20,5,21,5],[25,5,25,7],[34,2,34,6],[36,8,37,8],[36,9,37,9],[30,9,32,9],[33,2,33,6],[28,1,28,3],[28,8,28,9]]}
[]
[]
[]
[]
[]
[null,null,null,null,null,null,null,null,null,null,null,null,null,null,null,null,null,null,null,null,null,null,null,null,null,null,null,null,null,null,null,null,{"$f":"IF(E28=AG26,\"524B\",\"524A\")","v":"524A"}]
[]
[]
[]
[]
[]
[]
[null,"Emergency Relief Program 2022 Application Tool - Version 1.2"]
[]
[null,{"$f":"TODAY()","v":"2024-02-21"}]
[null,"Producer Information",null,null,null,null,null,null,"General Information"]
[null,"1. Producer Name (Person or Legal Entity)",null,null,null,"7. Information Line",null,null,"This tool is designed to aid in the completion of the application forms for ERP-2022 Track 2.\n\nProducers that are providing information by tax year:\n- Will calculate allowable gross revenue for either the 2018 or 2019 tax year as elected by the producer for the benchmark year.\n- Will calculate allowable gross revenue for either 2022 or 2023 as elected by the producer for the representative revenue year.\n\nProducers who were paid under the previous ERP for the 2021 disaster year and chose 2022 as their representative revenue year are required to use the Tax Year Option.  Only these producers are allowed to adjust their benchmark year revenue.\n\nThe forms necessary to complete an application are the FSA-524 and FSA-524-A.\n\nProducers that select Expected Revenue:\n- Are required to complete the forms with expected revenue and actual revenue. \n- To calculate the expected revenue producers must complete the adjustments sheet to calculate an expected revenue.\n\nProducers, except those required to use tax year, will use the expected revenue option if they had a decrease in operating capacity during their disaster year, as compared to the 2018 or 2019 benchmark years, were a new producer with no benchmark year revenue in 2018 or 2019, or produced crops that did not generate revenue directly from the sale of the crop and that the producer uses within their ordinary operation.\n\nNote:  Producers who had an increase in operation capacity may elect either the tax year option or the expected revenue option; however, they may not adjust benchmark year\nrevenue under the tax year option to reflect the change.\n\nThe forms necessary to complete an application are the FSA-524 and FSA-524-B."]
[]
[null,"2. Address  Line 1",null,null,null,"8A Primary Phone Number","Home","Cell"]
[]
[null,"3. Address  Line 2",null,null,null,"8B Alternate Phone Number","Home","Cell"]
[null,null,null,null,null,null,null,null,null,null,null,null,null,null,null,null,null,null,null,null,null,null,null,null,null,null,null,null,null,null,null,null,"Benchmark Year Dropdown","Disaster Year Revenue",null,null,"Yes"]
[null,"4.  City",null,"5.  State","6.  Zip","9.  Email Address",null,null,null,null,null,null,null,null,null,null,null,null,null,null,null,null,null,null,null,null,null,null,null,null,null,null,null,null,null,null,"No"]
[null,null,null,null,null,null,null,null,null,null,null,null,null,null,null,null,null,null,null,null,null,null,null,null,null,null,null,null,null,null,null,null,"2018 Tax Year",{"$f":"IF(E28=AG26,\"Actual Revenue\",\"2022 Tax Year\")","v":"2022 Tax Year"},"Yes"]
[null,"10. Recording State ",null,null,null,"11. Recording County",null,null,null,null,null,null,null,null,null,null,null,null,null,null,null,null,null,null,null,null,null,null,null,null,null,null,"2019 Tax Year",{"$f":"IF(E28=AG26,\"\",\"2023 Tax Year\")","v":"2023 Tax Year"},"No"]
[null,null,null,null,null,null,null,null,null,null,null,null,null,null,null,null,null,null,null,null,null,null,null,null,null,null,null,null,null,null,null,null,"Expected Revenue"]
[null,"Disaster Information"]
[null,"12)  What benchmark year (2018 tax year, 2019 tax year) represents a typical year of revenue or will you use expected revenue?\n\nNote:  Producers who received a payment under ERP Phase 2 for the 2021 program year and elected the 2022 tax year for their representative disaster year are required to us the Tax Year Option.",null,null,null,"14)  Were all eligible crops covered by crop insurance or NAP?"]
[null,"13)  What representative revenue year did you experience a crop loss for crop year 2022 due to the qualifying disaster event?\n\nNote:  Producers who received a payment under ERP Phase 2 for the 2021 program year and elected the 2022 tax year for their representative disaster year are required to us the Tax Year Option.",null,null,null,"15)  What percentage of Expected Revenue from Specialty & High Value Crops",null,null,{"$f":"IF(E28=\"\",\"\",IF(E28=AG26,\"Print FSA-524 & FSA-524B\",\"Print FSA-524 & FSA-524A\"))","v":""}]
[]
[null,"Adjustment Only Applicable to Producers Required to Take Tax Year Option",null,null,null,null,null,null,{"$f":"IF(E28=\"\",\"\",IF(AND(NOT(E28=AG26),OR(H32=\"Yes\",H33=\"Yes\",H34=\"Yes\")),\"Adjustments to Benchmark Revenue are allowed.  Please complete the adjustments by navigating to the 'Adjustments' tab by clicking below\",IF(E28=\"Expected Revenue\",\"Use the Adjustments/Expected Revenue Sheet to Calculate Expected Revenue\",\"Only DAFP Approved adjustments allowed\")))","v":""},{"$f":"IF(E28=\"\",\"\",IF(OR(H35=\"No\",E28=AG26),\"Deputy Administrator Approved Crops Not Applicable\",\"If Deputy Administrator Approved Crops are applicable navigate to this site\"))","v":""}]
[null,"16A)","Are you a new producer that did not have any allowable revenue in 2018 or 2019 and participated in ERP Phase 2 selecting a 2022 disaster revenue year?",null,null,null,null,"No"]
[null,"16B)","Do you have allowable revenue in 2018 or 2019, but your operation has undergone an increase in operating capacity from Benchmark Year to Disaster Year and participated in ERP Phase 2 selecting a 2022 disaster revenue year? ",null,null,null,null,"No"]
[null,"16C)","Do you have allowable revenue in 2018 or 2019, but your operation has undergone a decrease in operating capacity from Benchmark Year to Disaster Year and participated in ERP Phase 2 selecting a 2022 disaster revenue year? ",null,null,null,null,"No"]
[null,"16D)","Do you have crops with no revenue from sales (Deputy Administrator approved crops)? "]
[null,"Allowable Revenue Source",null,null,null,null,"Revenue",null,"Comments"]
[null,"DESCRIPTION",null,null,null,null,{"$f":"IF(E28=\"\",\"Enter Benchmark Year Revenue Source in item 12\",IF(E28=AG26,\"\",E28))","v":"Enter Benchmark Year Revenue Source in item 12"},{"$f":"IF(E29=\"\",\"Enter Disaster Year Revenue Source in item 13\",E29)","v":"Enter Disaster Year Revenue Source in item 13"},{"$f":"IF(RIGHT(E28,8)=\"Tax Year\",\"Include Gross Revenue From\",\"Actual Disaster Year Revenue Includes\")","v":"Actual Disaster Year Revenue Includes"},{"$f":"IF(RIGHT(E28,8)=\"Tax Year\",\"Exclude Gross Revenue From\",\"Actual Disaster Year Revenue Excludes\")","v":"Actual Disaster Year Revenue Excludes"}]
[null,null,null,null,null,"TOTAL:",null,null,null,null,null,null,null,null,null,null,null,null,null,null,null,null,null,null,null,"Tax Year Inclusion","Taz Year Exclusion","Actual Revenue Inclusion","Actual Revenue Excluesion"]
[null,17,{"$f":"IF($H$37=\"Actual Revenue\",'524B'!C55,'524A'!B9)","v":"Enter amount of allowable gross revenue from sales of eligible crops grown in the United States and its Territories by the applicant (example: corn sold as grain):"},null,null,null,null,null,{"$f":"IF(E28=\"\",Z39,IF(RIGHT($E$28,8)=\"Tax Year\",Z39,AB39))","v":"Sales of eligible crops produced by the producer, which includes sales resulting from value added through post-production activities that were reportable on IRS Schedule F\n\nFor example:\n   Strawberries into jam\n\n"},{"$f":"IF(E28=\"\",AA39,IF(RIGHT($E$28,8)=\"Tax Year\",AA39,AC39))","v":"Sales of livestock, animal by-products, and any commodities that are excluded from eligible crops:\n    Animals for consumption by the owner, lessee, or other contract grower\n    Eggs\n    Milk\n    Mink including pelts\n    Revenue from animals for show, sport, or recreational purposes\n    Wild free roaming animals\n    Pollinators\n    Revenue from raised breeding livestock (Schedule 4797 Part 1, Column (d) or\n(g) or other information that could be reported on a Schedule F\n    Sales of agricultural commodities resulting from value added through post- production activities if reported on Schedule C\n    Commodities not grown in the U.S. and its territories\n    Crops for grazing\n    Timber\n    Cannabis sativa L. and any part of the plant that does not meet the definition of hemp"},null,null,null,null,null,null,null,null,null,null,null,null,null,null,null,"Sales of eligible crops produced by the producer, which includes sales resulting from value added through post-production activities that were reportable on IRS Schedule F\n\nFor example:\n   Strawberries into jam\n\n","Sales of livestock, animal by-products, and any commodities that are excluded from eligible crops:\n    Animals for consumption by the owner, lessee, or other contract grower\n    Eggs\n    Milk\n    Mink including pelts\n    Revenue from animals for show, sport, or recreational purposes\n    Wild free roaming animals\n    Pollinators\n    Revenue from raised breeding livestock (Schedule 4797 Part 1, Column (d) or\n(g) or other information that could be reported on a Schedule F\n    Sales of agricultural commodities resulting from value added through post- production activities if reported on Schedule C\n    Commodities not grown in the U.S. and its territories\n    Crops for grazing\n    Timber\n    Cannabis sativa L. and any part of the plant that does not meet the definition of hemp","Revenue from sales of eligible crops","Crops for grazing\n\nAquatic species that do not meet the definition of aquaculture\n\nTimber\n\nCannabis sativa L. and any part of the plant that does not meet the definition of hemp\n\nCrop by-products such as cotton seed and corn stalks"]
[null,18,{"$f":"IF($H$37=\"Actual Revenue\",'524B'!C56,'524A'!B10)","v":"Enter amount of allowable gross revenue from sales of eligible crops resulting from value added through post-production activities that were reportable on IRS Schedule F, excluding any amount that was reportable on IRS Schedule C (example: strawberries into jam):"},null,null,null,null,null,null,null,null,null,null,null,null,null,null,null,null,null,null,null,null,null,null,"Sales of eligible crops a producer purchased for resale that had a change in characteristic due to the time held (for example, a plant purchased at a size of 2 inches and sold as an 18-inch plant after 4 months), less the cost or other basis of such eligible crops","Resale items not held for characteristic change","The value of the eligible crop for crops not sold (such as crops in storage or inventory, or fed to the producer’s livestock)\nThe same price used to calculate the expected revenue for the benchmark year must be used to calculate the actual disaster year revenue for crops in storage from 2021 or earlier that remain in storage at the time of application because ERP does not pay for market fluctuations for prior year crops."]
[null,19,{"$f":"IF($H$37=\"Actual Revenue\",'524B'!C57,'524A'!B11)","v":"Enter amount of allowable gross revenue from sales of eligible crops purchased for resale that had a change in characteristic due to the time held (example: a plant purchased at a size of 2 inches and sold as an 18-inch plant after 4 months):"},null,null,null,null,null,{"$f":"IF(E28=\"\",Z40,IF(RIGHT($E$28,8)=\"Tax Year\",Z40,AB40))","v":"Sales of eligible crops a producer purchased for resale that had a change in characteristic due to the time held (for example, a plant purchased at a size of 2 inches and sold as an 18-inch plant after 4 months), less the cost or other basis of such eligible crops"},{"$f":"IF(E28=\"\",AA40,IF(RIGHT($E$28,8)=\"Tax Year\",AA40,\"\"))","v":"Resale items not held for characteristic change"},null,null,null,null,null,null,null,null,null,null,null,null,null,null,null,"Sales of eligible aquatic species that are grown:\n   As food for human or livestock consumption\n   For industrial or biomass uses\n   As fish raised as feed for fish that are consumed by humans\n   As ornamental fish propagated and reared in an aquatic medium\n\nEligible aquacultural species must be raised by a commercial operator and in water in a controlled environment","Aquatic species that do not meet the definition of aquaculture\n"]
[null,20,{"$f":"IF($H$37=\"Actual Revenue\",'524B'!C58,'524A'!B12)","v":"Enter amount of allowable gross revenue from aquatic species that are grown as food for human or livestock consumption, for industrial or biomass uses, as fish raised as feed for fish that are consumed by humans, as ornamental fish propagated and reared in an aquatic medium:"},null,null,null,null,null,{"$f":"IF(E28=\"\",Z41,IF(RIGHT($E$28,8)=\"Tax Year\",Z41,\"\"))","v":"Sales of eligible aquatic species that are grown:\n   As food for human or livestock consumption\n   For industrial or biomass uses\n   As fish raised as feed for fish that are consumed by humans\n   As ornamental fish propagated and reared in an aquatic medium\n\nEligible aquacultural species must be raised by a commercial operator and in water in a controlled environment"},{"$f":"IF(E28=\"\",AA41,IF(RIGHT($E$28,8)=\"Tax Year\",AA41,\"\"))","v":"Aquatic species that do not meet the definition of aquaculture\n"},null,null,null,null,null,null,null,null,null,null,null,null,null,null,null,"FCIC crop insurance proceeds for eligible crops, minus the amount of administrative fees and premiums\nProceeds for eligible crops under private insurance policies",null,"FCIC Crop insurance indemnities"]
[null,21,{"$f":"IF($H$37=\"Actual Revenue\",'524B'!C59,'524A'!B13)","v":"Enter amount of allowable gross revenue from federal crop insurance proceeds for eligible crops less administrative fees and premiums: "},null,null,null,null,null,{"$f":"IF(E28=\"\",Z42,IF(RIGHT($E$28,8)=\"Tax Year\",Z42,AB42))","v":"FCIC crop insurance proceeds for eligible crops, minus the amount of administrative fees and premiums\nProceeds for eligible crops under private insurance policies"},null,null,null,null,null,null,null,null,null,null,null,null,null,null,null,null,"Noninsured Crop Disaster Assistance Program (NAP) payments for eligible crops, minus the amount of service fees and premiums"," ","NAP payments, less premiums and fees"]
[null,22,{"$f":"IF($H$37=\"Actual Revenue\",'524B'!C60,'524A'!B14)","v":"Enter amount of allowable gross revenue from NAP payments for eligible crops less service fees and premiums:"},null,null,null,null,null,{"$f":"IF(E28=\"\",Z43,IF(RIGHT($E$28,8)=\"Tax Year\",Z43,AB43))","v":"Noninsured Crop Disaster Assistance Program (NAP) payments for eligible crops, minus the amount of service fees and premiums"},null,null,null,null,null,null,null,null,null,null,null,null,null,null,null,null," ",null,"Indemnities for eligible crops under private insurance policies"]
[null,23,{"$f":"IF($H$37=\"Actual Revenue\",'524B'!C61,'524A'!B15)","v":"Enter amount of allowable gross revenue from private crop insurance proceeds for eligible crops:"},null,null,null,null,null,{"$f":"IF(E28=\"\",Z44,IF(RIGHT($E$28,8)=\"Tax Year\",Z44,AB44))","v":" "},null,null,null,null,null,null,null,null,null,null,null,null,null,null,null,null,"Benefits for eligible crops under the following agricultural programs:\n   Agriculture Risk Coverage (ARC) and Price Loss Coverage (PLC) Program\n   Biomass Crop Assistance Program (BCAP)\n   Coronavirus Food Assistance Program (CFAP) – CFAP 1 and CFAP 2\n   Emergency Assistance for Livestock, Honeybees, and Farm Raised Fish Program (ELAP) - payments for aquaculture crop(s)\n   Emergency Relief Program – Phase 1 and Phase 2\n   Loan Deficiency Payment (LDP) Program\n   Market Loan Gains (MLG) - repayment of Commodity\n   Market Facilitation Program (MFP)\n   On-Farm Storage Loss Program (OFSLP)\n   Quality Loss Adjustment Program (QLA)\n   Seafood Trade Relief Program (STRP)\n   Wildfire and Hurricanes Indemnity Programs (2017 WHIP and WHIP+)","Federal disaster program payments under the following programs:\n     Emergency Assistance for Livestock, Honeybees, and Farm Raised Fish Program (ELAP) for  livestock and honeybees\n     Emergency Livestock Relief Program (ELRP)\n     Emergency Relief Program 2022 (ERP 2022) Track 1\n     Livestock Forage Disaster Program (LFP)\n     Livestock Indemnity Program (LIP)\n     Milk Loss Program (MLP)\n     Tree Assistance Program (TAP)\n\nPandemic Assistance payments including but not limited to payments from:\n     Pandemic Livestock Indemnity Program (PLIP)\n     Spot Market Hog Pandemic Program (SMHPP)\n\nAny pandemic assistance payments that were not for the loss of eligible crops or the loss of revenue from eligible crops, such as:\n     Cost-share assistance\n     Assistance for loss of buildings\n     Payments for livestock portion\n\nOther program payments, including but not limited to payments from:\n     Conservation program payments\n     Dairy Margin Coverage (DMC) Program\n     Marketing Assistance Loan (MAL)\n","Payments issued for 2022 calendar year disaster losses, including but not limited to payments under:\n      ELAP for aquaculture crops\n      ARC\n      LDP\n      MLG\n\nNet gain from hedging\n\nGrants from NOAA, and State program funds for the direct loss of eligible crops or the loss of revenue for eligible crops"]
[null,24,{"$f":"IF($H$37=\"Actual Revenue\",'524B'!C62,'524A'!B16)","v":"Enter amount of allowable gross revenue from benefits for eligible crops for the following agricultural programs: ARC/PLC, BCAP, CFAP 1, CFAP 2, LDP, MLG repayment of CCC loans less than the original amount, MFP, STRP, 2017 WHIP payments, 2018/2019 WHIP+ payments, QLA payments, PARP payments, ERP Phase 1 payments, ERP Phase 2 payments, OFSLP payments, and ELAP payments specific to aquaculture: "},null,null,null,null,null,{"$f":"IF(E28=\"\",Z45,IF(RIGHT($E$28,8)=\"Tax Year\",Z45,AB45))","v":"Benefits for eligible crops under the following agricultural programs:\n   Agriculture Risk Coverage (ARC) and Price Loss Coverage (PLC) Program\n   Biomass Crop Assistance Program (BCAP)\n   Coronavirus Food Assistance Program (CFAP) – CFAP 1 and CFAP 2\n   Emergency Assistance for Livestock, Honeybees, and Farm Raised Fish Program (ELAP) - payments for aquaculture crop(s)\n   Emergency Relief Program – Phase 1 and Phase 2\n   Loan Deficiency Payment (LDP) Program\n   Market Loan Gains (MLG) - repayment of Commodity\n   Market Facilitation Program (MFP)\n   On-Farm Storage Loss Program (OFSLP)\n   Quality Loss Adjustment Program (QLA)\n   Seafood Trade Relief Program (STRP)\n   Wildfire and Hurricanes Indemnity Programs (2017 WHIP and WHIP+)"},{"$f":"IF(E28=\"\",AA45,IF(RIGHT($E$28,8)=\"Tax Year\",AA45,\"\"))","v":"Federal disaster program payments under the following programs:\n     Emergency Assistance for Livestock, Honeybees, and Farm Raised Fish Program (ELAP) for  livestock and honeybees\n     Emergency Livestock Relief Program (ELRP)\n     Emergency Relief Program 2022 (ERP 2022) Track 1\n     Livestock Forage Disaster Program (LFP)\n     Livestock Indemnity Program (LIP)\n     Milk Loss Program (MLP)\n     Tree Assistance Program (TAP)\n\nPandemic Assistance payments including but not limited to payments from:\n     Pandemic Livestock Indemnity Program (PLIP)\n     Spot Market Hog Pandemic Program (SMHPP)\n\nAny pandemic assistance payments that were not for the loss of eligible crops or the loss of revenue from eligible crops, such as:\n     Cost-share assistance\n     Assistance for loss of buildings\n     Payments for livestock portion\n\nOther program payments, including but not limited to payments from:\n     Conservation program payments\n     Dairy Margin Coverage (DMC) Program\n     Marketing Assistance Loan (MAL)\n"},null,null,null,null,null,null,null,null,null,null,null,null,null,null,null,"For the disaster year only: ERP 2022 Track 1 payments issued to another person or entity for the producer's share of an eligible crop, regardless of the tax year in which the payment would be reported to IRS"]
[null,null,{"$f":"IF($H$37=\"Actual Revenue\",\"\",\"Note:  For disaster year also include ERP 2022 Track 1 payments issued to another person or entity for the producer's share of an eligible crop, regardless of the tax year in which the payment would be reported to IRS.\")","v":"Note:  For disaster year also include ERP 2022 Track 1 payments issued to another person or entity for the producer's share of an eligible crop, regardless of the tax year in which the payment would be reported to IRS."},null,null,null,null,null,{"$f":"IF(E28=\"\",Z46,IF(RIGHT($E$28,8)=\"Tax Year\",Z46,\"\"))","v":"For the disaster year only: ERP 2022 Track 1 payments issued to another person or entity for the producer's share of an eligible crop, regardless of the tax year in which the payment would be reported to IRS"},null,null,null,null,null,null,null,null,null,null,null,null,null,null,null,null,"Payments issued through grant agreements with FSA for losses of eligible crops\n\nGrants from the Department of Commerce, National Oceanic and Atmospheric Administration and State program funds providing direct payments for the loss of eligible crops or the loss of revenue from eligible crops\n\nOther revenue directly related to the production of eligible crops that IRS requires the producer to report as income including but not limited to:\n   Commodity-specific income received from state or local governments\n   Net gain from hedging"]
[null,{"$f":"IF(C48=\"\",\"\",25)","v":25},{"$f":"IF($H$37=\"Actual Revenue\",\"\",'524A'!B17)","v":"Enter amount of total revenue from benefits for eligible crops for the following: payments through grant agreements with FSA, grants from the Department of Commerce, grants from NOAA, and State programs for the direct loss of eligible crops or the loss of revenue for eligible crops: "},null,null,null,null,null,{"$f":"IF(E28=\"\",Z47,IF(RIGHT($E$28,8)=\"Tax Year\",Z47,\"\"))","v":"Payments issued through grant agreements with FSA for losses of eligible crops\n\nGrants from the Department of Commerce, National Oceanic and Atmospheric Administration and State program funds providing direct payments for the loss of eligible crops or the loss of revenue from eligible crops\n\nOther revenue directly related to the production of eligible crops that IRS requires the producer to report as income including but not limited to:\n   Commodity-specific income received from state or local governments\n   Net gain from hedging"},{"$f":"IF(E28=\"\",AA53,IF(RIGHT($E$28,8)=\"Tax Year\",AA53,\"\"))","v":"     Federal and State gas/fuel tax credits\n     Income from a pass-through entity such as an S Corporation or Limited Liability Company (LLC)\n     Certificate Exchanges\n     Custom hire income\n     Wages, salaries, tips, and cash rent\n    Employee Retention Credit (ERTC)\n    Paycheck Protection Program (PPP)\n     Rental of equipment or supplies\n     Revenue earned as a contract producer\n     Net gain from speculation"},null,null,null,null,null,null,null,null,null,null,null,null,null,null,null,"For producers who applied for the previous ERP Phase 2 and selected 2022 as the representative revenue year only: Value of the actual production for the following DAFP- approved crops that do not have revenue directly from sales due to the producer’s ordinary operation:\n      All eligible crops grown for feed, to be stored, and fed to livestock on the farm\n      Any variety of grapes grown and used by the same producer for wine production\n      Fresh apples, cherries, peaches and plums grown and processed into cider and wine by the same producer\nThe value will be based on:\n      Actual production of the crop\n      Published price for the crop based on the best data available for the crop such as NASS, RMA, NAP, and locally published prices based on sales for the applicable year\nThe method for determining the value is the same for both the benchmark and disaster year"," "]
[null,{"$f":"IF(C49=\"\",\"\",26)","v":26},{"$f":"IF($H$37=\"Actual Revenue\",\"\",'524A'!B18)","v":"Enter amount of allowable gross revenue from cooperative distributions directly related to the sale of eligible crops produced by the applicant such as per-unit allocations paid to patrons for gross grain sales:"},null,null,null,null,null,{"$f":"IF(E28=\"\",Z51,IF(RIGHT($E$28,8)=\"Tax Year\",Z51,\"\"))","v":"Cooperative distributions directly related to the sale of the eligible crops produced by the producer, such as patronage paid to producer for gross grain sales"},{"$f":"IF(E28=\"\",AA51,IF(RIGHT($E$28,8)=\"Tax Year\",AA51,\"\"))","v":"Distributions that are not directly related to the sale of eligible crops that are not produced by the producer such as:\n     Patronage paid to a producer based on the amount of money borrowed and the interest paid\n     Dividend paid to a producer based on the services used or products purchased"},null,null,null,null,null,null,null,null,null,null,null,null,null,null,null," "," "]
[null,{"$f":"IF(C50=\"\",\"\",27)","v":27},{"$f":"IF($H$37=\"Actual Revenue\",\"\",'524A'!B19)","v":"Enter amount of allowable gross revenue from CCC loans for eligible crops reported under election if elected to be treated as income and reported to IRS when all or part of the production is used as collateral to secure the loan; and forfeited CCC loans for eligible crops:"},null,null,null,null,null,{"$f":"IF(E28=\"\",Z52,IF(RIGHT($E$28,8)=\"Tax Year\",Z52,\"\"))","v":"CCC loans for eligible crops, if treated as income and reported to IRS For example:\n   CCC loan proceeds for eligible crops if elected to be treated as income in a prior year less the tax basis in year of repayment\n   CCC loans for eligible crops reported under election if elected to be treated as income and reported to IRS when all or part of the production is used as collateral to secure the loan\n   Forfeited CCC loans for eligible crops"},{"$f":"IF(E28=\"\",AA53,IF(RIGHT($E$28,8)=\"Tax Year\",AA53,\"\"))","v":"     Federal and State gas/fuel tax credits\n     Income from a pass-through entity such as an S Corporation or Limited Liability Company (LLC)\n     Certificate Exchanges\n     Custom hire income\n     Wages, salaries, tips, and cash rent\n    Employee Retention Credit (ERTC)\n    Paycheck Protection Program (PPP)\n     Rental of equipment or supplies\n     Revenue earned as a contract producer\n     Net gain from speculation"},null,null,null,null,null,null,null,null,null,null,null,null,null,null,null," "," "]
[null,{"$f":"IF(C51=\"\",\"\",28)","v":28},{"$f":"IF($H$37=\"Actual Revenue\",IF('524B'!C64=\"\",\"\",'524B'!C64),'524A'!B20)","v":"Enter amount of allowable gross revenue from CCC loan proceeds for eligible crops if elected to be treated as income in a prior year less the tax basis in year of repayment:"},null,null,null,null,null,null,null,null,null,null,null,null,null,null,null,null,null,null,null,null,null,null,"Cooperative distributions directly related to the sale of the eligible crops produced by the producer, such as patronage paid to producer for gross grain sales","Distributions that are not directly related to the sale of eligible crops that are not produced by the producer such as:\n     Patronage paid to a producer based on the amount of money borrowed and the interest paid\n     Dividend paid to a producer based on the services used or products purchased"]
[null,{"$f":"IF(C52=\"\",\"\",29)","v":29},{"$f":"IF($H$37=\"Actual Revenue\",IF('524B'!C65=\"\",\"\",'524B'!C65),'524A'!B21)","v":"Enter amount of other revenue directly related to the production of eligible crops that IRS requires the producer to report as income including but not limited to commodity-specific income received from state or local governments; and net gain from hedging."},null,null,null,null,null,{"$f":"IF(RIGHT($E$28,8)=\"Tax Year\",\"\",\"\")","v":""},{"$f":"IF(E28=\"\",AA52,IF(RIGHT($E$28,8)=\"Tax Year\",AA52,\"\"))","v":" "},null,null,null,null,null,null,null,null,null,null,null,null,null,null,null,"CCC loans for eligible crops, if treated as income and reported to IRS For example:\n   CCC loan proceeds for eligible crops if elected to be treated as income in a prior year less the tax basis in year of repayment\n   CCC loans for eligible crops reported under election if elected to be treated as income and reported to IRS when all or part of the production is used as collateral to secure the loan\n   Forfeited CCC loans for eligible crops"," ","Other revenue directly related to the production of eligible crops that IRS requires the producer to report as income"]
[null,30,"Total",null,null,null,{"$f":"SUM(G39:G52)","v":0},{"$f":"SUM(H39:H52)","v":0},null,null,null,null,null,null,null,null,null,null,null,null,null,null,null,null,null,null,"     Federal and State gas/fuel tax credits\n     Income from a pass-through entity such as an S Corporation or Limited Liability Company (LLC)\n     Certificate Exchanges\n     Custom hire income\n     Wages, salaries, tips, and cash rent\n    Employee Retention Credit (ERTC)\n    Paycheck Protection Program (PPP)\n     Rental of equipment or supplies\n     Revenue earned as a contract producer\n     Net gain from speculation"]

{"sheet":"FSA-524","index":1,"n_rows":53,"n_cols":35,"rows_kept":53,"cut":false,"hidden":false,"merged":[[1,1,2,17],[1,21,1,23],[6,1,6,2],[6,3,6,12],[6,13,6,23],[7,1,7,2],[7,3,7,12],[7,13,7,16],[7,17,7,23],[4,18,4,23],[5,19,5,23],[11,1,11,23],[12,1,12,23],[13,2,13,23],[14,2,14,23],[15,2,15,23],[16,4,16,23],[8,3,10,12],[8,13,8,16],[8,17,8,23],[9,13,9,16],[9,17,9,23],[10,13,10,16],[10,17,10,23],[23,2,23,23],[24,2,24,23],[26,17,26,23],[27,17,27,23],[29,1,29,7],[29,19,29,23],[17,4,17,23],[18,4,18,23],[19,4,19,23],[20,4,20,23],[21,4,21,23],[22,2,22,23],[30,1,30,23],[31,1,31,10],[31,11,31,23],[32,1,32,10],[32,11,32,23],[33,1,33,10],[33,11,33,15],[33,16,33,18],[33,19,33,23],[36,1,36,10],[36,11,36,15],[36,16,36,18],[36,19,36,23],[37,1,37,7],[37,8,37,9],[37,11,37,23],[34,1,34,10],[34,11,34,15],[34,16,34,18],[34,19,34,23],[35,1,35,10],[35,11,35,15],[35,16,35,18],[35,19,35,23],[42,13,44,13],[42,14,44,14],[42,15,44,15],[38,1,38,7],[38,8,38,9],[38,11,38,23],[40,1,40,14],[40,15,40,23],[41,1,41,2],[41,3,41,5],[41,6,41,7],[41,11,41,14],[41,18,41,19],[41,20,41,23],[48,1,48,23],[49,1,49,9],[49,10,49,18],[49,19,49,23],[50,10,50,18],[50,19,50,23],[42,23,44,23],[45,1,45,23],[46,1,46,23],[47,1,47,9],[47,10,47,18],[47,19,47,23],[42,16,44,16],[42,17,44,17],[42,18,44,19],[42,20,44,20],[42,21,44,21],[42,22,44,22],[42,3,44,5],[42,8,44,8],[42,9,44,9],[42,10,44,10],[42,11,44,11],[42,12,44,12],[56,1,56,24],[57,1,57,5],[57,6,57,13],[57,14,57,23],[58,1,58,5],[58,6,58,13],[58,14,58,23],[51,1,51,7],[51,19,51,23],[52,2,52,23],[53,1,53,23],[54,1,54,23],[55,5,55,6],[55,11,55,14],[55,17,55,22],[61,1,61,5],[61,6,61,13],[61,14,61,23],[62,1,62,5],[62,6,62,13],[62,14,62,23],[59,1,59,5],[59,6,59,13],[59,14,59,23],[60,1,60,5],[60,6,60,13],[60,14,60,23],[67,1,67,24],[65,1,65,5],[65,6,65,13],[65,14,65,23],[66,1,66,5],[66,6,66,13],[66,14,66,23],[63,1,63,5],[63,6,63,13],[63,14,63,23],[64,1,64,5],[64,6,64,13],[64,14,64,23]]}
[]
[null,{"$f":"Data_Entry!B13","v":"Emergency Relief Program 2022 Application Tool - Version 1.2"}]
[]
[]
[null,null,null,null,null,null,null,null,null,null,null,null,null,null,null,null,null,null,"OMB Approval #  0560-0316"]
[null,null,null,null,null,null,null,null,null,null,null,null,null,null,null,null,null,null,null,"Expiration Date 04/30/2024"]
[null,"FSA-524 ",null,"U.S. DEPARTMENT OF AGRICULTURE",null,null,null,null,null,null,null,null,null,"FOR COUNTY OFFICE USE ONLY"]
[null,"(10/31/2023)",null,"Farm Service Agency",null,null,null,null,null,null,null,null,null,"1. Recording State \n             Name                                     Code",null,null,null,"2. Recording County\n             Name                                     Code"]
[null,null,null,"EMERGENCY RELIEF PROGRAM (ERP) 2022\nTRACK  2 APPLICATION",null,null,null,null,null,null,null,null,null,{"$f":"IF(Data_Entry!B26=\"\",\"\",Data_Entry!B26)","v":""},null,null,null,{"$f":"IF(Data_Entry!F26=\"\",\"\",Data_Entry!F26)","v":""}]
[null,null,null,null,null,null,null,null,null,null,null,null,null,"3.Program Year\n",null,null,null,"4.  Application Number"]
[null,null,null,null,null,null,null,null,null,null,null,null,null,2022]
[null,"PART A - PRODUCER AGREEMENT"]
[null,"The Farm Service Agency (FSA) will make payments under ERP 2022 Track 2 to eligible producers who meet the requirements of the program, subject to the availability of funds. The following information is needed for FSA to determine that the producer is eligible to receive ERP Track 2 assistance. By submitting this application, the producer agrees: ",null,null,null,null,null,null,null,null,null,null,null,null,null,null,null,null,null,null,null,null,null,null,null,null,null,null,null,null,null,null,"Benchmark Year Dropdown","Disaster Year Revenue"]
[null,null,"To comply with the Notice of Funds Availability published by FSA. A copy of this document may be found at: https://www.fsa.usda.gov/programs-and-services/emergency-relief/index. "]
[null,null,"To provide to FSA any additional information requested by FSA to verify that information provided on this form is accurate within 30 calendar days of the request or the application will be disapproved. Producer is required to retain documentation in support of their application for 3 years after the date of approval. All information provided to FSA for program eligibility and payment calculation purposes, including certification that a producer suffered an eligible loss due to a qualifying disaster event, is subject to spot check.",null,null,null,null,null,null,null,null,null,null,null,null,null,null,null,null,null,null,null,null,null,null,null,null,null,null,null,null,null,"2018 Tax Year","2022 Tax Year","yes"]
[null,null,"To comply with payment attribution and payment eligibility provisions by submitting the following forms within 60 days of the announced application deadline, if not already on file with FSA: ",null,null,null,null,null,null,null,null,null,null,null,null,null,null,null,null,null,null,null,null,null,null,null,null,null,null,null,null,null,"2019 Tax Year","2023 Tax Year","no"]
[null,null,null,"•","AD-2047, Customer Data Worksheet",null,null,null,null,null,null,null,null,null,null,null,null,null,null,null,null,null,null,null,null,null,null,null,null,null,null,null,"Expected Revenue","Actual Revenue"]
[null,null,null,"•","CCC-902, Farm Operating Plan for Payment Eligibility"]
[null,null,null,"•","CCC-901, Member Information for Legal Entities, if applicable"]
[null,null,null,"•","AD-1026, Highly Erodible Land Conservation (HELC) and Wetland Conservation (WC) Certification"]
[null,null,null,"•","FSA-510, Request for an Exception to the $125,000 Payment Limitation for Certain Programs (optional, if applicable)"]
[null,null,null,"•","CCC-860, Socially Disadvantaged, Limited Resource, Beginning and Veteran Farmer or Rancher Certification (optional, if applicable)"]
[null,null,"That any funds received by a producer under this program will be applied by FSA first to any judgment lien against the producer's property for a debt ot the United States to the extent such a lien exists.\n\nThat the applicant experienced a decrease in disaster year revenue due to necessary expenses related to losses of eligible crops due in whole or in part to a qualifying disaster event that occurred in the 2022 calendar year. For ERP, qualifying disaster event means: wildfires, tornadoes, hurricanes (including excessive wind, storm surges, tropical storms, and tropical depressions that occurred as a direct result of a hurricane), floods (including silt and debris that occurred as a direct and proximate result of flooding), derechos (including excessive wind that occurred as a direct result of a derecho), excessive heat, winter storms (including excessive wind and blizzards that occurred as a direct result of a winter storm), freeze (including a polar vortex), smoke exposure, excessive moisture, and qualifying drought, and related conditions, occurring in calendar year 2022. Related conditions mean damaging weather and adverse natural occurrences that occurred concurrently with and as a direct result of a specified qualifying disaster event. “Qualifying drought” means an area within the county in which the loss occurred was rated by the U.S. Drought Monitor as having a drought intensity of D2 (severe drought) for eight consecutive weeks or D3 (extreme drought) or higher for any period of time during the applicable calendar year. A list of counties that experienced a qualifying drought in calendar year 2022 is available through local FSA service centers and at https://www.fsa.usda.gov/programs-and-services/emergency-relief/index. "]
[null,null,"The application will not be considered complete until the producer has signed Item 22 and completed the FSA-525, Crop Insurance and/or NAP Coverage Agreement, completed all required items and signed in Item 8.  "]
[null,null,"Failure of an individual, entity, or member of an entity to timely submit all eligibility documents required may result in no payment or a reduced payment."]
[]
[null,null,null,null,null,null,null,null,null,null,null,null,null,null,null,null,null,"DATE STAMPED"]
[]
[]
[null,"FSA-524 (08/31/2023)",null,null,null,null,null,null,null,null,null,null,null,null,null,null,null,null,null,"Page 2 of 3"]
[null,"PART B- PRODUCER INFORMATION"]
[null,"5. Producer Name (Person or Legal Entity)",null,null,null,null,null,null,null,null,null,"7. Information Line"]
[null,{"$f":"IF(Data_Entry!B18=\"\",\"\",Data_Entry!B18)","v":""},null,null,null,null,null,null,null,null,null,{"$f":"IF(Data_Entry!F18=\"\",\"\",Data_Entry!F18)","v":""}]
[null,"6A. Address  Line 1",null,null,null,null,null,null,null,null,null,"8A Primary Phone Number",null,null,null,null,"Home",null,null,"Cell"]
[null,{"$f":"IF(Data_Entry!B20=\"\",\"\",Data_Entry!B20)","v":""},null,null,null,null,null,null,null,null,null,null,null,null,null,null,{"$f":"IF(Data_Entry!G20=\"\",\"\",Data_Entry!G20)","v":""},null,null,{"$f":"IF(Data_Entry!H20=\"\",\"\",Data_Entry!H20)","v":""}]
[null,{"$f":"IF(Data_Entry!B21=\"\",\"\",Data_Entry!B21)","v":"3. Address  Line 2"},null,null,null,null,null,null,null,null,null,"8B Alternate Phone Number",null,null,null,null,"Home",null,null,"Cell"]
[null,{"$f":"IF(Data_Entry!B22=\"\",\"\",Data_Entry!B22)","v":""},null,null,null,null,null,null,null,null,null,null,null,null,null,null,{"$f":"IF(Data_Entry!G22=\"\",\"\",Data_Entry!G22)","v":""},null,null,{"$f":"IF(Data_Entry!H22=\"\",\"\",Data_Entry!H22)","v":""}]
[null,"6C.  City",null,null,null,null,null,null,"6D.  State",null,"6E.  Zip","9.  Email Address"]
[null,{"$f":"IF(Data_Entry!B24=\"\",\"\",Data_Entry!B24)","v":""},null,null,null,null,null,null,{"$f":"IF(Data_Entry!D24=\"\",\"\",Data_Entry!D24)","v":""},null,{"$f":"IF(Data_Entry!E24=\"\",\"\",Data_Entry!E24)","v":""},{"$f":"IF(Data_Entry!F24=\"\",\"\",Data_Entry!F24)","v":""}]
[]
[null,"PART C - 2022 DISASTER YEAR REVENUE CERTIFICATION",null,null,null,null,null,null,null,null,null,null,null,null,null,"FOR COUNTY OFFICE USE ONLY"]
[null,"10.\nBenchmark Year",null,"11.\nBenchmark Revenue",null,null,"12.\nRepresentative Revenue Year",null,"13.\nDisaster Year Revenue","14.\n% of Expected Revenue from Specialty & High Value Crops","15.\n% of Expected Revenue from Other Crops","16.\nWere All Eligible Crops Insured or Covered by NAP?",null,null,null,"17. \nCOC Adjusted Benchmark Revenue","18. \nCOC Adjusted Disaster Year Revenue","19. \nCOC Adjusted % of Expected Revenue  from Specialty & High Value Crops","12. \nCOC Adjusted % of Expected Revenue from Other Crops",null,"21. \nCOC Adjusted Were All Eligible Crops Insured or Covered by NAP"]
[null,{"$f":"IF(Data_Entry!E28=AG15,\"X\",\"\")","v":""},"2018 Tax Year",{"$f":"IF(Data_Entry!E28=AG17,'524B'!M51,'524A'!N105)","v":0},null,null,{"$f":"IF(Data_Entry!E29=\"2022 Tax Year\",\"X\",\"\")","v":""},"2022 Tax Year",{"$f":"IF(Data_Entry!E29=\"Actual Revenue\",'524B'!O63,'524A'!N106)","v":0},{"$f":"IF(Data_Entry!H29=\"\",\"\",Data_Entry!H29)","v":""},{"$f":"IF(J43=\"\",\"\",1-J43)","v":""},{"$f":"IF(Data_Entry!H28=\"\",\"\",IF(Data_Entry!H28=\"Yes\",\"X\",\"\"))","v":""},"Yes",{"$f":"IF(L43=\"X\",\"\",\"X\")","v":"X"},"No",null,null,null,null,null,null,"Yes",null,"No"]
[null,{"$f":"IF(Data_Entry!E28=AG16,\"X\",\"\")","v":""},"2019 Tax Year",null,null,null,{"$f":"IF(Data_Entry!E29=\"2023 Tax Year\",\"X\",\"\")","v":""},"2023 Tax Year"]
[null,{"$f":"IF(Data_Entry!E28=AG17,\"X\",\"\")","v":""},"Expected",null,null,null,{"$f":"IF(Data_Entry!E29=\"Actual Revenue\",\"X\",\"\")","v":""},"Actual"]
[null,"PART D - PRODUCER CERTIFICATION"]
[null,"I hereby sign and certify under penalty of perjury in accordance with 28 U.S.C. § 1746 and 18 U.S.C. § 1621 that all information on this application, whether entered by me or by someone else on my behalf, is true and correct. I understand that if any information is determined to be in error, the application may be denied, and such errors may result in a determination of ineligibility in whole or in part. "]
[null,"22A. Signature (By)",null,null,null,null,null,null,null,null,"22B. Title/Relationship of the Individual Signing in the Representative Capacity",null,null,null,null,null,null,null,null,"22C. Date (MM/DD/YYYY)"]
[null,"PART E - COUNTY COMMITTEE (COC) DETERMINATION"]
[null,"23A  COC Determination",null,null,null,null,null,null,null,null,"23B COC or Designee Signature",null,null,null,null,null,null,null,null,"23C. Date (MM/DD/YYYY)"]
[null,null,"Approved",null,null,null,"Disapproved"]
[null,"FSA-524 (08/31/2023)",null,null,null,null,null,null,null,null,null,null,null,null,null,null,null,null,null,"Page 3 of 3"]
[null,"NOTE:","Privacy Act Statement:  The following statement is made in accordance with the Privacy Act of 1974 (5 USC 552a - as amended). The authority for requesting the information identified on this form is the Disaster Relief Supplemental Appropriations Act, 2023 (P.L. 117-328). The information will be used to determine eligibility for program benefits. The information collected on this form may be disclosed to other Federal, State, and Local government agencies, Tribal agencies, and nongovernmental entities that have been authorized access to the information by statute or regulation and/or as described in applicable Routine Uses identified in the System of Records Notice for USDA/FSA-2, Farm Records File (Automated). Providing the requested information is voluntary; however, failure to furnish the requested information will result in a determination of ineligibility for program benefits. \n\nPublic Burden Statement (Paperwork Reduction Act): Public reporting burden for this collection is estimated to average 60 minutes per response, including reviewing instructions, gathering, and maintaining the data needed, completing (providing the information), and reviewing the collection of information. You are not required to respond to the collection of information, unless it displays a valid OMB control number.  \n\nNon-Discrimination Statement: In accordance with Federal civil rights law and USDA civil rights regulations and policies, the USDA, its agencies, offices, and employees participating in or administering USDA programs are prohibited from discriminating based on race, color, national origin, religion, sex, gender identity (including gender expression), sexual orientation, disability, age, marital status, family/parental status, income derived from a public assistance program, political beliefs, or reprisal or retaliation for prior civil rights activity, in any program or activity conducted or funded by USDA (not all bases apply to all programs). Remedies and complaint filing deadlines vary by program or incident. \n\nPersons with disabilities who require alternative means of communication for program information (e.g., Braille, large print, audiotape, American Sign Language, etc.) should contact the responsible agency or USDA’s TARGET Center at \n(202) 720-2600 (voice and TTY) or contact USDA through the Federal Relay Service at (800) 877-8339. Additionally, program information may be made available in languages other than English. \n\nTo file a program discrimination complaint, complete the USDA Program Discrimination Complaint Form, AD-3027, found online at http://www.ascr.usda.gov/complaint_filing_cust.html and at any USDA office or write a letter addressed to USDA and provide in the letter all of the information requested in the form. To request a copy of the complaint form, call (866) 632-9992. Submit your completed form or letter to USDA by: (1) mail: U.S. Department of Agriculture Office of the Assistant Secretary for Civil Rights 1400 Independence Avenue, SW Washington, D.C. 20250-9410; (2) fax: (202) 690-7442; or (3) email: program.intake@usda.gov. USDA is an equal opportunity provider, employer, and lender. "]

{"sheet":"524A","index":2,"n_rows":396,"n_cols":23,"rows_kept":396,"cut":false,"hidden":false,"merged":[[82,0,82,14],[77,0,77,13],[62,0,62,12],[64,0,64,12],[65,0,65,12],[66,0,66,12],[67,0,67,14],[73,0,73,14],[72,0,72,12],[68,0,68,12],[69,0,69,12],[54,4,54,5],[54,6,54,9],[54,10,54,11],[54,13,54,14],[56,4,56,5],[56,6,56,9],[56,10,56,11],[56,13,56,14],[75,13,75,14],[70,0,70,12],[64,13,64,14],[65,13,65,14],[66,13,66,14],[68,13,68,14],[63,0,63,12],[63,13,63,14],[71,0,71,12],[71,13,71,14],[42,0,42,2],[44,0,44,14],[47,0,47,3],[48,0,48,3],[41,0,41,13],[43,1,43,14],[47,4,47,5],[47,6,47,9],[47,10,47,11],[47,13,47,14],[48,4,48,5],[0,1,0,14],[98,5,98,8],[98,9,98,12],[98,13,98,14],[99,5,99,8],[99,9,99,12],[87,9,87,12],[87,13,87,14],[88,5,88,8],[88,9,88,12],[88,13,88,14],[94,5,94,8],[94,9,94,12],[94,13,94,14],[92,0,92,14],[58,4,58,5],[58,6,58,9],[58,10,58,11],[58,13,58,14],[69,13,69,14],[93,0,93,14],[2,7,2,14],[4,7,4,14],[1,2,1,6],[2,2,2,6],[1,0,1,1],[2,0,2,1],[3,2,4,6],[19,1,19,13],[1,7,1,14],[3,7,3,14],[5,1,5,14],[8,1,8,13],[9,1,9,13],[10,1,10,13],[11,1,11,13],[12,1,12,13],[13,1,13,13],[15,1,15,13],[17,1,17,13],[18,1,18,13],[16,1,16,13],[14,1,14,13],[42,3,42,7],[42,8,42,10],[42,11,42,14],[74,0,74,12],[76,0,76,12],[78,0,78,2],[6,0,6,14],[7,0,7,14],[24,0,24,14],[25,0,25,14],[32,1,32,13],[33,1,33,13],[35,1,35,13],[20,1,20,13],[21,1,21,13],[23,3,23,7],[23,8,23,10],[23,11,23,14],[26,1,26,13],[27,1,27,13],[28,1,28,13],[29,1,29,13],[30,1,30,13],[31,1,31,13],[36,1,36,13],[37,1,37,13],[38,1,38,13],[39,1,39,13],[40,1,40,14],[23,0,23,2],[34,1,34,13],[49,13,49,14],[94,0,94,4],[95,0,95,4],[90,5,90,8],[90,9,90,12],[90,13,90,14],[91,13,91,14],[91,0,91,12],[96,5,96,8],[96,9,96,12],[96,13,96,14],[105,13,105,14],[99,13,99,14],[100,5,100,8],[99,0,99,4],[100,0,100,4],[100,9,100,12],[100,13,100,14],[95,5,95,8],[95,9,95,12],[95,13,95,14],[101,13,101,14],[102,1,102,14],[104,13,104,14],[97,5,97,8],[97,9,97,12],[97,13,97,14],[96,0,96,4],[97,0,97,4],[46,0,46,14],[83,0,83,14],[81,0,81,2],[51,6,51,9],[51,10,51,11],[51,13,51,14],[52,4,52,5],[52,6,52,9],[52,10,52,11],[52,13,52,14],[53,4,53,5],[53,6,53,9],[53,10,53,11],[53,13,53,14],[59,13,59,14],[61,13,61,14],[62,13,62,14],[76,13,76,14],[70,13,70,14],[72,13,72,14],[74,13,74,14],[78,3,78,7],[78,8,78,10],[78,11,78,14],[81,3,81,14],[79,0,79,14],[75,0,75,12],[50,4,50,5],[55,4,55,5],[55,6,55,9],[55,10,55,11],[80,0,80,14],[48,6,48,9],[48,10,48,11],[48,13,48,14],[57,4,57,5],[57,6,57,9],[57,10,57,11],[57,13,57,14],[51,4,51,5],[45,3,45,14],[45,0,45,2],[55,13,55,14],[50,6,50,9],[50,10,50,11],[50,13,50,14],[49,10,49,11],[55,0,55,3],[98,0,98,4],[85,0,85,4],[84,0,84,4],[86,0,86,4],[87,0,87,4],[88,0,88,4],[89,0,89,4],[90,0,90,4],[85,9,85,12],[85,13,85,14],[86,5,86,8],[86,9,86,12],[86,13,86,14],[89,5,89,8],[89,9,89,12],[89,13,89,14],[107,0,107,13],[108,0,108,2],[108,3,108,7],[108,8,108,10],[108,11,108,14],[109,1,109,14],[110,0,110,14],[111,0,111,2],[111,3,111,14],[56,0,56,3],[57,0,57,3],[58,0,58,3],[59,0,59,12],[60,0,60,14],[61,0,61,12],[49,0,49,3],[50,0,50,3],[51,0,51,3],[52,0,52,3],[53,0,53,3],[54,0,54,3],[49,4,49,5],[49,6,49,9],[85,5,85,8],[87,5,87,8],[84,5,84,8],[84,9,84,12],[84,13,84,14],[105,0,105,12],[104,0,104,12],[103,0,103,14],[101,0,101,12],[115,0,115,3],[115,4,115,5],[115,6,115,9],[115,10,115,11],[115,13,115,14],[116,0,116,3],[116,4,116,5],[116,6,116,9],[116,10,116,11],[116,13,116,14],[112,0,112,14],[113,0,113,3],[113,4,113,5],[113,6,113,9],[113,10,113,11],[113,13,113,14],[114,0,114,3],[114,4,114,5],[114,6,114,9],[114,10,114,11],[114,13,114,14],[119,0,119,3],[119,4,119,5],[119,6,119,9],[119,10,119,11],[119,13,119,14],[120,0,120,3],[120,4,120,5],[120,6,120,9],[120,10,120,11],[120,13,120,14],[121,0,121,3],[121,4,121,5],[121,6,121,9],[121,10,121,11],[117,0,117,3],[117,4,117,5],[117,6,117,9],[117,10,117,11],[117,13,117,14],[118,0,118,3],[118,4,118,5],[118,6,118,9],[118,10,118,11],[118,13,118,14],[124,0,124,3],[124,4,124,5],[124,6,124,9],[124,10,124,11],[124,13,124,14],[125,0,125,12],[125,13,125,14],[126,0,126,14],[127,0,127,12],[127,13,127,14],[121,13,121,14],[122,0,122,3],[122,4,122,5],[122,6,122,9],[122,10,122,11],[122,13,122,14],[123,0,123,3],[123,4,123,5],[123,6,123,9],[123,10,123,11],[123,13,123,14],[138,0,138,12],[138,13,138,14],[133,0,133,14],[134,0,134,12],[134,13,134,14],[135,0,135,12],[135,13,135,14],[136,0,136,12],[136,13,136,14],[137,0,137,12],[137,13,137,14],[128,0,128,12],[128,13,128,14],[129,0,129,12],[129,13,129,14],[130,0,130,12],[130,13,130,14],[131,0,131,12],[131,13,131,14],[132,0,132,12],[132,13,132,14],[144,0,144,14],[145,0,145,14],[146,0,146,4],[146,5,146,8],[146,9,146,12],[146,13,146,14],[147,0,147,4],[147,5,147,8],[147,9,147,12],[147,13,147,14],[139,0,139,13],[140,0,140,2],[140,3,140,7],[140,8,140,10],[140,11,140,14],[141,0,141,14],[142,0,142,14],[143,0,143,2],[143,3,143,14],[151,0,151,4],[151,5,151,8],[151,9,151,12],[151,13,151,14],[152,0,152,4],[152,5,152,8],[152,9,152,12],[152,13,152,14],[153,0,153,12],[153,13,153,14],[148,0,148,4],[148,5,148,8],[148,9,148,12],[148,13,148,14],[149,0,149,4],[149,5,149,8],[149,9,149,12],[149,13,149,14],[150,0,150,4],[150,5,150,8],[150,9,150,12],[150,13,150,14],[158,9,158,12],[158,13,158,14],[159,0,159,4],[159,5,159,8],[159,9,159,12],[159,13,159,14],[160,0,160,4],[160,5,160,8],[160,9,160,12],[160,13,160,14],[154,0,154,14],[155,0,155,14],[156,0,156,4],[156,5,156,8],[156,9,156,12],[156,13,156,14],[157,0,157,4],[157,5,157,8],[157,9,157,12],[157,13,157,14],[170,0,170,14],[171,0,171,3],[171,4,171,5],[171,6,171,9],[171,10,171,11],[171,13,171,14],[172,0,172,3],[172,13,172,14],[106,0,106,13],[165,0,165,13],[166,0,166,2],[166,3,166,7],[166,8,166,10],[166,11,166,14],[167,1,167,14],[168,0,168,14],[169,0,169,2],[169,3,169,14],[161,0,161,4],[161,5,161,8],[161,9,161,12],[161,13,161,14],[162,0,162,4],[162,5,162,8],[162,9,162,12],[162,13,162,14],[163,0,163,12],[163,13,163,14],[158,0,158,4],[172,4,172,5],[172,6,172,9],[158,5,158,8],[175,0,175,3],[175,13,175,14],[176,0,176,3],[176,13,176,14],[173,0,173,3],[173,13,173,14],[174,0,174,3],[174,13,174,14],[179,13,179,14],[180,0,180,3],[180,13,180,14],[181,0,181,3],[181,13,181,14],[177,0,177,3],[177,13,177,14],[178,0,178,3],[178,13,178,14],[179,0,179,3],[173,4,173,5],[174,4,174,5],[175,4,175,5],[176,4,176,5],[177,4,177,5],[178,4,178,5],[179,4,179,5],[180,4,180,5],[181,4,181,5],[173,6,173,9],[174,6,174,9],[175,6,175,9],[176,6,176,9],[177,6,177,9],[186,0,186,12],[186,13,186,14],[187,0,187,12],[187,13,187,14],[188,0,188,12],[188,13,188,14],[189,0,189,12],[189,13,189,14],[190,0,190,12],[190,13,190,14],[182,0,182,3],[182,13,182,14],[183,0,183,12],[183,13,183,14],[184,0,184,14],[185,0,185,12],[185,13,185,14],[182,4,182,5],[197,0,197,13],[198,0,198,2],[198,3,198,7],[198,8,198,10],[198,11,198,14],[199,0,199,14],[200,0,200,14],[201,0,201,2],[201,3,201,14],[196,0,196,12],[196,13,196,14],[191,0,191,14],[192,0,192,12],[192,13,192,14],[193,0,193,12],[193,13,193,14],[194,0,194,12],[194,13,194,14],[195,0,195,12],[195,13,195,14],[206,0,206,4],[206,5,206,8],[206,9,206,12],[206,13,206,14],[207,0,207,4],[207,5,207,8],[207,9,207,12],[207,13,207,14],[208,0,208,4],[208,5,208,8],[208,9,208,12],[208,13,208,14],[202,0,202,14],[203,0,203,14],[204,0,204,4],[204,5,204,8],[204,9,204,12],[204,13,204,14],[205,0,205,4],[205,5,205,8],[205,9,205,12],[205,13,205,14],[212,0,212,14],[213,0,213,14],[214,0,214,4],[214,5,214,8],[214,9,214,12],[214,13,214,14],[215,0,215,4],[215,5,215,8],[215,9,215,12],[215,13,215,14],[209,0,209,4],[209,5,209,8],[209,9,209,12],[209,13,209,14],[210,0,210,4],[210,5,210,8],[210,9,210,12],[210,13,210,14],[211,0,211,12],[211,13,211,14],[227,3,227,14],[219,0,219,4],[219,5,219,8],[219,9,219,12],[219,13,219,14],[220,0,220,4],[220,5,220,8],[220,9,220,12],[220,13,220,14],[221,0,221,12],[221,13,221,14],[216,0,216,4],[216,5,216,8],[216,9,216,12],[216,13,216,14],[217,0,217,4],[217,5,217,8],[217,9,217,12],[217,13,217,14],[218,0,218,4],[218,5,218,8],[218,9,218,12],[218,13,218,14],[233,13,233,14],[234,0,234,3],[234,4,234,5],[234,6,234,9],[234,10,234,11],[234,13,234,14],[231,0,231,3],[231,4,231,5],[231,6,231,9],[231,10,231,11],[231,13,231,14],[232,0,232,3],[232,4,232,5],[232,6,232,9],[232,10,232,11],[232,13,232,14],[228,0,228,14],[229,0,229,3],[229,4,229,5],[229,6,229,9],[229,10,229,11],[229,13,229,14],[230,0,230,3],[230,4,230,5],[230,6,230,9],[230,10,230,11],[230,13,230,14],[237,13,237,14],[238,0,238,3],[238,4,238,5],[238,6,238,9],[238,10,238,11],[238,13,238,14],[239,0,239,3],[239,4,239,5],[239,6,239,9],[239,10,239,11],[239,13,239,14],[235,0,235,3],[235,4,235,5],[235,6,235,9],[235,10,235,11],[235,13,235,14],[236,0,236,3],[236,4,236,5],[236,6,236,9],[236,10,236,11],[236,13,236,14],[244,0,244,12],[244,13,244,14],[245,0,245,12],[245,13,245,14],[246,0,246,12],[246,13,246,14],[247,0,247,12],[247,13,247,14],[248,0,248,12],[248,13,248,14],[240,0,240,3],[240,4,240,5],[240,6,240,9],[240,10,240,11],[240,13,240,14],[241,0,241,12],[241,13,241,14],[242,0,242,14],[243,0,243,12],[243,13,243,14],[255,0,255,13],[256,0,256,2],[256,3,256,7],[256,8,256,10],[256,11,256,14],[257,0,257,14],[258,0,258,14],[259,0,259,2],[259,3,259,14],[254,0,254,12],[254,13,254,14],[249,0,249,14],[250,0,250,12],[250,13,250,14],[251,0,251,12],[251,13,251,14],[252,0,252,12],[252,13,252,14],[253,0,253,12],[253,13,253,14],[264,0,264,4],[264,5,264,8],[264,9,264,12],[264,13,264,14],[265,0,265,4],[265,5,265,8],[265,9,265,12],[265,13,265,14],[266,0,266,4],[266,5,266,8],[266,9,266,12],[266,13,266,14],[260,0,260,14],[261,0,261,14],[262,0,262,4],[262,5,262,8],[262,9,262,12],[262,13,262,14],[263,0,263,4],[263,5,263,8],[263,9,263,12],[263,13,263,14],[270,0,270,14],[271,0,271,14],[272,0,272,4],[272,5,272,8],[272,9,272,12],[272,13,272,14],[273,0,273,4],[273,5,273,8],[273,9,273,12],[273,13,273,14],[267,0,267,4],[267,5,267,8],[267,9,267,12],[267,13,267,14],[268,0,268,4],[268,5,268,8],[268,9,268,12],[268,13,268,14],[269,0,269,12],[269,13,269,14],[277,0,277,4],[277,5,277,8],[277,9,277,12],[277,13,277,14],[278,0,278,4],[278,5,278,8],[278,9,278,12],[278,13,278,14],[279,0,279,12],[279,13,279,14],[274,0,274,4],[274,5,274,8],[274,9,274,12],[274,13,274,14],[275,0,275,4],[275,5,275,8],[275,9,275,12],[275,13,275,14],[276,0,276,4],[276,5,276,8],[276,9,276,12],[276,13,276,14],[286,0,286,14],[287,0,287,3],[287,4,287,5],[287,6,287,9],[287,10,287,11],[287,13,287,14],[288,0,288,3],[288,4,288,5],[288,6,288,9],[288,10,288,11],[288,13,288,14],[281,0,281,13],[282,0,282,2],[282,3,282,7],[282,8,282,10],[282,11,282,14],[283,1,283,14],[284,0,284,14],[285,0,285,2],[285,3,285,14],[291,0,291,3],[291,4,291,5],[291,6,291,9],[291,10,291,11],[291,13,291,14],[292,0,292,3],[292,4,292,5],[292,6,292,9],[292,10,292,11],[292,13,292,14],[289,0,289,3],[289,4,289,5],[289,6,289,9],[289,10,289,11],[289,13,289,14],[290,0,290,3],[290,4,290,5],[290,6,290,9],[290,10,290,11],[290,13,290,14],[295,13,295,14],[296,0,296,3],[296,4,296,5],[296,6,296,9],[296,10,296,11],[296,13,296,14],[297,0,297,3],[297,4,297,5],[297,6,297,9],[297,10,297,11],[297,13,297,14],[293,0,293,3],[293,4,293,5],[293,6,293,9],[293,10,293,11],[293,13,293,14],[294,0,294,3],[294,4,294,5],[294,6,294,9],[294,10,294,11],[294,13,294,14],[295,0,295,3],[295,4,295,5],[295,6,295,9],[295,10,295,11],[302,0,302,12],[302,13,302,14],[303,0,303,12],[303,13,303,14],[304,0,304,12],[304,13,304,14],[305,0,305,12],[305,13,305,14],[306,0,306,12],[306,13,306,14],[298,0,298,3],[298,4,298,5],[298,6,298,9],[298,10,298,11],[298,13,298,14],[299,0,299,12],[299,13,299,14],[300,0,300,14],[301,0,301,12],[301,13,301,14],[313,0,313,13],[314,0,314,2],[314,3,314,7],[314,8,314,10],[314,11,314,14],[315,0,315,14],[316,0,316,14],[317,0,317,2],[317,3,317,14],[312,0,312,12],[312,13,312,14],[307,0,307,14],[308,0,308,12],[308,13,308,14],[309,0,309,12],[309,13,309,14],[310,0,310,12],[310,13,310,14],[311,0,311,12],[311,13,311,14],[322,0,322,4],[322,5,322,8],[322,9,322,12],[322,13,322,14],[323,0,323,4],[323,5,323,8],[323,9,323,12],[323,13,323,14],[324,0,324,4],[324,5,324,8],[324,9,324,12],[324,13,324,14],[318,0,318,14],[319,0,319,14],[320,0,320,4],[320,5,320,8],[320,9,320,12],[320,13,320,14],[321,0,321,4],[321,5,321,8],[321,9,321,12],[321,13,321,14],[328,0,328,14],[329,0,329,14],[330,0,330,4],[330,5,330,8],[330,9,330,12],[330,13,330,14],[331,0,331,4],[331,5,331,8],[331,9,331,12],[331,13,331,14],[325,0,325,4],[325,5,325,8],[325,9,325,12],[325,13,325,14],[326,0,326,4],[326,5,326,8],[326,9,326,12],[326,13,326,14],[327,0,327,12],[327,13,327,14],[335,0,335,4],[335,5,335,8],[335,9,335,12],[335,13,335,14],[336,0,336,4],[336,5,336,8],[336,9,336,12],[336,13,336,14],[337,0,337,12],[337,13,337,14],[332,0,332,4],[332,5,332,8],[332,9,332,12],[332,13,332,14],[333,0,333,4],[333,5,333,8],[333,9,333,12],[333,13,333,14],[334,0,334,4],[334,5,334,8],[334,9,334,12],[334,13,334,14],[344,0,344,14],[345,0,345,3],[345,4,345,5],[345,6,345,9],[345,10,345,11],[345,13,345,14],[346,0,346,3],[346,4,346,5],[346,6,346,9],[346,10,346,11],[346,13,346,14],[339,0,339,13],[340,0,340,2],[340,3,340,7],[340,8,340,10],[340,11,340,14],[341,1,341,14],[342,0,342,14],[343,0,343,2],[343,3,343,14],[349,0,349,3],[349,4,349,5],[349,6,349,9],[349,10,349,11],[349,13,349,14],[350,0,350,3],[350,4,350,5],[350,6,350,9],[350,10,350,11],[350,13,350,14],[347,0,347,3],[347,4,347,5],[347,6,347,9],[347,10,347,11],[347,13,347,14],[348,0,348,3],[348,4,348,5],[348,6,348,9],[348,10,348,11],[348,13,348,14],[353,13,353,14],[354,0,354,3],[354,4,354,5],[354,6,354,9],[354,10,354,11],[354,13,354,14],[355,0,355,3],[355,4,355,5],[355,6,355,9],[355,10,355,11],[355,13,355,14],[353,0,353,3],[353,4,353,5],[353,6,353,9],[353,10,353,11],[351,0,351,3],[351,4,351,5],[351,6,351,9],[351,10,351,11],[351,13,351,14],[352,0,352,3],[352,4,352,5],[352,6,352,9],[352,10,352,11],[352,13,352,14],[360,0,360,12],[360,13,360,14],[361,0,361,12],[361,13,361,14],[362,0,362,12],[362,13,362,14],[363,0,363,12],[363,13,363,14],[364,0,364,12],[364,13,364,14],[356,0,356,3],[356,4,356,5],[356,6,356,9],[356,10,356,11],[356,13,356,14],[357,0,357,12],[357,13,357,14],[358,0,358,14],[359,0,359,12],[359,13,359,14],[371,0,371,13],[372,0,372,2],[372,3,372,7],[372,8,372,10],[372,11,372,14],[373,0,373,14],[374,0,374,14],[375,0,375,2],[375,3,375,14],[370,0,370,12],[370,13,370,14],[365,0,365,14],[366,0,366,12],[366,13,366,14],[367,0,367,12],[367,13,367,14],[368,0,368,12],[368,13,368,14],[369,0,369,12],[369,13,369,14],[380,0,380,4],[380,5,380,8],[380,9,380,12],[380,13,380,14],[381,0,381,4],[381,5,381,8],[381,9,381,12],[381,13,381,14],[382,0,382,4],[382,5,382,8],[382,9,382,12],[382,13,382,14],[376,0,376,14],[377,0,377,14],[378,0,378,4],[378,5,378,8],[378,9,378,12],[378,13,378,14],[379,0,379,4],[379,5,379,8]],"merged_total":1076,"flags":["merged_cut"]}
[null,"OMB Control Number. 0560-0316\nExpiration Date: 04/30/2024"]
["FSA-524-A",null,"U.S. DEPARTMENT OF AGRICULTURE",null,null,null,null,"1.   Producer’s Name (Person or Legal Entity):",null,null,null,null,null,null,null,null,null,null,null,null,null,null,"increase"]
["(12-05-23)",null,"Farm Service Agency",null,null,null,null,{"$f":"IF(Data_Entry!B18=\"\",\"\",Data_Entry!B18)","v":""},null,null,null,null,null,null,null,null,null,null,null,null,null,null,"decrease"]
[null,null,"EMERGENCY RELIEF PROGRAM (ERP) 2022 TRACK 2 TAX YEAR REVENUE WORKSHEET",null,null,null,null,"2.   Application Number:",null,null,null,null,null,null,null,null,null,null,null,null,null,null,"new producer"]
[null,null,null,null,null,null,null,null,null,null,null,null,null,null,null,null,null,null,null,null,null,null,"not applicable"]
[]
["SECTION A – BENCHMARK YEAR REVENUE"]
["Enter allowable gross revenue items based on the tax year selected for Benchmark Year, either tax year 2018 or 2019.",null,null,null,null,null,null,null,null,null,null,null,null,null,null,null,{"$f":"MAX(Q9:Q395)","v":4},null,{"$f":"Data_Entry!E29","v":0}]
["3.","Enter amount of allowable gross revenue from sales of eligible crops grown in the United States and its Territories by the applicant (example: corn sold as grain):",null,null,null,null,null,null,null,null,null,null,null,null,{"$f":"IF(OR(Data_Entry!$E$29=\"Actual Revenue\",Data_Entry!G39=\"\"),\"\",Data_Entry!G39)","v":""},{"$f":"IF(O9=\"\",0,O9)","v":0},4]
["4.","Enter amount of allowable gross revenue from sales of eligible crops resulting from value added through post-production activities that were reportable on IRS Schedule F, excluding any amount that was reportable on IRS Schedule C (example: strawberries into jam):",null,null,null,null,null,null,null,null,null,null,null,null,{"$f":"IF(OR(Data_Entry!$E$29=\"Actual Revenue\",Data_Entry!G40=\"\"),\"\",Data_Entry!G40)","v":""},{"$f":"IF(O10=\"\",0,O10)","v":0},4]
["5.","Enter amount of allowable gross revenue from sales of eligible crops purchased for resale that had a change in characteristic due to the time held (example: a plant purchased at a size of 2 inches and sold as an 18-inch plant after 4 months):",null,null,null,null,null,null,null,null,null,null,null,null,{"$f":"IF(OR(Data_Entry!$E$29=\"Actual Revenue\",Data_Entry!G41=\"\"),\"\",Data_Entry!G41)","v":""},0,4]
["6.","Enter amount of allowable gross revenue from aquatic species that are grown as food for human or livestock consumption, for industrial or biomass uses, as fish raised as feed for fish that are consumed by humans, as ornamental fish propagated and reared in an aquatic medium:",null,null,null,null,null,null,null,null,null,null,null,null,{"$f":"IF(OR(Data_Entry!$E$29=\"Actual Revenue\",Data_Entry!G42=\"\"),\"\",Data_Entry!G42)","v":""},0,4]
["7.","Enter amount of allowable gross revenue from federal crop insurance proceeds for eligible crops less administrative fees and premiums: ",null,null,null,null,null,null,null,null,null,null,null,null,{"$f":"IF(OR(Data_Entry!$E$29=\"Actual Revenue\",Data_Entry!G43=\"\"),\"\",Data_Entry!G43)","v":""},0,4]
["8.","Enter amount of allowable gross revenue from NAP payments for eligible crops less service fees and premiums:",null,null,null,null,null,null,null,null,null,null,null,null,{"$f":"IF(OR(Data_Entry!$E$29=\"Actual Revenue\",Data_Entry!G44=\"\"),\"\",Data_Entry!G44)","v":""},0,4]
["9.","Enter amount of allowable gross revenue from private crop insurance proceeds for eligible crops:",null,null,null,null,null,null,null,null,null,null,null,null,{"$f":"IF(OR(Data_Entry!$E$29=\"Actual Revenue\",Data_Entry!G45=\"\"),\"\",Data_Entry!G45)","v":""},0,4]
["10.","Enter amount of allowable gross revenue from benefits for eligible crops for the following agricultural programs: ARC/PLC, BCAP, CFAP 1, CFAP 2, LDP, MLG repayment of CCC loans less than the original amount, MFP, STRP, 2017 WHIP payments, 2018/2019 WHIP+ payments, QLA payments, PARP payments, ERP Phase 1 payments, ERP Phase 2 payments, OFSLP payments, and ELAP payments specific to aquaculture: ",null,null,null,null,null,null,null,null,null,null,null,null,{"$f":"IF(OR(Data_Entry!$E$29=\"Actual Revenue\",Data_Entry!G46=\"\"),\"\",Data_Entry!G46)","v":""},0,4]
["11.","Enter amount of total revenue from benefits for eligible crops for the following: payments through grant agreements with FSA, grants from the Department of Commerce, grants from NOAA, and State programs for the direct loss of eligible crops or the loss of revenue for eligible crops: ",null,null,null,null,null,null,null,null,null,null,null,null,{"$f":"IF(OR(Data_Entry!$E$29=\"Actual Revenue\",Data_Entry!G48=\"\"),\"\",Data_Entry!G48)","v":""},0,4]
["12.","Enter amount of allowable gross revenue from cooperative distributions directly related to the sale of eligible crops produced by the applicant such as per-unit allocations paid to patrons for gross grain sales:",null,null,null,null,null,null,null,null,null,null,null,null,{"$f":"IF(OR(Data_Entry!$E$29=\"Actual Revenue\",Data_Entry!G49=\"\"),\"\",Data_Entry!G49)","v":""},0,4]
["13.","Enter amount of allowable gross revenue from CCC loans for eligible crops reported under election if elected to be treated as income and reported to IRS when all or part of the production is used as collateral to secure the loan; and forfeited CCC loans for eligible crops:",null,null,null,null,null,null,null,null,null,null,null,null,{"$f":"IF(OR(Data_Entry!$E$29=\"Actual Revenue\",Data_Entry!G50=\"\"),\"\",Data_Entry!G50)","v":""},0,4]
["14.","Enter amount of allowable gross revenue from CCC loan proceeds for eligible crops if elected to be treated as income in a prior year less the tax basis in year of repayment:",null,null,null,null,null,null,null,null,null,null,null,null,{"$f":"IF(OR(Data_Entry!$E$29=\"Actual Revenue\",Data_Entry!G51=\"\"),\"\",Data_Entry!G51)","v":""},0,4]
["15.","Enter amount of other revenue directly related to the production of eligible crops that IRS requires the producer to report as income including but not limited to commodity-specific income received from state or local governments; and net gain from hedging.",null,null,null,null,null,null,null,null,null,null,null,null,{"$f":"IF(OR(Data_Entry!$E$29=\"Actual Revenue\",Data_Entry!G52=\"\"),\"\",Data_Entry!G52)","v":""},0,4]
["16.","Total Benchmark Year Revenue (sum Items 3 through 15):",null,null,null,null,null,null,null,null,null,null,null,null,{"$f":"SUM(P9:P21)","v":0},0,4]
[{"$f":"A2","v":"FSA-524-A"},null,{"$f":"A3","v":"(12-05-23)"},null,null,null,null,null,null,null,null,null,null,null,"Page 1 of 4"]
["1.  Producer’s Name:",null,null,{"$f":"IF(H3=\"\",\"\",H3)","v":""},null,null,null,null,"2.  Application Number:"]
["SECTION B – DISASTER YEAR REVENUE"]
["Enter allowable gross revenue items based on the Representative Revenue Year selected for Disaster Year, either tax year 2022 or 2023."]
["17.","Enter amount of allowable gross revenue from sales of eligible crops grown in the United States and its Territories by the applicant (example: corn sold as grain):",null,null,null,null,null,null,null,null,null,null,null,null,{"$f":"IF(OR(Data_Entry!$E$29=\"Actual Revenue\",Data_Entry!H39=\"\"),\"\",Data_Entry!H39)","v":""},0,4]
["18.","Enter amount of allowable gross revenue from sales of eligible crops resulting from value added through post-production activities that were reportable on IRS Schedule F, excluding any amount that was reportable on IRS Schedule C (example: strawberries into jam):",null,null,null,null,null,null,null,null,null,null,null,null,{"$f":"IF(OR(Data_Entry!$E$29=\"Actual Revenue\",Data_Entry!H40=\"\"),\"\",Data_Entry!H40)","v":""},0,4]
["19.","Enter amount of allowable gross revenue from sales of eligible crops purchased for resale that had a change in characteristic due to the time held (example: a plant purchased at a size of 2 inches and sold as an 18-inch plant after 4 months):",null,null,null,null,null,null,null,null,null,null,null,null,{"$f":"IF(OR(Data_Entry!$E$29=\"Actual Revenue\",Data_Entry!H41=\"\"),\"\",Data_Entry!H41)","v":""},0,4]
["20.","Enter amount of allowable gross revenue from aquatic species that are grown as food for human or livestock consumption, for industrial or biomass uses, as fish raised as feed for fish that are consumed by humans, as ornamental fish propagated and reared in an aquatic medium:",null,null,null,null,null,null,null,null,null,null,null,null,{"$f":"IF(OR(Data_Entry!$E$29=\"Actual Revenue\",Data_Entry!H42=\"\"),\"\",Data_Entry!H42)","v":""},0,4]
["21.","Enter amount of allowable gross revenue from federal crop insurance proceeds for eligible crops less administrative fees and premiums: ",null,null,null,null,null,null,null,null,null,null,null,null,{"$f":"IF(OR(Data_Entry!$E$29=\"Actual Revenue\",Data_Entry!H43=\"\"),\"\",Data_Entry!H43)","v":""},0,4]
["22.","Enter amount of allowable gross revenue from NAP payments for eligible crops less service fees and premiums:",null,null,null,null,null,null,null,null,null,null,null,null,{"$f":"IF(OR(Data_Entry!$E$29=\"Actual Revenue\",Data_Entry!H44=\"\"),\"\",Data_Entry!H44)","v":""},0,4]
["23.","Enter amount of allowable gross revenue from private crop insurance proceeds for eligible crops:",null,null,null,null,null,null,null,null,null,null,null,null,{"$f":"IF(OR(Data_Entry!$E$29=\"Actual Revenue\",Data_Entry!H45=\"\"),\"\",Data_Entry!H45)","v":""},0,4]
["24.","Enter amount of allowable gross revenue from benefits for eligible crops for the following agricultural programs: ARC/PLC, BCAP, CFAP 1, CFAP 2, LDP, MLG repayment of CCC loans less than the original amount, MFP, STRP, 2017 WHIP payments, 2018/2019 WHIP+ payments, QLA payments, PARP payments,  ERP Phase 1 payments, ERP Phase 2 payments, OFSLP payments, ELAP payments specific to aquaculture, and ERP 2022 Track 1 payments issued to another person or entity for the producer's share of an eligible crop, regardless of the tax year in which the payment would be reported to IRS: ",null,null,null,null,null,null,null,null,null,null,null,null,{"$f":"IF(OR(Data_Entry!$E$29=\"Actual Revenue\",Data_Entry!H46=\"\"),\"\",Data_Entry!H46)","v":""},0,4]
["25.","Enter amount of total revenue from benefits for eligible crops for the following:  payments through grant agreements with FSA, grants from the Department of Commerce, grants from NOAA, and State programs for the direct loss of eligible crops or the loss of revenue for eligible crops: ",null,null,null,null,null,null,null,null,null,null,null,null,{"$f":"IF(OR(Data_Entry!$E$29=\"Actual Revenue\",Data_Entry!H48=\"\"),\"\",Data_Entry!H48)","v":""},0,4]
["26.","Enter amount of allowable gross revenue from cooperative distributions directly related to the sale of eligible crops produced by the applicant such as per-unit allocations paid to patrons for gross grain sales:",null,null,null,null,null,null,null,null,null,null,null,null,{"$f":"IF(OR(Data_Entry!$E$29=\"Actual Revenue\",Data_Entry!H49=\"\"),\"\",Data_Entry!H49)","v":""},0,4]
["27.","Enter amount of allowable gross revenue from CCC loans for eligible crops reported under election if elected to be treated as income and reported to IRS when all or part of the production is used as collateral to secure the loan; and forfeited CCC loans for eligible crops:",null,null,null,null,null,null,null,null,null,null,null,null,{"$f":"IF(OR(Data_Entry!$E$29=\"Actual Revenue\",Data_Entry!H50=\"\"),\"\",Data_Entry!H50)","v":""},0,4]
["28.","Enter amount of allowable gross revenue from CCC loan proceeds for eligible crops if elected to be treated as income in a prior year less the tax basis in year of repayment:",null,null,null,null,null,null,null,null,null,null,null,null,{"$f":"IF(OR(Data_Entry!$E$29=\"Actual Revenue\",Data_Entry!H51=\"\"),\"\",Data_Entry!H51)","v":""},0,4]
["29.","Enter amount of other revenue directly related to the production of eligible crops that IRS requires the producer to report as income including but not limited to commodity-specific income received from state or local governments; and net gain from hedging.",null,null,null,null,null,null,null,null,null,null,null,null,{"$f":"IF(OR(Data_Entry!$E$29=\"Actual Revenue\",Data_Entry!H52=\"\"),\"\",Data_Entry!H52)","v":""},0,4]
["30.","Total Disaster Year Revenue (sum Items 17 through 29):",null,null,null,null,null,null,null,null,null,null,null,null,{"$f":"SUM(P27:P39)","v":0},0,4]
[null,null,null,null,null,null,null,null,null,null,null,null,null,null,null,null,4]
[{"$f":"A23","v":"FSA-524-A"},null,null,null,null,null,null,null,null,null,null,null,null,null,"Page 3 of 4"]
["1.  Producer’s Name:",null,null,{"$f":"IF(H3=\"\",\"\",H3)","v":""},null,null,null,null,"2.  Application Number:"]
[]
["SECTION C – ADJUSTED BENCHMARK YEAR REVENUE"]
["ATTENTION",null,null,"Section C is only applicable to applicants who received a payment under ERP Phase 2 for the 2021 program year and elected the 2022 tax year for their representative disaster year and that need to adjust Benchmark Year Revenue when operation capacity increased or decreased in Representative Revenue Year 2023 as compared to the Benchmark Year, or if there is no allowable gross revenue in 2018 or 2019 because the applicant is a new producer.\n \nComplete this section include adjustments to Benchmark Year Revenue. ",null,null,null,null,null,null,null,null,null,null,null,null,null,null,null,null,null,null,"I)  Are Adjustments due to an increase, decrease or because you are new producer in 2020 or 2021?"]
["ELIGIBLE YIELD-BASED CROPS"]
["31. Crop:",null,null,null,"32. Expected Acres:",null,"33. Expected Yield/Acre:",null,null,null,"34. Unit of Measure:",null,"35. Expected Price/Unit:","36. Expected Revenue:",null,null,null,null,null,null,null,null,{"$f":"IF(Data_Entry!H32=\"Yes\",'524A'!W4,IF(Data_Entry!H33=\"Yes\",W2,IF(Data_Entry!H34=\"yes\",'524A'!W3,'524A'!W5)))","v":"not applicable"}]
[{"$f":"IF(Adjustments!A7=\"\",\"\",Adjustments!A7)","v":""},null,null,null,{"$f":"IF(Adjustments!C7=\"\",\"\",Adjustments!C7)","v":""},null,{"$f":"IF(Adjustments!D7=\"\",\"\",Adjustments!D7)","v":""},null,null,null,{"$f":"IF(Adjustments!E7=\"\",\"\",Adjustments!E7)","v":""},null,{"$f":"IF(Adjustments!F7=\"\",\"\",Adjustments!F7)","v":""},{"$f":"IF(A49=\"\",\"\",IF(OR(E49=\"\",G49=\"\",M49=\"\"),0,ROUND(E49*G49*M49,2)))","v":""},null,{"$f":"IF(N49=\"\",0,N49)","v":0},4]
[{"$f":"IF(Adjustments!A8=\"\",\"\",Adjustments!A8)","v":""},null,null,null,{"$f":"IF(Adjustments!C8=\"\",\"\",Adjustments!C8)","v":""},null,{"$f":"IF(Adjustments!D8=\"\",\"\",Adjustments!D8)","v":""},null,null,null,{"$f":"IF(Adjustments!E8=\"\",\"\",Adjustments!E8)","v":""},null,{"$f":"IF(Adjustments!F8=\"\",\"\",Adjustments!F8)","v":""},{"$f":"IF(A50=\"\",\"\",IF(OR(E50=\"\",G50=\"\",M50=\"\"),0,ROUND(E50*G50*M50,2)))","v":""},null,0,4]
[{"$f":"IF(Adjustments!A9=\"\",\"\",Adjustments!A9)","v":""},null,null,null,{"$f":"IF(Adjustments!C9=\"\",\"\",Adjustments!C9)","v":""},null,{"$f":"IF(Adjustments!D9=\"\",\"\",Adjustments!D9)","v":""},null,null,null,{"$f":"IF(Adjustments!E9=\"\",\"\",Adjustments!E9)","v":""},null,{"$f":"IF(Adjustments!F9=\"\",\"\",Adjustments!F9)","v":""},"",null,0,4]
[{"$f":"IF(Adjustments!A10=\"\",\"\",Adjustments!A10)","v":""},null,null,null,{"$f":"IF(Adjustments!C10=\"\",\"\",Adjustments!C10)","v":""},null,{"$f":"IF(Adjustments!D10=\"\",\"\",Adjustments!D10)","v":""},null,null,null,{"$f":"IF(Adjustments!E10=\"\",\"\",Adjustments!E10)","v":""},null,{"$f":"IF(Adjustments!F10=\"\",\"\",Adjustments!F10)","v":""},"",null,0,4]
[{"$f":"IF(Adjustments!A11=\"\",\"\",Adjustments!A11)","v":""},null,null,null,{"$f":"IF(Adjustments!C11=\"\",\"\",Adjustments!C11)","v":""},null,{"$f":"IF(Adjustments!D11=\"\",\"\",Adjustments!D11)","v":""},null,null,null,{"$f":"IF(Adjustments!E11=\"\",\"\",Adjustments!E11)","v":""},null,{"$f":"IF(Adjustments!F11=\"\",\"\",Adjustments!F11)","v":""},"",null,0,4]
[{"$f":"IF(Adjustments!A12=\"\",\"\",Adjustments!A12)","v":""},null,null,null,{"$f":"IF(Adjustments!C12=\"\",\"\",Adjustments!C12)","v":""},null,{"$f":"IF(Adjustments!D12=\"\",\"\",Adjustments!D12)","v":""},null,null,null,{"$f":"IF(Adjustments!E12=\"\",\"\",Adjustments!E12)","v":""},null,{"$f":"IF(Adjustments!F12=\"\",\"\",Adjustments!F12)","v":""},"",null,0,4]
[{"$f":"IF(Adjustments!A13=\"\",\"\",Adjustments!A13)","v":""},null,null,null,{"$f":"IF(Adjustments!C13=\"\",\"\",Adjustments!C13)","v":""},null,{"$f":"IF(Adjustments!D13=\"\",\"\",Adjustments!D13)","v":""},null,null,null,{"$f":"IF(Adjustments!E13=\"\",\"\",Adjustments!E13)","v":""},null,{"$f":"IF(Adjustments!F13=\"\",\"\",Adjustments!F13)","v":""},"",null,0,4]
[{"$f":"IF(Adjustments!A14=\"\",\"\",Adjustments!A14)","v":""},null,null,null,{"$f":"IF(Adjustments!C14=\"\",\"\",Adjustments!C14)","v":""},null,{"$f":"IF(Adjustments!D14=\"\",\"\",Adjustments!D14)","v":""},null,null,null,{"$f":"IF(Adjustments!E14=\"\",\"\",Adjustments!E14)","v":""},null,{"$f":"IF(Adjustments!F14=\"\",\"\",Adjustments!F14)","v":""},"",null,0,4]
[{"$f":"IF(Adjustments!A15=\"\",\"\",Adjustments!A15)","v":""},null,null,null,{"$f":"IF(Adjustments!C15=\"\",\"\",Adjustments!C15)","v":""},null,{"$f":"IF(Adjustments!D15=\"\",\"\",Adjustments!D15)","v":""},null,null,null,{"$f":"IF(Adjustments!E15=\"\",\"\",Adjustments!E15)","v":""},null,{"$f":"IF(Adjustments!F15=\"\",\"\",Adjustments!F15)","v":""},"",null,0,4]
[{"$f":"IF(Adjustments!A16=\"\",\"\",Adjustments!A16)","v":""},null,null,null,{"$f":"IF(Adjustments!C16=\"\",\"\",Adjustments!C16)","v":""},null,{"$f":"IF(Adjustments!D16=\"\",\"\",Adjustments!D16)","v":""},null,null,null,{"$f":"IF(Adjustments!E16=\"\",\"\",Adjustments!E16)","v":""},null,{"$f":"IF(Adjustments!F16=\"\",\"\",Adjustments!F16)","v":""},"",null,0,4]
[{"$f":"IF(NOT(Adjustments!A17=\"\"),\"See FSA-524-A Continuation\",\"\")","v":""},null,null,null,null,null,null,null,null,null,null,null,null,{"$f":"IF(A59=\"\",\"\",Adjustments!G5)","v":""},null,0,4]
["37. Total Expected Revenue from Eligible Yield-Based Crops (sum amounts in column for Item 36):",null,null,null,null,null,null,null,null,null,null,null,null,{"$f":"SUM(P49:P59)","v":0},null,0]
["ELIGIBLE SALES FROM VALUE ADDED THROUGH POST-PRODUCTION ACTIVITES"]
["38. Crop:",null,null,null,null,null,null,null,null,null,null,null,null,"39. Expected  Revenue:"]
[{"$f":"IF(Adjustments!H7=\"\",\"\",Adjustments!H7)","v":""},null,null,null,null,null,null,null,null,null,null,null,null,{"$f":"IF(Adjustments!I7=\"\",\"\",Adjustments!I7)","v":""},null,0,4]
[{"$f":"IF(Adjustments!H8=\"\",\"\",Adjustments!H8)","v":""},null,null,null,null,null,null,null,null,null,null,null,null,{"$f":"IF(Adjustments!I8=\"\",\"\",Adjustments!I8)","v":""},null,0,4]
[{"$f":"IF(Adjustments!H9=\"\",\"\",Adjustments!H9)","v":""},null,null,null,null,null,null,null,null,null,null,null,null,{"$f":"IF(Adjustments!I9=\"\",\"\",Adjustments!I9)","v":""},null,0,4]
[{"$f":"IF(NOT(Adjustments!H11=\"\"),\"See FSA-524A Continuation\",\"\")","v":""},null,null,null,null,null,null,null,null,null,null,null,null,{"$f":"IF(A66=\"\",\"\",SUM(Adjustments!I5))","v":""},null,0,4]
["40. Total Expected Revenue from Eligible Value-Added Through Post-Production Activities (sum amounts in column for Item 39):",null,null,null,null,null,null,null,null,null,null,null,null,{"$f":"SUM(P63:P66)","v":0},null,0]
["ELIGIBLE INVENTORY CROPS"]
["41. Crop:",null,null,null,null,null,null,null,null,null,null,null,null,"42. Expected Revenue:"]
[{"$f":"IF(Adjustments!J7=\"\",\"\",Adjustments!J7)","v":""},null,null,null,null,null,null,null,null,null,null,null,null,{"$f":"IF(Adjustments!K7=\"\",\"\",Adjustments!K7)","v":""},null,0,4]
[{"$f":"IF(Adjustments!J8=\"\",\"\",Adjustments!J8)","v":""},null,null,null,null,null,null,null,null,null,null,null,null,{"$f":"IF(Adjustments!K8=\"\",\"\",Adjustments!K8)","v":""},null,0,4]
[{"$f":"IF(NOT(Adjustments!K9=\"\"),\"See FSA-524A Continuation\",\"\")","v":""},null,null,null,null,null,null,null,null,null,null,null,null,{"$f":"IF(A72=\"\",\"\",SUM(Adjustments!K5))","v":""},null,0,4]
["43. Total Expected Revenue from Eligible Inventory Crops (sum amounts in column for Item 42):",null,null,null,null,null,null,null,null,null,null,null,null,{"$f":"SUM(P70:P72)","v":0},null,0,4]
["TOTAL ADJUSTMENTS FOR BENCHMARK YEAR REVENUE"]
["44. Total Adjustments from an Increase in Operation Capacity (sum Item 37, Item 40, and Item 43; leave blank if no increase in operation capacity):",null,null,null,null,null,null,null,null,null,null,null,null,{"$f":"IF(W48=W2,N60+N67+N73,\"\")","v":""},null,0]
["45. Total Adjustments from a Decrease in Operation Capacity (sum Item 37, Item 40, and Item 43; leave blank if no decrease in operation capacity):",null,null,null,null,null,null,null,null,null,null,null,null,{"$f":"IF(W48=W3,N60+N67+N73,\"\")","v":""},null,0]
["46.Total Adjustments for New Producer  (sum Item 37, Item 40, and Item 43; leave blank if not a new producer):",null,null,null,null,null,null,null,null,null,null,null,null,{"$f":"IF(W48=W4,P60+P67+P73,\"\")","v":""},null,0]
[{"$f":"A23","v":"FSA-524-A"},null,null,null,null,null,null,null,null,null,null,null,null,null,"Page 4 of 4"]
["1.  Producer’s Name:",null,null,{"$f":"IF(H3=\"\",\"\",H3)","v":""},null,null,null,null,"2.  Application Number:"]
[]
["SECTION D – CROP VALUE FOR DEPUTY ADMINISTRATOR-APPROVED CROPS"]
["ATTENTION",null,null,"Section D is only applicable to applicants who received a payment under ERP Phase 2 for the 2021 program year and elected the 2022 tax year for their representative disaster year that will include crop values, as approved by the Deputy Administrator in allowable gross revenue for Benchmark Year and Disaster Year, for crops that did not generate revenue directly from the sale of the crop and that the producer uses within their ordinary operations (Deputy Administrator-Approved Crops).\n\nComplete this section to include the value of Deputy Administrator-Approved Crops in allowable gross revenue for Benchmark Year and Disaster Year.   "]
["VALUE OF DEPUTY ADMINISTRATOR-APPROVED CROPS PRODUCED BUT NOT SOLD IN THE BENCHMARK YEAR"]
["Enter the value of all Deputy Administrator-Approved Crops produced but not sold for the selected Benchmark Year."]
["47. Crop:",null,null,null,null,"48. Total Production (in Units):",null,null,null,"49. Price per Unit:",null,null,null,"50. Value:"]
[{"$f":"IF(DAFP_Approved!A6=\"\",\"\",DAFP_Approved!A6)","v":""},null,null,null,null,{"$f":"IF(DAFP_Approved!B6=\"\",\"\",DAFP_Approved!B6)","v":""},null,null,null,{"$f":"IF(DAFP_Approved!C6=\"\",\"\",DAFP_Approved!C6)","v":""},null,null,null,{"$f":"IF(A86=\"\",\"\",IF(OR(F86=\"\",J86=\"\"),0,ROUND(F86*J86,2)))","v":""},null,0,4]
[{"$f":"IF(DAFP_Approved!A7=\"\",\"\",DAFP_Approved!A7)","v":""},null,null,null,null,{"$f":"IF(DAFP_Approved!B7=\"\",\"\",DAFP_Approved!B7)","v":""},null,null,null,{"$f":"IF(DAFP_Approved!C7=\"\",\"\",DAFP_Approved!C7)","v":""},null,null,null,{"$f":"IF(A87=\"\",\"\",IF(OR(F87=\"\",J87=\"\"),0,ROUND(F87*J87,2)))","v":""},null,0,4]
[{"$f":"IF(DAFP_Approved!A8=\"\",\"\",DAFP_Approved!A8)","v":""},null,null,null,null,{"$f":"IF(DAFP_Approved!B8=\"\",\"\",DAFP_Approved!B8)","v":""},null,null,null,{"$f":"IF(DAFP_Approved!C8=\"\",\"\",DAFP_Approved!C8)","v":""},null,null,null,"",null,0,4]
[{"$f":"IF(DAFP_Approved!A9=\"\",\"\",DAFP_Approved!A9)","v":""},null,null,null,null,{"$f":"IF(DAFP_Approved!B9=\"\",\"\",DAFP_Approved!B9)","v":""},null,null,null,{"$f":"IF(DAFP_Approved!C9=\"\",\"\",DAFP_Approved!C9)","v":""},null,null,null,"",null,0,4]
[{"$f":"IF(DAFP_Approved!A10=\"\",\"\",DAFP_Approved!A10)","v":""},null,null,null,null,{"$f":"IF(DAFP_Approved!B10=\"\",\"\",DAFP_Approved!B10)","v":""},null,null,null,{"$f":"IF(DAFP_Approved!C10=\"\",\"\",DAFP_Approved!C10)","v":""},null,null,null,"",null,0,4]
[{"$f":"IF(NOT(DAFP_Approved!D11=\"\"),\"See FSA-524A Continuation\",\"\")","v":""},null,null,null,null,null,null,null,null,null,null,null,null,{"$f":"IF(A91=\"\",\"\",DAFP_Approved!D5)","v":""},null,0,4]
["51. Total Value of Deputy Administrator-Approved Crops Produced but Not Sold in the Benchmark Year (sum amounts in column for Item 49):",null,null,null,null,null,null,null,null,null,null,null,null,{"$f":"SUM(P86:P91)","v":0},null,0]
["VALUE OF DEPUTY ADMINISTRATOR-APPROVED CROPS PRODUCED BUT NOT SOLD IN THE DISASTER YEAR"]
["Enter the value of all Deputy Administrator-Approved Crops produced but not sold for Representative Revenue Year 2023."]
["52. Crop:",null,null,null,null,"53. Total Production (in Units):",null,null,null,"54. Price per Unit:",null,null,null,"55. Value:"]
[{"$f":"IF(DAFP_Approved!E6=\"\",\"\",DAFP_Approved!E6)","v":""},null,null,null,null,{"$f":"IF(DAFP_Approved!F6=\"\",\"\",DAFP_Approved!F6)","v":""},null,null,null,{"$f":"IF(DAFP_Approved!G6=\"\",\"\",DAFP_Approved!G6)","v":""},null,null,null,{"$f":"IF(A96=\"\",\"\",IF(OR(F96=\"\",J96=\"\"),0,ROUND(F96*J96,2)))","v":""},null,{"$f":"IF(N96=\"\",0,N96)","v":0},4]
[{"$f":"IF(DAFP_Approved!E7=\"\",\"\",DAFP_Approved!E7)","v":""},null,null,null,null,{"$f":"IF(DAFP_Approved!F7=\"\",\"\",DAFP_Approved!F7)","v":""},null,null,null,{"$f":"IF(DAFP_Approved!G7=\"\",\"\",DAFP_Approved!G7)","v":""},null,null,null,{"$f":"IF(A97=\"\",\"\",IF(OR(F97=\"\",J97=\"\"),0,ROUND(F97*J97,2)))","v":""},null,0,4]
[{"$f":"IF(DAFP_Approved!E8=\"\",\"\",DAFP_Approved!E8)","v":""},null,null,null,null,{"$f":"IF(DAFP_Approved!F8=\"\",\"\",DAFP_Approved!F8)","v":""},null,null,null,{"$f":"IF(DAFP_Approved!G8=\"\",\"\",DAFP_Approved!G8)","v":""},null,null,null,"",null,0,4]
[{"$f":"IF(DAFP_Approved!E9=\"\",\"\",DAFP_Approved!E9)","v":""},null,null,null,null,{"$f":"IF(DAFP_Approved!F9=\"\",\"\",DAFP_Approved!F9)","v":""},null,null,null,{"$f":"IF(DAFP_Approved!G9=\"\",\"\",DAFP_Approved!G9)","v":""},null,null,null,"",null,0,4]
[{"$f":"IF(DAFP_Approved!E10=\"\",\"\",DAFP_Approved!E10)","v":""},null,null,null,null,{"$f":"IF(DAFP_Approved!F10=\"\",\"\",DAFP_Approved!F10)","v":""},null,null,null,{"$f":"IF(DAFP_Approved!G10=\"\",\"\",DAFP_Approved!G10)","v":""},null,null,null,"",null,0,4]
[{"$f":"IF(NOT(DAFP_Approved!H11=\"\"),\"See FSA-524A Continuation\",\"\")","v":""},null,null,null,null,null,null,null,null,null,null,null,null,{"$f":"IF(A101=\"\",\"\",DAFP_Approved!H5)","v":""},null,{"$f":"IF(N101=\"\",0,N101)","v":0},4]
["56.  Total Value of Deputy Administrator-Approved Crops Produced but Not Sold in the Disaster Year (sum amounts in column for Item 46):",null,null,null,null,null,null,null,null,null,null,null,null,{"$f":"SUM(P96:P101)","v":0},null,{"$f":"N102*1","v":0},4]
[]
["SECTION E – TOTAL BENCHMARK AND DISASTER YEAR REVENUE"]
["57. Total Benchmark Year Revenue (sum Item 16, Item 44, and Item 51; then subtract Item 45):",null,null,null,null,null,null,null,null,null,null,null,null,{"$f":"P22+P75-P76+P92+P77","v":0}]
["58. Total Disaster Year Revenue (sum Item 30 and Item 56):",null,null,null,null,null,null,null,null,null,null,null,null,{"$f":"P102+P40","v":0}]
[]
[{"$f":"A78&\" Continuation\"","v":"FSA-524-A Continuation"},null,null,null,null,null,null,null,null,null,null,null,null,null,"Page 1 of 2"]
["1.  Producer’s Name:",null,null,{"$f":"IF(D43=\"\",\"\",D43)","v":""},null,null,null,null,"2.  Application Number:"]
[]
["SECTION C – ADJUSTED BENCHMARK YEAR REVENUE"]
["ATTENTION",null,null,"Section C is only applicable to applicants who received a payment under ERP Phase 2 for the 2021 program year and elected the 2022 tax year for their representative disaster year and that need to adjust Benchmark Year Revenue when operation capacity increased or decreased in Representative Revenue Year 2023 as compared to the Benchmark Year, or if there is no allowable gross revenue in 2018 or 2019 because the applicant is a new producer.\n \nComplete this section include adjustments to Benchmark Year Revenue. "]
["ELIGIBLE YIELD-BASED CROPS"]
["31. Crop:",null,null,null,"32. Expected Acres:",null,"33. Expected Yield/Acre:",null,null,null,"34. Unit of Measure:",null,"35. Expected Price/Unit:","36. Expected Revenue:"]
[{"$f":"IF(Adjustments!A17=\"\",\"\",Adjustments!A17)","v":""},null,null,null,{"$f":"IF(Adjustments!C17=\"\",\"\",Adjustments!C17)","v":""},null,{"$f":"IF(Adjustments!D17=\"\",\"\",Adjustments!D17)","v":""},null,null,null,{"$f":"IF(Adjustments!E17=\"\",\"\",Adjustments!E17)","v":""},null,{"$f":"IF(Adjustments!F17=\"\",\"\",Adjustments!F17)","v":""},{"$f":"IF(A115=\"\",\"\",IF(OR(E115=\"\",G115=\"\",M115=\"\"),0,ROUND(E115*G115*M115,2)))","v":""},null,{"$f":"IF(N115=\"\",0,N115)","v":0},{"$f":"IF(A115=\"\",0,6)","v":0}]
[{"$f":"IF(Adjustments!A18=\"\",\"\",Adjustments!A18)","v":""},null,null,null,{"$f":"IF(Adjustments!C18=\"\",\"\",Adjustments!C18)","v":""},null,{"$f":"IF(Adjustments!D18=\"\",\"\",Adjustments!D18)","v":""},null,null,null,{"$f":"IF(Adjustments!E18=\"\",\"\",Adjustments!E18)","v":""},null,{"$f":"IF(Adjustments!F18=\"\",\"\",Adjustments!F18)","v":""},{"$f":"IF(A116=\"\",\"\",IF(OR(E116=\"\",G116=\"\",M116=\"\"),0,ROUND(E116*G116*M116,2)))","v":""},null,0,{"$f":"IF(A116=\"\",0,6)","v":0}]
[{"$f":"IF(Adjustments!A19=\"\",\"\",Adjustments!A19)","v":""},null,null,null,{"$f":"IF(Adjustments!C19=\"\",\"\",Adjustments!C19)","v":""},null,{"$f":"IF(Adjustments!D19=\"\",\"\",Adjustments!D19)","v":""},null,null,null,{"$f":"IF(Adjustments!E19=\"\",\"\",Adjustments!E19)","v":""},null,{"$f":"IF(Adjustments!F19=\"\",\"\",Adjustments!F19)","v":""},"",null,0,0]
[{"$f":"IF(Adjustments!A20=\"\",\"\",Adjustments!A20)","v":""},null,null,null,{"$f":"IF(Adjustments!C20=\"\",\"\",Adjustments!C20)","v":""},null,{"$f":"IF(Adjustments!D20=\"\",\"\",Adjustments!D20)","v":""},null,null,null,{"$f":"IF(Adjustments!E20=\"\",\"\",Adjustments!E20)","v":""},null,{"$f":"IF(Adjustments!F20=\"\",\"\",Adjustments!F20)","v":""},"",null,0,0]
[{"$f":"IF(Adjustments!A21=\"\",\"\",Adjustments!A21)","v":""},null,null,null,{"$f":"IF(Adjustments!C21=\"\",\"\",Adjustments!C21)","v":""},null,{"$f":"IF(Adjustments!D21=\"\",\"\",Adjustments!D21)","v":""},null,null,null,{"$f":"IF(Adjustments!E21=\"\",\"\",Adjustments!E21)","v":""},null,{"$f":"IF(Adjustments!F21=\"\",\"\",Adjustments!F21)","v":""},"",null,0,0]
[{"$f":"IF(Adjustments!A22=\"\",\"\",Adjustments!A22)","v":""},null,null,null,{"$f":"IF(Adjustments!C22=\"\",\"\",Adjustments!C22)","v":""},null,{"$f":"IF(Adjustments!D22=\"\",\"\",Adjustments!D22)","v":""},null,null,null,{"$f":"IF(Adjustments!E22=\"\",\"\",Adjustments!E22)","v":""},null,{"$f":"IF(Adjustments!F22=\"\",\"\",Adjustments!F22)","v":""},"",null,0,0]
[{"$f":"IF(Adjustments!A23=\"\",\"\",Adjustments!A23)","v":""},null,null,null,{"$f":"IF(Adjustments!C23=\"\",\"\",Adjustments!C23)","v":""},null,{"$f":"IF(Adjustments!D23=\"\",\"\",Adjustments!D23)","v":""},null,null,null,{"$f":"IF(Adjustments!E23=\"\",\"\",Adjustments!E23)","v":""},null,{"$f":"IF(Adjustments!F23=\"\",\"\",Adjustments!F23)","v":""},"",null,0,0]
[{"$f":"IF(Adjustments!A24=\"\",\"\",Adjustments!A24)","v":""},null,null,null,{"$f":"IF(Adjustments!C24=\"\",\"\",Adjustments!C24)","v":""},null,{"$f":"IF(Adjustments!D24=\"\",\"\",Adjustments!D24)","v":""},null,null,null,{"$f":"IF(Adjustments!E24=\"\",\"\",Adjustments!E24)","v":""},null,{"$f":"IF(Adjustments!F24=\"\",\"\",Adjustments!F24)","v":""},"",null,0,0]
[{"$f":"IF(Adjustments!A25=\"\",\"\",Adjustments!A25)","v":""},null,null,null,{"$f":"IF(Adjustments!C25=\"\",\"\",Adjustments!C25)","v":""},null,{"$f":"IF(Adjustments!D25=\"\",\"\",Adjustments!D25)","v":""},null,null,null,{"$f":"IF(Adjustments!E25=\"\",\"\",Adjustments!E25)","v":""},null,{"$f":"IF(Adjustments!F25=\"\",\"\",Adjustments!F25)","v":""},"",null,0,0]
[{"$f":"IF(Adjustments!A26=\"\",\"\",Adjustments!A26)","v":""},null,null,null,{"$f":"IF(Adjustments!C26=\"\",\"\",Adjustments!C26)","v":""},null,{"$f":"IF(Adjustments!D26=\"\",\"\",Adjustments!D26)","v":""},null,null,null,{"$f":"IF(Adjustments!E26=\"\",\"\",Adjustments!E26)","v":""},null,{"$f":"IF(Adjustments!F26=\"\",\"\",Adjustments!F26)","v":""},"",null,0,0]
[{"$f":"IF(Adjustments!A27=\"\",\"\",Adjustments!A27)","v":""},null,null,null,{"$f":"IF(Adjustments!C27=\"\",\"\",Adjustments!C27)","v":""},null,{"$f":"IF(Adjustments!D27=\"\",\"\",Adjustments!D27)","v":""},null,null,null,{"$f":"IF(Adjustments!E27=\"\",\"\",Adjustments!E27)","v":""},null,{"$f":"IF(Adjustments!F27=\"\",\"\",Adjustments!F27)","v":""},"",null,0,0]
["37. Total Expected Revenue from Eligible Yield-Based Crops (sum amounts in column for Item 36):",null,null,null,null,null,null,null,null,null,null,null,null,{"$f":"SUM(P115:P125)","v":0},null,0]
["ELIGIBLE SALES FROM VALUE ADDED THROUGH POST-PRODUCTION ACTIVITES"]
["38. Crop:",null,null,null,null,null,null,null,null,null,null,null,null,"39. Expected  Revenue:"]
[{"$f":"IF(Adjustments!H10=\"\",\"\",Adjustments!H10)","v":""},null,null,null,null,null,null,null,null,null,null,null,null,{"$f":"IF(Adjustments!I10=\"\",\"\",Adjustments!I10)","v":""},null,0,0]
[{"$f":"IF(Adjustments!H11=\"\",\"\",Adjustments!H11)","v":""},null,null,null,null,null,null,null,null,null,null,null,null,{"$f":"IF(Adjustments!I11=\"\",\"\",Adjustments!I11)","v":""},null,0,0]
[{"$f":"IF(Adjustments!H12=\"\",\"\",Adjustments!H12)","v":""},null,null,null,null,null,null,null,null,null,null,null,null,{"$f":"IF(Adjustments!I12=\"\",\"\",Adjustments!I12)","v":""},null,0,0]
[{"$f":"IF(Adjustments!H13=\"\",\"\",Adjustments!H13)","v":""},null,null,null,null,null,null,null,null,null,null,null,null,{"$f":"IF(Adjustments!I13=\"\",\"\",Adjustments!I13)","v":""},null,0,0]
["40.  Total Expected Revenue from Eligible Value-Added Through Post-Production Activities  (sum amounts in column for Item 39):",null,null,null,null,null,null,null,null,null,null,null,null,{"$f":"SUM(P129:P132)","v":0},null,0]
["ELIGIBLE INVENTORY CROPS"]
["41. Crop:",null,null,null,null,null,null,null,null,null,null,null,null,"42. Expected Revenue:"]
[{"$f":"IF(Adjustments!J9=\"\",\"\",Adjustments!J9)","v":""},null,null,null,null,null,null,null,null,null,null,null,null,{"$f":"IF(Adjustments!K9=\"\",\"\",Adjustments!K9)","v":""},null,0,0]
[{"$f":"IF(Adjustments!J10=\"\",\"\",Adjustments!J10)","v":""},null,null,null,null,null,null,null,null,null,null,null,null,{"$f":"IF(Adjustments!K10=\"\",\"\",Adjustments!K10)","v":""},null,0,0]
[{"$f":"IF(Adjustments!J11=\"\",\"\",Adjustments!J11)","v":""},null,null,null,null,null,null,null,null,null,null,null,null,{"$f":"IF(Adjustments!K11=\"\",\"\",Adjustments!K11)","v":""},null,0,0]
["43. Total Expected Revenue from Eligible Inventory Crops (sum amounts in column for Item 42):",null,null,null,null,null,null,null,null,null,null,null,null,{"$f":"SUM(P136:P138)","v":0},null,0]
[{"$f":"A108","v":"FSA-524-A Continuation"},null,null,null,null,null,null,null,null,null,null,null,null,null,"Page 2 of 2"]
["1.  Producer’s Name:",null,null,{"$f":"IF(D79=\"\",\"\",D79)","v":""},null,null,null,null,"2.  Application Number:"]
[]
["SECTION D – CROP VALUE FOR DEPUTY ADMINISTRATOR-APPROVED CROPS"]
["ATTENTION",null,null,"Section D is only applicable to applicants who received a payment under ERP Phase 2 for the 2021 program year and elected the 2022 tax year for their representative disaster year that will include crop values, as approved by the Deputy Administrator in allowable gross revenue for Benchmark Year and Disaster Year, for crops that did not generate revenue directly from the sale of the crop and that the producer uses within their ordinary operations (Deputy Administrator-Approved Crops).\n\nComplete this section to include the value of Deputy Administrator-Approved Crops in allowable gross revenue for Benchmark Year and Disaster Year.   "]
["VALUE OF DEPUTY ADMINISTRATOR-APPROVED CROPS PRODUCED BUT NOT SOLD IN THE BENCHMARK YEAR"]
["Enter the value of all Deputy Administrator-Approved Crops produced but not sold for the selected Benchmark Year."]
["47. Crop:",null,null,null,null,"48. Total Production (in Units):",null,null,null,"49. Price per Unit:",null,null,null,"50. Value:"]
[{"$f":"IF(DAFP_Approved!A11=\"\",\"\",DAFP_Approved!A11)","v":""},null,null,null,null,{"$f":"IF(DAFP_Approved!B11=\"\",\"\",DAFP_Approved!B11)","v":""},null,null,null,{"$f":"IF(DAFP_Approved!C11=\"\",\"\",DAFP_Approved!C11)","v":""},null,null,null,{"$f":"IF(A148=\"\",\"\",IF(OR(F148=\"\",J148=\"\"),0,ROUND(F148*J148,2)))","v":""},null,0,0]
[{"$f":"IF(DAFP_Approved!A12=\"\",\"\",DAFP_Approved!A12)","v":""},null,null,null,null,{"$f":"IF(DAFP_Approved!B12=\"\",\"\",DAFP_Approved!B12)","v":""},null,null,null,{"$f":"IF(DAFP_Approved!C12=\"\",\"\",DAFP_Approved!C12)","v":""},null,null,null,{"$f":"IF(A149=\"\",\"\",IF(OR(F149=\"\",J149=\"\"),0,ROUND(F149*J149,2)))","v":""},null,0,0]
[{"$f":"IF(DAFP_Approved!A13=\"\",\"\",DAFP_Approved!A13)","v":""},null,null,null,null,{"$f":"IF(DAFP_Approved!B13=\"\",\"\",DAFP_Approved!B13)","v":""},null,null,null,{"$f":"IF(DAFP_Approved!C13=\"\",\"\",DAFP_Approved!C13)","v":""},null,null,null,"",null,0,0]
[{"$f":"IF(DAFP_Approved!A14=\"\",\"\",DAFP_Approved!A14)","v":""},null,null,null,null,{"$f":"IF(DAFP_Approved!B14=\"\",\"\",DAFP_Approved!B14)","v":""},null,null,null,{"$f":"IF(DAFP_Approved!C14=\"\",\"\",DAFP_Approved!C14)","v":""},null,null,null,"",null,0,0]
[{"$f":"IF(DAFP_Approved!A15=\"\",\"\",DAFP_Approved!A15)","v":""},null,null,null,null,{"$f":"IF(DAFP_Approved!B15=\"\",\"\",DAFP_Approved!B15)","v":""},null,null,null,{"$f":"IF(DAFP_Approved!C15=\"\",\"\",DAFP_Approved!C15)","v":""},null,null,null,"",null,0,0]
[{"$f":"IF(DAFP_Approved!A16=\"\",\"\",DAFP_Approved!A16)","v":""},null,null,null,null,{"$f":"IF(DAFP_Approved!B16=\"\",\"\",DAFP_Approved!B16)","v":""},null,null,null,{"$f":"IF(DAFP_Approved!C16=\"\",\"\",DAFP_Approved!C16)","v":""},null,null,null,"",null,0,0]
["51. Total Value of Deputy Administrator-Approved Crops Produced but Not Sold in the Benchmark Year (sum amounts in column for Item 49):",null,null,null,null,null,null,null,null,null,null,null,null,{"$f":"SUM(P148:P153)","v":0}]
["VALUE OF DEPUTY ADMINISTRATOR-APPROVED CROPS PRODUCED BUT NOT SOLD IN THE DISASTER YEAR"]
["Enter the value of all Deputy Administrator-Approved Crops produced but not sold for Representative Revenue Year 2023."]
["52. Crop:",null,null,null,null,"53. Total Production (in Units):",null,null,null,"54. Price per Unit:",null,null,null,"55. Value:"]
[{"$f":"IF(DAFP_Approved!E11=\"\",\"\",DAFP_Approved!E11)","v":""},null,null,null,null,{"$f":"IF(DAFP_Approved!F11=\"\",\"\",DAFP_Approved!F11)","v":""},null,null,null,{"$f":"IF(DAFP_Approved!G11=\"\",\"\",DAFP_Approved!G11)","v":""},null,null,null,{"$f":"IF(A158=\"\",\"\",IF(OR(F158=\"\",J158=\"\"),0,ROUND(F158*J158,2)))","v":""},null,{"$f":"IF(N158=\"\",0,N158)","v":0},0]
[{"$f":"IF(DAFP_Approved!E12=\"\",\"\",DAFP_Approved!E12)","v":""},null,null,null,null,{"$f":"IF(DAFP_Approved!F12=\"\",\"\",DAFP_Approved!F12)","v":""},null,null,null,{"$f":"IF(DAFP_Approved!G12=\"\",\"\",DAFP_Approved!G12)","v":""},null,null,null,"",null,0,0]
[{"$f":"IF(DAFP_Approved!E13=\"\",\"\",DAFP_Approved!E13)","v":""},null,null,null,null,{"$f":"IF(DAFP_Approved!F13=\"\",\"\",DAFP_Approved!F13)","v":""},null,null,null,{"$f":"IF(DAFP_Approved!G13=\"\",\"\",DAFP_Approved!G13)","v":""},null,null,null,"",null,0,0]
[{"$f":"IF(DAFP_Approved!E14=\"\",\"\",DAFP_Approved!E14)","v":""},null,null,null,null,{"$f":"IF(DAFP_Approved!F14=\"\",\"\",DAFP_Approved!F14)","v":""},null,null,null,{"$f":"IF(DAFP_Approved!G14=\"\",\"\",DAFP_Approved!G14)","v":""},null,null,null,"",null,0,0]
[{"$f":"IF(DAFP_Approved!E15=\"\",\"\",DAFP_Approved!E15)","v":""},null,null,null,null,{"$f":"IF(DAFP_Approved!F15=\"\",\"\",DAFP_Approved!F15)","v":""},null,null,null,{"$f":"IF(DAFP_Approved!G15=\"\",\"\",DAFP_Approved!G15)","v":""},null,null,null,"",null,0,0]
[{"$f":"IF(DAFP_Approved!E16=\"\",\"\",DAFP_Approved!E16)","v":""},null,null,null,null,{"$f":"IF(DAFP_Approved!F16=\"\",\"\",DAFP_Approved!F16)","v":""},null,null,null,{"$f":"IF(DAFP_Approved!G16=\"\",\"\",DAFP_Approved!G16)","v":""},null,null,null,"",null,{"$f":"IF(N163=\"\",0,N163)","v":0},0]
["56.  Total Value of Deputy Administrator-Approved Crops Produced but Not Sold in the Disaster Year (sum amounts in column for Item 46):",null,null,null,null,null,null,null,null,null,null,null,null,{"$f":"SUM(P158:P163)","v":0},null,{"$f":"N164*1","v":0}]
[]
[{"$f":"A108","v":"FSA-524-A Continuation"},null,null,null,null,null,null,null,null,null,null,null,null,null,"Page 1 of 2"]
["1.  Producer’s Name:",null,null,{"$f":"D141","v":""},null,null,null,null,"2.  Application Number:"]
[]
["SECTION C – ADJUSTED BENCHMARK YEAR REVENUE"]
["ATTENTION",null,null,"Section C is only applicable to applicants who received a payment under ERP Phase 2 for the 2021 program year and elected the 2022 tax year for their representative disaster year and that need to adjust Benchmark Year Revenue when operation capacity increased or decreased in Representative Revenue Year 2023 as compared to the Benchmark Year, or if there is no allowable gross revenue in 2018 or 2019 because the applicant is a new producer.\n \nComplete this section include adjustments to Benchmark Year Revenue. "]
["ELIGIBLE YIELD-BASED CROPS"]
["31. Crop:",null,null,null,"32. Expected Acres:",null,"33. Expected Yield/Acre:",null,null,null,"34. Unit of Measure:",null,"35. Expected Price/Unit:","36. Expected Revenue:"]
[{"$f":"IF(Adjustments!A28=\"\",\"\",Adjustments!A28)","v":""},null,null,null,{"$f":"IF(Adjustments!C28=\"\",\"\",Adjustments!C28)","v":""},null,{"$f":"IF(Adjustments!D28=\"\",\"\",Adjustments!D28)","v":""},null,null,null,{"$f":"IF(Adjustments!E28=\"\",\"\",Adjustments!E28)","v":""},null,{"$f":"IF(Adjustments!F28=\"\",\"\",Adjustments!F28)","v":""},{"$f":"IF(A173=\"\",\"\",IF(OR(E173=\"\",G173=\"\",M173=\"\"),0,ROUND(E173*G173*M173,2)))","v":""},null,{"$f":"IF(N173=\"\",0,N173)","v":0},{"$f":"IF(A173=\"\",0,8)","v":0}]
[{"$f":"IF(Adjustments!A29=\"\",\"\",Adjustments!A29)","v":""},null,null,null,{"$f":"IF(Adjustments!C29=\"\",\"\",Adjustments!C29)","v":""},null,{"$f":"IF(Adjustments!D29=\"\",\"\",Adjustments!D29)","v":""},null,null,null,{"$f":"IF(Adjustments!E29=\"\",\"\",Adjustments!E29)","v":""},null,{"$f":"IF(Adjustments!F29=\"\",\"\",Adjustments!F29)","v":""},{"$f":"IF(A174=\"\",\"\",IF(OR(E174=\"\",G174=\"\",M174=\"\"),0,ROUND(E174*G174*M174,2)))","v":""},null,0,{"$f":"IF(A174=\"\",0,8)","v":0}]
[{"$f":"IF(Adjustments!A30=\"\",\"\",Adjustments!A30)","v":""},null,null,null,{"$f":"IF(Adjustments!C30=\"\",\"\",Adjustments!C30)","v":""},null,{"$f":"IF(Adjustments!D30=\"\",\"\",Adjustments!D30)","v":""},null,null,null,{"$f":"IF(Adjustments!E30=\"\",\"\",Adjustments!E30)","v":""},null,{"$f":"IF(Adjustments!F30=\"\",\"\",Adjustments!F30)","v":""},"",null,0,0]
[{"$f":"IF(Adjustments!A31=\"\",\"\",Adjustments!A31)","v":""},null,null,null,{"$f":"IF(Adjustments!C31=\"\",\"\",Adjustments!C31)","v":""},null,{"$f":"IF(Adjustments!D31=\"\",\"\",Adjustments!D31)","v":""},null,null,null,{"$f":"IF(Adjustments!E31=\"\",\"\",Adjustments!E31)","v":""},null,{"$f":"IF(Adjustments!F31=\"\",\"\",Adjustments!F31)","v":""},"",null,0,0]
[{"$f":"IF(Adjustments!A32=\"\",\"\",Adjustments!A32)","v":""},null,null,null,{"$f":"IF(Adjustments!C32=\"\",\"\",Adjustments!C32)","v":""},null,{"$f":"IF(Adjustments!D32=\"\",\"\",Adjustments!D32)","v":""},null,null,null,{"$f":"IF(Adjustments!E32=\"\",\"\",Adjustments!E32)","v":""},null,{"$f":"IF(Adjustments!F32=\"\",\"\",Adjustments!F32)","v":""},"",null,0,0]
[{"$f":"IF(Adjustments!A33=\"\",\"\",Adjustments!A33)","v":""},null,null,null,{"$f":"IF(Adjustments!C33=\"\",\"\",Adjustments!C33)","v":""},null,{"$f":"IF(Adjustments!D33=\"\",\"\",Adjustments!D33)","v":""},null,null,null,{"$f":"IF(Adjustments!E33=\"\",\"\",Adjustments!E33)","v":""},null,{"$f":"IF(Adjustments!F33=\"\",\"\",Adjustments!F33)","v":""},"",null,0,0]
[{"$f":"IF(Adjustments!A34=\"\",\"\",Adjustments!A34)","v":""},null,null,null,{"$f":"IF(Adjustments!C34=\"\",\"\",Adjustments!C34)","v":""},null,{"$f":"IF(Adjustments!D34=\"\",\"\",Adjustments!D34)","v":""},null,null,null,{"$f":"IF(Adjustments!E34=\"\",\"\",Adjustments!E34)","v":""},null,{"$f":"IF(Adjustments!F34=\"\",\"\",Adjustments!F34)","v":""},"",null,0,0]
[{"$f":"IF(Adjustments!A35=\"\",\"\",Adjustments!A35)","v":""},null,null,null,{"$f":"IF(Adjustments!C35=\"\",\"\",Adjustments!C35)","v":""},null,{"$f":"IF(Adjustments!D35=\"\",\"\",Adjustments!D35)","v":""},null,null,null,{"$f":"IF(Adjustments!E35=\"\",\"\",Adjustments!E35)","v":""},null,{"$f":"IF(Adjustments!F35=\"\",\"\",Adjustments!F35)","v":""},"",null,0,0]
[{"$f":"IF(Adjustments!A36=\"\",\"\",Adjustments!A36)","v":""},null,null,null,{"$f":"IF(Adjustments!C36=\"\",\"\",Adjustments!C36)","v":""},null,{"$f":"IF(Adjustments!D36=\"\",\"\",Adjustments!D36)","v":""},null,null,null,{"$f":"IF(Adjustments!E36=\"\",\"\",Adjustments!E36)","v":""},null,{"$f":"IF(Adjustments!F36=\"\",\"\",Adjustments!F36)","v":""},"",null,0,0]
[{"$f":"IF(Adjustments!A37=\"\",\"\",Adjustments!A37)","v":""},null,null,null,{"$f":"IF(Adjustments!C37=\"\",\"\",Adjustments!C37)","v":""},null,{"$f":"IF(Adjustments!D37=\"\",\"\",Adjustments!D37)","v":""},null,null,null,{"$f":"IF(Adjustments!E37=\"\",\"\",Adjustments!E37)","v":""},null,{"$f":"IF(Adjustments!F37=\"\",\"\",Adjustments!F37)","v":""},"",null,0,0]
[{"$f":"IF(Adjustments!A38=\"\",\"\",Adjustments!A38)","v":""},null,null,null,{"$f":"IF(Adjustments!C38=\"\",\"\",Adjustments!C38)","v":""},null,{"$f":"IF(Adjustments!D38=\"\",\"\",Adjustments!D38)","v":""},null,null,null,{"$f":"IF(Adjustments!E38=\"\",\"\",Adjustments!E38)","v":""},null,{"$f":"IF(Adjustments!F38=\"\",\"\",Adjustments!F38)","v":""},"",null,0,0]
["37. Total Expected Revenue from Eligible Yield-Based Crops (sum amounts in column for Item 36):",null,null,null,null,null,null,null,null,null,null,null,null,{"$f":"SUM(P173:P183)","v":0},null,0]
["ELIGIBLE SALES FROM VALUE ADDED THROUGH POST-PRODUCTION ACTIVITES"]
["38. Crop:",null,null,null,null,null,null,null,null,null,null,null,null,"39. Expected  Revenue:"]
[{"$f":"IF(Adjustments!H14=\"\",\"\",Adjustments!H14)","v":""},null,null,null,null,null,null,null,null,null,null,null,null,{"$f":"IF(Adjustments!I14=\"\",\"\",Adjustments!I14)","v":""},null,{"$f":"IF(N187=\"\",0,N187)","v":0},0]
[{"$f":"IF(Adjustments!H15=\"\",\"\",Adjustments!H15)","v":""},null,null,null,null,null,null,null,null,null,null,null,null,{"$f":"IF(Adjustments!I15=\"\",\"\",Adjustments!I15)","v":""},null,0,0]
[{"$f":"IF(Adjustments!H16=\"\",\"\",Adjustments!H16)","v":""},null,null,null,null,null,null,null,null,null,null,null,null,{"$f":"IF(Adjustments!I16=\"\",\"\",Adjustments!I16)","v":""},null,0,0]
[{"$f":"IF(Adjustments!H17=\"\",\"\",Adjustments!H17)","v":""},null,null,null,null,null,null,null,null,null,null,null,null,{"$f":"IF(Adjustments!I17=\"\",\"\",Adjustments!I17)","v":""},null,0,0]
["40. Total Expected Revenue from Eligible Value-Added Through Post-Production Activities  (sum amounts in column for Item 39):",null,null,null,null,null,null,null,null,null,null,null,null,{"$f":"SUM(P187:P190)","v":0},null,0]
["ELIGIBLE INVENTORY CROPS"]
["41. Crop:",null,null,null,null,null,null,null,null,null,null,null,null,"42. Expected Revenue:"]
[{"$f":"IF(Adjustments!J12=\"\",\"\",Adjustments!J12)","v":""},null,null,null,null,null,null,null,null,null,null,null,null,{"$f":"IF(Adjustments!K12=\"\",\"\",Adjustments!K12)","v":""},null,{"$f":"IF(N194=\"\",0,N194)","v":0},0]
[{"$f":"IF(Adjustments!J13=\"\",\"\",Adjustments!J13)","v":""},null,null,null,null,null,null,null,null,null,null,null,null,{"$f":"IF(Adjustments!K13=\"\",\"\",Adjustments!K13)","v":""},null,0,0]
[{"$f":"IF(Adjustments!J14=\"\",\"\",Adjustments!J14)","v":""},null,null,null,null,null,null,null,null,null,null,null,null,{"$f":"IF(Adjustments!K14=\"\",\"\",Adjustments!K14)","v":""},null,0,0]
["43. Total Expected Revenue from Eligible Inventory Crops (sum amounts in column for Item 42):",null,null,null,null,null,null,null,null,null,null,null,null,{"$f":"SUM(P194:P196)","v":0},null,0]
[{"$f":"A140","v":"FSA-524-A Continuation"},null,null,null,null,null,null,null,null,null,null,null,null,null,"Page 2 of 2"]
["1.  Producer’s Name:",null,null,{"$f":"D167","v":""},null,null,null,null,"2.  Application Number:"]
[]
["SECTION D – CROP VALUE FOR DEPUTY ADMINISTRATOR-APPROVED CROPS"]
["ATTENTION",null,null,"Section D is only applicable to applicants who received a payment under ERP Phase 2 for the 2021 program year and elected the 2022 tax year for their representative disaster year that will include crop values, as approved by the Deputy Administrator in allowable gross revenue for Benchmark Year and Disaster Year, for crops that did not generate revenue directly from the sale of the crop and that the producer uses within their ordinary operations (Deputy Administrator-Approved Crops).\n\nComplete this section to include the value of Deputy Administrator-Approved Crops in allowable gross revenue for Benchmark Year and Disaster Year.   "]
["VALUE OF DEPUTY ADMINISTRATOR-APPROVED CROPS PRODUCED BUT NOT SOLD IN THE BENCHMARK YEAR"]
["Enter the value of all Deputy Administrator-Approved Crops produced but not sold for the selected Benchmark Year."]
["47. Crop:",null,null,null,null,"48. Total Production (in Units):",null,null,null,"49. Price per Unit:",null,null,null,"50. Value:"]
[{"$f":"IF(DAFP_Approved!A17=\"\",\"\",DAFP_Approved!A17)","v":""},null,null,null,null,{"$f":"IF(DAFP_Approved!B17=\"\",\"\",DAFP_Approved!B17)","v":""},null,null,null,{"$f":"IF(DAFP_Approved!C17=\"\",\"\",DAFP_Approved!C17)","v":""},null,null,null,{"$f":"IF(A206=\"\",\"\",IF(OR(F206=\"\",J206=\"\"),0,ROUND(F206*J206,2)))","v":""},null,{"$f":"IF(N206=\"\",0,N206)","v":0},0]
[{"$f":"IF(DAFP_Approved!A18=\"\",\"\",DAFP_Approved!A18)","v":""},null,null,null,null,{"$f":"IF(DAFP_Approved!B18=\"\",\"\",DAFP_Approved!B18)","v":""},null,null,null,{"$f":"IF(DAFP_Approved!C18=\"\",\"\",DAFP_Approved!C18)","v":""},null,null,null,{"$f":"IF(A207=\"\",\"\",IF(OR(F207=\"\",J207=\"\"),0,ROUND(F207*J207,2)))","v":""},null,0,0]
[{"$f":"IF(DAFP_Approved!A19=\"\",\"\",DAFP_Approved!A19)","v":""},null,null,null,null,{"$f":"IF(DAFP_Approved!B19=\"\",\"\",DAFP_Approved!B19)","v":""},null,null,null,{"$f":"IF(DAFP_Approved!C19=\"\",\"\",DAFP_Approved!C19)","v":""},null,null,null,"",null,0,0]
[{"$f":"IF(DAFP_Approved!A20=\"\",\"\",DAFP_Approved!A20)","v":""},null,null,null,null,{"$f":"IF(DAFP_Approved!B20=\"\",\"\",DAFP_Approved!B20)","v":""},null,null,null,{"$f":"IF(DAFP_Approved!C20=\"\",\"\",DAFP_Approved!C20)","v":""},null,null,null,"",null,0,0]
[{"$f":"IF(DAFP_Approved!A21=\"\",\"\",DAFP_Approved!A21)","v":""},null,null,null,null,{"$f":"IF(DAFP_Approved!B21=\"\",\"\",DAFP_Approved!B21)","v":""},null,null,null,{"$f":"IF(DAFP_Approved!C21=\"\",\"\",DAFP_Approved!C21)","v":""},null,null,null,"",null,0,0]
[{"$f":"IF(DAFP_Approved!A22=\"\",\"\",DAFP_Approved!A22)","v":""},null,null,null,null,{"$f":"IF(DAFP_Approved!B22=\"\",\"\",DAFP_Approved!B22)","v":""},null,null,null,{"$f":"IF(DAFP_Approved!C22=\"\",\"\",DAFP_Approved!C22)","v":""},null,null,null,"",null,0,0]
["51. Total Value of Deputy Administrator-Approved Crops Produced but Not Sold in the Benchmark Year (sum amounts in column for Item 49):",null,null,null,null,null,null,null,null,null,null,null,null,{"$f":"SUM(P206:P211)","v":0},null,0]
["VALUE OF DEPUTY ADMINISTRATOR-APPROVED CROPS PRODUCED BUT NOT SOLD IN THE DISASTER YEAR"]
["Enter the value of all Deputy Administrator-Approved Crops produced but not sold for Representative Revenue Year 2023."]
["52. Crop:",null,null,null,null,"53. Total Production (in Units):",null,null,null,"54. Price per Unit:",null,null,null,"55. Value:"]
[{"$f":"IF(DAFP_Approved!E17=\"\",\"\",DAFP_Approved!E17)","v":""},null,null,null,null,{"$f":"IF(DAFP_Approved!F17=\"\",\"\",DAFP_Approved!F17)","v":""},null,null,null,{"$f":"IF(DAFP_Approved!G17=\"\",\"\",DAFP_Approved!G17)","v":""},null,null,null,{"$f":"IF(A216=\"\",\"\",IF(OR(F216=\"\",J216=\"\"),0,ROUND(F216*J216,2)))","v":""},null,{"$f":"IF(N216=\"\",0,N216)","v":0},0]
[{"$f":"IF(DAFP_Approved!E18=\"\",\"\",DAFP_Approved!E18)","v":""},null,null,null,null,{"$f":"IF(DAFP_Approved!F18=\"\",\"\",DAFP_Approved!F18)","v":""},null,null,null,{"$f":"IF(DAFP_Approved!G18=\"\",\"\",DAFP_Approved!G18)","v":""},null,null,null,"",null,0,0]
[{"$f":"IF(DAFP_Approved!E19=\"\",\"\",DAFP_Approved!E19)","v":""},null,null,null,null,{"$f":"IF(DAFP_Approved!F19=\"\",\"\",DAFP_Approved!F19)","v":""},null,null,null,{"$f":"IF(DAFP_Approved!G19=\"\",\"\",DAFP_Approved!G19)","v":""},null,null,null,"",null,0,0]
[{"$f":"IF(DAFP_Approved!E20=\"\",\"\",DAFP_Approved!E20)","v":""},null,null,null,null,{"$f":"IF(DAFP_Approved!F20=\"\",\"\",DAFP_Approved!F20)","v":""},null,null,null,{"$f":"IF(DAFP_Approved!G20=\"\",\"\",DAFP_Approved!G20)","v":""},null,null,null,"",null,0,0]
[{"$f":"IF(DAFP_Approved!E21=\"\",\"\",DAFP_Approved!E21)","v":""},null,null,null,null,{"$f":"IF(DAFP_Approved!F21=\"\",\"\",DAFP_Approved!F21)","v":""},null,null,null,{"$f":"IF(DAFP_Approved!G21=\"\",\"\",DAFP_Approved!G21)","v":""},null,null,null,"",null,0,0]
[{"$f":"IF(DAFP_Approved!E22=\"\",\"\",DAFP_Approved!E22)","v":""},null,null,null,null,{"$f":"IF(DAFP_Approved!F22=\"\",\"\",DAFP_Approved!F22)","v":""},null,null,null,{"$f":"IF(DAFP_Approved!G22=\"\",\"\",DAFP_Approved!G22)","v":""},null,null,null,"",null,{"$f":"IF(N221=\"\",0,N221)","v":0},0]
["56. Total Value of Deputy Administrator-Approved Crops Produced but Not Sold in the Disaster Year (sum amounts in column for Item 46):",null,null,null,null,null,null,null,null,null,null,null,null,{"$f":"SUM(P216:P221)","v":0},null,{"$f":"N222*1","v":0}]
[]
[{"$f":"A198","v":"FSA-524-A Continuation"},null,null,null,null,null,null,null,null,null,null,null,null,null,"Page 1 of 2"]
["1.  Producer’s Name:",null,null,{"$f":"D199","v":""},null,null,null,null,"2.  Application Number:"]
[]
["SECTION C – ADJUSTED BENCHMARK YEAR REVENUE"]
["ATTENTION",null,null,"Section C is only applicable to applicants who received a payment under ERP Phase 2 for the 2021 program year and elected the 2022 tax year for their representative disaster year and that need to adjust Benchmark Year Revenue when operation capacity increased or decreased in Representative Revenue Year 2023 as compared to the Benchmark Year, or if there is no allowable gross revenue in 2018 or 2019 because the applicant is a new producer.\n \nComplete this section include adjustments to Benchmark Year Revenue. "]
["ELIGIBLE YIELD-BASED CROPS"]
["31. Crop:",null,null,null,"32. Expected Acres:",null,"33. Expected Yield/Acre:",null,null,null,"34. Unit of Measure:",null,"35. Expected Price/Unit:","36. Expected Revenue:"]
[{"$f":"IF(Adjustments!A39=\"\",\"\",Adjustments!A39)","v":""},null,null,null,{"$f":"IF(Adjustments!C39=\"\",\"\",Adjustments!C39)","v":""},null,{"$f":"IF(Adjustments!D39=\"\",\"\",Adjustments!D39)","v":""},null,null,null,{"$f":"IF(Adjustments!E39=\"\",\"\",Adjustments!E39)","v":""},null,{"$f":"IF(Adjustments!F39=\"\",\"\",Adjustments!F39)","v":""},{"$f":"IF(A231=\"\",\"\",IF(OR(E231=\"\",G231=\"\",M231=\"\"),0,ROUND(E231*G231*M231,2)))","v":""},null,{"$f":"IF(N231=\"\",0,N231)","v":0},{"$f":"IF(A231=\"\",0,10)","v":0}]
[{"$f":"IF(Adjustments!A40=\"\",\"\",Adjustments!A40)","v":""},null,null,null,{"$f":"IF(Adjustments!C40=\"\",\"\",Adjustments!C40)","v":""},null,{"$f":"IF(Adjustments!D40=\"\",\"\",Adjustments!D40)","v":""},null,null,null,{"$f":"IF(Adjustments!E40=\"\",\"\",Adjustments!E40)","v":""},null,{"$f":"IF(Adjustments!F40=\"\",\"\",Adjustments!F40)","v":""},{"$f":"IF(A232=\"\",\"\",IF(OR(E232=\"\",G232=\"\",M232=\"\"),0,ROUND(E232*G232*M232,2)))","v":""},null,0,{"$f":"IF(A232=\"\",0,10)","v":0}]
[{"$f":"IF(Adjustments!A41=\"\",\"\",Adjustments!A41)","v":""},null,null,null,{"$f":"IF(Adjustments!C41=\"\",\"\",Adjustments!C41)","v":""},null,{"$f":"IF(Adjustments!D41=\"\",\"\",Adjustments!D41)","v":""},null,null,null,{"$f":"IF(Adjustments!E41=\"\",\"\",Adjustments!E41)","v":""},null,{"$f":"IF(Adjustments!F41=\"\",\"\",Adjustments!F41)","v":""},"",null,0,{"$f":"IF(A233=\"\",0,10)","v":0}]
[{"$f":"IF(Adjustments!A42=\"\",\"\",Adjustments!A42)","v":""},null,null,null,{"$f":"IF(Adjustments!C42=\"\",\"\",Adjustments!C42)","v":""},null,{"$f":"IF(Adjustments!D42=\"\",\"\",Adjustments!D42)","v":""},null,null,null,{"$f":"IF(Adjustments!E42=\"\",\"\",Adjustments!E42)","v":""},null,{"$f":"IF(Adjustments!F42=\"\",\"\",Adjustments!F42)","v":""},"",null,0,0]
[{"$f":"IF(Adjustments!A43=\"\",\"\",Adjustments!A43)","v":""},null,null,null,{"$f":"IF(Adjustments!C43=\"\",\"\",Adjustments!C43)","v":""},null,{"$f":"IF(Adjustments!D43=\"\",\"\",Adjustments!D43)","v":""},null,null,null,{"$f":"IF(Adjustments!E43=\"\",\"\",Adjustments!E43)","v":""},null,{"$f":"IF(Adjustments!F43=\"\",\"\",Adjustments!F43)","v":""},"",null,0,0]
[{"$f":"IF(Adjustments!A44=\"\",\"\",Adjustments!A44)","v":""},null,null,null,{"$f":"IF(Adjustments!C44=\"\",\"\",Adjustments!C44)","v":""},null,{"$f":"IF(Adjustments!D44=\"\",\"\",Adjustments!D44)","v":""},null,null,null,{"$f":"IF(Adjustments!E44=\"\",\"\",Adjustments!E44)","v":""},null,{"$f":"IF(Adjustments!F44=\"\",\"\",Adjustments!F44)","v":""},"",null,0,0]
[{"$f":"IF(Adjustments!A45=\"\",\"\",Adjustments!A45)","v":""},null,null,null,{"$f":"IF(Adjustments!C45=\"\",\"\",Adjustments!C45)","v":""},null,{"$f":"IF(Adjustments!D45=\"\",\"\",Adjustments!D45)","v":""},null,null,null,{"$f":"IF(Adjustments!E45=\"\",\"\",Adjustments!E45)","v":""},null,{"$f":"IF(Adjustments!F45=\"\",\"\",Adjustments!F45)","v":""},"",null,0,0]
[{"$f":"IF(Adjustments!A46=\"\",\"\",Adjustments!A46)","v":""},null,null,null,{"$f":"IF(Adjustments!C46=\"\",\"\",Adjustments!C46)","v":""},null,{"$f":"IF(Adjustments!D46=\"\",\"\",Adjustments!D46)","v":""},null,null,null,{"$f":"IF(Adjustments!E46=\"\",\"\",Adjustments!E46)","v":""},null,{"$f":"IF(Adjustments!F46=\"\",\"\",Adjustments!F46)","v":""},"",null,0,0]
[{"$f":"IF(Adjustments!A47=\"\",\"\",Adjustments!A47)","v":""},null,null,null,{"$f":"IF(Adjustments!C47=\"\",\"\",Adjustments!C47)","v":""},null,{"$f":"IF(Adjustments!D47=\"\",\"\",Adjustments!D47)","v":""},null,null,null,{"$f":"IF(Adjustments!E47=\"\",\"\",Adjustments!E47)","v":""},null,{"$f":"IF(Adjustments!F47=\"\",\"\",Adjustments!F47)","v":""},"",null,0,0]
[{"$f":"IF(Adjustments!A48=\"\",\"\",Adjustments!A48)","v":""},null,null,null,{"$f":"IF(Adjustments!C48=\"\",\"\",Adjustments!C48)","v":""},null,{"$f":"IF(Adjustments!D48=\"\",\"\",Adjustments!D48)","v":""},null,null,null,{"$f":"IF(Adjustments!E48=\"\",\"\",Adjustments!E48)","v":""},null,{"$f":"IF(Adjustments!F48=\"\",\"\",Adjustments!F48)","v":""},"",null,0,0]
[{"$f":"IF(Adjustments!A49=\"\",\"\",Adjustments!A49)","v":""},null,null,null,{"$f":"IF(Adjustments!C49=\"\",\"\",Adjustments!C49)","v":""},null,{"$f":"IF(Adjustments!D49=\"\",\"\",Adjustments!D49)","v":""},null,null,null,{"$f":"IF(Adjustments!E49=\"\",\"\",Adjustments!E49)","v":""},null,{"$f":"IF(Adjustments!F49=\"\",\"\",Adjustments!F49)","v":""},"",null,0,{"$f":"IF(A232=\"\",0,10)","v":0}]
["37. Total Expected Revenue from Eligible Yield-Based Crops (sum amounts in column for Item 36):",null,null,null,null,null,null,null,null,null,null,null,null,{"$f":"SUM(P231:P241)","v":0},null,0]
["ELIGIBLE SALES FROM VALUE ADDED THROUGH POST-PRODUCTION ACTIVITES"]
["38. Crop:",null,null,null,null,null,null,null,null,null,null,null,null,"39. Expected  Revenue:"]
[{"$f":"IF(Adjustments!H18=\"\",\"\",Adjustments!H18)","v":""},null,null,null,null,null,null,null,null,null,null,null,null,{"$f":"IF(Adjustments!I18=\"\",\"\",Adjustments!I18)","v":""},null,{"$f":"IF(N245=\"\",0,N245)","v":0},0]
[{"$f":"IF(Adjustments!H19=\"\",\"\",Adjustments!H19)","v":""},null,null,null,null,null,null,null,null,null,null,null,null,{"$f":"IF(Adjustments!I19=\"\",\"\",Adjustments!I19)","v":""},null,0,0]
[{"$f":"IF(Adjustments!H20=\"\",\"\",Adjustments!H20)","v":""},null,null,null,null,null,null,null,null,null,null,null,null,{"$f":"IF(Adjustments!I20=\"\",\"\",Adjustments!I20)","v":""},null,0,0]
[{"$f":"IF(Adjustments!H21=\"\",\"\",Adjustments!H21)","v":""},null,null,null,null,null,null,null,null,null,null,null,null,{"$f":"IF(Adjustments!I21=\"\",\"\",Adjustments!I21)","v":""},null,0,0]
["40. Total Expected Revenue from Eligible Value-Added Through Post-Production Activities  (sum amounts in column for Item 39):",null,null,null,null,null,null,null,null,null,null,null,null,{"$f":"SUM(P245:P248)","v":0},null,0]
["ELIGIBLE INVENTORY CROPS"]
["41. Crop:",null,null,null,null,null,null,null,null,null,null,null,null,"42. Expected Revenue:"]
[{"$f":"IF(Adjustments!J15=\"\",\"\",Adjustments!J15)","v":""},null,null,null,null,null,null,null,null,null,null,null,null,{"$f":"IF(Adjustments!K15=\"\",\"\",Adjustments!K15)","v":""},null,{"$f":"IF(N252=\"\",0,N252)","v":0},0]
[{"$f":"IF(Adjustments!J16=\"\",\"\",Adjustments!J16)","v":""},null,null,null,null,null,null,null,null,null,null,null,null,{"$f":"IF(Adjustments!K16=\"\",\"\",Adjustments!K16)","v":""},null,0,0]
[{"$f":"IF(Adjustments!J17=\"\",\"\",Adjustments!J17)","v":""},null,null,null,null,null,null,null,null,null,null,null,null,{"$f":"IF(Adjustments!K17=\"\",\"\",Adjustments!K17)","v":""},null,0,0]
["43. Total Expected Revenue from Eligible Inventory Crops (sum amounts in column for Item 42):",null,null,null,null,null,null,null,null,null,null,null,null,{"$f":"SUM(P252:P254)","v":0},null,0]
[{"$f":"A166","v":"FSA-524-A Continuation"},null,null,null,null,null,null,null,null,null,null,null,null,null,"Page 2 of 2"]
["1.  Producer’s Name:",null,null,{"$f":"D225","v":""},null,null,null,null,"2.  Application Number:"]
[]
["SECTION D – CROP VALUE FOR DEPUTY ADMINISTRATOR-APPROVED CROPS"]
["ATTENTION",null,null,"Section D is only applicable to applicants who received a payment under ERP Phase 2 for the 2021 program year and elected the 2022 tax year for their representative disaster year that will include crop values, as approved by the Deputy Administrator in allowable gross revenue for Benchmark Year and Disaster Year, for crops that did not generate revenue directly from the sale of the crop and that the producer uses within their ordinary operations (Deputy Administrator-Approved Crops).\n\nComplete this section to include the value of Deputy Administrator-Approved Crops in allowable gross revenue for Benchmark Year and Disaster Year.   "]
["VALUE OF DEPUTY ADMINISTRATOR-APPROVED CROPS PRODUCED BUT NOT SOLD IN THE BENCHMARK YEAR"]
["Enter the value of all Deputy Administrator-Approved Crops produced but not sold for the selected Benchmark Year."]
["47. Crop:",null,null,null,null,"48. Total Production (in Units):",null,null,null,"49. Price per Unit:",null,null,null,"50. Value:"]
[{"$f":"IF(DAFP_Approved!A23=\"\",\"\",DAFP_Approved!A23)","v":""},null,null,null,null,{"$f":"IF(DAFP_Approved!B23=\"\",\"\",DAFP_Approved!B23)","v":""},null,null,null,{"$f":"IF(DAFP_Approved!C23=\"\",\"\",DAFP_Approved!C23)","v":""},null,null,null,{"$f":"IF(A264=\"\",\"\",IF(OR(F264=\"\",J264=\"\"),0,ROUND(F264*J264,2)))","v":""},null,{"$f":"IF(N264=\"\",0,N264)","v":0},0]
[{"$f":"IF(DAFP_Approved!A24=\"\",\"\",DAFP_Approved!A24)","v":""},null,null,null,null,{"$f":"IF(DAFP_Approved!B24=\"\",\"\",DAFP_Approved!B24)","v":""},null,null,null,{"$f":"IF(DAFP_Approved!C24=\"\",\"\",DAFP_Approved!C24)","v":""},null,null,null,{"$f":"IF(A265=\"\",\"\",IF(OR(F265=\"\",J265=\"\"),0,ROUND(F265*J265,2)))","v":""},null,0,0]
[{"$f":"IF(DAFP_Approved!A25=\"\",\"\",DAFP_Approved!A25)","v":""},null,null,null,null,{"$f":"IF(DAFP_Approved!B25=\"\",\"\",DAFP_Approved!B25)","v":""},null,null,null,{"$f":"IF(DAFP_Approved!C25=\"\",\"\",DAFP_Approved!C25)","v":""},null,null,null,"",null,0,0]
[{"$f":"IF(DAFP_Approved!A26=\"\",\"\",DAFP_Approved!A26)","v":""},null,null,null,null,{"$f":"IF(DAFP_Approved!B26=\"\",\"\",DAFP_Approved!B26)","v":""},null,null,null,{"$f":"IF(DAFP_Approved!C26=\"\",\"\",DAFP_Approved!C26)","v":""},null,null,null,"",null,0,0]
[{"$f":"IF(DAFP_Approved!A27=\"\",\"\",DAFP_Approved!A27)","v":""},null,null,null,null,{"$f":"IF(DAFP_Approved!B27=\"\",\"\",DAFP_Approved!B27)","v":""},null,null,null,{"$f":"IF(DAFP_Approved!C27=\"\",\"\",DAFP_Approved!C27)","v":""},null,null,null,"",null,0,0]
[{"$f":"IF(DAFP_Approved!A28=\"\",\"\",DAFP_Approved!A28)","v":""},null,null,null,null,{"$f":"IF(DAFP_Approved!B28=\"\",\"\",DAFP_Approved!B28)","v":""},null,null,null,{"$f":"IF(DAFP_Approved!C28=\"\",\"\",DAFP_Approved!C28)","v":""},null,null,null,"",null,0,0]
["51. Total Value of Deputy Administrator-Approved Crops Produced but Not Sold in the Benchmark Year (sum amounts in column for Item 49):",null,null,null,null,null,null,null,null,null,null,null,null,{"$f":"SUM(P264:P269)","v":0},null,0]
["VALUE OF DEPUTY ADMINISTRATOR-APPROVED CROPS PRODUCED BUT NOT SOLD IN THE DISASTER YEAR"]
["Enter the value of all Deputy Administrator-Approved Crops produced but not sold for Representative Revenue Year 2023."]
["52. Crop:",null,null,null,null,"53. Total Production (in Units):",null,null,null,"54. Price per Unit:",null,null,null,"55. Value:"]
[{"$f":"IF(DAFP_Approved!E23=\"\",\"\",DAFP_Approved!E23)","v":""},null,null,null,null,{"$f":"IF(DAFP_Approved!F23=\"\",\"\",DAFP_Approved!F23)","v":""},null,null,null,{"$f":"IF(DAFP_Approved!G23=\"\",\"\",DAFP_Approved!G23)","v":""},null,null,null,{"$f":"IF(A274=\"\",\"\",IF(OR(F274=\"\",J274=\"\"),0,ROUND(F274*J274,2)))","v":""},null,{"$f":"IF(N274=\"\",0,N274)","v":0},0]
[{"$f":"IF(DAFP_Approved!E24=\"\",\"\",DAFP_Approved!E24)","v":""},null,null,null,null,{"$f":"IF(DAFP_Approved!F24=\"\",\"\",DAFP_Approved!F24)","v":""},null,null,null,{"$f":"IF(DAFP_Approved!G24=\"\",\"\",DAFP_Approved!G24)","v":""},null,null,null,{"$f":"IF(A275=\"\",\"\",IF(OR(F275=\"\",J275=\"\"),0,ROUND(F275*J275,2)))","v":""},null,0,0]
[{"$f":"IF(DAFP_Approved!E25=\"\",\"\",DAFP_Approved!E25)","v":""},null,null,null,null,{"$f":"IF(DAFP_Approved!F25=\"\",\"\",DAFP_Approved!F25)","v":""},null,null,null,{"$f":"IF(DAFP_Approved!G25=\"\",\"\",DAFP_Approved!G25)","v":""},null,null,null,"",null,0,0]
[{"$f":"IF(DAFP_Approved!E26=\"\",\"\",DAFP_Approved!E26)","v":""},null,null,null,null,{"$f":"IF(DAFP_Approved!F26=\"\",\"\",DAFP_Approved!F26)","v":""},null,null,null,{"$f":"IF(DAFP_Approved!G26=\"\",\"\",DAFP_Approved!G26)","v":""},null,null,null,"",null,0,0]
[{"$f":"IF(DAFP_Approved!E27=\"\",\"\",DAFP_Approved!E27)","v":""},null,null,null,null,{"$f":"IF(DAFP_Approved!F27=\"\",\"\",DAFP_Approved!F27)","v":""},null,null,null,{"$f":"IF(DAFP_Approved!G27=\"\",\"\",DAFP_Approved!G27)","v":""},null,null,null,"",null,0,0]
[{"$f":"IF(DAFP_Approved!E28=\"\",\"\",DAFP_Approved!E28)","v":""},null,null,null,null,{"$f":"IF(DAFP_Approved!F28=\"\",\"\",DAFP_Approved!F28)","v":""},null,null,null,{"$f":"IF(DAFP_Approved!G28=\"\",\"\",DAFP_Approved!G28)","v":""},null,null,null,"",null,{"$f":"IF(N279=\"\",0,N279)","v":0},0]
["56.  Total Value of Deputy Administrator-Approved Crops Produced but Not Sold in the Disaster Year (sum amounts in column for Item 46):",null,null,null,null,null,null,null,null,null,null,null,null,{"$f":"SUM(P274:P279)","v":0},null,{"$f":"N280*1","v":0}]
[]
[{"$f":"A256","v":"FSA-524-A Continuation"},null,null,null,null,null,null,null,null,null,null,null,null,null,"Page 1 of 2"]
["1.  Producer’s Name:",null,null,{"$f":"D257","v":""},null,null,null,null,"2.  Application Number:"]
[]
["SECTION C – ADJUSTED BENCHMARK YEAR REVENUE"]
["ATTENTION",null,null,"Section C is only applicable to applicants who received a payment under ERP Phase 2 for the 2021 program year and elected the 2022 tax year for their representative disaster year and that need to adjust Benchmark Year Revenue when operation capacity increased or decreased in Representative Revenue Year 2023 as compared to the Benchmark Year, or if there is no allowable gross revenue in 2018 or 2019 because the applicant is a new producer.\n \nComplete this section include adjustments to Benchmark Year Revenue. "]
["ELIGIBLE YIELD-BASED CROPS"]
["31. Crop:",null,null,null,"32. Expected Acres:",null,"33. Expected Yield/Acre:",null,null,null,"34. Unit of Measure:",null,"35. Expected Price/Unit:","36. Expected Revenue:"]
[{"$f":"IF(Adjustments!A50=\"\",\"\",Adjustments!A50)","v":""},null,null,null,{"$f":"IF(Adjustments!C50=\"\",\"\",Adjustments!C50)","v":""},null,{"$f":"IF(Adjustments!D50=\"\",\"\",Adjustments!D50)","v":""},null,null,null,{"$f":"IF(Adjustments!E50=\"\",\"\",Adjustments!E50)","v":""},null,{"$f":"IF(Adjustments!F50=\"\",\"\",Adjustments!F50)","v":""},{"$f":"IF(A289=\"\",\"\",IF(OR(E289=\"\",G289=\"\",M289=\"\"),0,ROUND(E289*G289*M289,2)))","v":""},null,{"$f":"IF(N289=\"\",0,N289)","v":0},{"$f":"IF(A289=\"\",0,12)","v":0}]
[{"$f":"IF(Adjustments!A51=\"\",\"\",Adjustments!A51)","v":""},null,null,null,{"$f":"IF(Adjustments!C51=\"\",\"\",Adjustments!C51)","v":""},null,{"$f":"IF(Adjustments!D51=\"\",\"\",Adjustments!D51)","v":""},null,null,null,{"$f":"IF(Adjustments!E51=\"\",\"\",Adjustments!E51)","v":""},null,{"$f":"IF(Adjustments!F51=\"\",\"\",Adjustments!F51)","v":""},{"$f":"IF(A290=\"\",\"\",IF(OR(E290=\"\",G290=\"\",M290=\"\"),0,ROUND(E290*G290*M290,2)))","v":""},null,0,{"$f":"IF(A290=\"\",0,12)","v":0}]
[{"$f":"IF(Adjustments!A52=\"\",\"\",Adjustments!A52)","v":""},null,null,null,{"$f":"IF(Adjustments!C52=\"\",\"\",Adjustments!C52)","v":""},null,{"$f":"IF(Adjustments!D52=\"\",\"\",Adjustments!D52)","v":""},null,null,null,{"$f":"IF(Adjustments!E52=\"\",\"\",Adjustments!E52)","v":""},null,{"$f":"IF(Adjustments!F52=\"\",\"\",Adjustments!F52)","v":""},"",null,0,0]
[{"$f":"IF(Adjustments!A53=\"\",\"\",Adjustments!A53)","v":""},null,null,null,{"$f":"IF(Adjustments!C53=\"\",\"\",Adjustments!C53)","v":""},null,{"$f":"IF(Adjustments!D53=\"\",\"\",Adjustments!D53)","v":""},null,null,null,{"$f":"IF(Adjustments!E53=\"\",\"\",Adjustments!E53)","v":""},null,{"$f":"IF(Adjustments!F53=\"\",\"\",Adjustments!F53)","v":""},"",null,0,0]
[{"$f":"IF(Adjustments!A54=\"\",\"\",Adjustments!A54)","v":""},null,null,null,{"$f":"IF(Adjustments!C54=\"\",\"\",Adjustments!C54)","v":""},null,{"$f":"IF(Adjustments!D54=\"\",\"\",Adjustments!D54)","v":""},null,null,null,{"$f":"IF(Adjustments!E54=\"\",\"\",Adjustments!E54)","v":""},null,{"$f":"IF(Adjustments!F54=\"\",\"\",Adjustments!F54)","v":""},"",null,0,0]
[{"$f":"IF(Adjustments!A55=\"\",\"\",Adjustments!A55)","v":""},null,null,null,{"$f":"IF(Adjustments!C55=\"\",\"\",Adjustments!C55)","v":""},null,{"$f":"IF(Adjustments!D55=\"\",\"\",Adjustments!D55)","v":""},null,null,null,{"$f":"IF(Adjustments!E55=\"\",\"\",Adjustments!E55)","v":""},null,{"$f":"IF(Adjustments!F55=\"\",\"\",Adjustments!F55)","v":""},"",null,0,0]
[{"$f":"IF(Adjustments!A56=\"\",\"\",Adjustments!A56)","v":""},null,null,null,{"$f":"IF(Adjustments!C56=\"\",\"\",Adjustments!C56)","v":""},null,{"$f":"IF(Adjustments!D56=\"\",\"\",Adjustments!D56)","v":""},null,null,null,{"$f":"IF(Adjustments!E56=\"\",\"\",Adjustments!E56)","v":""},null,{"$f":"IF(Adjustments!F56=\"\",\"\",Adjustments!F56)","v":""},"",null,0,0]
[{"$f":"IF(Adjustments!A57=\"\",\"\",Adjustments!A57)","v":""},null,null,null,{"$f":"IF(Adjustments!C57=\"\",\"\",Adjustments!C57)","v":""},null,{"$f":"IF(Adjustments!D57=\"\",\"\",Adjustments!D57)","v":""},null,null,null,{"$f":"IF(Adjustments!E57=\"\",\"\",Adjustments!E57)","v":""},null,{"$f":"IF(Adjustments!F57=\"\",\"\",Adjustments!F57)","v":""},"",null,0,0]
[{"$f":"IF(Adjustments!A58=\"\",\"\",Adjustments!A58)","v":""},null,null,null,{"$f":"IF(Adjustments!C58=\"\",\"\",Adjustments!C58)","v":""},null,{"$f":"IF(Adjustments!D58=\"\",\"\",Adjustments!D58)","v":""},null,null,null,{"$f":"IF(Adjustments!E58=\"\",\"\",Adjustments!E58)","v":""},null,{"$f":"IF(Adjustments!F58=\"\",\"\",Adjustments!F58)","v":""},"",null,0,0]
[{"$f":"IF(Adjustments!A59=\"\",\"\",Adjustments!A59)","v":""},null,null,null,{"$f":"IF(Adjustments!C59=\"\",\"\",Adjustments!C59)","v":""},null,{"$f":"IF(Adjustments!D59=\"\",\"\",Adjustments!D59)","v":""},null,null,null,{"$f":"IF(Adjustments!E59=\"\",\"\",Adjustments!E59)","v":""},null,{"$f":"IF(Adjustments!F59=\"\",\"\",Adjustments!F59)","v":""},"",null,0,0]
[{"$f":"IF(Adjustments!A60=\"\",\"\",Adjustments!A60)","v":""},null,null,null,{"$f":"IF(Adjustments!C60=\"\",\"\",Adjustments!C60)","v":""},null,{"$f":"IF(Adjustments!D60=\"\",\"\",Adjustments!D60)","v":""},null,null,null,{"$f":"IF(Adjustments!E60=\"\",\"\",Adjustments!E60)","v":""},null,{"$f":"IF(Adjustments!F60=\"\",\"\",Adjustments!F60)","v":""},"",null,0,0]
["37. Total Expected Revenue from Eligible Yield-Based Crops (sum amounts in column for Item 36):",null,null,null,null,null,null,null,null,null,null,null,null,{"$f":"SUM(P289:P299)","v":0},null,0]
["ELIGIBLE SALES FROM VALUE ADDED THROUGH POST-PRODUCTION ACTIVITES"]
["38. Crop:",null,null,null,null,null,null,null,null,null,null,null,null,"39. Expected  Revenue:"]
[{"$f":"IF(Adjustments!H22=\"\",\"\",Adjustments!H22)","v":""},null,null,null,null,null,null,null,null,null,null,null,null,{"$f":"IF(Adjustments!I22=\"\",\"\",Adjustments!I22)","v":""},null,{"$f":"IF(N303=\"\",0,N303)","v":0},0]
[{"$f":"IF(Adjustments!H23=\"\",\"\",Adjustments!H23)","v":""},null,null,null,null,null,null,null,null,null,null,null,null,{"$f":"IF(Adjustments!I23=\"\",\"\",Adjustments!I23)","v":""},null,0,0]
[{"$f":"IF(Adjustments!H24=\"\",\"\",Adjustments!H24)","v":""},null,null,null,null,null,null,null,null,null,null,null,null,{"$f":"IF(Adjustments!I24=\"\",\"\",Adjustments!I24)","v":""},null,0,0]
[{"$f":"IF(Adjustments!H25=\"\",\"\",Adjustments!H25)","v":""},null,null,null,null,null,null,null,null,null,null,null,null,{"$f":"IF(Adjustments!I25=\"\",\"\",Adjustments!I25)","v":""},null,0,0]
["43. Total Expected Revenue from Eligible Inventory Crops (sum amounts in column for Item 42):",null,null,null,null,null,null,null,null,null,null,null,null,{"$f":"SUM(P303:P306)","v":0},null,0]
["ELIGIBLE INVENTORY CROPS"]
["41. Crop:",null,null,null,null,null,null,null,null,null,null,null,null,"42. Expected Revenue:"]
[{"$f":"IF(Adjustments!J18=\"\",\"\",Adjustments!J18)","v":""},null,null,null,null,null,null,null,null,null,null,null,null,{"$f":"IF(Adjustments!K18=\"\",\"\",Adjustments!K18)","v":""},null,{"$f":"IF(N310=\"\",0,N310)","v":0},0]
[{"$f":"IF(Adjustments!J19=\"\",\"\",Adjustments!J19)","v":""},null,null,null,null,null,null,null,null,null,null,null,null,{"$f":"IF(Adjustments!K19=\"\",\"\",Adjustments!K19)","v":""},null,0,0]
[{"$f":"IF(Adjustments!J20=\"\",\"\",Adjustments!J20)","v":""},null,null,null,null,null,null,null,null,null,null,null,null,{"$f":"IF(Adjustments!K20=\"\",\"\",Adjustments!K20)","v":""},null,0,0]
["43. Total Expected Revenue from Eligible Inventory Crops (sum amounts in column for Item 42):",null,null,null,null,null,null,null,null,null,null,null,null,{"$f":"SUM(P310:P312)","v":0},null,0]
[{"$f":"A282","v":"FSA-524-A Continuation"},null,null,null,null,null,null,null,null,null,null,null,null,null,"Page 2 of 2"]
["1.  Producer’s Name:",null,null,{"$f":"D283","v":""},null,null,null,null,"2.  Application Number:"]
[]
["SECTION D – CROP VALUE FOR DEPUTY ADMINISTRATOR-APPROVED CROPS"]
["ATTENTION",null,null,"Section D is only applicable to applicants who received a payment under ERP Phase 2 for the 2021 program year and elected the 2022 tax year for their representative disaster year that will include crop values, as approved by the Deputy Administrator in allowable gross revenue for Benchmark Year and Disaster Year, for crops that did not generate revenue directly from the sale of the crop and that the producer uses within their ordinary operations (Deputy Administrator-Approved Crops).\n\nComplete this section to include the value of Deputy Administrator-Approved Crops in allowable gross revenue for Benchmark Year and Disaster Year.   "]
["VALUE OF DEPUTY ADMINISTRATOR-APPROVED CROPS PRODUCED BUT NOT SOLD IN THE BENCHMARK YEAR"]
["Enter the value of all Deputy Administrator-Approved Crops produced but not sold for the selected Benchmark Year."]
["47. Crop:",null,null,null,null,"48. Total Production (in Units):",null,null,null,"49. Price per Unit:",null,null,null,"50. Value:"]
[{"$f":"IF(DAFP_Approved!A29=\"\",\"\",DAFP_Approved!A29)","v":""},null,null,null,null,{"$f":"IF(DAFP_Approved!B29=\"\",\"\",DAFP_Approved!B29)","v":""},null,null,null,{"$f":"IF(DAFP_Approved!C29=\"\",\"\",DAFP_Approved!C29)","v":""},null,null,null,{"$f":"IF(A322=\"\",\"\",IF(OR(F322=\"\",J322=\"\"),0,ROUND(F322*J322,2)))","v":""},null,{"$f":"IF(N322=\"\",0,N322)","v":0},0]
[{"$f":"IF(DAFP_Approved!A30=\"\",\"\",DAFP_Approved!A30)","v":""},null,null,null,null,{"$f":"IF(DAFP_Approved!B30=\"\",\"\",DAFP_Approved!B30)","v":""},null,null,null,{"$f":"IF(DAFP_Approved!C30=\"\",\"\",DAFP_Approved!C30)","v":""},null,null,null,{"$f":"IF(A323=\"\",\"\",IF(OR(F323=\"\",J323=\"\"),0,ROUND(F323*J323,2)))","v":""},null,0,0]
[{"$f":"IF(DAFP_Approved!A31=\"\",\"\",DAFP_Approved!A31)","v":""},null,null,null,null,{"$f":"IF(DAFP_Approved!B31=\"\",\"\",DAFP_Approved!B31)","v":""},null,null,null,{"$f":"IF(DAFP_Approved!C31=\"\",\"\",DAFP_Approved!C31)","v":""},null,null,null,"",null,0,0]
[{"$f":"IF(DAFP_Approved!A32=\"\",\"\",DAFP_Approved!A32)","v":""},null,null,null,null,{"$f":"IF(DAFP_Approved!B32=\"\",\"\",DAFP_Approved!B32)","v":""},null,null,null,{"$f":"IF(DAFP_Approved!C32=\"\",\"\",DAFP_Approved!C32)","v":""},null,null,null,"",null,0,0]
[{"$f":"IF(DAFP_Approved!A33=\"\",\"\",DAFP_Approved!A33)","v":""},null,null,null,null,{"$f":"IF(DAFP_Approved!B33=\"\",\"\",DAFP_Approved!B33)","v":""},null,null,null,{"$f":"IF(DAFP_Approved!C33=\"\",\"\",DAFP_Approved!C33)","v":""},null,null,null,"",null,0,0]
[{"$f":"IF(DAFP_Approved!A34=\"\",\"\",DAFP_Approved!A34)","v":""},null,null,null,null,{"$f":"IF(DAFP_Approved!B34=\"\",\"\",DAFP_Approved!B34)","v":""},null,null,null,{"$f":"IF(DAFP_Approved!C34=\"\",\"\",DAFP_Approved!C34)","v":""},null,null,null,"",null,0,0]
["51. Total Value of Deputy Administrator-Approved Crops Produced but Not Sold in the Benchmark Year (sum amounts in column for Item 49):",null,null,null,null,null,null,null,null,null,null,null,null,{"$f":"SUM(P322:P327)","v":0},null,0]
["VALUE OF DEPUTY ADMINISTRATOR-APPROVED CROPS PRODUCED BUT NOT SOLD IN THE DISASTER YEAR"]
["Enter the value of all Deputy Administrator-Approved Crops produced but not sold for Representative Revenue Year 2023."]
["52. Crop:",null,null,null,null,"53. Total Production (in Units):",null,null,null,"54. Price per Unit:",null,null,null,"55. Value:"]
[{"$f":"IF(DAFP_Approved!E29=\"\",\"\",DAFP_Approved!E29)","v":""},null,null,null,null,{"$f":"IF(DAFP_Approved!F29=\"\",\"\",DAFP_Approved!F29)","v":""},null,null,null,{"$f":"IF(DAFP_Approved!G29=\"\",\"\",DAFP_Approved!G29)","v":""},null,null,null,{"$f":"IF(A332=\"\",\"\",IF(OR(F332=\"\",J332=\"\"),0,ROUND(F332*J332,2)))","v":""},null,{"$f":"IF(N332=\"\",0,N332)","v":0},0]
[{"$f":"IF(DAFP_Approved!E30=\"\",\"\",DAFP_Approved!E30)","v":""},null,null,null,null,{"$f":"IF(DAFP_Approved!F30=\"\",\"\",DAFP_Approved!F30)","v":""},null,null,null,{"$f":"IF(DAFP_Approved!G30=\"\",\"\",DAFP_Approved!G30)","v":""},null,null,null,"",null,0,0]
[{"$f":"IF(DAFP_Approved!E31=\"\",\"\",DAFP_Approved!E31)","v":""},null,null,null,null,{"$f":"IF(DAFP_Approved!F31=\"\",\"\",DAFP_Approved!F31)","v":""},null,null,null,{"$f":"IF(DAFP_Approved!G31=\"\",\"\",DAFP_Approved!G31)","v":""},null,null,null,"",null,0,0]
[{"$f":"IF(DAFP_Approved!E32=\"\",\"\",DAFP_Approved!E32)","v":""},null,null,null,null,{"$f":"IF(DAFP_Approved!F32=\"\",\"\",DAFP_Approved!F32)","v":""},null,null,null,{"$f":"IF(DAFP_Approved!G32=\"\",\"\",DAFP_Approved!G32)","v":""},null,null,null,"",null,0,0]
[{"$f":"IF(DAFP_Approved!E33=\"\",\"\",DAFP_Approved!E33)","v":""},null,null,null,null,{"$f":"IF(DAFP_Approved!F33=\"\",\"\",DAFP_Approved!F33)","v":""},null,null,null,{"$f":"IF(DAFP_Approved!G33=\"\",\"\",DAFP_Approved!G33)","v":""},null,null,null,"",null,0,0]
[{"$f":"IF(DAFP_Approved!E34=\"\",\"\",DAFP_Approved!E34)","v":""},null,null,null,null,{"$f":"IF(DAFP_Approved!F34=\"\",\"\",DAFP_Approved!F34)","v":""},null,null,null,{"$f":"IF(DAFP_Approved!G34=\"\",\"\",DAFP_Approved!G34)","v":""},null,null,null,"",null,{"$f":"IF(N337=\"\",0,N337)","v":0},0]
["56.  Total Value of Deputy Administrator-Approved Crops Produced but Not Sold in the Disaster Year (sum amounts in column for Item 46):",null,null,null,null,null,null,null,null,null,null,null,null,{"$f":"SUM(P332:P337)","v":0},null,{"$f":"N338*1","v":0}]
[]
[{"$f":"A282","v":"FSA-524-A Continuation"},null,null,null,null,null,null,null,null,null,null,null,null,null,"Page 1 of 2"]
["1.  Producer’s Name:",null,null,{"$f":"D315","v":""},null,null,null,null,"2.  Application Number:"]
[]
["SECTION C – ADJUSTED BENCHMARK YEAR REVENUE"]
["ATTENTION",null,null,"Section C is only applicable to applicants who received a payment under ERP Phase 2 for the 2021 program year and elected the 2022 tax year for their representative disaster year and that need to adjust Benchmark Year Revenue when operation capacity increased or decreased in Representative Revenue Year 2023 as compared to the Benchmark Year, or if there is no allowable gross revenue in 2018 or 2019 because the applicant is a new producer.\n \nComplete this section include adjustments to Benchmark Year Revenue. "]
["ELIGIBLE YIELD-BASED CROPS"]
["31. Crop:",null,null,null,"32. Expected Acres:",null,"33. Expected Yield/Acre:",null,null,null,"34. Unit of Measure:",null,"35. Expected Price/Unit:","36. Expected Revenue:"]
[{"$f":"IF(Adjustments!A61=\"\",\"\",Adjustments!A61)","v":""},null,null,null,{"$f":"IF(Adjustments!C61=\"\",\"\",Adjustments!C61)","v":""},null,{"$f":"IF(Adjustments!D61=\"\",\"\",Adjustments!D61)","v":""},null,null,null,{"$f":"IF(Adjustments!E61=\"\",\"\",Adjustments!E61)","v":""},null,{"$f":"IF(Adjustments!F61=\"\",\"\",Adjustments!F61)","v":""},{"$f":"IF(A347=\"\",\"\",IF(OR(E347=\"\",G347=\"\",M347=\"\"),0,ROUND(E347*G347*M347,2)))","v":""},null,{"$f":"IF(N347=\"\",0,N347)","v":0},{"$f":"IF(A347=\"\",0,14)","v":0}]
[{"$f":"IF(Adjustments!A62=\"\",\"\",Adjustments!A62)","v":""},null,null,null,{"$f":"IF(Adjustments!C62=\"\",\"\",Adjustments!C62)","v":""},null,{"$f":"IF(Adjustments!D62=\"\",\"\",Adjustments!D62)","v":""},null,null,null,{"$f":"IF(Adjustments!E62=\"\",\"\",Adjustments!E62)","v":""},null,{"$f":"IF(Adjustments!F62=\"\",\"\",Adjustments!F62)","v":""},{"$f":"IF(A348=\"\",\"\",IF(OR(E348=\"\",G348=\"\",M348=\"\"),0,ROUND(E348*G348*M348,2)))","v":""},null,0,{"$f":"IF(A348=\"\",0,14)","v":0}]
[{"$f":"IF(Adjustments!A63=\"\",\"\",Adjustments!A63)","v":""},null,null,null,{"$f":"IF(Adjustments!C63=\"\",\"\",Adjustments!C63)","v":""},null,{"$f":"IF(Adjustments!D63=\"\",\"\",Adjustments!D63)","v":""},null,null,null,{"$f":"IF(Adjustments!E63=\"\",\"\",Adjustments!E63)","v":""},null,{"$f":"IF(Adjustments!F63=\"\",\"\",Adjustments!F63)","v":""},"",null,0,0]
[{"$f":"IF(Adjustments!A64=\"\",\"\",Adjustments!A64)","v":""},null,null,null,{"$f":"IF(Adjustments!C64=\"\",\"\",Adjustments!C64)","v":""},null,{"$f":"IF(Adjustments!D64=\"\",\"\",Adjustments!D64)","v":""},null,null,null,{"$f":"IF(Adjustments!E64=\"\",\"\",Adjustments!E64)","v":""},null,{"$f":"IF(Adjustments!F64=\"\",\"\",Adjustments!F64)","v":""},"",null,0,0]
[{"$f":"IF(Adjustments!A65=\"\",\"\",Adjustments!A65)","v":""},null,null,null,{"$f":"IF(Adjustments!C65=\"\",\"\",Adjustments!C65)","v":""},null,{"$f":"IF(Adjustments!D65=\"\",\"\",Adjustments!D65)","v":""},null,null,null,{"$f":"IF(Adjustments!E65=\"\",\"\",Adjustments!E65)","v":""},null,{"$f":"IF(Adjustments!F65=\"\",\"\",Adjustments!F65)","v":""},"",null,0,0]
[{"$f":"IF(Adjustments!A66=\"\",\"\",Adjustments!A66)","v":""},null,null,null,{"$f":"IF(Adjustments!C66=\"\",\"\",Adjustments!C66)","v":""},null,{"$f":"IF(Adjustments!D66=\"\",\"\",Adjustments!D66)","v":""},null,null,null,{"$f":"IF(Adjustments!E66=\"\",\"\",Adjustments!E66)","v":""},null,{"$f":"IF(Adjustments!F66=\"\",\"\",Adjustments!F66)","v":""},"",null,0,0]
[{"$f":"IF(Adjustments!A67=\"\",\"\",Adjustments!A67)","v":""},null,null,null,{"$f":"IF(Adjustments!C67=\"\",\"\",Adjustments!C67)","v":""},null,{"$f":"IF(Adjustments!D67=\"\",\"\",Adjustments!D67)","v":""},null,null,null,{"$f":"IF(Adjustments!E67=\"\",\"\",Adjustments!E67)","v":""},null,{"$f":"IF(Adjustments!F67=\"\",\"\",Adjustments!F67)","v":""},"",null,0,0]
[{"$f":"IF(Adjustments!A68=\"\",\"\",Adjustments!A68)","v":""},null,null,null,{"$f":"IF(Adjustments!C68=\"\",\"\",Adjustments!C68)","v":""},null,{"$f":"IF(Adjustments!D68=\"\",\"\",Adjustments!D68)","v":""},null,null,null,{"$f":"IF(Adjustments!E68=\"\",\"\",Adjustments!E68)","v":""},null,{"$f":"IF(Adjustments!F68=\"\",\"\",Adjustments!F68)","v":""},"",null,0,0]
[{"$f":"IF(Adjustments!A69=\"\",\"\",Adjustments!A69)","v":""},null,null,null,{"$f":"IF(Adjustments!C69=\"\",\"\",Adjustments!C69)","v":""},null,{"$f":"IF(Adjustments!D69=\"\",\"\",Adjustments!D69)","v":""},null,null,null,{"$f":"IF(Adjustments!E69=\"\",\"\",Adjustments!E69)","v":""},null,{"$f":"IF(Adjustments!F69=\"\",\"\",Adjustments!F69)","v":""},"",null,0,0]
[{"$f":"IF(Adjustments!A70=\"\",\"\",Adjustments!A70)","v":""},null,null,null,{"$f":"IF(Adjustments!C70=\"\",\"\",Adjustments!C70)","v":""},null,{"$f":"IF(Adjustments!D70=\"\",\"\",Adjustments!D70)","v":""},null,null,null,{"$f":"IF(Adjustments!E70=\"\",\"\",Adjustments!E70)","v":""},null,{"$f":"IF(Adjustments!F70=\"\",\"\",Adjustments!F70)","v":""},"",null,0,0]
[{"$f":"IF(Adjustments!A71=\"\",\"\",Adjustments!A71)","v":""},null,null,null,{"$f":"IF(Adjustments!C71=\"\",\"\",Adjustments!C71)","v":""},null,{"$f":"IF(Adjustments!D71=\"\",\"\",Adjustments!D71)","v":""},null,null,null,{"$f":"IF(Adjustments!E71=\"\",\"\",Adjustments!E71)","v":""},null,{"$f":"IF(Adjustments!F71=\"\",\"\",Adjustments!F71)","v":""},"",null,0,0]
["37. Total Expected Revenue from Eligible Yield-Based Crops (sum amounts in column for Item 36):",null,null,null,null,null,null,null,null,null,null,null,null,{"$f":"SUM(P347:P357)","v":0},null,0]
["ELIGIBLE SALES FROM VALUE ADDED THROUGH POST-PRODUCTION ACTIVITES"]
["38. Crop:",null,null,null,null,null,null,null,null,null,null,null,null,"39. Expected  Revenue:"]
[{"$f":"IF(Adjustments!H26=\"\",\"\",Adjustments!H26)","v":""},null,null,null,null,null,null,null,null,null,null,null,null,{"$f":"IF(Adjustments!I26=\"\",\"\",Adjustments!I26)","v":""},null,{"$f":"IF(N361=\"\",0,N361)","v":0},0]
[{"$f":"IF(Adjustments!H27=\"\",\"\",Adjustments!H27)","v":""},null,null,null,null,null,null,null,null,null,null,null,null,{"$f":"IF(Adjustments!I27=\"\",\"\",Adjustments!I27)","v":""},null,0,0]
[{"$f":"IF(Adjustments!H28=\"\",\"\",Adjustments!H28)","v":""},null,null,null,null,null,null,null,null,null,null,null,null,{"$f":"IF(Adjustments!I28=\"\",\"\",Adjustments!I28)","v":""},null,0,0]
[{"$f":"IF(Adjustments!H29=\"\",\"\",Adjustments!H29)","v":""},null,null,null,null,null,null,null,null,null,null,null,null,{"$f":"IF(Adjustments!I29=\"\",\"\",Adjustments!I29)","v":""},null,0,0]
["40. Total Expected Revenue from Eligible Value-Added Through Post-Production Activities  (sum amounts in column for Item 39):",null,null,null,null,null,null,null,null,null,null,null,null,{"$f":"SUM(P361:P364)","v":0},null,0]
["ELIGIBLE INVENTORY CROPS"]
["41. Crop:",null,null,null,null,null,null,null,null,null,null,null,null,"42. Expected Revenue:"]
[{"$f":"IF(Adjustments!J21=\"\",\"\",Adjustments!J21)","v":""},null,null,null,null,null,null,null,null,null,null,null,null,{"$f":"IF(Adjustments!K21=\"\",\"\",Adjustments!K21)","v":""},null,{"$f":"IF(N368=\"\",0,N368)","v":0},0]
[{"$f":"IF(Adjustments!J22=\"\",\"\",Adjustments!J22)","v":""},null,null,null,null,null,null,null,null,null,null,null,null,{"$f":"IF(Adjustments!K22=\"\",\"\",Adjustments!K22)","v":""},null,0,0]
[{"$f":"IF(Adjustments!J23=\"\",\"\",Adjustments!J23)","v":""},null,null,null,null,null,null,null,null,null,null,null,null,{"$f":"IF(Adjustments!K23=\"\",\"\",Adjustments!K23)","v":""},null,0,0]
["43. Total Expected Revenue from Eligible Inventory Crops (sum amounts in column for Item 42):",null,null,null,null,null,null,null,null,null,null,null,null,{"$f":"SUM(P368:P370)","v":0},null,0]
[{"$f":"A340","v":"FSA-524-A Continuation"},null,null,null,null,null,null,null,null,null,null,null,null,null,"Page 2 of 2"]
["1.  Producer’s Name:",null,null,{"$f":"D341","v":""},null,null,null,null,"2.  Application Number:"]
[]
["SECTION D – CROP VALUE FOR DEPUTY ADMINISTRATOR-APPROVED CROPS"]
["ATTENTION",null,null,"Section D is only applicable to applicants who received a payment under ERP Phase 2 for the 2021 program year and elected the 2022 tax year for their representative disaster year that will include crop values, as approved by the Deputy Administrator in allowable gross revenue for Benchmark Year and Disaster Year, for crops that did not generate revenue directly from the sale of the crop and that the producer uses within their ordinary operations (Deputy Administrator-Approved Crops).\n\nComplete this section to include the value of Deputy Administrator-Approved Crops in allowable gross revenue for Benchmark Year and Disaster Year.   "]
["VALUE OF DEPUTY ADMINISTRATOR-APPROVED CROPS PRODUCED BUT NOT SOLD IN THE BENCHMARK YEAR"]
["Enter the value of all Deputy Administrator-Approved Crops produced but not sold for the selected Benchmark Year."]
["47. Crop:",null,null,null,null,"48. Total Production (in Units):",null,null,null,"49. Price per Unit:",null,null,null,"50. Value:"]
[{"$f":"IF(DAFP_Approved!A35=\"\",\"\",DAFP_Approved!A35)","v":""},null,null,null,null,{"$f":"IF(DAFP_Approved!B35=\"\",\"\",DAFP_Approved!B35)","v":""},null,null,null,{"$f":"IF(DAFP_Approved!C35=\"\",\"\",DAFP_Approved!C35)","v":""},null,null,null,{"$f":"IF(A380=\"\",\"\",IF(OR(F380=\"\",J380=\"\"),0,ROUND(F380*J380,2)))","v":""},null,{"$f":"IF(N380=\"\",0,N380)","v":0},0]
[{"$f":"IF(DAFP_Approved!A36=\"\",\"\",DAFP_Approved!A36)","v":""},null,null,null,null,{"$f":"IF(DAFP_Approved!B36=\"\",\"\",DAFP_Approved!B36)","v":""},null,null,null,{"$f":"IF(DAFP_Approved!C36=\"\",\"\",DAFP_Approved!C36)","v":""},null,null,null,null,null,0,0]
[{"$f":"IF(DAFP_Approved!A37=\"\",\"\",DAFP_Approved!A37)","v":""},null,null,null,null,{"$f":"IF(DAFP_Approved!B37=\"\",\"\",DAFP_Approved!B37)","v":""},null,null,null,{"$f":"IF(DAFP_Approved!C37=\"\",\"\",DAFP_Approved!C37)","v":""},null,null,null,null,null,0,0]
[{"$f":"IF(DAFP_Approved!A38=\"\",\"\",DAFP_Approved!A38)","v":""},null,null,null,null,{"$f":"IF(DAFP_Approved!B38=\"\",\"\",DAFP_Approved!B38)","v":""},null,null,null,{"$f":"IF(DAFP_Approved!C38=\"\",\"\",DAFP_Approved!C38)","v":""},null,null,null,null,null,0,0]
[{"$f":"IF(DAFP_Approved!A39=\"\",\"\",DAFP_Approved!A39)","v":""},null,null,null,null,{"$f":"IF(DAFP_Approved!B39=\"\",\"\",DAFP_Approved!B39)","v":""},null,null,null,{"$f":"IF(DAFP_Approved!C39=\"\",\"\",DAFP_Approved!C39)","v":""},null,null,null,null,null,0,0]
[{"$f":"IF(DAFP_Approved!A40=\"\",\"\",DAFP_Approved!A40)","v":""},null,null,null,null,{"$f":"IF(DAFP_Approved!B40=\"\",\"\",DAFP_Approved!B40)","v":""},null,null,null,{"$f":"IF(DAFP_Approved!C40=\"\",\"\",DAFP_Approved!C40)","v":""},null,null,null,null,null,0,0]
["51. Total Value of Deputy Administrator-Approved Crops Produced but Not Sold in the Benchmark Year (sum amounts in column for Item 49):",null,null,null,null,null,null,null,null,null,null,null,null,{"$f":"SUM(P380:P385)","v":0},null,0]
["VALUE OF DEPUTY ADMINISTRATOR-APPROVED CROPS PRODUCED BUT NOT SOLD IN THE DISASTER YEAR"]
["Enter the value of all Deputy Administrator-Approved Crops produced but not sold for Representative Revenue Year 2023."]
["52. Crop:",null,null,null,null,"53. Total Production (in Units):",null,null,null,"54. Price per Unit:",null,null,null,"55. Value:"]
[{"$f":"IF(DAFP_Approved!E35=\"\",\"\",DAFP_Approved!E35)","v":""},null,null,null,null,{"$f":"IF(DAFP_Approved!F35=\"\",\"\",DAFP_Approved!F35)","v":""},null,null,null,{"$f":"IF(DAFP_Approved!G35=\"\",\"\",DAFP_Approved!G35)","v":""},null,null,null,{"$f":"IF(A390=\"\",\"\",IF(OR(F390=\"\",J390=\"\"),0,ROUND(F390*J390,2)))","v":""},null,{"$f":"IF(N390=\"\",0,N390)","v":0},0]
[{"$f":"IF(DAFP_Approved!E36=\"\",\"\",DAFP_Approved!E36)","v":""},null,null,null,null,{"$f":"IF(DAFP_Approved!F36=\"\",\"\",DAFP_Approved!F36)","v":""},null,null,null,{"$f":"IF(DAFP_Approved!G36=\"\",\"\",DAFP_Approved!G36)","v":""},null,null,null,"",null,0,0]
[{"$f":"IF(DAFP_Approved!E37=\"\",\"\",DAFP_Approved!E37)","v":""},null,null,null,null,{"$f":"IF(DAFP_Approved!F37=\"\",\"\",DAFP_Approved!F37)","v":""},null,null,null,{"$f":"IF(DAFP_Approved!G37=\"\",\"\",DAFP_Approved!G37)","v":""},null,null,null,"",null,0,0]
[{"$f":"IF(DAFP_Approved!E38=\"\",\"\",DAFP_Approved!E38)","v":""},null,null,null,null,{"$f":"IF(DAFP_Approved!F38=\"\",\"\",DAFP_Approved!F38)","v":""},null,null,null,{"$f":"IF(DAFP_Approved!G38=\"\",\"\",DAFP_Approved!G38)","v":""},null,null,null,"",null,0,0]
[{"$f":"IF(DAFP_Approved!E39=\"\",\"\",DAFP_Approved!E39)","v":""},null,null,null,null,{"$f":"IF(DAFP_Approved!F39=\"\",\"\",DAFP_Approved!F39)","v":""},null,null,null,{"$f":"IF(DAFP_Approved!G39=\"\",\"\",DAFP_Approved!G39)","v":""},null,null,null,"",null,0,0]
[{"$f":"IF(DAFP_Approved!E40=\"\",\"\",DAFP_Approved!E40)","v":""},null,null,null,null,{"$f":"IF(DAFP_Approved!F40=\"\",\"\",DAFP_Approved!F40)","v":""},null,null,null,{"$f":"IF(DAFP_Approved!G40=\"\",\"\",DAFP_Approved!G40)","v":""},null,null,null,"",null,{"$f":"IF(N395=\"\",0,N395)","v":0},0]
["56.  Total Value of Deputy Administrator-Approved Crops Produced but Not Sold in the Disaster Year (sum amounts in column for Item 46):",null,null,null,null,null,null,null,null,null,null,null,null,{"$f":"SUM(P390:P395)","v":0},null,{"$f":"N396*1","v":0}]

{"sheet":"524B","index":3,"n_rows":208,"n_cols":17,"rows_kept":208,"cut":false,"hidden":false,"merged":[[53,1,53,14],[55,2,55,13],[56,2,56,13],[57,2,57,13],[58,2,58,13],[59,2,59,13],[60,2,60,13],[61,2,61,13],[62,2,62,13],[54,2,54,13],[51,1,51,14],[52,1,52,14],[41,1,41,14],[42,1,42,14],[43,1,43,11],[43,12,43,14],[44,1,44,11],[44,12,44,14],[45,1,45,11],[45,12,45,14],[47,1,47,11],[47,12,47,14],[48,1,48,11],[48,12,48,14],[49,1,49,14],[50,1,50,11],[50,12,50,14],[46,1,46,11],[46,12,46,14],[29,1,29,12],[29,13,29,14],[30,7,30,9],[30,10,30,14],[31,1,31,14],[32,1,32,14],[33,1,33,14],[34,1,34,3],[34,4,34,7],[34,8,34,11],[34,12,34,14],[30,3,30,6],[30,1,30,2],[40,1,40,11],[40,12,40,14],[35,1,35,3],[35,4,35,7],[35,8,35,11],[35,12,35,14],[36,1,36,3],[36,4,36,7],[36,8,36,11],[36,12,36,14],[37,1,37,3],[37,4,37,7],[37,8,37,11],[37,12,37,14],[38,1,38,3],[38,4,38,7],[38,8,38,11],[38,12,38,14],[39,1,39,3],[39,4,39,7],[39,8,39,11],[39,12,39,14],[28,1,28,2],[28,3,28,4],[28,5,28,8],[28,9,28,10],[28,11,28,12],[28,13,28,14],[27,1,27,2],[27,3,27,4],[27,5,27,8],[27,9,27,10],[27,11,27,12],[27,13,27,14],[26,1,26,2],[26,3,26,4],[26,5,26,8],[26,9,26,10],[26,11,26,12],[26,13,26,14],[25,1,25,2],[25,3,25,4],[25,5,25,8],[25,9,25,10],[25,11,25,12],[25,13,25,14],[24,1,24,2],[24,3,24,4],[24,5,24,8],[24,9,24,10],[24,11,24,12],[24,13,24,14],[23,1,23,2],[23,3,23,4],[23,5,23,8],[23,9,23,10],[23,11,23,12],[23,13,23,14],[22,1,22,2],[22,3,22,4],[22,5,22,8],[22,9,22,10],[22,11,22,12],[22,13,22,14],[21,1,21,2],[21,3,21,4],[21,5,21,8],[21,9,21,10],[21,11,21,12],[21,13,21,14],[20,1,20,2],[20,3,20,4],[20,5,20,8],[20,9,20,10],[20,11,20,12],[20,13,20,14],[19,1,19,2],[19,3,19,4],[19,5,19,8],[19,9,19,10],[19,11,19,12],[19,13,19,14],[18,1,18,2],[18,3,18,4],[18,5,18,8],[18,9,18,10],[18,11,18,12],[18,13,18,14],[17,1,17,2],[17,3,17,4],[17,5,17,8],[17,9,17,10],[17,11,17,12],[17,13,17,14],[16,1,16,2],[16,3,16,4],[16,5,16,8],[16,9,16,10],[16,11,16,12],[16,13,16,14],[15,1,15,2],[15,3,15,4],[15,5,15,8],[15,9,15,10],[15,11,15,12],[15,13,15,14],[14,1,14,2],[14,3,14,4],[14,5,14,8],[14,9,14,10],[14,11,14,12],[14,13,14,14],[13,1,13,2],[13,3,13,4],[13,5,13,8],[13,9,13,10],[13,11,13,12],[13,13,13,14],[12,3,12,4],[12,5,12,8],[12,9,12,10],[12,11,12,12],[12,13,12,14],[11,1,11,2],[11,3,11,4],[11,5,11,8],[11,9,11,10],[11,11,11,12],[11,13,11,14],[12,1,12,2],[0,1,0,14],[6,1,6,14],[7,1,7,14],[8,1,8,2],[8,3,8,4],[8,5,8,8],[8,9,8,10],[8,11,8,12],[8,13,8,14],[4,1,4,14],[5,1,5,14],[1,1,1,2],[2,1,2,2],[1,9,1,14],[2,9,2,14],[3,9,3,14],[1,3,1,8],[2,3,2,8],[3,3,3,8],[10,1,10,2],[10,3,10,4],[10,5,10,8],[10,9,10,10],[10,11,10,12],[10,13,10,14],[9,1,9,2],[9,3,9,4],[9,5,9,8],[9,9,9,10],[9,11,9,12],[9,13,9,14],[63,1,63,2],[63,3,63,8],[63,9,63,14],[64,1,64,2],[64,3,64,8],[64,9,64,14],[65,3,65,8],[65,9,65,14],[66,1,66,14],[67,1,67,14],[68,1,68,14],[69,1,69,14],[70,1,70,2],[70,3,70,4],[70,5,70,8],[70,9,70,10],[70,11,70,12],[70,13,70,14],[71,1,71,2],[71,3,71,4],[71,5,71,8],[71,9,71,10],[71,11,71,12],[71,13,71,14],[72,1,72,2],[72,3,72,4],[72,5,72,8],[72,9,72,10],[72,11,72,12],[72,13,72,14],[73,1,73,2],[73,3,73,4],[73,5,73,8],[73,9,73,10],[73,11,73,12],[73,13,73,14],[74,1,74,2],[74,3,74,4],[74,5,74,8],[74,9,74,10],[74,11,74,12],[74,13,74,14],[83,1,83,2],[83,3,83,4],[83,5,83,8],[83,9,83,10],[83,11,83,12],[83,13,83,14],[84,1,84,2],[84,3,84,4],[84,5,84,8],[84,9,84,10],[84,11,84,12],[84,13,84,14],[85,1,85,2],[85,3,85,4],[85,5,85,8],[85,9,85,10],[85,11,85,12],[85,13,85,14],[86,1,86,2],[86,3,86,4],[86,5,86,8],[86,9,86,10],[86,11,86,12],[86,13,86,14],[87,1,87,2],[87,3,87,4],[87,5,87,8],[87,9,87,10],[87,11,87,12],[87,13,87,14],[88,1,88,2],[88,3,88,4],[88,5,88,8],[88,9,88,10],[88,11,88,12],[88,13,88,14],[89,1,89,2],[89,3,89,4],[89,5,89,8],[89,9,89,10],[89,11,89,12],[89,13,89,14],[90,1,90,2],[90,3,90,4],[90,5,90,8],[90,9,90,10],[90,11,90,12],[90,13,90,14],[91,1,91,2],[91,3,91,4],[91,5,91,8],[91,9,91,10],[91,11,91,12],[91,13,91,14],[92,1,92,2],[92,3,92,4],[92,5,92,8],[92,9,92,10],[92,11,92,12],[92,13,92,14],[93,1,93,2],[93,3,93,4],[93,5,93,8],[93,9,93,10],[93,11,93,12],[93,13,93,14],[94,1,94,2],[94,3,94,4],[94,5,94,8],[94,9,94,10],[94,11,94,12],[94,13,94,14],[95,1,95,2],[95,3,95,4],[95,5,95,8],[95,9,95,10],[95,11,95,12],[95,13,95,14],[96,1,96,2],[96,3,96,4],[96,5,96,8],[96,9,96,10],[96,11,96,12],[96,13,96,14],[97,1,97,2],[97,3,97,4],[97,5,97,8],[97,9,97,10],[97,11,97,12],[97,13,97,14],[98,1,98,2],[98,3,98,4],[98,5,98,8],[98,9,98,10],[98,11,98,12],[98,13,98,14],[104,1,104,3],[104,4,104,7],[104,8,104,11],[104,12,104,14],[105,1,105,3],[105,4,105,7],[105,8,105,11],[105,12,105,14],[99,1,99,12],[99,13,99,14],[100,1,100,2],[100,3,100,6],[100,7,100,9],[100,10,100,14],[101,1,101,14],[102,1,102,14],[103,1,103,14],[119,1,119,14],[120,1,120,14],[121,1,121,11],[121,12,121,14],[122,1,122,11],[122,12,122,14],[132,1,132,11],[132,12,132,14],[126,1,126,11],[127,1,127,11],[128,1,128,11],[129,1,129,11],[130,1,130,11],[131,1,131,11],[125,12,125,14],[126,12,126,14],[127,12,127,14],[128,12,128,14],[129,12,129,14],[130,12,130,14],[131,12,131,14],[123,12,123,14],[124,12,124,14],[133,1,133,11],[133,12,133,14],[134,1,134,11],[134,12,134,14],[75,1,75,2],[76,1,76,2],[77,1,77,2],[78,1,78,2],[79,1,79,2],[80,1,80,2],[81,1,81,2],[82,1,82,2],[75,5,75,8],[76,5,76,8],[77,5,77,8],[78,5,78,8],[79,5,79,8],[80,5,80,8],[81,5,81,8],[82,5,82,8],[75,3,75,4],[76,3,76,4],[118,1,118,11],[118,12,118,14],[77,3,77,4],[78,3,78,4],[79,3,79,4],[80,3,80,4],[81,3,81,4],[82,3,82,4],[75,9,75,10],[76,9,76,10],[77,9,77,10],[78,9,78,10],[79,9,79,10],[80,9,80,10],[81,9,81,10],[82,9,82,10],[75,11,75,12],[76,11,76,12],[77,11,77,12],[78,11,78,12],[79,11,79,12],[80,11,80,12],[81,11,81,12],[82,11,82,12],[75,13,75,14],[76,13,76,14],[77,13,77,14],[78,13,78,14],[79,13,79,14],[80,13,80,14],[81,13,81,14],[82,13,82,14],[135,1,135,2],[135,3,135,8],[135,9,135,14],[136,1,136,2],[136,3,136,8],[136,9,136,14],[137,3,137,8],[137,9,137,14],[138,1,138,14],[139,1,139,14],[140,1,140,14],[141,1,141,14],[142,1,142,2],[142,3,142,4],[142,5,142,8],[142,9,142,10],[142,11,142,12],[142,13,142,14],[143,1,143,2],[143,3,143,4],[143,5,143,8],[143,9,143,10],[143,11,143,12],[143,13,143,14],[144,1,144,2],[144,3,144,4],[144,5,144,8],[144,9,144,10],[144,11,144,12],[144,13,144,14],[145,1,145,2],[145,3,145,4],[145,5,145,8],[145,9,145,10],[145,11,145,12],[145,13,145,14],[146,1,146,2],[146,3,146,4],[146,5,146,8],[146,9,146,10],[146,11,146,12],[146,13,146,14],[147,1,147,2],[147,3,147,4],[147,5,147,8],[147,9,147,10],[147,11,147,12],[147,13,147,14],[148,1,148,2],[148,3,148,4],[148,5,148,8],[148,9,148,10],[148,11,148,12],[148,13,148,14],[149,1,149,2],[149,3,149,4],[149,5,149,8],[149,9,149,10],[149,11,149,12],[149,13,149,14],[150,1,150,2],[150,3,150,4],[150,5,150,8],[150,9,150,10],[150,11,150,12],[150,13,150,14],[151,1,151,2],[151,3,151,4],[151,5,151,8],[151,9,151,10],[151,11,151,12],[151,13,151,14],[152,1,152,2],[152,3,152,4],[152,5,152,8],[152,9,152,10],[152,11,152,12],[152,13,152,14],[153,1,153,2],[153,3,153,4],[153,5,153,8],[153,9,153,10],[153,11,153,12],[153,13,153,14],[154,1,154,2],[154,3,154,4],[154,5,154,8],[154,9,154,10],[154,11,154,12],[154,13,154,14],[155,1,155,2],[155,3,155,4],[155,5,155,8],[155,9,155,10],[155,11,155,12],[155,13,155,14],[156,1,156,2],[156,3,156,4],[156,5,156,8],[156,9,156,10],[156,11,156,12],[156,13,156,14],[157,1,157,2],[157,3,157,4],[157,5,157,8],[157,9,157,10],[157,11,157,12],[157,13,157,14],[158,1,158,2],[158,3,158,4],[158,5,158,8],[158,9,158,10],[158,11,158,12],[158,13,158,14],[159,1,159,2],[159,3,159,4],[159,5,159,8],[159,9,159,10],[159,11,159,12],[159,13,159,14],[160,1,160,2],[160,3,160,4],[160,5,160,8],[160,9,160,10],[160,11,160,12],[160,13,160,14],[161,1,161,2],[161,3,161,4],[161,5,161,8],[161,9,161,10],[161,11,161,12],[161,13,161,14],[162,1,162,2],[162,3,162,4],[162,5,162,8],[162,9,162,10],[162,11,162,12],[162,13,162,14],[163,1,163,2],[163,3,163,4],[163,5,163,8],[163,9,163,10],[163,11,163,12],[163,13,163,14],[164,1,164,2],[164,3,164,4],[164,5,164,8],[164,9,164,10],[164,11,164,12],[164,13,164,14],[165,1,165,2],[165,3,165,4],[165,5,165,8],[165,9,165,10],[165,11,165,12],[165,13,165,14],[166,1,166,2],[166,3,166,4],[166,5,166,8],[166,9,166,10],[166,11,166,12],[166,13,166,14],[167,1,167,2],[167,3,167,4],[167,5,167,8],[167,9,167,10],[167,11,167,12],[167,13,167,14],[168,1,168,2],[168,3,168,4],[168,5,168,8],[168,9,168,10],[168,11,168,12],[168,13,168,14],[169,1,169,2],[169,3,169,4],[169,5,169,8],[169,9,169,10],[169,11,169,12],[169,13,169,14],[170,1,170,2],[170,3,170,4],[170,5,170,8],[170,9,170,10],[170,11,170,12],[170,13,170,14],[178,12,178,14],[179,12,179,14],[180,12,180,14],[171,1,171,12],[171,13,171,14],[172,1,172,2],[172,3,172,6],[172,7,172,9],[172,10,172,14],[173,1,173,14],[174,1,174,14],[175,1,175,14],[185,1,185,3],[186,1,186,3],[187,1,187,3],[184,4,184,7],[185,4,185,7],[186,4,186,7],[187,4,187,7],[184,8,184,11],[185,8,185,11],[186,8,186,11],[187,8,187,11],[106,4,106,7],[107,4,107,7],[108,4,108,7],[109,4,109,7],[110,4,110,7],[111,4,111,7],[191,1,191,11],[191,12,191,14],[192,1,192,14],[189,1,189,3],[189,4,189,7],[189,8,189,11],[188,12,188,14],[189,12,189,14],[190,1,190,3],[190,4,190,7],[190,8,190,11],[190,12,190,14],[188,1,188,3],[188,4,188,7],[188,8,188,11],[176,1,176,3],[176,4,176,7],[176,8,176,11],[106,1,106,3],[107,1,107,3],[108,1,108,3],[109,1,109,3],[110,1,110,3],[111,1,111,3],[112,1,112,3],[113,1,113,3],[114,1,114,3],[111,8,111,11],[112,8,112,11],[113,8,113,11],[114,8,114,11],[115,8,115,11],[116,8,116,11],[117,8,117,11],[207,1,207,11],[207,12,207,14],[115,1,115,3],[116,1,116,3],[117,1,117,3],[193,1,193,14],[194,1,194,11],[194,12,194,14],[195,1,195,11],[195,12,195,14],[176,12,176,14],[177,1,177,3],[177,4,177,7],[177,8,177,11],[177,12,177,14],[187,12,187,14],[184,1,184,3],[183,8,183,11],[123,1,123,11],[124,1,124,11],[125,1,125,11],[106,12,106,14],[107,12,107,14],[108,12,108,14],[109,12,109,14],[110,12,110,14],[111,12,111,14],[112,12,112,14],[113,12,113,14],[114,12,114,14],[112,4,112,7],[113,4,113,7],[114,4,114,7],[115,4,115,7],[116,4,116,7],[117,4,117,7],[106,8,106,11],[107,8,107,11],[108,8,108,11],[109,8,109,11],[110,8,110,11],[201,1,201,11],[202,1,202,11],[203,1,203,11],[204,1,204,11],[115,12,115,14],[116,12,116,14],[117,12,117,14],[178,1,178,3],[179,1,179,3],[180,1,180,3],[181,1,181,3],[182,1,182,3],[183,1,183,3],[178,4,178,7],[179,4,179,7],[180,4,180,7],[181,4,181,7],[182,4,182,7],[183,4,183,7],[178,8,178,11],[179,8,179,11],[180,8,180,11],[181,8,181,11],[182,8,182,11],[181,12,181,14],[182,12,182,14],[183,12,183,14],[184,12,184,14],[185,12,185,14],[186,12,186,14],[205,1,205,11],[206,1,206,11],[196,12,196,14],[197,12,197,14],[198,12,198,14],[199,12,199,14],[200,12,200,14],[201,12,201,14],[202,12,202,14],[203,12,203,14],[204,12,204,14],[205,12,205,14],[206,12,206,14],[196,1,196,11],[197,1,197,11],[198,1,198,11],[199,1,199,11],[200,1,200,11]]}
[null,"OMB Control Number. 0503-0316 \nOMB Expiration Date: 04/30/2024"]
[null,"FSA-524-B",null,"U.S. DEPARTMENT OF AGRICULTURE",null,null,null,null,null,"1.   Producer’s Name (Person or Legal Entity):",null,null,null,null,null,null,{"$f":"MAX(Q10:Q207)","v":2}]
[null,null,null,"Farm Service Agency",null,null,null,null,null,{"$f":"IF(Data_Entry!B18=\"\",\"\",Data_Entry!B18)","v":""}]
[null,null,null,"EMERGENCY RELIEF PROGRAM (ERP) 2022 TRACK 2 EXPECTED REVENUE WORKSHEET",null,null,null,null,null,"2.   Application Number:"]
[]
[null,"SECTION A – EXPECTED BENCHMARK REVENUE"]
[null,"EXPECTED REVENUE OR VALUE FROM ELIGIBLE YIELD-BASED CROPS"]
[null,"Enter the expected revenue or value of all eligible yield-based crops that could have been affected by a qualifying disaster event in calendar year 2022. This may include all eligible crops that were expected to be produced and sold, that were expected to be produced but not sold and used in farm’s ordinary operation, and that were expected to be produced and then stored",null,null,null,null,null,null,null,null,null,null,null,null,null,{"$f":"Data_Entry!E28","v":0}]
[null,"3.   Crop:",null,"4.   Expected Acres:",null,"5.   Expected Yield/Acre:",null,null,null,"6.   Unit of Measure:",null,"7.   Expected Price/Unit:",null,"8.   Expected Revenue or Value:"]
[null,{"$f":"IF(Adjustments!A7=\"\",\"\",Adjustments!A7)","v":""},null,{"$f":"IF(Adjustments!C7=\"\",\"\",Adjustments!C7)","v":""},null,{"$f":"IF(Adjustments!D7=\"\",\"\",Adjustments!D7)","v":""},null,null,null,{"$f":"IF(Adjustments!E7=\"\",\"\",Adjustments!E7)","v":""},null,{"$f":"IF(Adjustments!F7=\"\",\"\",Adjustments!F7)","v":""},null,{"$f":"IF(B10=\"\",\"\",IF(OR(D10=\"\",F10=\"\",L10=\"\"),0,ROUND(D10*F10*L10,2)))","v":""},null,{"$f":"IF(N10=\"\",0,N10)","v":0},2]
[null,{"$f":"IF(Adjustments!A8=\"\",\"\",Adjustments!A8)","v":""},null,{"$f":"IF(Adjustments!C8=\"\",\"\",Adjustments!C8)","v":""},null,{"$f":"IF(Adjustments!D8=\"\",\"\",Adjustments!D8)","v":""},null,null,null,{"$f":"IF(Adjustments!E8=\"\",\"\",Adjustments!E8)","v":""},null,{"$f":"IF(Adjustments!F8=\"\",\"\",Adjustments!F8)","v":""},null,{"$f":"IF(B11=\"\",\"\",IF(OR(D11=\"\",F11=\"\",L11=\"\"),0,ROUND(D11*F11*L11,2)))","v":""},null,{"$f":"IF(N11=\"\",0,N11)","v":0}]
[null,{"$f":"IF(Adjustments!A9=\"\",\"\",Adjustments!A9)","v":""},null,{"$f":"IF(Adjustments!C9=\"\",\"\",Adjustments!C9)","v":""},null,{"$f":"IF(Adjustments!D9=\"\",\"\",Adjustments!D9)","v":""},null,null,null,{"$f":"IF(Adjustments!E9=\"\",\"\",Adjustments!E9)","v":""},null,{"$f":"IF(Adjustments!F9=\"\",\"\",Adjustments!F9)","v":""},null,"",null,0]
[null,{"$f":"IF(Adjustments!A10=\"\",\"\",Adjustments!A10)","v":""},null,{"$f":"IF(Adjustments!C10=\"\",\"\",Adjustments!C10)","v":""},null,{"$f":"IF(Adjustments!D10=\"\",\"\",Adjustments!D10)","v":""},null,null,null,{"$f":"IF(Adjustments!E10=\"\",\"\",Adjustments!E10)","v":""},null,{"$f":"IF(Adjustments!F10=\"\",\"\",Adjustments!F10)","v":""},null,"",null,0]
[null,{"$f":"IF(Adjustments!A11=\"\",\"\",Adjustments!A11)","v":""},null,{"$f":"IF(Adjustments!C11=\"\",\"\",Adjustments!C11)","v":""},null,{"$f":"IF(Adjustments!D11=\"\",\"\",Adjustments!D11)","v":""},null,null,null,{"$f":"IF(Adjustments!E11=\"\",\"\",Adjustments!E11)","v":""},null,{"$f":"IF(Adjustments!F11=\"\",\"\",Adjustments!F11)","v":""},null,"",null,0]
[null,{"$f":"IF(Adjustments!A12=\"\",\"\",Adjustments!A12)","v":""},null,{"$f":"IF(Adjustments!C12=\"\",\"\",Adjustments!C12)","v":""},null,{"$f":"IF(Adjustments!D12=\"\",\"\",Adjustments!D12)","v":""},null,null,null,{"$f":"IF(Adjustments!E12=\"\",\"\",Adjustments!E12)","v":""},null,{"$f":"IF(Adjustments!F12=\"\",\"\",Adjustments!F12)","v":""},null,"",null,0]
[null,{"$f":"IF(Adjustments!A13=\"\",\"\",Adjustments!A13)","v":""},null,{"$f":"IF(Adjustments!C13=\"\",\"\",Adjustments!C13)","v":""},null,{"$f":"IF(Adjustments!D13=\"\",\"\",Adjustments!D13)","v":""},null,null,null,{"$f":"IF(Adjustments!E13=\"\",\"\",Adjustments!E13)","v":""},null,{"$f":"IF(Adjustments!F13=\"\",\"\",Adjustments!F13)","v":""},null,"",null,0]
[null,{"$f":"IF(Adjustments!A14=\"\",\"\",Adjustments!A14)","v":""},null,{"$f":"IF(Adjustments!C14=\"\",\"\",Adjustments!C14)","v":""},null,{"$f":"IF(Adjustments!D14=\"\",\"\",Adjustments!D14)","v":""},null,null,null,{"$f":"IF(Adjustments!E14=\"\",\"\",Adjustments!E14)","v":""},null,{"$f":"IF(Adjustments!F14=\"\",\"\",Adjustments!F14)","v":""},null,"",null,0]
[null,{"$f":"IF(Adjustments!A15=\"\",\"\",Adjustments!A15)","v":""},null,{"$f":"IF(Adjustments!C15=\"\",\"\",Adjustments!C15)","v":""},null,{"$f":"IF(Adjustments!D15=\"\",\"\",Adjustments!D15)","v":""},null,null,null,{"$f":"IF(Adjustments!E15=\"\",\"\",Adjustments!E15)","v":""},null,{"$f":"IF(Adjustments!F15=\"\",\"\",Adjustments!F15)","v":""},null,"",null,0]
[null,{"$f":"IF(Adjustments!A16=\"\",\"\",Adjustments!A16)","v":""},null,{"$f":"IF(Adjustments!C16=\"\",\"\",Adjustments!C16)","v":""},null,{"$f":"IF(Adjustments!D16=\"\",\"\",Adjustments!D16)","v":""},null,null,null,{"$f":"IF(Adjustments!E16=\"\",\"\",Adjustments!E16)","v":""},null,{"$f":"IF(Adjustments!F16=\"\",\"\",Adjustments!F16)","v":""},null,"",null,0]
[null,{"$f":"IF(Adjustments!A17=\"\",\"\",Adjustments!A17)","v":""},null,{"$f":"IF(Adjustments!C17=\"\",\"\",Adjustments!C17)","v":""},null,{"$f":"IF(Adjustments!D17=\"\",\"\",Adjustments!D17)","v":""},null,null,null,{"$f":"IF(Adjustments!E17=\"\",\"\",Adjustments!E17)","v":""},null,{"$f":"IF(Adjustments!F17=\"\",\"\",Adjustments!F17)","v":""},null,"",null,0]
[null,{"$f":"IF(Adjustments!A18=\"\",\"\",Adjustments!A18)","v":""},null,{"$f":"IF(Adjustments!C18=\"\",\"\",Adjustments!C18)","v":""},null,{"$f":"IF(Adjustments!D18=\"\",\"\",Adjustments!D18)","v":""},null,null,null,{"$f":"IF(Adjustments!E18=\"\",\"\",Adjustments!E18)","v":""},null,{"$f":"IF(Adjustments!F18=\"\",\"\",Adjustments!F18)","v":""},null,"",null,0]
[null,{"$f":"IF(Adjustments!A19=\"\",\"\",Adjustments!A19)","v":""},null,{"$f":"IF(Adjustments!C19=\"\",\"\",Adjustments!C19)","v":""},null,{"$f":"IF(Adjustments!D19=\"\",\"\",Adjustments!D19)","v":""},null,null,null,{"$f":"IF(Adjustments!E19=\"\",\"\",Adjustments!E19)","v":""},null,{"$f":"IF(Adjustments!F19=\"\",\"\",Adjustments!F19)","v":""},null,"",null,0]
[null,{"$f":"IF(Adjustments!A20=\"\",\"\",Adjustments!A20)","v":""},null,{"$f":"IF(Adjustments!C20=\"\",\"\",Adjustments!C20)","v":""},null,{"$f":"IF(Adjustments!D20=\"\",\"\",Adjustments!D20)","v":""},null,null,null,{"$f":"IF(Adjustments!E20=\"\",\"\",Adjustments!E20)","v":""},null,{"$f":"IF(Adjustments!F20=\"\",\"\",Adjustments!F20)","v":""},null,"",null,0]
[null,{"$f":"IF(Adjustments!A21=\"\",\"\",Adjustments!A21)","v":""},null,{"$f":"IF(Adjustments!C21=\"\",\"\",Adjustments!C21)","v":""},null,{"$f":"IF(Adjustments!D21=\"\",\"\",Adjustments!D21)","v":""},null,null,null,{"$f":"IF(Adjustments!E21=\"\",\"\",Adjustments!E21)","v":""},null,{"$f":"IF(Adjustments!F21=\"\",\"\",Adjustments!F21)","v":""},null,"",null,0]
[null,{"$f":"IF(Adjustments!A22=\"\",\"\",Adjustments!A22)","v":""},null,{"$f":"IF(Adjustments!C22=\"\",\"\",Adjustments!C22)","v":""},null,{"$f":"IF(Adjustments!D22=\"\",\"\",Adjustments!D22)","v":""},null,null,null,{"$f":"IF(Adjustments!E22=\"\",\"\",Adjustments!E22)","v":""},null,{"$f":"IF(Adjustments!F22=\"\",\"\",Adjustments!F22)","v":""},null,"",null,0]
[null,{"$f":"IF(Adjustments!A23=\"\",\"\",Adjustments!A23)","v":""},null,{"$f":"IF(Adjustments!C23=\"\",\"\",Adjustments!C23)","v":""},null,{"$f":"IF(Adjustments!D23=\"\",\"\",Adjustments!D23)","v":""},null,null,null,{"$f":"IF(Adjustments!E23=\"\",\"\",Adjustments!E23)","v":""},null,{"$f":"IF(Adjustments!F23=\"\",\"\",Adjustments!F23)","v":""},null,"",null,0]
[null,{"$f":"IF(Adjustments!A24=\"\",\"\",Adjustments!A24)","v":""},null,{"$f":"IF(Adjustments!C24=\"\",\"\",Adjustments!C24)","v":""},null,{"$f":"IF(Adjustments!D24=\"\",\"\",Adjustments!D24)","v":""},null,null,null,{"$f":"IF(Adjustments!E24=\"\",\"\",Adjustments!E24)","v":""},null,{"$f":"IF(Adjustments!F24=\"\",\"\",Adjustments!F24)","v":""},null,"",null,0]
[null,{"$f":"IF(Adjustments!A25=\"\",\"\",Adjustments!A25)","v":""},null,{"$f":"IF(Adjustments!C25=\"\",\"\",Adjustments!C25)","v":""},null,{"$f":"IF(Adjustments!D25=\"\",\"\",Adjustments!D25)","v":""},null,null,null,{"$f":"IF(Adjustments!E25=\"\",\"\",Adjustments!E25)","v":""},null,{"$f":"IF(Adjustments!F25=\"\",\"\",Adjustments!F25)","v":""},null,"",null,0]
[null,{"$f":"IF(AND(NOT(B28=\"\")),\"See FSA-524-B Continuation\",\"\")","v":""},null,null,null,null,null,null,null,null,null,null,null,{"$f":"IF(B26=\"\",\"\",Adjustments!G6)","v":""},null,0]
[null,"9.   Total Expected Revenue and Value from Eligible Yield-Based Crops  (sum amounts in column for Item 8):",null,null,null,null,null,null,null,null,null,null,null,{"$f":"SUM(P10:P29)","v":0},null,0]
[null,"1.  Producer’s Name:",null,{"$f":"J3","v":""},null,null,null,"2.  Application Number:"]
[]
[null,"EXPECTED VALUE FROM ELIGIBLE STORED CROPS"]
[null,"Enter the expected value of all eligible crops harvested and placed in storage prior to calendar year 2022, that could have been affected by a qualifying 2022 disaster event."]
[null,"10. Crop:",null,null,"11. Total Production (in Units):",null,null,null,"12. Expected Price per Unit:",null,null,null,"13. Expected Value:"]
[null,{"$f":"IF(Adjustments!L7=\"\",\"\",Adjustments!L7)","v":""},null,null,{"$f":"IF(Adjustments!N7=\"\",\"\",Adjustments!N7)","v":""},null,null,null,{"$f":"IF(Adjustments!O7=\"\",\"\",Adjustments!O7)","v":""},null,null,null,{"$f":"IF(B36=\"\",\"\",IF(OR(E36=\"\",I36=\"\"),0,ROUND(E36*I36,2)))","v":""},null,null,{"$f":"IF(M36=\"\",0,M36)","v":0}]
[null,{"$f":"IF(Adjustments!L8=\"\",\"\",Adjustments!L8)","v":""},null,null,{"$f":"IF(Adjustments!N8=\"\",\"\",Adjustments!N8)","v":""},null,null,null,{"$f":"IF(Adjustments!O8=\"\",\"\",Adjustments!O8)","v":""},null,null,null,{"$f":"IF(B37=\"\",\"\",IF(OR(E37=\"\",I37=\"\"),0,ROUND(E37*I37,2)))","v":""},null,null,{"$f":"IF(M37=\"\",0,M37)","v":0}]
[null,{"$f":"IF(Adjustments!L9=\"\",\"\",Adjustments!L9)","v":""},null,null,{"$f":"IF(Adjustments!N9=\"\",\"\",Adjustments!N9)","v":""},null,null,null,{"$f":"IF(Adjustments!O9=\"\",\"\",Adjustments!O9)","v":""},null,null,null,"",null,null,0]
[null,{"$f":"IF(Adjustments!L10=\"\",\"\",Adjustments!L10)","v":""},null,null,{"$f":"IF(Adjustments!N10=\"\",\"\",Adjustments!N10)","v":""},null,null,null,{"$f":"IF(Adjustments!O10=\"\",\"\",Adjustments!O10)","v":""},null,null,null,"",null,null,0]
[null,{"$f":"IF(AND(NOT(B39=\"\"),NOT(Adjustments!L10=\"\")),\"See FSA-524-B Continuation\",\"\")","v":""},null,null,null,null,null,null,null,null,null,null,{"$f":"IF(B40=\"\",\"\",SUM(Adjustments!P6))","v":""},null,null,0]
[null,"14. Total Expected Value from Eligible Stored Crops (sum amounts in column for Item 13):",null,null,null,null,null,null,null,null,null,null,{"$f":"SUM(P36:P40)","v":0},null,null,0]
[null,"EXPECTED VALUE FROM ELIGIBLE INVENTORY CROPS"]
[null,"Enter the expected value of all eligible inventory crops that could have been affected by a qualifying 2022 disaster event."]
[null,"15. Crop:",null,null,null,null,null,null,null,null,null,null,"16. Expected Value:"]
[null,{"$f":"IF(Adjustments!J7=\"\",\"\",Adjustments!J7)","v":""},null,null,null,null,null,null,null,null,null,null,{"$f":"IF(Adjustments!K7=\"\",\"\",Adjustments!K7)","v":""},null,null,0]
[null,{"$f":"IF(Adjustments!J8=\"\",\"\",Adjustments!J8)","v":""},null,null,null,null,null,null,null,null,null,null,{"$f":"IF(Adjustments!K8=\"\",\"\",Adjustments!K8)","v":""},null,null,0]
[null,{"$f":"IF(Adjustments!J9=\"\",\"\",Adjustments!J9)","v":""},null,null,null,null,null,null,null,null,null,null,{"$f":"IF(Adjustments!K9=\"\",\"\",Adjustments!K9)","v":""},null,null,0]
[null,{"$f":"IF(AND(NOT(Adjustments!K10=\"\")),\"See FSA-522B Continuation\",\"\")","v":""},null,null,null,null,null,null,null,null,null,null,{"$f":"IF(B48=\"\",\"\",SUM(Adjustments!K6))","v":""},null,null,0]
[null,"17. Total Expected Value from Eligible Inventory Crops (sum amounts in column for Item 16):",null,null,null,null,null,null,null,null,null,null,{"$f":"SUM(P45:P48)","v":0},null,null,0]
[null,"TOTAL EXPECTED BENCHMARK REVENUE"]
[null,"18. Total Expected Benchmark Revenue (sum Items 9, 14 and 17; Enter as amount for Benchmark Year Revenue in Item 11 on Form FSA-524):",null,null,null,null,null,null,null,null,null,null,{"$f":"P49+P41+P30","v":0},null,null,0]
[]
[null,"SECTION B – ACTUAL DISASTER YEAR REVENUE"]
[null,"Enter eligible revenue items based on the crops that were included in the expected revenue."]
[null,19,"Enter amount of total revenue from sales of eligible crops grown in the United States by the applicant:",null,null,null,null,null,null,null,null,null,null,null,{"$f":"IF(Data_Entry!$E$29=\"Actual Revenue\",Data_Entry!H39,\"\")","v":""},{"$f":"IF(O55=\"\",0,O55)","v":0}]
[null,20,"Enter amount of total value for eligible crops grown in the United States by the applicant, that were not sold:",null,null,null,null,null,null,null,null,null,null,null,{"$f":"IF(Data_Entry!$E$29=\"Actual Revenue\",Data_Entry!H40,\"\")","v":""},{"$f":"IF(O56=\"\",0,O56)","v":0}]
[null,21,"Enter amount of total value for eligible crops  grown in the United States by the applicant that are in storage:",null,null,null,null,null,null,null,null,null,null,null,{"$f":"IF(Data_Entry!$E$29=\"Actual Revenue\",Data_Entry!H41,\"\")","v":""},0]
[null,22,"Enter amount of total value for eligible crops that remain in inventory and are not sold during the disaster year:",null,null,null,null,null,null,null,null,null,null,null,{"$f":"IF(Data_Entry!$E$29=\"Actual Revenue\",Data_Entry!H42,\"\")","v":""},0]
[null,23,"Enter amount of total revenue from federal insurance proceeds for eligible crops less administrative fees and premiums:",null,null,null,null,null,null,null,null,null,null,null,{"$f":"IF(Data_Entry!$E$29=\"Actual Revenue\",Data_Entry!H43,\"\")","v":""},0]
[null,24,"Enter amount of total revenue from NAP payments for eligible crops less service fees and premiums:",null,null,null,null,null,null,null,null,null,null,null,{"$f":"IF(Data_Entry!$E$29=\"Actual Revenue\",Data_Entry!H44,\"\")","v":""},0]
[null,25,"Enter amount of total revenue from private insurance proceeds for eligible crops:",null,null,null,null,null,null,null,null,null,null,null,{"$f":"IF(Data_Entry!$E$29=\"Actual Revenue\",Data_Entry!H45,\"\")","v":""},0]
[null,26,"Enter amount of total revenue from benefits for eligible crops for the following: ELAP payments specific to aquaculture, ARC-CO payments, ARC-IC\npayments, LDP, MLG, net gains from hedging, payments through grant agreements with FSA, grants from the Department of Commerce, grants from NOAA, and State programs for the direct loss of eligible crops or the loss of revenue for eligible crops:",null,null,null,null,null,null,null,null,null,null,null,{"$f":"IF(Data_Entry!$E$29=\"Actual Revenue\",Data_Entry!H46,\"\")","v":""},0]
[null,27,"Total Actual Disaster Year Revenue (sum Items 19 through 26; Enter as amount for Disaster Year Revenue in Item 13 on Form FSA-524):",null,null,null,null,null,null,null,null,null,null,null,{"$f":"SUM(P55:P62)","v":0},{"$f":"IF(O63=\"\",0,O63)","v":0}]
[null,"FSA-524-B Continuation",null,"U.S. DEPARTMENT OF AGRICULTURE",null,null,null,null,null,"1.   Producer’s Name (Person or Legal Entity):"]
[null,null,null,"Farm Service Agency",null,null,null,null,null,{"$f":"J3","v":""}]
[null,null,null,"EMERGENCY RELIEF PROGRAM (ERP) 2022 TRACK 2 TAX YEAR REVENUE WORKSHEET",null,null,null,null,null,"2.   Application Number:"]
[]
[null,"SECTION A – EXPECTED BENCHMARK REVENUE"]
[null,"EXPECTED REVENUE OR VALUE FROM ELIGIBLE YIELD-BASED CROPS"]
[null,"Enter the expected revenue or value of all eligible yield-based crops that could have been affected by a qualifying disaster event in calendar year 2022. This may include all eligible crops that were expected to be produced and sold, that were expected to be produced but not sold and used in farm’s ordinary operation, and that were expected to be produced and then stored"]
[null,"3.   Crop:",null,"4.   Expected Acres:",null,"5.   Expected Yield/Acre:",null,null,null,"6.   Unit of Measure:",null,"7.   Expected Price/Unit:",null,"8.   Expected Revenue or Value:"]
[null,{"$f":"IF(Adjustments!A26=\"\",\"\",Adjustments!A26)","v":""},null,{"$f":"IF(Adjustments!C26=\"\",\"\",Adjustments!C26)","v":""},null,{"$f":"IF(Adjustments!D26=\"\",\"\",Adjustments!D26)","v":""},null,null,null,{"$f":"IF(Adjustments!E26=\"\",\"\",Adjustments!E26)","v":""},null,{"$f":"IF(Adjustments!F26=\"\",\"\",Adjustments!F26)","v":""},null,{"$f":"IF(B72=\"\",\"\",IF(OR(D72=\"\",F72=\"\",L72=\"\"),0,ROUND(D72*F72*L72,2)))","v":""},null,{"$f":"IF(N72=\"\",0,N72)","v":0},{"$f":"IF(N72=\"\",0,4)","v":0}]
[null,{"$f":"IF(Adjustments!A27=\"\",\"\",Adjustments!A27)","v":""},null,{"$f":"IF(Adjustments!C27=\"\",\"\",Adjustments!C27)","v":""},null,{"$f":"IF(Adjustments!D27=\"\",\"\",Adjustments!D27)","v":""},null,null,null,{"$f":"IF(Adjustments!E27=\"\",\"\",Adjustments!E27)","v":""},null,{"$f":"IF(Adjustments!F27=\"\",\"\",Adjustments!F27)","v":""},null,{"$f":"IF(B73=\"\",\"\",IF(OR(D73=\"\",F73=\"\",L73=\"\"),0,ROUND(D73*F73*L73,2)))","v":""},null,{"$f":"IF(N73=\"\",0,N73)","v":0},{"$f":"IF(N73=\"\",0,4)","v":0}]
[null,{"$f":"IF(Adjustments!A28=\"\",\"\",Adjustments!A28)","v":""},null,{"$f":"IF(Adjustments!C28=\"\",\"\",Adjustments!C28)","v":""},null,{"$f":"IF(Adjustments!D28=\"\",\"\",Adjustments!D28)","v":""},null,null,null,{"$f":"IF(Adjustments!E28=\"\",\"\",Adjustments!E28)","v":""},null,{"$f":"IF(Adjustments!F28=\"\",\"\",Adjustments!F28)","v":""},null,"",null,0,0]
[null,{"$f":"IF(Adjustments!A29=\"\",\"\",Adjustments!A29)","v":""},null,{"$f":"IF(Adjustments!C29=\"\",\"\",Adjustments!C29)","v":""},null,{"$f":"IF(Adjustments!D29=\"\",\"\",Adjustments!D29)","v":""},null,null,null,{"$f":"IF(Adjustments!E29=\"\",\"\",Adjustments!E29)","v":""},null,{"$f":"IF(Adjustments!F29=\"\",\"\",Adjustments!F29)","v":""},null,"",null,0,0]
[null,{"$f":"IF(Adjustments!A30=\"\",\"\",Adjustments!A30)","v":""},null,{"$f":"IF(Adjustments!C30=\"\",\"\",Adjustments!C30)","v":""},null,{"$f":"IF(Adjustments!D30=\"\",\"\",Adjustments!D30)","v":""},null,null,null,{"$f":"IF(Adjustments!E30=\"\",\"\",Adjustments!E30)","v":""},null,{"$f":"IF(Adjustments!F30=\"\",\"\",Adjustments!F30)","v":""},null,"",null,0,0]
[null,{"$f":"IF(Adjustments!A31=\"\",\"\",Adjustments!A31)","v":""},null,{"$f":"IF(Adjustments!C31=\"\",\"\",Adjustments!C31)","v":""},null,{"$f":"IF(Adjustments!D31=\"\",\"\",Adjustments!D31)","v":""},null,null,null,{"$f":"IF(Adjustments!E31=\"\",\"\",Adjustments!E31)","v":""},null,{"$f":"IF(Adjustments!F31=\"\",\"\",Adjustments!F31)","v":""},null,"",null,0,0]
[null,{"$f":"IF(Adjustments!A32=\"\",\"\",Adjustments!A32)","v":""},null,{"$f":"IF(Adjustments!C32=\"\",\"\",Adjustments!C32)","v":""},null,{"$f":"IF(Adjustments!D32=\"\",\"\",Adjustments!D32)","v":""},null,null,null,{"$f":"IF(Adjustments!E32=\"\",\"\",Adjustments!E32)","v":""},null,{"$f":"IF(Adjustments!F32=\"\",\"\",Adjustments!F32)","v":""},null,"",null,0,0]
[null,{"$f":"IF(Adjustments!A33=\"\",\"\",Adjustments!A33)","v":""},null,{"$f":"IF(Adjustments!C33=\"\",\"\",Adjustments!C33)","v":""},null,{"$f":"IF(Adjustments!D33=\"\",\"\",Adjustments!D33)","v":""},null,null,null,{"$f":"IF(Adjustments!E33=\"\",\"\",Adjustments!E33)","v":""},null,{"$f":"IF(Adjustments!F33=\"\",\"\",Adjustments!F33)","v":""},null,"",null,0,0]
[null,{"$f":"IF(Adjustments!A34=\"\",\"\",Adjustments!A34)","v":""},null,{"$f":"IF(Adjustments!C34=\"\",\"\",Adjustments!C34)","v":""},null,{"$f":"IF(Adjustments!D34=\"\",\"\",Adjustments!D34)","v":""},null,null,null,{"$f":"IF(Adjustments!E34=\"\",\"\",Adjustments!E34)","v":""},null,{"$f":"IF(Adjustments!F34=\"\",\"\",Adjustments!F34)","v":""},null,"",null,0,0]
[null,{"$f":"IF(Adjustments!A35=\"\",\"\",Adjustments!A35)","v":""},null,{"$f":"IF(Adjustments!C35=\"\",\"\",Adjustments!C35)","v":""},null,{"$f":"IF(Adjustments!D35=\"\",\"\",Adjustments!D35)","v":""},null,null,null,{"$f":"IF(Adjustments!E35=\"\",\"\",Adjustments!E35)","v":""},null,{"$f":"IF(Adjustments!F35=\"\",\"\",Adjustments!F35)","v":""},null,"",null,0,0]
[null,{"$f":"IF(Adjustments!A36=\"\",\"\",Adjustments!A36)","v":""},null,{"$f":"IF(Adjustments!C36=\"\",\"\",Adjustments!C36)","v":""},null,{"$f":"IF(Adjustments!D36=\"\",\"\",Adjustments!D36)","v":""},null,null,null,{"$f":"IF(Adjustments!E36=\"\",\"\",Adjustments!E36)","v":""},null,{"$f":"IF(Adjustments!F36=\"\",\"\",Adjustments!F36)","v":""},null,"",null,0,0]
[null,{"$f":"IF(Adjustments!A37=\"\",\"\",Adjustments!A37)","v":""},null,{"$f":"IF(Adjustments!C37=\"\",\"\",Adjustments!C37)","v":""},null,{"$f":"IF(Adjustments!D37=\"\",\"\",Adjustments!D37)","v":""},null,null,null,{"$f":"IF(Adjustments!E37=\"\",\"\",Adjustments!E37)","v":""},null,{"$f":"IF(Adjustments!F37=\"\",\"\",Adjustments!F37)","v":""},null,"",null,0,0]
[null,{"$f":"IF(Adjustments!A38=\"\",\"\",Adjustments!A38)","v":""},null,{"$f":"IF(Adjustments!C38=\"\",\"\",Adjustments!C38)","v":""},null,{"$f":"IF(Adjustments!D38=\"\",\"\",Adjustments!D38)","v":""},null,null,null,{"$f":"IF(Adjustments!E38=\"\",\"\",Adjustments!E38)","v":""},null,{"$f":"IF(Adjustments!F38=\"\",\"\",Adjustments!F38)","v":""},null,"",null,0,0]
[null,{"$f":"IF(Adjustments!A39=\"\",\"\",Adjustments!A39)","v":""},null,{"$f":"IF(Adjustments!C39=\"\",\"\",Adjustments!C39)","v":""},null,{"$f":"IF(Adjustments!D39=\"\",\"\",Adjustments!D39)","v":""},null,null,null,{"$f":"IF(Adjustments!E39=\"\",\"\",Adjustments!E39)","v":""},null,{"$f":"IF(Adjustments!F39=\"\",\"\",Adjustments!F39)","v":""},null,"",null,0,0]
[null,{"$f":"IF(Adjustments!A40=\"\",\"\",Adjustments!A40)","v":""},null,{"$f":"IF(Adjustments!C40=\"\",\"\",Adjustments!C40)","v":""},null,{"$f":"IF(Adjustments!D40=\"\",\"\",Adjustments!D40)","v":""},null,null,null,{"$f":"IF(Adjustments!E40=\"\",\"\",Adjustments!E40)","v":""},null,{"$f":"IF(Adjustments!F40=\"\",\"\",Adjustments!F40)","v":""},null,"",null,0,0]
[null,{"$f":"IF(Adjustments!A41=\"\",\"\",Adjustments!A41)","v":""},null,{"$f":"IF(Adjustments!C41=\"\",\"\",Adjustments!C41)","v":""},null,{"$f":"IF(Adjustments!D41=\"\",\"\",Adjustments!D41)","v":""},null,null,null,{"$f":"IF(Adjustments!E41=\"\",\"\",Adjustments!E41)","v":""},null,{"$f":"IF(Adjustments!F41=\"\",\"\",Adjustments!F41)","v":""},null,"",null,0,0]
[null,{"$f":"IF(Adjustments!A42=\"\",\"\",Adjustments!A42)","v":""},null,{"$f":"IF(Adjustments!C42=\"\",\"\",Adjustments!C42)","v":""},null,{"$f":"IF(Adjustments!D42=\"\",\"\",Adjustments!D42)","v":""},null,null,null,{"$f":"IF(Adjustments!E42=\"\",\"\",Adjustments!E42)","v":""},null,{"$f":"IF(Adjustments!F42=\"\",\"\",Adjustments!F42)","v":""},null,"",null,0,0]
[null,{"$f":"IF(Adjustments!A43=\"\",\"\",Adjustments!A43)","v":""},null,{"$f":"IF(Adjustments!C43=\"\",\"\",Adjustments!C43)","v":""},null,{"$f":"IF(Adjustments!D43=\"\",\"\",Adjustments!D43)","v":""},null,null,null,{"$f":"IF(Adjustments!E43=\"\",\"\",Adjustments!E43)","v":""},null,{"$f":"IF(Adjustments!F43=\"\",\"\",Adjustments!F43)","v":""},null,"",null,0,0]
[null,{"$f":"IF(Adjustments!A44=\"\",\"\",Adjustments!A44)","v":""},null,{"$f":"IF(Adjustments!C44=\"\",\"\",Adjustments!C44)","v":""},null,{"$f":"IF(Adjustments!D44=\"\",\"\",Adjustments!D44)","v":""},null,null,null,{"$f":"IF(Adjustments!E44=\"\",\"\",Adjustments!E44)","v":""},null,{"$f":"IF(Adjustments!F44=\"\",\"\",Adjustments!F44)","v":""},null,"",null,0,0]
[null,{"$f":"IF(Adjustments!A45=\"\",\"\",Adjustments!A45)","v":""},null,{"$f":"IF(Adjustments!C45=\"\",\"\",Adjustments!C45)","v":""},null,{"$f":"IF(Adjustments!D45=\"\",\"\",Adjustments!D45)","v":""},null,null,null,{"$f":"IF(Adjustments!E45=\"\",\"\",Adjustments!E45)","v":""},null,{"$f":"IF(Adjustments!F45=\"\",\"\",Adjustments!F45)","v":""},null,"",null,0,0]
[null,{"$f":"IF(Adjustments!A46=\"\",\"\",Adjustments!A46)","v":""},null,{"$f":"IF(Adjustments!C46=\"\",\"\",Adjustments!C46)","v":""},null,{"$f":"IF(Adjustments!D46=\"\",\"\",Adjustments!D46)","v":""},null,null,null,{"$f":"IF(Adjustments!E46=\"\",\"\",Adjustments!E46)","v":""},null,{"$f":"IF(Adjustments!F46=\"\",\"\",Adjustments!F46)","v":""},null,"",null,0,0]
[null,{"$f":"IF(Adjustments!A47=\"\",\"\",Adjustments!A47)","v":""},null,{"$f":"IF(Adjustments!C47=\"\",\"\",Adjustments!C47)","v":""},null,{"$f":"IF(Adjustments!D47=\"\",\"\",Adjustments!D47)","v":""},null,null,null,{"$f":"IF(Adjustments!E47=\"\",\"\",Adjustments!E47)","v":""},null,{"$f":"IF(Adjustments!F47=\"\",\"\",Adjustments!F47)","v":""},null,"",null,0,0]
[null,{"$f":"IF(Adjustments!A48=\"\",\"\",Adjustments!A48)","v":""},null,{"$f":"IF(Adjustments!C48=\"\",\"\",Adjustments!C48)","v":""},null,{"$f":"IF(Adjustments!D48=\"\",\"\",Adjustments!D48)","v":""},null,null,null,{"$f":"IF(Adjustments!E48=\"\",\"\",Adjustments!E48)","v":""},null,{"$f":"IF(Adjustments!F48=\"\",\"\",Adjustments!F48)","v":""},null,"",null,0,0]
[null,{"$f":"IF(Adjustments!A49=\"\",\"\",Adjustments!A49)","v":""},null,{"$f":"IF(Adjustments!C49=\"\",\"\",Adjustments!C49)","v":""},null,{"$f":"IF(Adjustments!D49=\"\",\"\",Adjustments!D49)","v":""},null,null,null,{"$f":"IF(Adjustments!E49=\"\",\"\",Adjustments!E49)","v":""},null,{"$f":"IF(Adjustments!F49=\"\",\"\",Adjustments!F49)","v":""},null,"",null,0,0]
[null,{"$f":"IF(Adjustments!A50=\"\",\"\",Adjustments!A50)","v":""},null,{"$f":"IF(Adjustments!C50=\"\",\"\",Adjustments!C50)","v":""},null,{"$f":"IF(Adjustments!D50=\"\",\"\",Adjustments!D50)","v":""},null,null,null,{"$f":"IF(Adjustments!E50=\"\",\"\",Adjustments!E50)","v":""},null,{"$f":"IF(Adjustments!F50=\"\",\"\",Adjustments!F50)","v":""},null,"",null,0,0]
[null,{"$f":"IF(Adjustments!A51=\"\",\"\",Adjustments!A51)","v":""},null,{"$f":"IF(Adjustments!C51=\"\",\"\",Adjustments!C51)","v":""},null,{"$f":"IF(Adjustments!D51=\"\",\"\",Adjustments!D51)","v":""},null,null,null,{"$f":"IF(Adjustments!E51=\"\",\"\",Adjustments!E51)","v":""},null,{"$f":"IF(Adjustments!F51=\"\",\"\",Adjustments!F51)","v":""},null,"",null,0,0]
[null,{"$f":"IF(Adjustments!A52=\"\",\"\",Adjustments!A52)","v":""},null,{"$f":"IF(Adjustments!C52=\"\",\"\",Adjustments!C52)","v":""},null,{"$f":"IF(Adjustments!D52=\"\",\"\",Adjustments!D52)","v":""},null,null,null,{"$f":"IF(Adjustments!E52=\"\",\"\",Adjustments!E52)","v":""},null,{"$f":"IF(Adjustments!F52=\"\",\"\",Adjustments!F52)","v":""},null,"",null,0,0]
[null,{"$f":"IF(Adjustments!A53=\"\",\"\",Adjustments!A53)","v":""},null,{"$f":"IF(Adjustments!C53=\"\",\"\",Adjustments!C53)","v":""},null,{"$f":"IF(Adjustments!D53=\"\",\"\",Adjustments!D53)","v":""},null,null,null,{"$f":"IF(Adjustments!E53=\"\",\"\",Adjustments!E53)","v":""},null,{"$f":"IF(Adjustments!F53=\"\",\"\",Adjustments!F53)","v":""},null,"",null,0,0]
[null,"9.   Total Expected Revenue and Value from Eligible Yield-Based Crops  (sum amounts in column for Item 8):",null,null,null,null,null,null,null,null,null,null,null,{"$f":"SUM(P72:P99)","v":0},null,0]
[null,"1.  Producer’s Name:",null,{"$f":"J65","v":""},null,null,null,"2.  Application Number:"]
[]
[null,"EXPECTED VALUE FROM ELIGIBLE STORED CROPS"]
[null,"Enter the expected value of all eligible crops harvested and placed in storage prior to calendar year 2022, that could have been affected by a qualifying 2022 disaster event."]
[null,"10. Crop:",null,null,"11. Total Production (in Units):",null,null,null,"12. Expected Price per Unit:",null,null,null,"13. Expected Value:"]
[null,{"$f":"IF(Adjustments!L11=\"\",\"\",Adjustments!L11)","v":""},null,null,{"$f":"IF(Adjustments!N11=\"\",\"\",Adjustments!N11)","v":""},null,null,null,{"$f":"IF(Adjustments!O11=\"\",\"\",Adjustments!O11)","v":""},null,null,null,{"$f":"IF(B106=\"\",\"\",IF(OR(E106=\"\",I106=\"\"),0,ROUND(E106*I106,2)))","v":""},null,null,{"$f":"IF(M106=\"\",0,M106)","v":0},{"$f":"IF(M106=\"\",0,4)","v":0}]
[null,{"$f":"IF(Adjustments!L12=\"\",\"\",Adjustments!L12)","v":""},null,null,{"$f":"IF(Adjustments!N12=\"\",\"\",Adjustments!N12)","v":""},null,null,null,{"$f":"IF(Adjustments!O12=\"\",\"\",Adjustments!O12)","v":""},null,null,null,{"$f":"IF(B107=\"\",\"\",IF(OR(E107=\"\",I107=\"\"),0,ROUND(E107*I107,2)))","v":""},null,null,{"$f":"IF(M107=\"\",0,M107)","v":0},0]
[null,{"$f":"IF(Adjustments!L13=\"\",\"\",Adjustments!L13)","v":""},null,null,{"$f":"IF(Adjustments!N13=\"\",\"\",Adjustments!N13)","v":""},null,null,null,{"$f":"IF(Adjustments!O13=\"\",\"\",Adjustments!O13)","v":""},null,null,null,"",null,null,0,0]
[null,{"$f":"IF(Adjustments!L14=\"\",\"\",Adjustments!L14)","v":""},null,null,{"$f":"IF(Adjustments!N14=\"\",\"\",Adjustments!N14)","v":""},null,null,null,{"$f":"IF(Adjustments!O14=\"\",\"\",Adjustments!O14)","v":""},null,null,null,"",null,null,0,0]
[null,{"$f":"IF(Adjustments!L15=\"\",\"\",Adjustments!L15)","v":""},null,null,{"$f":"IF(Adjustments!N15=\"\",\"\",Adjustments!N15)","v":""},null,null,null,{"$f":"IF(Adjustments!O15=\"\",\"\",Adjustments!O15)","v":""},null,null,null,"",null,null,0,0]
[null,{"$f":"IF(Adjustments!L16=\"\",\"\",Adjustments!L16)","v":""},null,null,{"$f":"IF(Adjustments!N16=\"\",\"\",Adjustments!N16)","v":""},null,null,null,{"$f":"IF(Adjustments!O16=\"\",\"\",Adjustments!O16)","v":""},null,null,null,"",null,null,0,0]
[null,{"$f":"IF(Adjustments!L17=\"\",\"\",Adjustments!L17)","v":""},null,null,{"$f":"IF(Adjustments!N17=\"\",\"\",Adjustments!N17)","v":""},null,null,null,{"$f":"IF(Adjustments!O17=\"\",\"\",Adjustments!O17)","v":""},null,null,null,"",null,null,0,0]
[null,{"$f":"IF(Adjustments!L18=\"\",\"\",Adjustments!L18)","v":""},null,null,{"$f":"IF(Adjustments!N18=\"\",\"\",Adjustments!N18)","v":""},null,null,null,{"$f":"IF(Adjustments!O18=\"\",\"\",Adjustments!O18)","v":""},null,null,null,"",null,null,0,0]
[null,{"$f":"IF(Adjustments!L19=\"\",\"\",Adjustments!L19)","v":""},null,null,{"$f":"IF(Adjustments!N19=\"\",\"\",Adjustments!N19)","v":""},null,null,null,{"$f":"IF(Adjustments!O19=\"\",\"\",Adjustments!O19)","v":""},null,null,null,"",null,null,0,0]
[null,{"$f":"IF(Adjustments!L20=\"\",\"\",Adjustments!L20)","v":""},null,null,{"$f":"IF(Adjustments!N20=\"\",\"\",Adjustments!N20)","v":""},null,null,null,{"$f":"IF(Adjustments!O20=\"\",\"\",Adjustments!O20)","v":""},null,null,null,"",null,null,0,0]
[null,{"$f":"IF(Adjustments!L21=\"\",\"\",Adjustments!L21)","v":""},null,null,{"$f":"IF(Adjustments!N21=\"\",\"\",Adjustments!N21)","v":""},null,null,null,{"$f":"IF(Adjustments!O21=\"\",\"\",Adjustments!O21)","v":""},null,null,null,"",null,null,0,0]
[null,{"$f":"IF(Adjustments!L22=\"\",\"\",Adjustments!L22)","v":""},null,null,{"$f":"IF(Adjustments!N22=\"\",\"\",Adjustments!N22)","v":""},null,null,null,{"$f":"IF(Adjustments!O22=\"\",\"\",Adjustments!O22)","v":""},null,null,null,"",null,null,0,0]
[null,{"$f":"IF(Adjustments!L23=\"\",\"\",Adjustments!L23)","v":""},null,null,{"$f":"IF(Adjustments!N23=\"\",\"\",Adjustments!N23)","v":""},null,null,null,{"$f":"IF(Adjustments!O23=\"\",\"\",Adjustments!O23)","v":""},null,null,null,"",null,null,0,{"$f":"IF(M118=\"\",0,4)","v":0}]
[null,"14. Total Expected Value from Eligible Stored Crops (sum amounts in column for Item 13):",null,null,null,null,null,null,null,null,null,null,{"$f":"SUM(P106:P118)","v":0},null,null,0]
[null,"EXPECTED VALUE FROM ELIGIBLE INVENTORY CROPS",null,null,null,null,null,null,null,null,null,null,null,null,null,0]
[null,"Enter the expected value of all eligible inventory crops that could have been affected by a qualifying 2022 disaster event.",null,null,null,null,null,null,null,null,null,null,null,null,null,0]
[null,"15. Crop:",null,null,null,null,null,null,null,null,null,null,"16. Expected Value:",null,null,0]
[null,{"$f":"IF(Adjustments!J10=\"\",\"\",Adjustments!J10)","v":""},null,null,null,null,null,null,null,null,null,null,{"$f":"IF(Adjustments!K10=\"\",\"\",Adjustments!K10)","v":""},null,null,{"$f":"IF(M123=\"\",0,M123)","v":0},{"$f":"IF(M123=\"\",0,4)","v":0}]
[null,{"$f":"IF(Adjustments!J11=\"\",\"\",Adjustments!J11)","v":""},null,null,null,null,null,null,null,null,null,null,{"$f":"IF(Adjustments!K11=\"\",\"\",Adjustments!K11)","v":""},null,null,{"$f":"IF(M124=\"\",0,M124)","v":0},0]
[null,{"$f":"IF(Adjustments!J12=\"\",\"\",Adjustments!J12)","v":""},null,null,null,null,null,null,null,null,null,null,{"$f":"IF(Adjustments!K12=\"\",\"\",Adjustments!K12)","v":""},null,null,0,0]
[null,{"$f":"IF(Adjustments!J13=\"\",\"\",Adjustments!J13)","v":""},null,null,null,null,null,null,null,null,null,null,{"$f":"IF(Adjustments!K13=\"\",\"\",Adjustments!K13)","v":""},null,null,0,0]
[null,{"$f":"IF(Adjustments!J14=\"\",\"\",Adjustments!J14)","v":""},null,null,null,null,null,null,null,null,null,null,{"$f":"IF(Adjustments!K14=\"\",\"\",Adjustments!K14)","v":""},null,null,0,0]
[null,{"$f":"IF(Adjustments!J15=\"\",\"\",Adjustments!J15)","v":""},null,null,null,null,null,null,null,null,null,null,{"$f":"IF(Adjustments!K15=\"\",\"\",Adjustments!K15)","v":""},null,null,0,0]
[null,{"$f":"IF(Adjustments!J16=\"\",\"\",Adjustments!J16)","v":""},null,null,null,null,null,null,null,null,null,null,{"$f":"IF(Adjustments!K16=\"\",\"\",Adjustments!K16)","v":""},null,null,0,0]
[null,{"$f":"IF(Adjustments!J17=\"\",\"\",Adjustments!J17)","v":""},null,null,null,null,null,null,null,null,null,null,{"$f":"IF(Adjustments!K17=\"\",\"\",Adjustments!K17)","v":""},null,null,0,0]
[null,{"$f":"IF(Adjustments!J18=\"\",\"\",Adjustments!J18)","v":""},null,null,null,null,null,null,null,null,null,null,{"$f":"IF(Adjustments!K18=\"\",\"\",Adjustments!K18)","v":""},null,null,0,0]
[null,{"$f":"IF(Adjustments!J19=\"\",\"\",Adjustments!J19)","v":""},null,null,null,null,null,null,null,null,null,null,{"$f":"IF(Adjustments!K19=\"\",\"\",Adjustments!K19)","v":""},null,null,0,0]
[null,{"$f":"IF(Adjustments!J20=\"\",\"\",Adjustments!J20)","v":""},null,null,null,null,null,null,null,null,null,null,{"$f":"IF(Adjustments!K20=\"\",\"\",Adjustments!K20)","v":""},null,null,0,0]
[null,{"$f":"IF(Adjustments!J21=\"\",\"\",Adjustments!J21)","v":""},null,null,null,null,null,null,null,null,null,null,{"$f":"IF(Adjustments!K21=\"\",\"\",Adjustments!K21)","v":""},null,null,0,{"$f":"IF(M134=\"\",0,4)","v":0}]
[null,"17. Total Expected Value from Eligible Inventory Crops (sum amounts in column for Item 16):",null,null,null,null,null,null,null,null,null,null,{"$f":"SUM(P123:P134)","v":0},null,null,0]
[null,"FSA-524-B Continuation",null,"U.S. DEPARTMENT OF AGRICULTURE",null,null,null,null,null,"1.   Producer’s Name (Person or Legal Entity):"]
[null,null,null,"Farm Service Agency",null,null,null,null,null,{"$f":"J3","v":""}]
[null,null,null,"EMERGENCY RELIEF PROGRAM (ERP) 2022 TRACK 2 TAX YEAR REVENUE WORKSHEET",null,null,null,null,null,"2.   Application Number:"]
[]
[null,"SECTION A – EXPECTED BENCHMARK REVENUE"]
[null,"EXPECTED REVENUE OR VALUE FROM ELIGIBLE YIELD-BASED CROPS"]
[null,"Enter the expected revenue or value of all eligible yield-based crops that could have been affected by a qualifying disaster event in calendar year 2022. This may include all eligible crops that were expected to be produced and sold, that were expected to be produced but not sold and used in farm’s ordinary operation, and that were expected to be produced and then stored"]
[null,"3.   Crop:",null,"4.   Expected Acres:",null,"5.   Expected Yield/Acre:",null,null,null,"6.   Unit of Measure:",null,"7.   Expected Price/Unit:",null,"8.   Expected Revenue or Value:"]
[null,{"$f":"IF(Adjustments!A54=\"\",\"\",Adjustments!A54)","v":""},null,{"$f":"IF(Adjustments!C54=\"\",\"\",Adjustments!C54)","v":""},null,{"$f":"IF(Adjustments!D54=\"\",\"\",Adjustments!D54)","v":""},null,null,null,{"$f":"IF(Adjustments!E54=\"\",\"\",Adjustments!E54)","v":""},null,{"$f":"IF(Adjustments!F54=\"\",\"\",Adjustments!F54)","v":""},null,{"$f":"IF(B144=\"\",\"\",IF(OR(D144=\"\",F144=\"\",L144=\"\"),0,ROUND(D144*F144*L144,2)))","v":""},null,{"$f":"IF(N144=\"\",0,N144)","v":0},{"$f":"IF(N144=\"\",0,6)","v":0}]
[null,{"$f":"IF(Adjustments!A55=\"\",\"\",Adjustments!A55)","v":""},null,{"$f":"IF(Adjustments!C55=\"\",\"\",Adjustments!C55)","v":""},null,{"$f":"IF(Adjustments!D55=\"\",\"\",Adjustments!D55)","v":""},null,null,null,{"$f":"IF(Adjustments!E55=\"\",\"\",Adjustments!E55)","v":""},null,{"$f":"IF(Adjustments!F55=\"\",\"\",Adjustments!F55)","v":""},null,{"$f":"IF(B145=\"\",\"\",IF(OR(D145=\"\",F145=\"\",L145=\"\"),0,ROUND(D145*F145*L145,2)))","v":""},null,{"$f":"IF(N145=\"\",0,N145)","v":0},0]
[null,{"$f":"IF(Adjustments!A56=\"\",\"\",Adjustments!A56)","v":""},null,{"$f":"IF(Adjustments!C56=\"\",\"\",Adjustments!C56)","v":""},null,{"$f":"IF(Adjustments!D56=\"\",\"\",Adjustments!D56)","v":""},null,null,null,{"$f":"IF(Adjustments!E56=\"\",\"\",Adjustments!E56)","v":""},null,{"$f":"IF(Adjustments!F56=\"\",\"\",Adjustments!F56)","v":""},null,"",null,0,0]
[null,{"$f":"IF(Adjustments!A57=\"\",\"\",Adjustments!A57)","v":""},null,{"$f":"IF(Adjustments!C57=\"\",\"\",Adjustments!C57)","v":""},null,{"$f":"IF(Adjustments!D57=\"\",\"\",Adjustments!D57)","v":""},null,null,null,{"$f":"IF(Adjustments!E57=\"\",\"\",Adjustments!E57)","v":""},null,{"$f":"IF(Adjustments!F57=\"\",\"\",Adjustments!F57)","v":""},null,"",null,0,0]
[null,{"$f":"IF(Adjustments!A58=\"\",\"\",Adjustments!A58)","v":""},null,{"$f":"IF(Adjustments!C58=\"\",\"\",Adjustments!C58)","v":""},null,{"$f":"IF(Adjustments!D58=\"\",\"\",Adjustments!D58)","v":""},null,null,null,{"$f":"IF(Adjustments!E58=\"\",\"\",Adjustments!E58)","v":""},null,{"$f":"IF(Adjustments!F58=\"\",\"\",Adjustments!F58)","v":""},null,"",null,0,0]
[null,{"$f":"IF(Adjustments!A59=\"\",\"\",Adjustments!A59)","v":""},null,{"$f":"IF(Adjustments!C59=\"\",\"\",Adjustments!C59)","v":""},null,{"$f":"IF(Adjustments!D59=\"\",\"\",Adjustments!D59)","v":""},null,null,null,{"$f":"IF(Adjustments!E59=\"\",\"\",Adjustments!E59)","v":""},null,{"$f":"IF(Adjustments!F59=\"\",\"\",Adjustments!F59)","v":""},null,"",null,0,0]
[null,{"$f":"IF(Adjustments!A60=\"\",\"\",Adjustments!A60)","v":""},null,{"$f":"IF(Adjustments!C60=\"\",\"\",Adjustments!C60)","v":""},null,{"$f":"IF(Adjustments!D60=\"\",\"\",Adjustments!D60)","v":""},null,null,null,{"$f":"IF(Adjustments!E60=\"\",\"\",Adjustments!E60)","v":""},null,{"$f":"IF(Adjustments!F60=\"\",\"\",Adjustments!F60)","v":""},null,"",null,0,0]
[null,{"$f":"IF(Adjustments!A61=\"\",\"\",Adjustments!A61)","v":""},null,{"$f":"IF(Adjustments!C61=\"\",\"\",Adjustments!C61)","v":""},null,{"$f":"IF(Adjustments!D61=\"\",\"\",Adjustments!D61)","v":""},null,null,null,{"$f":"IF(Adjustments!E61=\"\",\"\",Adjustments!E61)","v":""},null,{"$f":"IF(Adjustments!F61=\"\",\"\",Adjustments!F61)","v":""},null,"",null,0,0]
[null,{"$f":"IF(Adjustments!A62=\"\",\"\",Adjustments!A62)","v":""},null,{"$f":"IF(Adjustments!C62=\"\",\"\",Adjustments!C62)","v":""},null,{"$f":"IF(Adjustments!D62=\"\",\"\",Adjustments!D62)","v":""},null,null,null,{"$f":"IF(Adjustments!E62=\"\",\"\",Adjustments!E62)","v":""},null,{"$f":"IF(Adjustments!F62=\"\",\"\",Adjustments!F62)","v":""},null,"",null,0,0]
[null,{"$f":"IF(Adjustments!A63=\"\",\"\",Adjustments!A63)","v":""},null,{"$f":"IF(Adjustments!C63=\"\",\"\",Adjustments!C63)","v":""},null,{"$f":"IF(Adjustments!D63=\"\",\"\",Adjustments!D63)","v":""},null,null,null,{"$f":"IF(Adjustments!E63=\"\",\"\",Adjustments!E63)","v":""},null,{"$f":"IF(Adjustments!F63=\"\",\"\",Adjustments!F63)","v":""},null,"",null,0,0]
[null,{"$f":"IF(Adjustments!A64=\"\",\"\",Adjustments!A64)","v":""},null,{"$f":"IF(Adjustments!C64=\"\",\"\",Adjustments!C64)","v":""},null,{"$f":"IF(Adjustments!D64=\"\",\"\",Adjustments!D64)","v":""},null,null,null,{"$f":"IF(Adjustments!E64=\"\",\"\",Adjustments!E64)","v":""},null,{"$f":"IF(Adjustments!F64=\"\",\"\",Adjustments!F64)","v":""},null,"",null,0,0]
[null,{"$f":"IF(Adjustments!A65=\"\",\"\",Adjustments!A65)","v":""},null,{"$f":"IF(Adjustments!C65=\"\",\"\",Adjustments!C65)","v":""},null,{"$f":"IF(Adjustments!D65=\"\",\"\",Adjustments!D65)","v":""},null,null,null,{"$f":"IF(Adjustments!E65=\"\",\"\",Adjustments!E65)","v":""},null,{"$f":"IF(Adjustments!F65=\"\",\"\",Adjustments!F65)","v":""},null,"",null,0,0]
[null,{"$f":"IF(Adjustments!A66=\"\",\"\",Adjustments!A66)","v":""},null,{"$f":"IF(Adjustments!C66=\"\",\"\",Adjustments!C66)","v":""},null,{"$f":"IF(Adjustments!D66=\"\",\"\",Adjustments!D66)","v":""},null,null,null,{"$f":"IF(Adjustments!E66=\"\",\"\",Adjustments!E66)","v":""},null,{"$f":"IF(Adjustments!F66=\"\",\"\",Adjustments!F66)","v":""},null,"",null,0,0]
[null,{"$f":"IF(Adjustments!A67=\"\",\"\",Adjustments!A67)","v":""},null,{"$f":"IF(Adjustments!C67=\"\",\"\",Adjustments!C67)","v":""},null,{"$f":"IF(Adjustments!D67=\"\",\"\",Adjustments!D67)","v":""},null,null,null,{"$f":"IF(Adjustments!E67=\"\",\"\",Adjustments!E67)","v":""},null,{"$f":"IF(Adjustments!F67=\"\",\"\",Adjustments!F67)","v":""},null,"",null,0,0]
[null,{"$f":"IF(Adjustments!A68=\"\",\"\",Adjustments!A68)","v":""},null,{"$f":"IF(Adjustments!C68=\"\",\"\",Adjustments!C68)","v":""},null,{"$f":"IF(Adjustments!D68=\"\",\"\",Adjustments!D68)","v":""},null,null,null,{"$f":"IF(Adjustments!E68=\"\",\"\",Adjustments!E68)","v":""},null,{"$f":"IF(Adjustments!F68=\"\",\"\",Adjustments!F68)","v":""},null,"",null,0,0]
[null,{"$f":"IF(Adjustments!A69=\"\",\"\",Adjustments!A69)","v":""},null,{"$f":"IF(Adjustments!C69=\"\",\"\",Adjustments!C69)","v":""},null,{"$f":"IF(Adjustments!D69=\"\",\"\",Adjustments!D69)","v":""},null,null,null,{"$f":"IF(Adjustments!E69=\"\",\"\",Adjustments!E69)","v":""},null,{"$f":"IF(Adjustments!F69=\"\",\"\",Adjustments!F69)","v":""},null,"",null,0,0]
[null,{"$f":"IF(Adjustments!A70=\"\",\"\",Adjustments!A70)","v":""},null,{"$f":"IF(Adjustments!C70=\"\",\"\",Adjustments!C70)","v":""},null,{"$f":"IF(Adjustments!D70=\"\",\"\",Adjustments!D70)","v":""},null,null,null,{"$f":"IF(Adjustments!E70=\"\",\"\",Adjustments!E70)","v":""},null,{"$f":"IF(Adjustments!F70=\"\",\"\",Adjustments!F70)","v":""},null,"",null,0,0]
[null,{"$f":"IF(Adjustments!A71=\"\",\"\",Adjustments!A71)","v":""},null,{"$f":"IF(Adjustments!C71=\"\",\"\",Adjustments!C71)","v":""},null,{"$f":"IF(Adjustments!D71=\"\",\"\",Adjustments!D71)","v":""},null,null,null,{"$f":"IF(Adjustments!E71=\"\",\"\",Adjustments!E71)","v":""},null,{"$f":"IF(Adjustments!F71=\"\",\"\",Adjustments!F71)","v":""},null,"",null,0,0]
[null,{"$f":"IF(Adjustments!A72=\"\",\"\",Adjustments!A72)","v":""},null,{"$f":"IF(Adjustments!C72=\"\",\"\",Adjustments!C72)","v":""},null,{"$f":"IF(Adjustments!D72=\"\",\"\",Adjustments!D72)","v":""},null,null,null,{"$f":"IF(Adjustments!E72=\"\",\"\",Adjustments!E72)","v":""},null,{"$f":"IF(Adjustments!F72=\"\",\"\",Adjustments!F72)","v":""},null,"",null,0,0]
[null,{"$f":"IF(Adjustments!A73=\"\",\"\",Adjustments!A73)","v":""},null,{"$f":"IF(Adjustments!C73=\"\",\"\",Adjustments!C73)","v":""},null,{"$f":"IF(Adjustments!D73=\"\",\"\",Adjustments!D73)","v":""},null,null,null,{"$f":"IF(Adjustments!E73=\"\",\"\",Adjustments!E73)","v":""},null,{"$f":"IF(Adjustments!F73=\"\",\"\",Adjustments!F73)","v":""},null,"",null,0,0]
[null,{"$f":"IF(Adjustments!A74=\"\",\"\",Adjustments!A74)","v":""},null,{"$f":"IF(Adjustments!C74=\"\",\"\",Adjustments!C74)","v":""},null,{"$f":"IF(Adjustments!D74=\"\",\"\",Adjustments!D74)","v":""},null,null,null,{"$f":"IF(Adjustments!E74=\"\",\"\",Adjustments!E74)","v":""},null,{"$f":"IF(Adjustments!F74=\"\",\"\",Adjustments!F74)","v":""},null,"",null,0,0]
[null,{"$f":"IF(Adjustments!A75=\"\",\"\",Adjustments!A75)","v":""},null,{"$f":"IF(Adjustments!C75=\"\",\"\",Adjustments!C75)","v":""},null,{"$f":"IF(Adjustments!D75=\"\",\"\",Adjustments!D75)","v":""},null,null,null,{"$f":"IF(Adjustments!E75=\"\",\"\",Adjustments!E75)","v":""},null,{"$f":"IF(Adjustments!F75=\"\",\"\",Adjustments!F75)","v":""},null,"",null,0,0]
[null,{"$f":"IF(Adjustments!A76=\"\",\"\",Adjustments!A76)","v":""},null,{"$f":"IF(Adjustments!C76=\"\",\"\",Adjustments!C76)","v":""},null,{"$f":"IF(Adjustments!D76=\"\",\"\",Adjustments!D76)","v":""},null,null,null,{"$f":"IF(Adjustments!E76=\"\",\"\",Adjustments!E76)","v":""},null,{"$f":"IF(Adjustments!F76=\"\",\"\",Adjustments!F76)","v":""},null,"",null,0,0]
[null,{"$f":"IF(Adjustments!A77=\"\",\"\",Adjustments!A77)","v":""},null,{"$f":"IF(Adjustments!C77=\"\",\"\",Adjustments!C77)","v":""},null,{"$f":"IF(Adjustments!D77=\"\",\"\",Adjustments!D77)","v":""},null,null,null,{"$f":"IF(Adjustments!E77=\"\",\"\",Adjustments!E77)","v":""},null,{"$f":"IF(Adjustments!F77=\"\",\"\",Adjustments!F77)","v":""},null,"",null,0,0]
[null,{"$f":"IF(Adjustments!A78=\"\",\"\",Adjustments!A78)","v":""},null,{"$f":"IF(Adjustments!C78=\"\",\"\",Adjustments!C78)","v":""},null,{"$f":"IF(Adjustments!D78=\"\",\"\",Adjustments!D78)","v":""},null,null,null,{"$f":"IF(Adjustments!E78=\"\",\"\",Adjustments!E78)","v":""},null,{"$f":"IF(Adjustments!F78=\"\",\"\",Adjustments!F78)","v":""},null,"",null,0,0]
[null,{"$f":"IF(Adjustments!A79=\"\",\"\",Adjustments!A79)","v":""},null,{"$f":"IF(Adjustments!C79=\"\",\"\",Adjustments!C79)","v":""},null,{"$f":"IF(Adjustments!D79=\"\",\"\",Adjustments!D79)","v":""},null,null,null,{"$f":"IF(Adjustments!E79=\"\",\"\",Adjustments!E79)","v":""},null,{"$f":"IF(Adjustments!F79=\"\",\"\",Adjustments!F79)","v":""},null,"",null,0,0]
[null,{"$f":"IF(Adjustments!A80=\"\",\"\",Adjustments!A80)","v":""},null,{"$f":"IF(Adjustments!C80=\"\",\"\",Adjustments!C80)","v":""},null,{"$f":"IF(Adjustments!D80=\"\",\"\",Adjustments!D80)","v":""},null,null,null,{"$f":"IF(Adjustments!E80=\"\",\"\",Adjustments!E80)","v":""},null,{"$f":"IF(Adjustments!F80=\"\",\"\",Adjustments!F80)","v":""},null,"",null,0,0]
[null,{"$f":"IF(Adjustments!A81=\"\",\"\",Adjustments!A81)","v":""},null,{"$f":"IF(Adjustments!C81=\"\",\"\",Adjustments!C81)","v":""},null,{"$f":"IF(Adjustments!D81=\"\",\"\",Adjustments!D81)","v":""},null,null,null,{"$f":"IF(Adjustments!E81=\"\",\"\",Adjustments!E81)","v":""},null,{"$f":"IF(Adjustments!F81=\"\",\"\",Adjustments!F81)","v":""},null,"",null,0,0]
[null,"9.   Total Expected Revenue and Value from Eligible Yield-Based Crops  (sum amounts in column for Item 8):",null,null,null,null,null,null,null,null,null,null,null,{"$f":"SUM(P144:P171)","v":0},null,0]
[null,"1.  Producer’s Name:",null,{"$f":"J137","v":""},null,null,null,"2.  Application Number:"]
[]
[null,"EXPECTED VALUE FROM ELIGIBLE STORED CROPS"]
[null,"Enter the expected value of all eligible crops harvested and placed in storage prior to calendar year 2022, that could have been affected by a qualifying 2022 disaster event."]
[null,"10. Crop:",null,null,"11. Total Production (in Units):",null,null,null,"12. Expected Price per Unit:",null,null,null,"13. Expected Value:"]
[null,{"$f":"IF(Adjustments!L24=\"\",\"\",Adjustments!L24)","v":""},null,null,{"$f":"IF(Adjustments!N24=\"\",\"\",Adjustments!N24)","v":""},null,null,null,{"$f":"IF(Adjustments!O24=\"\",\"\",Adjustments!O24)","v":""},null,null,null,{"$f":"IF(B178=\"\",\"\",IF(OR(E178=\"\",I178=\"\"),0,ROUND(E178*I178,2)))","v":""},null,null,{"$f":"IF(M178=\"\",0,M178)","v":0},{"$f":"IF(M178=\"\",0,6)","v":0}]
[null,{"$f":"IF(Adjustments!L25=\"\",\"\",Adjustments!L25)","v":""},null,null,{"$f":"IF(Adjustments!N25=\"\",\"\",Adjustments!N25)","v":""},null,null,null,{"$f":"IF(Adjustments!O25=\"\",\"\",Adjustments!O25)","v":""},null,null,null,{"$f":"IF(B179=\"\",\"\",IF(OR(E179=\"\",I179=\"\"),0,ROUND(E179*I179,2)))","v":""},null,null,{"$f":"IF(M179=\"\",0,M179)","v":0},0]
[null,{"$f":"IF(Adjustments!L26=\"\",\"\",Adjustments!L26)","v":""},null,null,{"$f":"IF(Adjustments!N26=\"\",\"\",Adjustments!N26)","v":""},null,null,null,{"$f":"IF(Adjustments!O26=\"\",\"\",Adjustments!O26)","v":""},null,null,null,"",null,null,0,0]
[null,{"$f":"IF(Adjustments!L27=\"\",\"\",Adjustments!L27)","v":""},null,null,{"$f":"IF(Adjustments!N27=\"\",\"\",Adjustments!N27)","v":""},null,null,null,{"$f":"IF(Adjustments!O27=\"\",\"\",Adjustments!O27)","v":""},null,null,null,"",null,null,0,0]
[null,{"$f":"IF(Adjustments!L28=\"\",\"\",Adjustments!L28)","v":""},null,null,{"$f":"IF(Adjustments!N28=\"\",\"\",Adjustments!N28)","v":""},null,null,null,{"$f":"IF(Adjustments!O28=\"\",\"\",Adjustments!O28)","v":""},null,null,null,"",null,null,0,0]
[null,{"$f":"IF(Adjustments!L29=\"\",\"\",Adjustments!L29)","v":""},null,null,{"$f":"IF(Adjustments!N29=\"\",\"\",Adjustments!N29)","v":""},null,null,null,{"$f":"IF(Adjustments!O29=\"\",\"\",Adjustments!O29)","v":""},null,null,null,"",null,null,0,0]
[null,{"$f":"IF(Adjustments!L30=\"\",\"\",Adjustments!L30)","v":""},null,null,{"$f":"IF(Adjustments!N30=\"\",\"\",Adjustments!N30)","v":""},null,null,null,{"$f":"IF(Adjustments!O30=\"\",\"\",Adjustments!O30)","v":""},null,null,null,"",null,null,0,0]
[null,{"$f":"IF(Adjustments!L31=\"\",\"\",Adjustments!L31)","v":""},null,null,{"$f":"IF(Adjustments!N31=\"\",\"\",Adjustments!N31)","v":""},null,null,null,{"$f":"IF(Adjustments!O31=\"\",\"\",Adjustments!O31)","v":""},null,null,null,"",null,null,0,0]
[null,{"$f":"IF(Adjustments!L32=\"\",\"\",Adjustments!L32)","v":""},null,null,{"$f":"IF(Adjustments!N32=\"\",\"\",Adjustments!N32)","v":""},null,null,null,{"$f":"IF(Adjustments!O32=\"\",\"\",Adjustments!O32)","v":""},null,null,null,"",null,null,0,0]
[null,{"$f":"IF(Adjustments!L33=\"\",\"\",Adjustments!L33)","v":""},null,null,{"$f":"IF(Adjustments!N33=\"\",\"\",Adjustments!N33)","v":""},null,null,null,{"$f":"IF(Adjustments!O33=\"\",\"\",Adjustments!O33)","v":""},null,null,null,"",null,null,0,0]
[null,{"$f":"IF(Adjustments!L34=\"\",\"\",Adjustments!L34)","v":""},null,null,{"$f":"IF(Adjustments!N34=\"\",\"\",Adjustments!N34)","v":""},null,null,null,{"$f":"IF(Adjustments!O34=\"\",\"\",Adjustments!O34)","v":""},null,null,null,"",null,null,0,0]
[null,{"$f":"IF(Adjustments!L35=\"\",\"\",Adjustments!L35)","v":""},null,null,{"$f":"IF(Adjustments!N35=\"\",\"\",Adjustments!N35)","v":""},null,null,null,{"$f":"IF(Adjustments!O35=\"\",\"\",Adjustments!O35)","v":""},null,null,null,"",null,null,0,0]
[null,{"$f":"IF(Adjustments!L36=\"\",\"\",Adjustments!L36)","v":""},null,null,{"$f":"IF(Adjustments!N36=\"\",\"\",Adjustments!N36)","v":""},null,null,null,{"$f":"IF(Adjustments!O36=\"\",\"\",Adjustments!O36)","v":""},null,null,null,"",null,null,0,0]
[null,{"$f":"IF(Adjustments!L37=\"\",\"\",Adjustments!L37)","v":""},null,null,{"$f":"IF(Adjustments!N37=\"\",\"\",Adjustments!N37)","v":""},null,null,null,{"$f":"IF(Adjustments!O37=\"\",\"\",Adjustments!O37)","v":""},null,null,null,{"$f":"IF(B191=\"\",\"\",IF(OR(E191=\"\",I191=\"\"),0,ROUND(E191*I191,2)))","v":""},null,null,0,0]
[null,"14. Total Expected Value from Eligible Stored Crops (sum amounts in column for Item 13):",null,null,null,null,null,null,null,null,null,null,{"$f":"SUM(P178:P191)","v":0},null,null,0]
[null,"EXPECTED VALUE FROM ELIGIBLE INVENTORY CROPS"]
[null,"Enter the expected value of all eligible inventory crops that could have been affected by a qualifying 2022 disaster event."]
[null,"15. Crop:",null,null,null,null,null,null,null,null,null,null,"16. Expected Value:"]
[null,{"$f":"IF(Adjustments!J22=\"\",\"\",Adjustments!J22)","v":""},null,null,null,null,null,null,null,null,null,null,{"$f":"IF(Adjustments!K22=\"\",\"\",Adjustments!K22)","v":""},null,null,{"$f":"IF(M196=\"\",0,M196)","v":0},{"$f":"IF(M196=\"\",0,6)","v":0}]
[null,{"$f":"IF(Adjustments!J23=\"\",\"\",Adjustments!J23)","v":""},null,null,null,null,null,null,null,null,null,null,{"$f":"IF(Adjustments!K23=\"\",\"\",Adjustments!K23)","v":""},null,null,{"$f":"IF(M197=\"\",0,M197)","v":0},{"$f":"IF(M197=\"\",0,6)","v":0}]
[null,{"$f":"IF(Adjustments!J24=\"\",\"\",Adjustments!J24)","v":""},null,null,null,null,null,null,null,null,null,null,{"$f":"IF(Adjustments!K24=\"\",\"\",Adjustments!K24)","v":""},null,null,0,{"$f":"IF(M198=\"\",0,6)","v":0}]
[null,{"$f":"IF(Adjustments!J25=\"\",\"\",Adjustments!J25)","v":""},null,null,null,null,null,null,null,null,null,null,{"$f":"IF(Adjustments!K25=\"\",\"\",Adjustments!K25)","v":""},null,null,0,{"$f":"IF(M199=\"\",0,6)","v":0}]
[null,{"$f":"IF(Adjustments!J26=\"\",\"\",Adjustments!J26)","v":""},null,null,null,null,null,null,null,null,null,null,{"$f":"IF(Adjustments!K26=\"\",\"\",Adjustments!K26)","v":""},null,null,0,0]
[null,{"$f":"IF(Adjustments!J27=\"\",\"\",Adjustments!J27)","v":""},null,null,null,null,null,null,null,null,null,null,{"$f":"IF(Adjustments!K27=\"\",\"\",Adjustments!K27)","v":""},null,null,0,0]
[null,{"$f":"IF(Adjustments!J28=\"\",\"\",Adjustments!J28)","v":""},null,null,null,null,null,null,null,null,null,null,{"$f":"IF(Adjustments!K28=\"\",\"\",Adjustments!K28)","v":""},null,null,0,0]
[null,{"$f":"IF(Adjustments!J29=\"\",\"\",Adjustments!J29)","v":""},null,null,null,null,null,null,null,null,null,null,{"$f":"IF(Adjustments!K29=\"\",\"\",Adjustments!K29)","v":""},null,null,0,0]
[null,{"$f":"IF(Adjustments!J30=\"\",\"\",Adjustments!J30)","v":""},null,null,null,null,null,null,null,null,null,null,{"$f":"IF(Adjustments!K30=\"\",\"\",Adjustments!K30)","v":""},null,null,0,0]
[null,{"$f":"IF(Adjustments!J31=\"\",\"\",Adjustments!J31)","v":""},null,null,null,null,null,null,null,null,null,null,{"$f":"IF(Adjustments!K31=\"\",\"\",Adjustments!K31)","v":""},null,null,0,0]
[null,{"$f":"IF(Adjustments!J32=\"\",\"\",Adjustments!J32)","v":""},null,null,null,null,null,null,null,null,null,null,{"$f":"IF(Adjustments!K32=\"\",\"\",Adjustments!K32)","v":""},null,null,0,0]
[null,{"$f":"IF(Adjustments!J33=\"\",\"\",Adjustments!J33)","v":""},null,null,null,null,null,null,null,null,null,null,{"$f":"IF(Adjustments!K33=\"\",\"\",Adjustments!K33)","v":""},null,null,0,0]
[null,"17. Total Expected Value from Eligible Inventory Crops (sum amounts in column for Item 16):",null,null,null,null,null,null,null,null,null,null,{"$f":"SUM(P196:P207)","v":0},null,null,{"$f":"IF(N208=\"\",0,N208)","v":0}]

{"sheet":"Adjustments","index":4,"n_rows":71,"n_cols":28,"rows_kept":71,"cut":false,"hidden":false,"merged":[[70,7,70,8],[3,17,3,18],[11,17,15,18],[10,17,10,18],[7,17,9,18],[6,17,6,18],[65,0,65,1],[66,0,66,1],[67,0,67,1],[68,0,68,1],[69,0,69,1],[70,0,70,1],[4,0,4,1],[56,0,56,1],[57,0,57,1],[58,0,58,1],[59,0,59,1],[60,0,60,1],[61,0,61,1],[62,0,62,1],[63,0,63,1],[64,0,64,1],[47,0,47,1],[48,0,48,1],[49,0,49,1],[50,0,50,1],[51,0,51,1],[52,0,52,1],[53,0,53,1],[54,0,54,1],[55,0,55,1],[38,0,38,1],[39,0,39,1],[40,0,40,1],[41,0,41,1],[43,0,43,1],[42,0,42,1],[44,0,44,1],[45,0,45,1],[46,0,46,1],[29,0,29,1],[30,0,30,1],[31,0,31,1],[32,0,32,1],[33,0,33,1],[34,0,34,1],[35,0,35,1],[36,0,36,1],[37,0,37,1],[23,0,23,1],[24,0,24,1],[2,9,2,10],[0,0,0,10],[2,0,2,6],[25,0,25,1],[26,0,26,1],[27,0,27,1],[28,0,28,1],[2,11,2,15],[3,11,3,12],[4,11,4,12],[6,11,6,12],[7,11,7,12],[19,0,19,1],[20,0,20,1],[21,0,21,1],[22,0,22,1],[2,7,2,8],[3,0,3,1],[16,0,16,1],[17,0,17,1],[18,0,18,1],[6,0,6,1],[7,0,7,1],[8,0,8,1],[9,0,9,1],[10,0,10,1],[11,0,11,1],[12,0,12,1],[13,0,13,1],[14,0,14,1],[15,0,15,1],[8,11,8,12],[9,11,9,12],[10,11,10,12],[11,11,11,12],[12,11,12,12],[13,11,13,12],[14,11,14,12],[15,11,15,12],[16,11,16,12],[17,11,17,12],[18,11,18,12],[19,11,19,12],[20,11,20,12],[21,11,21,12],[22,11,22,12],[23,11,23,12],[24,11,24,12],[25,11,25,12],[26,11,26,12],[27,11,27,12],[28,11,28,12],[29,11,29,12],[30,11,30,12],[31,11,31,12],[32,11,32,12],[33,11,33,12],[34,11,34,12],[35,11,35,12],[36,11,36,12],[37,11,37,12],[38,11,38,12],[39,11,39,12],[40,11,40,12],[41,11,41,12],[42,11,42,12],[43,11,43,12],[44,11,44,12],[45,11,45,12],[46,11,46,12],[47,11,47,12],[48,11,48,12],[49,11,49,12],[50,11,50,12],[51,11,51,12],[52,11,52,12],[53,11,53,12],[54,11,54,12],[55,11,55,12],[56,11,56,12],[57,11,57,12],[58,11,58,12],[59,11,59,12],[60,11,60,12],[61,11,61,12],[62,11,62,12],[63,11,63,12],[64,11,64,12],[65,11,65,12],[66,11,66,12],[67,11,67,12],[68,11,68,12],[69,11,69,12],[70,11,70,12]]}
[{"$f":"\"Adjustment Information - \"&Data_Entry!B13","v":"Adjustment Information - Emergency Relief Program 2022 Application Tool - Version 1.2"},null,null,null,null,null,null,null,null,null,null,{"$f":"TODAY()","v":"2024-02-21"}]
[]
["ELIGIBLE YIELD-BASED CROPS\nFSA-524-A for adjustments and FSA-524-B for Expected Revenue",null,null,null,null,null,null,"ELIGIBLE SALES FROM VALUE ADDED THROUGH POST-PRODUCTION ACTIVITES\nFSA-524-A for adjustment",null,"ELIGIBLE INVENTORY CROPS\nFSA-524-A for adjustments and FSA-524-B for Expected Revenue",null,"EXPECTED VALUE FROM ELIGIBLE STORED CROPS\nFSA-524-B for Expected Revenue"]
["1.\nCrop",null,"2.\nExpected Acres","3.\nExpected Yield\n(per acre)","4.\nUnit of Measure\n(For ex.  bu/ton/lbs)","5.\nExpected  Price\n(per unit of measure)","6.\nTotal Expected Revenue",{"$f":"IF(R8=AA5,\"\",\"7.\nCrop\")","v":"7.\nCrop"},{"$f":"IF(R8=AA5,\"\",\"8.\nTotal Expected Revenue\")","v":"8.\nTotal Expected Revenue"},"9.\nCrop","10.\nTotal Expected Revenue","11.\nCrop",null,"12.\nTotal Production","13.\nExpected  Price\n(per unit of measure)","14.\nTotal Expected Revenue",null,null,null,null,null,null,null,null,null,null,"Decrease in Capacity","Only yield-based, value-added, and/or inventory-based crops and commodities that caused the decrease to the benchmark revenue."]
[null,null,null,null,"For 524A",null,{"$f":"SUM(G17:G71)","v":0},null,{"$f":"SUM(I10:I64)","v":0},null,{"$f":"SUM(K9:K62)","v":0},null,null,null,null,null,null,null,null,null,null,null,null,null,null,null,"Expected Production","All yield based, inventory based or stored crops and commodities"]
[null,null,null,null,"For 524B",null,{"$f":"SUM(G26:G72)","v":0},null,null,null,{"$f":"SUM(K10:K63)","v":0},null,null,null,null,{"$f":"SUM(P11:P71)","v":0},null,null,null,null,null,null,null,null,null,null,"Increase in Capacity","Only yield-based, value-added, and/or inventory-based crops and commodities that caused the increase to the benchmark revenue."]
[null,null,null,null,null,null,{"$f":"IF(A7=\"\",\"\",IF(OR(C7=\"\",D7=\"\",F7=\"\"),0,ROUND(C7*D7*F7,2)))","v":""},null,null,null,null,null,null,null,null,{"$f":"IF(L7=\"\",\"\",IF(OR(N7=\"\",O7=\"\"),0,ROUND(N7*O7,2)))","v":""},null,{"$f":"IF(R8=\"\",\"\",\"Since you are calculating:\")","v":""},null,null,null,null,null,null,null,null,"New Producer","All yield based, value-based, and inventory-based crops and commodities."]
[null,null,null,null,null,null,{"$f":"IF(A8=\"\",\"\",IF(OR(C8=\"\",D8=\"\",F8=\"\"),0,ROUND(C8*D8*F8,2)))","v":""},null,null,null,null,null,null,null,null,{"$f":"IF(L8=\"\",\"\",IF(OR(N8=\"\",O8=\"\"),0,ROUND(N8*O8,2)))","v":""},null,{"$f":"IF(Data_Entry!E28=\"Expected Revenue\",Adjustments!AA5,IF(Data_Entry!H32=\"Yes\",Adjustments!AA7,IF(Data_Entry!H33=\"Yes\",Adjustments!AA6,IF(Data_Entry!H34=\"Yes\",Adjustments!AA4,\"\"))))","v":""}]
[null,null,null,null,null,null,"",null,null,null,null,null,null,null,null,""]
[null,null,null,null,null,null,"",null,null,null,null,null,null,null,null,""]
[null,null,null,null,null,null,"",null,null,null,null,null,null,null,null,"",null,{"$f":"IF(R12=\"\",\"\",\"Then Include:\")","v":""}]
[null,null,null,null,null,null,"",null,null,null,null,null,null,null,null,"",null,{"$f":"IF(R8=\"\",\"\",VLOOKUP(R8,AA4:AB9,2,FALSE))","v":""}]
[null,null,null,null,null,null,"",null,null,null,null,null,null,null,null,""]
[null,null,null,null,null,null,"",null,null,null,null,null,null,null,null,""]
[null,null,null,null,null,null,"",null,null,null,null,null,null,null,null,""]
[null,null,null,null,null,null,"",null,null,null,null,null,null,null,null,""]
[null,null,null,null,null,null,"",null,null,null,null,null,null,null,null,""]
[null,null,null,null,null,null,"",null,null,null,null,null,null,null,null,""]
[null,null,null,null,null,null,"",null,null,null,null,null,null,null,null,""]
[null,null,null,null,null,null,"",null,null,null,null,null,null,null,null,""]
[null,null,null,null,null,null,"",null,null,null,null,null,null,null,null,""]
[null,null,null,null,null,null,"",null,null,null,null,null,null,null,null,""]
[null,null,null,null,null,null,"",null,null,null,null,null,null,null,null,""]
[null,null,null,null,null,null,"",null,null,null,null,null,null,null,null,""]
[null,null,null,null,null,null,"",null,null,null,null,null,null,null,null,""]
[null,null,null,null,null,null,"",null,null,null,null,null,null,null,null,""]
[null,null,null,null,null,null,"",null,null,null,null,null,null,null,null,""]
[null,null,null,null,null,null,"",null,null,null,null,null,null,null,null,""]
[null,null,null,null,null,null,"",null,null,null,null,null,null,null,null,""]
[null,null,null,null,null,null,"",null,null,null,null,null,null,null,null,""]
[null,null,null,null,null,null,"",null,null,null,null,null,null,null,null,""]
[null,null,null,null,null,null,"",null,null,null,null,null,null,null,null,""]
[null,null,null,null,null,null,"",null,null,null,null,null,null,null,null,""]
[null,null,null,null,null,null,"",null,null,null,null,null,null,null,null,""]
[null,null,null,null,null,null,"",null,null,null,null,null,null,null,null,""]
[null,null,null,null,null,null,"",null,null,null,null,null,null,null,null,""]
[null,null,null,null,null,null,"",null,null,null,null,null,null,null,null,""]
[null,null,null,null,null,null,""]
[null,null,null,null,null,null,""]
[null,null,null,null,null,null,""]
[null,null,null,null,null,null,""]
[null,null,null,null,null,null,""]
[null,null,null,null,null,null,""]
[null,null,null,null,null,null,""]
[null,null,null,null,null,null,""]
[null,null,null,null,null,null,""]
[null,null,null,null,null,null,""]
[null,null,null,null,null,null,""]
[null,null,null,null,null,null,""]
[null,null,null,null,null,null,""]
[null,null,null,null,null,null,""]
[null,null,null,null,null,null,""]
[null,null,null,null,null,null,""]
[null,null,null,null,null,null,""]
[null,null,null,null,null,null,""]
[null,null,null,null,null,null,""]
[null,null,null,null,null,null,""]
[null,null,null,null,null,null,""]
[null,null,null,null,null,null,""]
[null,null,null,null,null,null,""]
[null,null,null,null,null,null,""]
[null,null,null,null,null,null,""]
[null,null,null,null,null,null,""]
[null,null,null,null,null,null,""]
[null,null,null,null,null,null,""]
[null,null,null,null,null,null,""]
[null,null,null,null,null,null,""]
[null,null,null,null,null,null,""]
[null,null,null,null,null,null,""]
[null,null,null,null,null,null,""]
[null,null,null,null,null,null,""]

{"sheet":"DAFP_Approved","index":5,"n_rows":40,"n_cols":8,"rows_kept":40,"cut":false,"hidden":false,"merged":[[2,0,2,3],[2,4,2,7],[0,0,0,7],[1,0,1,7]]}
[{"$f":"Data_Entry!B13","v":"Emergency Relief Program 2022 Application Tool - Version 1.2"}]
["VALUE OF DEPUTY ADMINISTRATOR-APPROVED CROPS PRODUCED BUT NOT SOLD IN THE BENCHMARK YEAR\n(only applicable for producer who received a payment under ERP Phase 2 for the 2021 program year and elected the 2022 tax year for their representative revenue year)"]
["BENCHMARK YEAR",null,null,null,"DISASTER YEAR"]
["1. \nCrop:","2. \nTotal Production (in Units):","3. \nExpected Price per Unit:","4. \nBenchmark Value:","5. \nCrop:","6. \nTotal Production (in Units):","7. \nExpected Price per Unit:","8. \nDisaster Year Value:"]
[null,null,null,{"$f":"IF(A6=\"\",\"\",SUM(D12:D46))","v":""},null,null,null,{"$f":"IF(E6=\"\",\"\",SUM(H11:H45))","v":""}]
[null,null,null,{"$f":"IF(A6=\"\",\"\",IF(OR(B6=\"\",C6=\"\"),0,ROUND(B6*C6,2)))","v":""},null,null,null,{"$f":"IF(E6=\"\",\"\",IF(OR(F6=\"\",G6=\"\"),0,ROUND(F6*G6,2)))","v":""}]
[null,null,null,{"$f":"IF(A7=\"\",\"\",IF(OR(B7=\"\",C7=\"\"),0,ROUND(B7*C7,2)))","v":""},null,null,null,{"$f":"IF(E7=\"\",\"\",IF(OR(F7=\"\",G7=\"\"),0,ROUND(F7*G7,2)))","v":""}]
[null,null,null,"",null,null,null,""]
[null,null,null,"",null,null,null,""]
[null,null,null,"",null,null,null,""]
[null,null,null,"",null,null,null,""]
[null,null,null,"",null,null,null,""]
[null,null,null,"",null,null,null,""]
[null,null,null,"",null,null,null,""]
[null,null,null,"",null,null,null,""]
[null,null,null,"",null,null,null,""]
[null,null,null,{"$f":"IF(A17=\"\",\"\",IF(OR(B17=\"\",C17=\"\"),0,ROUND(B17*C17,2)))","v":""},null,null,null,""]
[null,null,null,"",null,null,null,""]
[null,null,null,"",null,null,null,""]
[null,null,null,"",null,null,null,""]
[null,null,null,"",null,null,null,""]
[null,null,null,"",null,null,null,""]
[null,null,null,"",null,null,null,""]
[null,null,null,"",null,null,null,""]
[null,null,null,"",null,null,null,""]
[null,null,null,"",null,null,null,""]
[null,null,null,"",null,null,null,""]
[null,null,null,"",null,null,null,""]
[null,null,null,"",null,null,null,""]
[null,null,null,"",null,null,null,""]
[null,null,null,"",null,null,null,""]
[null,null,null,"",null,null,null,""]
[null,null,null,"",null,null,null,""]
[null,null,null,"",null,null,null,""]
[null,null,null,"",null,null,null,""]
[null,null,null,"",null,null,null,""]
[null,null,null,"",null,null,null,""]
[null,null,null,"",null,null,null,""]
[null,null,null,"",null,null,null,""]
[null,null,null,"",null,null,null,""]

{"sheet":"FSA_Pmts","index":6,"n_rows":292,"n_cols":23,"rows_kept":292,"cut":false,"hidden":true,"merged":[[7,3,7,8],[3,3,5,5],[18,12,18,13],[17,12,17,13],[8,12,8,13],[9,12,9,13],[10,12,10,13],[11,12,11,13],[12,12,12,13],[13,12,13,13],[14,12,14,13],[19,12,19,13],[8,1,8,2],[8,3,8,5],[8,6,8,8],[15,12,15,13],[16,12,16,13]]}
[]
[]
[]
[null,null,null,"Using Financial Inquiries enter the applicable payment amounts from the 1099, and any receivables, offsets, premiums, and service fees."]
[]
[null,null,null,null,null,null,null,null,null,{"$f":"MAX(J9:J216)","v":2}]
[]
[null,"FSA Payment Calculator"]
[null,"Item",null,{"$f":"IF(#REF!=\"\",\"\",#REF!)","v":{"$error":"#REF!"}},null,null,{"$f":"IF(#REF!=\"\",\"\",#REF!)","v":{"$error":"#REF!"}},null,null,null,null,null,{"$f":"D9","v":{"$error":"#REF!"}},null,{"$f":"G9","v":{"$error":"#REF!"}}]
[null,"1.\nProgram Category","2.\nProgram Name","3.\nReportable Income","4.\nReceivables/Offsets\nNote:  for NAP  include Service Fees and Producer Paid Premiums",{"$f":"\"5.\nNet \"&D9","v":{"$error":"#REF!"}},"3.\nReportable Income","4.\nReceivables/Offsets\nNote:  for NAP  include Service Fees and Producer Paid Premiums",{"$f":"\"5.\nNet \"&G9","v":{"$error":"#REF!"}},null,"ARCPLC","10A)",{"$f":"SUMIF($C$11:$I$132,K10,$F$11:$F$122)","v":0},null,{"$f":"SUMIF($C$11:$I$132,K10,$I$11:$I$122)","v":0}]
[null,"WEB-BASED NAP (2775)",{"$f":"_xlfn.IFNA(VLOOKUP(B11,$S$14:$X$300,4,FALSE),\"\")","v":"NAP"},5000,50,{"$f":"IF(D11=\"\",\"\",MAX(0,D11-E11))","v":4950},null,null,{"$f":"IF(G11=\"\",\"\",MAX(0,G11-H11))","v":""},null,"BCAP","10B)",0,null,0]
[null,null,"",null,null,{"$f":"IF(D12=\"\",\"\",MAX(0,D12-E12))","v":""},null,null,{"$f":"IF(G12=\"\",\"\",MAX(0,G12-H12))","v":""},null,"LDP","10C)",0,null,0,null,null,null,null,"Accounting Program Description","Program Code","Program","PARP or ERP"]
[null,null,"",null,null,"",null,null,"",null,"MAL","10D)",0,null,0,null,null,null,null,"accounting_program_description"," accounting_program_code "]
[null,null,"",null,null,"",null,null,"",null,"MFP","10E)",0,null,0,null,null,null,{"$f":"TRIM(T14)&\" (\"&U14&\")\"","v":"AGRICULTURAL RISK COVERAGE - INDIVIDUAL (2840)"},"AGRICULTURAL RISK COVERAGE - INDIVIDUAL           ",2840,"ARCPLC","Yes"]
[null,null,"",null,null,"",null,null,"",null,"STRP","10F)",0,null,0,null,null,null,{"$f":"TRIM(T15)&\" (\"&U15&\")\"","v":"AGRICULTURAL RISK COVERAGE PROG - COUNTY (2838)"},"AGRICULTURAL RISK COVERAGE PROG - COUNTY          ",2838,"ARCPLC","Yes"]
[null,null,"",null,null,"",null,null,"",null,"ELAP - Aquaculture Only","12B)",0,null,0,null,null,null,"ARC PROGRAM-COUNTY PILOT COVERAGE (2862)","ARC PROGRAM-COUNTY PILOT COVERAGE                 ",2862,"ARCPLC","Yes"]
[null,null,"",null,null,"",null,null,"",null,"WHIP","12C)",0,null,0,null,null,null,"BCAP COST SHARE WEB BASED (2768)","BCAP COST SHARE WEB BASED                         ",2768,"BCAP","Yes"]
[null,null,"",null,null,"",null,null,"",null,"NAP","12D)",4950,null,0,null,null,null,"BCAP PRIVATE SECTOR TECHNICAL ASSISTANCE (2751)","BCAP PRIVATE SECTOR TECHNICAL ASSISTANCE          ",2751,"BCAP","Yes"]
[null,null,"",null,null,"",null,null,"",null,"OFSP","12E)",0,null,0,null,null,null,"EMERGENCY ASSISTANCE FOR LIVESTOCK, HONEY BEES, AND FARM-RAISED FISH (2833)","EMERGENCY ASSISTANCE FOR LIVESTOCK, HONEY BEES, AND FARM-RAISED FISH",2833,"ELAP - Aquaculture Only","Yes"]
[null,null,"",null,null,"",null,null,"",null,"QLA",null,{"$f":"SUMIF($C$11:$I$132,K20,$F$11:$F$122)","v":0},null,0,null,null,null,"LDP WEB PAYMENTS-FUNDS CONTROLLED (5217)","LDP WEB PAYMENTS-FUNDS CONTROLLED                 ",5217,"LDP","Yes"]
[null,null,"",null,null,"",null,null,"",null,null,null,null,null,null,null,null,null,"LIVESTOCK FORAGE PROGRAM (2833)","LIVESTOCK FORAGE PROGRAM                          ",2833,"ELAP - Aquaculture Only","Yes"]
[null,null,"",null,null,"",null,null,"",null,null,null,null,null,null,null,null,null,"LOAN DEFICIENCY - LENTILS, DRY (5207)","LOAN DEFICIENCY - LENTILS, DRY                    ",5207,"LDP","Yes"]
[null,null,"",null,null,"",null,null,"",null,null,null,null,null,null,null,null,null,"LOAN DEFICIENCY PAYMENT (5207)","LOAN DEFICIENCY PAYMENT",5207,"LDP","Yes"]
[null,null,"",null,null,"",null,null,"",null,null,null,null,null,null,null,null,null,"LOAN DEFICIENCY PAYMENT (5217)","LOAN DEFICIENCY PAYMENT",5217,"LDP","Yes"]
[null,null,"",null,null,"",null,null,"",null,null,null,null,null,null,null,null,null,"MARKET FACILITATION PROGRAM - CROPS (2867)","MARKET FACILITATION PROGRAM - CROPS               ",2867,"MFP","Yes"]
[null,null,"",null,null,"",null,null,"",null,null,null,null,null,null,null,null,null,"MARKET FACILITATION PROGRAM - NON-SPECIALTY CROPS (2877)","MARKET FACILITATION PROGRAM - NON-SPECIALTY CROPS",2877,"MFP","Yes"]
[null,null,"",null,null,"",null,null,"",null,null,null,null,null,null,null,null,null,"MARKET FACILITATION PROGRAM – SPECIALTY CROPS (2878)","MARKET FACILITATION PROGRAM – SPECIALTY CROPS",2878,"MFP","Yes"]
[null,null,"",null,null,"",null,null,"",null,null,null,null,null,null,null,null,null,"MARKET FACILITATION PROG-SPECIALTY CROPS (2870)","MARKET FACILITATION PROG-SPECIALTY CROPS          ",2870,"MFP","Yes"]
[null,null,"",null,null,"",null,null,"",null,null,null,null,null,null,null,null,null,"MARKETING ASSISTANCE LOANS - NON-RECOURSE INCLUDES SUPPLEMENTAL SUGAR (1060)","MARKETING ASSISTANCE LOANS - NON-RECOURSE INCLUDES SUPPLEMENTAL SUGAR",1060,"MAL","Yes"]
[null,null,"",null,null,"",null,null,"",null,null,null,null,null,null,null,null,null,"MARKETING ASSISTANCE LOANS - RECOURSE (1070)","MARKETING ASSISTANCE LOANS - RECOURSE",1070,"MAL","Yes"]
[null,null,"",null,null,"",null,null,"",null,null,null,null,null,null,null,null,null,"NAP REGULAR WEB-BASED (2920)","NAP REGULAR WEB-BASED                             ",2920,"NAP","Yes"]
[null,null,"",null,null,"",null,null,"",{"$f":"IF(B32=\"\",2,4)","v":2},null,null,null,null,null,null,null,null,"NONINSURED CROP DISASTER ASSISTANCE PROGRAM - BUY UP (2920)","NONINSURED CROP DISASTER ASSISTANCE PROGRAM - BUY UP",2920,"NAP","Yes"]
[null,null,"",null,null,"",null,null,"",null,null,null,null,null,null,null,null,null,"NONINSURED CROP DISASTER ASSISTANCE PROGRAM (2775)","NONINSURED CROP DISASTER ASSISTANCE PROGRAM",2775,"NAP","Yes"]
[null,null,"",null,null,"",null,null,"",null,null,null,null,null,null,null,null,null,"NON-RECOURSE MAL (1060)","NON-RECOURSE MAL                                  ",1060,"MAL","Yes"]
[null,null,"",null,null,"",null,null,"",null,null,null,null,null,null,null,null,null,"ON-FARM STORAGE LOSS PROGRAM (2433)","ON-FARM STORAGE LOSS PROGRAM                      ",2433,"OFSP","Yes"]
[null,null,"",null,null,"",null,null,"",null,null,null,null,null,null,null,null,null,"ON-FARM STORED COMMODITY LOSS PROGRAM (2434)","ON-FARM STORED COMMODITY LOSS PROGRAM             ",2434,"OFSP","Yes"]
[null,null,"",null,null,"",null,null,"",null,null,null,null,null,null,null,null,null,"PRICE LOSS COVERAGE (2837)","PRICE LOSS COVERAGE                               ",2837,"ARCPLC","Yes"]
[null,null,"",null,null,"",null,null,""]
[null,null,"",null,null,"",null,null,"",null,null,null,null,null,null,null,null,null,"RECOURSE MAL (1070)","RECOURSE MAL                                      ",1070,"MAL","Yes"]
[null,null,"",null,null,"",null,null,"",null,null,null,null,null,null,null,null,null,{"$f":"TRIM(T40)&\" (\"&U40&\")\"","v":"SEAFOOD TRADE RELIEF PROGRAM (2907)"},"SEAFOOD TRADE RELIEF PROGRAM                      ",2907,"STRP","No"]
[null,null,"",null,null,"",null,null,"",null,null,null,null,null,null,null,null,null,"TMP/MFP 2019 NON SPECIALTY CROPS (2877)","TMP/MFP 2019 NON SPECIALTY CROPS                  ",2877,"MFP","Yes"]
[null,null,"",null,null,"",null,null,"",null,null,null,null,null,null,null,null,null,"TMP/MFP 2019 SPECIALITY CROPS (2878)","TMP/MFP 2019 SPECIALITY CROPS                     ",2878,"MFP","Yes"]
[null,null,"",null,null,"",null,null,"",null,null,null,null,null,null,null,null,null,"WEB-BASED NAP (2775)","WEB-BASED NAP                                     ",2775,"NAP","Yes"]
[null,null,"",null,null,"",null,null,"",null,null,null,null,null,null,null,null,null,"WILDFIRE AND HURRICANE INDEMNITY PROGRAM (2864)","WILDFIRE AND HURRICANE INDEMNITY PROGRAM",2864,"WHIP","Yes - Benchmark Year"]
[null,null,"",null,null,"",null,null,"",null,null,null,null,null,null,null,null,null,"WILDFIRE AND HURRICANE INDEMNITY PROGRAM (2886)","WILDFIRE AND HURRICANE INDEMNITY PROGRAM",2886,"WHIP","Yes - Benchmark Year"]
[null,null,"",null,null,"",null,null,"",null,null,null,null,null,null,null,null,null,"WHIP PLUS 3 ASSISTANCE (2888)","WHIP PLUS 3 ASSISTANCE                            ",2888,"WHIP","Yes - Benchmark Year"]
[null,null,"",null,null,"",null,null,"",null,null,null,null,null,null,null,null,null,"DIS/WH2 2019 WFHURRINDEMP (2875)","DIS/WH2 2019 WFHURRINDEMP                         ",2875,"WHIP","Yes"]
[null,null,"",null,null,"",null,null,"",null,null,null,null,null,null,null,null,null,{"$f":"TRIM(T48)&\" (\"&U48&\")\"","v":"QUALITY LOSS ADJUSTMENT PROGRAM (2908)"},"QUALITY LOSS ADJUSTMENT PROGRAM                   ",2908,"QLA","Yes"]
[null,null,"",null,null,"",null,null,"",null,null,null,null,null,null,null,null,null,{"$f":"TRIM(T49)&\" (\"&U49&\")\"","v":"ACREAGE GRAZING PAYMENTS - OATS (5261)"},"ACREAGE GRAZING PAYMENTS - OATS                   ",5261,"N/A","No"]
[null,null,"",null,null,"",null,null,"",null,null,null,null,null,null,null,null,null,"AFFILIATED PERSON PAYMENT REDUCTIONS (2831)","AFFILIATED PERSON PAYMENT REDUCTIONS              ",2831,"N/A","No"]
[null,null,"",null,null,"",null,null,"",null,null,null,null,null,null,null,null,null,"AGRICULTURAL TRADE PROMOTION (2873)","AGRICULTURAL TRADE PROMOTION                      ",2873,"N/A","No"]
[null,null,"",null,null,"",null,null,"",null,null,null,null,null,null,null,null,null,"AMA GRANT (6141)","AMA GRANT                                         ",6141,"N/A","No"]
[null,null,"",null,null,"",null,null,"",{"$f":"IF(B53=\"\",2,6)","v":2},null,null,null,null,null,null,null,null,"AMA ORGANIC COST SHARE - WILD CROPS (6140)","AMA ORGANIC COST SHARE - WILD CROPS               ",6140,"N/A","No"]
[null,null,"",null,null,"",null,null,"",null,null,null,null,null,null,null,null,null,"AMS SECT32A SPEC FRUIT & VEG DIRECT CITE (8328)","AMS SECT32A SPEC FRUIT & VEG DIRECT CITE          ",8328,"N/A","No"]
[null,null,"",null,null,"",null,null,"",null,null,null,null,null,null,null,null,null,"AMS SECTION 32 DIRECT CITE (8330)","AMS SECTION 32 DIRECT CITE                        ",8330,"N/A","No"]
[null,null,"",null,null,"",null,null,"",null,null,null,null,null,null,null,null,null,"AMS SECTION 32R DIRECT CITE (8329)","AMS SECTION 32R DIRECT CITE                       ",8329,"N/A","No"]
[null,null,"",null,null,"",null,null,"",null,null,null,null,null,null,null,null,null,"AUDIT PAYMENT (6025)","AUDIT PAYMENT                                     ",6025,"N/A","No"]
[null,null,"",null,null,"",null,null,"",null,null,null,null,null,null,null,null,null,"AUDIT READINESS (6047)","AUDIT READINESS                                   ",6047,"N/A","No"]
[null,null,"",null,null,"",null,null,"",null,null,null,null,null,null,null,null,null,"AUTO CRP - COST SHARES (3306)","AUTO CRP - COST SHARES                            ",3306,"N/A","No"]
[null,null,"",null,null,"",null,null,"",null,null,null,null,null,null,null,null,null,"BANKRUPT - FSFL (221)","BANKRUPT - FSFL                                   ",221,"N/A","No"]
[null,null,"",null,null,"",null,null,"",null,null,null,null,null,null,null,null,null,"BCAP ANNUAL RENTAL WEB BASED (2767)","BCAP ANNUAL RENTAL WEB BASED                      ",2767,"N/A","No"]
[null,null,"",null,null,"",null,null,"",null,null,null,null,null,null,null,null,null,"BCAP LIQUIDATED DAMAGES (7397)","BCAP LIQUIDATED DAMAGES                           ",7397,"N/A","No"]
[null,null,"",null,null,"",null,null,"",null,null,null,null,null,null,null,null,null,"BCAP MATCHING PYMNT WEB-BASE APPLICATION (2766)","BCAP MATCHING PYMNT WEB-BASE APPLICATION          ",2766,"N/A","No"]
[null,null,"",null,null,"",null,null,"",null,null,null,null,null,null,null,null,null,"BIOFUEL INFRASTRUCTURE PROGRAM (2854)","BIOFUEL INFRASTRUCTURE PROGRAM                    ",2854,"N/A","No"]
[null,null,"",null,null,"",null,null,"",null,null,null,null,null,null,null,null,null,"BIP COLLECTION OF INTEREST (2855)","BIP COLLECTION OF INTEREST                        ",2855,"N/A","No"]
[null,null,"",null,null,"",null,null,"",null,null,null,null,null,null,null,null,null,"CARES ACT (OLP) (4927)","CARES ACT (OLP)                                   ",4927,"N/A","No"]
[null,null,"",null,null,"",null,null,"",null,null,null,null,null,null,null,null,null,"CAT RELIEF (2741)","CAT RELIEF                                        ",2741,"N/A","No"]
[null,null,"",null,null,"",null,null,"",null,null,null,null,null,null,null,null,null,"CCC GRANT (6151)","CCC GRANT                                         ",6151,"N/A","No"]
[null,null,"",null,null,"",null,null,"",null,null,null,null,null,null,null,null,null,"CCC ORGANIC COST SHARE - CROPS (6150)","CCC ORGANIC COST SHARE - CROPS                    ",6150,"N/A","No"]
[null,null,"",null,null,"",null,null,"",null,null,null,null,null,null,null,null,null,"CCC ORGANIC COST SHARE FEES - HANDLING (6152)","CCC ORGANIC COST SHARE FEES - HANDLING            ",6152,"N/A","No"]
[null,null,"",null,null,"",null,null,"",null,null,null,null,null,null,null,null,null,"CFAP3 - LTU (4923)","CFAP3 - LTU                                       ",4923,"N/A","No"]
[null,null,"",null,null,"",null,null,"",null,null,null,null,null,null,null,null,null,"CFAP3 - TUP (4924)","CFAP3 - TUP                                       ",4924,"N/A","No"]
[null,null,"",null,null,"",null,null,"",null,null,null,null,null,null,null,null,null,"CFAPCARES (4920)","CFAPCARES                                         ",4920,"N/A","No"]
[null,null,"",null,null,"",null,null,"",{"$f":"IF(B74=\"\",2,8)","v":2},null,null,null,null,null,null,null,null,"CFAPCARES2 (4921)","CFAPCARES2                                        ",4921,"N/A","No"]
[null,null,{"$f":"_xlfn.IFNA(VLOOKUP(B75,$S$14:$X$300,4,FALSE),\"\")","v":""},null,null,"",null,null,"",null,null,null,null,null,null,null,null,null,"CFAPCARES2.1 (4922)","CFAPCARES2.1                                      ",4922,"N/A","No"]
[null,null,"",null,null,{"$f":"IF(D76=\"\",\"\",MAX(0,D76-E76))","v":""},null,null,{"$f":"IF(G76=\"\",\"\",MAX(0,G76-H76))","v":""},null,null,null,null,null,null,null,null,null,"CFAPCCA2 (4926)","CFAPCCA2                                          ",4926,"N/A","No"]
[null,null,"",null,null,"",null,null,"",null,null,null,null,null,null,null,null,null,"CFAPCCCCA (4925)","CFAPCCCCA                                         ",4925,"N/A","No"]
[null,null,"",null,null,"",null,null,"",null,null,null,null,null,null,null,null,null,"CHESAPEAKE BAY INCENTIVE (3353)","CHESAPEAKE BAY INCENTIVE                          ",3353,"N/A","No"]
[null,null,"",null,null,"",null,null,"",null,null,null,null,null,null,null,null,null,"CIB-FRMLY RBI WEBBASE W_MOBLIG (3112)","CIB-FRMLY RBI WEBBASE W_MOBLIG                    ",3112,"N/A","No"]
[null,null,"",null,null,"",null,null,"",null,null,null,null,null,null,null,null,null,"CONTRACT-CCC FINANCIAL STATEMENT&ACCTING (6046)","CONTRACT-CCC FINANCIAL STATEMENT&ACCTING          ",6046,"N/A","No"]
[null,null,"",null,null,"",null,null,"",null,null,null,null,null,null,null,null,null,"CORN INVENTORY SALE (6842)","CORN INVENTORY SALE                               ",6842,"N/A","No"]
[null,null,"",null,null,"",null,null,"",null,null,null,null,null,null,null,null,null,"CORONAVIRUS AID, CCC CHARTER ACT (OLP) (4928)","CORONAVIRUS AID, CCC CHARTER ACT (OLP)            ",4928,"N/A","No"]
[null,null,"",null,null,"",null,null,"",null,null,null,null,null,null,null,null,null,{"$f":"TRIM(T83)&\" (\"&U83&\")\"","v":"CORONAVIRUS AID, CCC CHARTER ACT (OLP) (4929)"},"CORONAVIRUS AID, CCC CHARTER ACT (OLP)            ",4929,"N/A","No"]
[null,null,"",null,null,"",null,null,"",null,null,null,null,null,null,null,null,null,"COTTON LOAN FORFEITURE (2405)","COTTON LOAN FORFEITURE                            ",2405,"N/A","No"]
[null,null,"",null,null,"",null,null,"",null,null,null,null,null,null,null,null,null,"CRP - CONTINUOUS PIP (3361)","CRP - CONTINUOUS PIP                              ",3361,"N/A","No"]
[null,null,"",null,null,"",null,null,"",null,null,null,null,null,null,null,null,null,"CRP - EMERGENCY FORESTRY ANNUAL RENTAL (3180)","CRP - EMERGENCY FORESTRY ANNUAL RENTAL            ",3180,"N/A","No"]
[null,null,"",null,null,"",null,null,"",null,null,null,null,null,null,null,null,null,"CRP - MISACTION/MISINFORMATION (3105)","CRP - MISACTION/MISINFORMATION                    ",3105,"N/A","No"]
[null,null,"",null,null,"",null,null,"",null,null,null,null,null,null,null,null,null,"CRP - REDUCTION (6801)","CRP - REDUCTION                                   ",6801,"N/A","No"]
[null,null,"",null,null,"",null,null,"",null,null,null,null,null,null,null,null,null,"CRP ARCHAEOLOGICAL SURVEYS (3335)","CRP ARCHAEOLOGICAL SURVEYS                        ",3335,"N/A","No"]
[null,null,"",null,null,"",null,null,"",null,null,null,null,null,null,null,null,null,"CRP CLEAR30 MAINT PRGM (3360)","CRP CLEAR30 MAINT PRGM                            ",3360,"N/A","No"]
[null,null,"",null,null,"",null,null,"",null,null,null,null,null,null,null,null,null,"CRP COMMON INCENTIVE (3324)","CRP COMMON INCENTIVE                              ",3324,"N/A","No"]
[null,null,"",null,null,"",null,null,"",null,null,null,null,null,null,null,null,null,"CRP COST-SHARE WEB-BASED - COF (3307)","CRP COST-SHARE WEB-BASED - COF                    ",3307,"N/A","No"]
[null,null,"",null,null,"",null,null,"",null,null,null,null,null,null,null,null,null,"CRP ENVIRON IMPACT STATEMENT TECH ASSIST (3185)","CRP ENVIRON IMPACT STATEMENT TECH ASSIST          ",3185,"N/A","No"]
[null,null,"",null,null,"",null,null,"",null,null,null,null,null,null,null,null,null,"CRP FOREST INVENTORY PILOT PROGRAM (3356)","CRP FOREST INVENTORY PILOT PROGRAM                ",3356,"N/A","No"]
[null,null,"",null,null,"",null,null,"",{"$f":"IF(B95=\"\",2,10)","v":2},null,null,null,null,null,null,null,null,"CRP FOREST MANAGEMENT INCENTIVE (3358)","CRP FOREST MANAGEMENT INCENTIVE                   ",3358,"N/A","No"]
[null,null,"",null,null,"",null,null,"",null,null,null,null,null,null,null,null,null,"CRP HONEY BEE INCENTIVE PAYMNTS (3349)","CRP HONEY BEE INCENTIVE PAYMNTS                   ",3349,"N/A","No"]
[null,null,"",null,null,"",null,null,"",null,null,null,null,null,null,null,null,null,"CRP HONEY BEE TECHNICAL ASSISTANCE (3350)","CRP HONEY BEE TECHNICAL ASSISTANCE                ",3350,"N/A","No"]
[null,null,"",null,null,"",null,null,"",null,null,null,null,null,null,null,null,null,"CRP INCENTIVE - WETLAND RESTORATION (3312)","CRP INCENTIVE - WETLAND RESTORATION               ",3312,"N/A","No"]
[null,null,"",null,null,"",null,null,"",null,null,null,null,null,null,null,null,null,"CRP OUTREACH AND TECHNICAL ASSISTANCE (3331)","CRP OUTREACH AND TECHNICAL ASSISTANCE             ",3331,"N/A","No"]
[null,null,"",null,null,"",null,null,"",null,null,null,null,null,null,null,null,null,"CRP PAYMENT - ANNUAL RENTAL (3132)","CRP PAYMENT - ANNUAL RENTAL                       ",3132,"N/A","No"]
[null,null,"",null,null,"",null,null,"",null,null,null,null,null,null,null,null,null,"CRP PRACTICE INCENTIVES PAYMENT (3359)","CRP PRACTICE INCENTIVES PAYMENT                   ",3359,"N/A","No"]
[null,null,"",null,null,"",null,null,"",null,null,null,null,null,null,null,null,null,"CRP TRANSITION INCENTIVE (3329)","CRP TRANSITION INCENTIVE                          ",3329,"N/A","No"]
[null,null,"",null,null,"",null,null,"",null,null,null,null,null,null,null,null,null,"CRP TRANSITION INCENTIVES PRGM (3338)","CRP TRANSITION INCENTIVES PRGM                    ",3338,"N/A","No"]
[null,null,"",null,null,"",null,null,"",null,null,null,null,null,null,null,null,null,"DAIRY MARGIN COVERAGE ADM FEE (8051)","DAIRY MARGIN COVERAGE ADM FEE                     ",8051,"N/A","No"]
[null,null,"",null,null,"",null,null,"",null,null,null,null,null,null,null,null,null,"DAIRY MARGIN COVERAGE PREM FEE (8052)","DAIRY MARGIN COVERAGE PREM FEE                    ",8052,"N/A","No"]
[null,null,"",null,null,"",null,null,"",null,null,null,null,null,null,null,null,null,"DAIRY MARGIN COVERAGE PREMIUM REFUND (8054)","DAIRY MARGIN COVERAGE PREMIUM REFUND              ",8054,"N/A","No"]
[null,null,"",null,null,"",null,null,"",null,null,null,null,null,null,null,null,null,"DAIRY MARGIN COVERAGE PROGRAM (8053)","DAIRY MARGIN COVERAGE PROGRAM                     ",8053,"N/A","No"]
[null,null,"",null,null,"",null,null,"",null,null,null,null,null,null,null,null,null,"DAIRY MARGIN COVERAGE-PREMIUM REPAYMENTS (8050)","DAIRY MARGIN COVERAGE-PREMIUM REPAYMENTS          ",8050,"N/A","No"]
[null,null,"",null,null,"",null,null,"",null,null,null,null,null,null,null,null,null,"DIPP WEB-BASED (7902)","DIPP WEB-BASED                                    ",7902,"N/A","No"]
[null,null,"",null,null,"",null,null,"",null,null,null,null,null,null,null,null,null,"DIS/WH2 2019 WFHURRINDEMP (2875)","DIS/WH2 2019 WFHURRINDEMP                         ",2875,"WHIP","Yes"]
[null,null,"",null,null,"",null,null,"",null,null,null,null,null,null,null,null,null,"DMC PRGM-SUPLMNTL PREMIUM FEE (8056)","DMC PRGM-SUPLMNTL PREMIUM FEE                     ",8056,"N/A","No"]
[null,null,"",null,null,"",null,null,"",null,null,null,null,null,null,null,null,null,"DMC PRGM-SUPPLEMENTAL (8055)","DMC PRGM-SUPPLEMENTAL                             ",8055,"N/A","No"]
[null,null,"",null,null,"",null,null,"",null,null,null,null,null,null,null,null,null,"ECONOMIC ADJUSTMENT ASSIST-UPLAND COTTON (1225)","ECONOMIC ADJUSTMENT ASSIST-UPLAND COTTON          ",1225,"N/A","No"]
[null,null,"",null,null,"",null,null,"",null,null,null,null,null,null,null,null,null,"ELDP PRICE SUPPORT SYSTEM SUPPORT (6053)","ELDP PRICE SUPPORT SYSTEM SUPPORT                 ",6053,"N/A","No"]
[null,null,"",null,null,"",null,null,"",null,null,null,null,null,null,null,null,null,"EMERGENCY LIVESTOCK RELIEF PROGRAM (2911)","EMERGENCY LIVESTOCK RELIEF PROGRAM                ",2911,"N/A","No"]
[null,null,"",null,null,"",null,null,"",{"$f":"IF(B116=\"\",2,12)","v":2},null,null,null,null,null,null,null,null,"EMERGENCY RELIEF PRGM 2 (2438)","EMERGENCY RELIEF PRGM 2                           ",2438,"N/A","No"]
[null,null,"",null,null,"",null,null,"",null,null,null,null,null,null,null,null,null,"EMERGENCY RELIEF PRGM 2 (2439)","EMERGENCY RELIEF PRGM 2                           ",2439,"N/A","No"]
[null,null,"",null,null,"",null,null,"",null,null,null,null,null,null,null,null,null,"EMERGING MARKETS PROGRAM (7847)","EMERGING MARKETS PROGRAM                          ",7847,"N/A","No"]
[null,null,"",null,null,"",null,null,"",null,null,null,null,null,null,null,null,null,"EMGNCY RELIEF PRGM-NONSPECIALITY CROPS (2437)","EMGNCY RELIEF PRGM-NONSPECIALITY CROPS            ",2437,"N/A","No"]
[null,null,"",null,null,"",null,null,"",null,null,null,null,null,null,null,null,null,"EMGNCY RELIEF PROGRAM-SPECIALITY CROPS (2436)","EMGNCY RELIEF PROGRAM-SPECIALITY CROPS            ",2436,"N/A","No"]
[null,null,"",null,null,"",null,null,"",null,null,null,null,null,null,null,null,null,"ENVIRONMENTAL REVIEW ASSESSMENT TRAIN (6032)","ENVIRONMENTAL REVIEW ASSESSMENT TRAIN             ",6032,"N/A","No"]
[null,null,"",null,null,"",null,null,"",null,null,null,null,null,null,null,null,null,"EXPORT MARKET DEVELOPMENT PAYMENT (7846)","EXPORT MARKET DEVELOPMENT PAYMENT                 ",7846,"N/A","No"]
[null,null,"",null,null,"",null,null,"",null,null,null,null,null,null,null,null,null,"FACILITY LOAN - SUGAR STORAGE (240)","FACILITY LOAN - SUGAR STORAGE                     ",240,"N/A","No"]
[null,null,"",null,null,"",null,null,"",null,null,null,null,null,null,null,null,null,"FACILITY LOAN LIQUID COLLATERAL-FARM STG (214)","FACILITY LOAN LIQUID COLLATERAL-FARM STG          ",214,"N/A","No"]
[null,null,"",null,null,"",null,null,"",null,null,null,null,null,null,null,null,null,"FACILITY LOAN REC'DNG FEE - FARM STORAGE (216)","FACILITY LOAN REC'DNG FEE - FARM STORAGE          ",216,"N/A","No"]
[null,null,"",null,null,"",null,null,"",null,null,null,null,null,null,null,null,null,"FACILITY LOAN RECOVERABLE COSTS-FARM STG (215)","FACILITY LOAN RECOVERABLE COSTS-FARM STG          ",215,"N/A","No"]
[null,null,"",null,null,"",null,null,"",null,null,null,null,null,null,null,null,null,"FARM APP SERV TECH COTTON MGMT SYSTEMS (6051)","FARM APP SERV TECH COTTON MGMT SYSTEMS            ",6051,"N/A","No"]
[null,null,"",null,null,"",null,null,"",null,null,null,null,null,null,null,null,null,"FARM RANCHERS PROGRAM (2887)","FARM RANCHERS PROGRAM                             ",2887,"N/A","No"]
[null,null,"",null,null,"",null,null,"",null,null,null,null,null,null,null,null,null,"FARM RANCHERS PROGRAM (2921)","FARM RANCHERS PROGRAM                             ",2921,"N/A","No"]
[null,null,"",null,null,"",null,null,"",null,null,null,null,null,null,null,null,null,"FARM RANCHERS PROGRAM (2922)","FARM RANCHERS PROGRAM                             ",2922,"N/A","No"]
[null,null,"",null,null,"",null,null,"",null,null,null,null,null,null,null,null,null,"FARM STG FACILITY MICRO LN RECOVER COST (236)","FARM STG FACILITY MICRO LN RECOVER COST           ",236,"N/A","No"]
[null,null,"",null,null,"",null,null,"",null,null,null,null,null,null,null,null,null,"FARM STG FACILITY MICRO LN RECOVER COST (237)","FARM STG FACILITY MICRO LN RECOVER COST           ",237,"N/A","No"]
[null,null,"",null,null,"",null,null,"",null,null,null,null,null,null,null,null,null,"FARM STG MICRO LN BANKRUPTCY REPAYMNT (239)","FARM STG MICRO LN BANKRUPTCY REPAYMNT             ",239,"N/A","No"]
[null,null,"",null,null,"",null,null,"",null,null,null,null,null,null,null,null,null,"FARM STG MICRO LOAN IPAC RECLAIM CREDIT (263)","FARM STG MICRO LOAN IPAC RECLAIM CREDIT           ",263,"N/A","No"]
[null,null,"",null,null,"",null,null,"",null,null,null,null,null,null,null,null,null,"FARM STGE FACILITY MICRO LN REC-FILE FEE (238)","FARM STGE FACILITY MICRO LN REC-FILE FEE          ",238,"N/A","No"]
[null,null,"",null,null,"",null,null,"",null,null,null,null,null,null,null,null,null,"FARM STGE FACLTY LN RCVRBL COSTWEBSYSDLS (268)","FARM STGE FACLTY LN RCVRBL COSTWEBSYSDLS          ",268,"N/A","No"]
[null,null,"",null,null,"",null,null,"",{"$f":"IF(B137=\"\",2,14)","v":2},null,null,null,null,null,null,null,null,"FARM STGE FACLTY LN RCVRBL COSTWEBSYSDLS (269)","FARM STGE FACLTY LN RCVRBL COSTWEBSYSDLS          ",269,"N/A","No"]
[null,null,"",null,null,"",null,null,"",null,null,null,null,null,null,null,null,null,"FARM STGE MICRLN FILE/RCRD FEE WEBSYSDLS (267)","FARM STGE MICRLN FILE/RCRD FEE WEBSYSDLS          ",267,"N/A","No"]
[null,null,{"$f":"_xlfn.IFNA(VLOOKUP(B139,$S$14:$X$300,4,FALSE),\"\")","v":""},null,null,"",null,null,"",null,null,null,null,null,null,null,null,null,"FARM STORAGE FACILITY APPLICATION FEE (220)","FARM STORAGE FACILITY APPLICATION FEE             ",220,"N/A","No"]
[null,null,"",null,null,{"$f":"IF(D140=\"\",\"\",MAX(0,D140-E140))","v":""},null,null,{"$f":"IF(G140=\"\",\"\",MAX(0,G140-H140))","v":""},null,null,null,null,null,null,null,null,null,"FARM STORAGE FACILITY LOAN - DEFAULT (229)","FARM STORAGE FACILITY LOAN - DEFAULT              ",229,"N/A","No"]
[null,null,"",null,null,"",null,null,"",null,null,null,null,null,null,null,null,null,"FARM STORAGE FACILITY LOAN PAYMENTS (210)","FARM STORAGE FACILITY LOAN PAYMENTS               ",210,"N/A","No"]
[null,null,"",null,null,"",null,null,"",null,null,null,null,null,null,null,null,null,"FARM STORAGE FACILITY LOAN TOP REFUNDS (225)","FARM STORAGE FACILITY LOAN TOP REFUNDS            ",225,"N/A","No"]
[null,null,"",null,null,"",null,null,"",null,null,null,null,null,null,null,null,null,"FARM STORAGE FACILITY MICRO LOAN (209)","FARM STORAGE FACILITY MICRO LOAN                  ",209,"N/A","No"]
[null,null,"",null,null,"",null,null,"",null,null,null,null,null,null,null,null,null,"FARM STORAGE MICRO LN APPLICATION REFNDS (264)","FARM STORAGE MICRO LN APPLICATION REFNDS          ",264,"N/A","No"]
[null,null,"",null,null,"",null,null,"",null,null,null,null,null,null,null,null,null,"FARM STORAGE MICRO LOAN DEFAULT (262)","FARM STORAGE MICRO LOAN DEFAULT                   ",262,"N/A","No"]
[null,null,"",null,null,"",null,null,"",null,null,null,null,null,null,null,null,null,"FARM STORAGE MICRO LOAN TOP REFUNDS (261)","FARM STORAGE MICRO LOAN TOP REFUNDS               ",261,"N/A","No"]
[null,null,"",null,null,"",null,null,"",null,null,null,null,null,null,null,null,null,{"$f":"TRIM(T147)&\" (\"&U147&\")\"","v":"FARM STRG FCLTY LN FIL/REC FEE WEBSYSDLS (270)"},"FARM STRG FCLTY LN FIL/REC FEE WEBSYSDLS          ",270,"N/A","No"]
[null,null,"",null,null,"",null,null,"",null,null,null,null,null,null,null,null,null,"FARM STRGE FACILITY LN BANKRUPTCY-RPYMNT (224)","FARM STRGE FACILITY LN BANKRUPTCY-RPYMNT          ",224,"N/A","No"]
[null,null,"",null,null,"",null,null,"",null,null,null,null,null,null,null,null,null,"FARM STRGE FACILITY LN RECVERBL COST REC (228)","FARM STRGE FACILITY LN RECVERBL COST REC          ",228,"N/A","No"]
[null,null,"",null,null,"",null,null,"",null,null,null,null,null,null,null,null,null,"FARM STRGE FACILITY LN-IPAC RECLMTN CR (233)","FARM STRGE FACILITY LN-IPAC RECLMTN CR            ",233,"N/A","No"]
[null,null,"",null,null,"",null,null,"",null,null,null,null,null,null,null,null,null,"FARM STRGE MICRO LN EXP RELATED TO SALES (260)","FARM STRGE MICRO LN EXP RELATED TO SALES          ",260,"N/A","No"]
[null,null,"",null,null,"",null,null,"",null,null,null,null,null,null,null,null,null,"FARM STRGE MICRO LN RCVRBL COSTWEBSYMREC (265)","FARM STRGE MICRO LN RCVRBL COSTWEBSYMREC          ",265,"N/A","No"]
[null,null,"",null,null,"",null,null,"",null,null,null,null,null,null,null,null,null,"FARM STRGE MICRO LN RCVRBL COSTWEBSYSDLS (266)","FARM STRGE MICRO LN RCVRBL COSTWEBSYSDLS          ",266,"N/A","No"]
[null,null,"",null,null,"",null,null,"",null,null,null,null,null,null,null,null,null,"FCC/OTN TRANSPORTATION COSTS FY19 (8514)","FCC/OTN TRANSPORTATION COSTS FY19                 ",8514,"N/A","No"]
[null,null,"",null,null,"",null,null,"",null,null,null,null,null,null,null,null,null,"FFPT2GARP - DEFATTED SOY FLOUR (8405)","FFPT2GARP - DEFATTED SOY FLOUR                    ",8405,"N/A","No"]
[null,null,"",null,null,"",null,null,"",null,null,null,null,null,null,null,null,null,"FLP DIRECT ARPA LOAN REPAYMENT-NON-AUTO (8280)","FLP DIRECT ARPA LOAN REPAYMENT-NON-AUTO           ",8280,"N/A","No"]
[null,null,"",null,null,"",null,null,"",null,null,null,null,null,null,null,null,null,"FLP GUARANTEED ARPA LOAN RPYMNT-NON-AUTO (8284)","FLP GUARANTEED ARPA LOAN RPYMNT-NON-AUTO          ",8284,"N/A","No"]
[null,null,"",null,null,"",null,null,"",{"$f":"IF(B158=\"\",2,16)","v":2},null,null,null,null,null,null,null,null,"FNS 4A FOOD STAMPS (8390)","FNS 4A FOOD STAMPS                                ",8390,"N/A","No"]
[null,null,"",null,null,"",null,null,"",null,null,null,null,null,null,null,null,null,"FNS 4A FOOD STAMPS (8399)","FNS 4A FOOD STAMPS                                ",8399,"N/A","No"]
[null,null,"",null,null,"",null,null,"",null,null,null,null,null,null,null,null,null,"FNS 4A FOOD STAMPS (8517)","FNS 4A FOOD STAMPS                                ",8517,"N/A","No"]
[null,null,"",null,null,"",null,null,"",null,null,null,null,null,null,null,null,null,"FNS SECTION 104 FOOD STAMPS (8392)","FNS SECTION 104 FOOD STAMPS                       ",8392,"N/A","No"]
[null,null,"",null,null,"",null,null,"",null,null,null,null,null,null,null,null,null,"FNS SECTION 104 TEFAP (8511)","FNS SECTION 104 TEFAP                             ",8511,"N/A","No"]
[null,null,"",null,null,"",null,null,"",null,null,null,null,null,null,null,null,null,"FNS SECTION 104 TEFAP ADMIN (8512)","FNS SECTION 104 TEFAP ADMIN                       ",8512,"N/A","No"]
[null,null,"",null,null,"",null,null,"",null,null,null,null,null,null,null,null,null,"FNS SECTION 104-ADMINISTRATION (8396)","FNS SECTION 104-ADMINISTRATION                    ",8396,"N/A","No"]
[null,null,"",null,null,"",null,null,"",null,null,null,null,null,null,null,null,null,"FNS SECTION 104-TEFAP ADMIN (8520)","FNS SECTION 104-TEFAP ADMIN                       ",8520,"N/A","No"]
[null,null,"",null,null,"",null,null,"",null,null,null,null,null,null,null,null,null,"FNS SECTION 17 CAP (8388)","FNS SECTION 17 CAP                                ",8388,"N/A","No"]
[null,null,"",null,null,"",null,null,"",null,null,null,null,null,null,null,null,null,"FNS SECTION 17 CAP (8397)","FNS SECTION 17 CAP                                ",8397,"N/A","No"]
[null,null,"",null,null,"",null,null,"",null,null,null,null,null,null,null,null,null,"FNS SECTION 17C (8515)","FNS SECTION 17C                                   ",8515,"N/A","No"]
[null,null,"",null,null,"",null,null,"",null,null,null,null,null,null,null,null,null,"FNS SECTION 311 (8389)","FNS SECTION 311                                   ",8389,"N/A","No"]
[null,null,"",null,null,"",null,null,"",null,null,null,null,null,null,null,null,null,"FNS SECTION 311 (8398)","FNS SECTION 311                                   ",8398,"N/A","No"]
[null,null,"",null,null,"",null,null,"",null,null,null,null,null,null,null,null,null,"FNS SECTION 311 (8516)","FNS SECTION 311                                   ",8516,"N/A","No"]
[null,null,"",null,null,"",null,null,"",null,null,null,null,null,null,null,null,null,"FNS SECTION 4A DA (8391)","FNS SECTION 4A DA                                 ",8391,"N/A","No"]
[null,null,"",null,null,"",null,null,"",null,null,null,null,null,null,null,null,null,"FNS SECTION 4A DA (8510)","FNS SECTION 4A DA                                 ",8510,"N/A","No"]
[null,null,"",null,null,"",null,null,"",null,null,null,null,null,null,null,null,null,"FNS SECTION 6E (8393)","FNS SECTION 6E                                    ",8393,"N/A","No"]
[null,null,"",null,null,"",null,null,"",null,null,null,null,null,null,null,null,null,"FNS SECTION 6E (8513)","FNS SECTION 6E                                    ",8513,"N/A","No"]
[null,null,"",null,null,"",null,null,"",null,null,null,null,null,null,null,null,null,"FNS SECTION 6E (8521)","FNS SECTION 6E                                    ",8521,"N/A","No"]
[null,null,"",null,null,"",null,null,"",null,null,null,null,null,null,null,null,null,"FNS SECTION104 TEFAP (8519)","FNS SECTION104 TEFAP                              ",8519,"N/A","No"]
[null,null,"",null,null,"",null,null,"",null,null,null,null,null,null,null,null,null,"FOOD FOR EDUCATION 12X2903 DIRECT CITE (8349)","FOOD FOR EDUCATION 12X2903 DIRECT CITE            ",8349,"N/A","No"]
[null,null,"",null,null,"",null,null,"",{"$f":"IF(B179=\"\",2,18)","v":2},null,null,null,null,null,null,null,null,"FOOD FOR EDUCATION PROGRAM (8379)","FOOD FOR EDUCATION PROGRAM                        ",8379,"N/A","No"]
[null,null,"",null,null,"",null,null,"",null,null,null,null,null,null,null,null,null,"FOOD FOR PEACE TITLE II - VEGETABLE OIL (8305)","FOOD FOR PEACE TITLE II - VEGETABLE OIL           ",8305,"N/A","No"]
[null,null,"",null,null,"",null,null,"",null,null,null,null,null,null,null,null,null,"FOOD FOR PROGRESS - ADMINISTRATION (8358)","FOOD FOR PROGRESS - ADMINISTRATION                ",8358,"N/A","No"]
[null,null,"",null,null,"",null,null,"",null,null,null,null,null,null,null,null,null,"FOOD FOR PROGRESS - ADMINISTRATIVE COSTS (8378)","FOOD FOR PROGRESS - ADMINISTRATIVE COSTS          ",8378,"N/A","No"]
[null,null,"",null,null,"",null,null,"",null,null,null,null,null,null,null,null,null,"FOOD FOR PROGRESS - POTATOES, DEHYDRATED (8355)","FOOD FOR PROGRESS - POTATOES, DEHYDRATED          ",8355,"N/A","No"]
[null,null,"",null,null,"",null,null,"",null,null,null,null,null,null,null,null,null,"FOOD FOR PROGRESS - TRANSPORTATION (8356)","FOOD FOR PROGRESS - TRANSPORTATION                ",8356,"N/A","No"]
[null,null,"",null,null,"",null,null,"",null,null,null,null,null,null,null,null,null,"FOOD PURCHASE AND DISTRIBUTION (2871)","FOOD PURCHASE AND DISTRIBUTION                    ",2871,"N/A","No"]
[null,null,"",null,null,"",null,null,"",null,null,null,null,null,null,null,null,null,"FOOD SAFETY CERTFCTN-SPECIALITY CROPS (8293)","FOOD SAFETY CERTFCTN-SPECIALITY CROPS             ",8293,"N/A","No"]
[null,null,"",null,null,"",null,null,"",null,null,null,null,null,null,null,null,null,"FOOD SEC COMM RSRV APPROP (8304)","FOOD SEC COMM RSRV APPROP                         ",8304,"N/A","No"]
[null,null,"",null,null,"",null,null,"",null,null,null,null,null,null,null,null,null,"FOOD SECURITY RESERVE - WHEAT SOY BLEND (8306)","FOOD SECURITY RESERVE - WHEAT SOY BLEND           ",8306,"N/A","No"]
[null,null,"",null,null,"",null,null,"",null,null,null,null,null,null,null,null,null,"FOOD SECURITY RESERVE STORAGE (8354)","FOOD SECURITY RESERVE STORAGE                     ",8354,"N/A","No"]
[null,null,"",null,null,"",null,null,"",null,null,null,null,null,null,null,null,null,"FORFEITURE-COMMODITY (1210)","FORFEITURE-COMMODITY                              ",1210,"N/A","No"]
[null,null,"",null,null,"",null,null,"",null,null,null,null,null,null,null,null,null,"FSFL ARPA LOAN REPAYMENT-NON-AUTOMATED (8282)","FSFL ARPA LOAN REPAYMENT-NON-AUTOMATED            ",8282,"N/A","No"]
[null,null,"",null,null,"",null,null,"",null,null,null,null,null,null,null,null,null,"FSFL NEGATIVE SUBSIDY FINANCING FUND (226)","FSFL NEGATIVE SUBSIDY FINANCING FUND              ",226,"N/A","No"]
[null,null,"",null,null,"",null,null,"",null,null,null,null,null,null,null,null,null,"FSML NEGATIVE SUBSIDY FINANCING FUND (235)","FSML NEGATIVE SUBSIDY FINANCING FUND              ",235,"N/A","No"]
[null,null,"",null,null,"",null,null,"",null,null,null,null,null,null,null,null,null,"GENERAL SALES MANAGER CONTRACT SUPPORT (2859)","GENERAL SALES MANAGER CONTRACT SUPPORT            ",2859,"N/A","No"]
[null,null,"",null,null,"",null,null,"",null,null,null,null,null,null,null,null,null,"GEOGRAPHIC DISADVANTAGED PROGRAM (2865)","GEOGRAPHIC DISADVANTAGED PROGRAM                  ",2865,"N/A","No"]
[null,null,"",null,null,"",null,null,"",null,null,null,null,null,null,null,null,null,"GEOGRAPHIC DISADVANTAGED PROGRAM (2874)","GEOGRAPHIC DISADVANTAGED PROGRAM                  ",2874,"N/A","No"]
[null,null,"",null,null,"",null,null,"",null,null,null,null,null,null,null,null,null,"GIS SUPPORT AND MODERNIZATION (6052)","GIS SUPPORT AND MODERNIZATION                     ",6052,"N/A","No"]
[null,null,"",null,null,"",null,null,"",null,null,null,null,null,null,null,null,null,"GRADUATED PAYMENT REDUCTION (1120)","GRADUATED PAYMENT REDUCTION                       ",1120,"N/A","No"]
[null,null,"",null,null,"",null,null,"",null,null,null,null,null,null,null,null,null,"GRAZE OUT THRU WEB BASED ELDP (5262)","GRAZE OUT THRU WEB BASED ELDP                     ",5262,"N/A","No"]
[null,null,"",null,null,"",null,null,"",{"$f":"IF(B200=\"\",2,20)","v":2},null,null,null,null,null,null,null,null,"HAY GRAZING (6390)","HAY GRAZING                                       ",6390,"N/A","No"]
[null,null,"",null,null,"",null,null,"",null,null,null,null,null,null,null,null,null,"HAY GRAZING, MANAGED (6395)","HAY GRAZING, MANAGED                              ",6395,"N/A","No"]
[null,null,"",null,null,"",null,null,"",null,null,null,null,null,null,null,null,null,"HAZ WASTE REM MISSOURI DEPT NATURAL RES (7668)","HAZ WASTE REM MISSOURI DEPT NATURAL RES           ",7668,"N/A","No"]
[null,null,{"$f":"_xlfn.IFNA(VLOOKUP(B203,$S$14:$X$300,4,FALSE),\"\")","v":""},null,null,"",null,null,"",null,null,null,null,null,null,null,null,null,"HAZ WASTE REM NEBRASKA DEPT ENVIR QUAL (7669)","HAZ WASTE REM NEBRASKA DEPT ENVIR QUAL            ",7669,"N/A","No"]
[null,null,"",null,null,{"$f":"IF(D204=\"\",\"\",MAX(0,D204-E204))","v":""},null,null,{"$f":"IF(G204=\"\",\"\",MAX(0,G204-H204))","v":""},null,null,null,null,null,null,null,null,null,"HAZ WASTE REM-KANSAS DEPT NATURAL RES (7667)","HAZ WASTE REM-KANSAS DEPT NATURAL RES             ",7667,"N/A","No"]
[null,null,"",null,null,"",null,null,"",null,null,null,null,null,null,null,null,null,"HAZARDOUS WASTE JUDGEMENT INTEREST (7671)","HAZARDOUS WASTE JUDGEMENT INTEREST                ",7671,"N/A","No"]
[null,null,"",null,null,"",null,null,"",null,null,null,null,null,null,null,null,null,"HAZARDOUS WASTE JUDGEMENT SETTLEMENT (7670)","HAZARDOUS WASTE JUDGEMENT SETTLEMENT              ",7670,"N/A","No"]
[null,null,"",null,null,"",null,null,"",null,null,null,null,null,null,null,null,null,"HAZARDOUS WASTE TREATMENT SYSTEMS (7662)","HAZARDOUS WASTE TREATMENT SYSTEMS                 ",7662,"N/A","No"]
[null,null,"",null,null,"",null,null,"",null,null,null,null,null,null,null,null,null,"HISTORIC PRESERVATION COMPLIANCE (6033)","HISTORIC PRESERVATION COMPLIANCE                  ",6033,"N/A","No"]
[null,null,"",null,null,"",null,null,"",null,null,null,null,null,null,null,null,null,"INDEMNITY PAYMENT - DAIRY (7900)","INDEMNITY PAYMENT - DAIRY                         ",7900,"N/A","No"]
[null,null,"",null,null,"",null,null,"",null,null,null,null,null,null,null,null,null,"INTEREST - COTTON, SPECIAL LOAN (9400)","INTEREST - COTTON, SPECIAL LOAN                   ",9400,"N/A","No"]
[null,null,"",null,null,"",null,null,"",null,null,null,null,null,null,null,null,null,{"$f":"TRIM(T211)&\" (\"&U211&\")\"","v":"INTERNATIONAL FOOD AID CONFERENCE (7864)"},"INTERNATIONAL FOOD AID CONFERENCE                 ",7864,"N/A","No"]
[null,null,"",null,null,"",null,null,"",null,null,null,null,null,null,null,null,null,"LDP ACRS WIRES (5214)","LDP ACRS WIRES                                    ",5214,"N/A","No"]
[null,null,"",null,null,"",null,null,"",null,null,null,null,null,null,null,null,null,"LIQUIDATED DAMAGES - CRP (7300)","LIQUIDATED DAMAGES - CRP                          ",7300,"N/A","No"]
[null,null,"",null,null,"",null,null,"",null,null,null,null,null,null,null,null,null,"LIQUIDATED DAMAGES - NON-INSURED ASSIST (6995)","LIQUIDATED DAMAGES - NON-INSURED ASSIST           ",6995,"N/A","No"]
[null,null,"",null,null,"",null,null,"",null,null,null,null,null,null,null,null,null,"LIVESTOCK FORAGE PROGRAM (2835)","LIVESTOCK FORAGE PROGRAM                          ",2835,"N/A","No"]
[null,null,"",null,null,"",null,null,"",null,null,null,null,null,null,null,null,null,"LIVESTOCK INDEMINITY PAYMENTS PROGRAM (2832)","LIVESTOCK INDEMINITY PAYMENTS PROGRAM             ",2832,"N/A","No"]
[null,null,null,null,null,null,null,null,null,null,null,null,null,null,null,null,null,null,"LOAD IN CHARGES - PEANUTS (5285)","LOAD IN CHARGES - PEANUTS                         ",5285,"N/A","No"]
[null,null,null,null,null,null,null,null,null,null,null,null,null,null,null,null,null,null,"LOAN DEFICIENCY - BARLEY (5202)","LOAN DEFICIENCY - BARLEY                          ",5202,"N/A","No"]
[null,null,null,null,null,null,null,null,null,null,null,null,null,null,null,null,null,null,"LOAN DEFICIENCY - CORN (5215)","LOAN DEFICIENCY - CORN                            ",5215,"N/A","No"]
[null,null,null,null,null,null,null,null,null,null,null,null,null,null,null,null,null,null,"LOAN DEFICIENCY - LENTILS, DRY (5205)","LOAN DEFICIENCY - LENTILS, DRY                    ",5205,"N/A","No"]
[null,null,null,null,null,null,null,null,null,null,null,null,null,null,null,null,null,null,"MAL - ASSESSMENT FEE DUE (1074)","MAL - ASSESSMENT FEE DUE                          ",1074,"N/A","No"]
[null,null,null,null,null,null,null,null,null,null,null,null,null,null,null,null,null,null,"MAL - ASSESSMENT FEE DUE (1080)","MAL - ASSESSMENT FEE DUE                          ",1080,"N/A","No"]
[null,null,null,null,null,null,null,null,null,null,null,null,null,null,null,null,null,null,"MAL - LOAN SETTLEMENT (1067)","MAL - LOAN SETTLEMENT                             ",1067,"N/A","No"]
[null,null,null,null,null,null,null,null,null,null,null,null,null,null,null,null,null,null,"MAL - LOAN SETTLEMENT (70)","MAL - LOAN SETTLEMENT                             ",70,"N/A","No"]
[null,null,null,null,null,null,null,null,null,null,null,null,null,null,null,null,null,null,"MAL - VIOLATIONS (1090)","MAL - VIOLATIONS                                  ",1090,"N/A","No"]
[null,null,null,null,null,null,null,null,null,null,null,null,null,null,null,null,null,null,"MAL ACRS WIRES (1403)","MAL ACRS WIRES                                    ",1403,"N/A","No"]
[null,null,null,null,null,null,null,null,null,null,null,null,null,null,null,null,null,null,"MAL-INTEREST RECEIVABLE (1066)","MAL-INTEREST RECEIVABLE                           ",1066,"N/A","No"]
[null,null,null,null,null,null,null,null,null,null,null,null,null,null,null,null,null,null,"MARGIN PROTECTION - ADMINISTRATIVE FEE (8027)","MARGIN PROTECTION - ADMINISTRATIVE FEE            ",8027,"N/A","No"]
[null,null,null,null,null,null,null,null,null,null,null,null,null,null,null,null,null,null,"MARGIN PROTECTION - DAIRY (8030)","MARGIN PROTECTION  - DAIRY                        ",8030,"N/A","No"]
[null,null,null,null,null,null,null,null,null,null,null,null,null,null,null,null,null,null,"MARGIN PROTECTION - PREMIUM FEE (8028)","MARGIN PROTECTION - PREMIUM FEE                   ",8028,"N/A","No"]
[null,null,null,null,null,null,null,null,null,null,null,null,null,null,null,null,null,null,"MARGIN PROTECTION - PREMIUM REFUND (8029)","MARGIN PROTECTION - PREMIUM REFUND                ",8029,"N/A","No"]
[null,null,null,null,null,null,null,null,null,null,null,null,null,null,null,null,null,null,"MARGIN PROTECTION PROGRAM - DAIRY (8025)","MARGIN PROTECTION PROGRAM - DAIRY                 ",8025,"N/A","No"]
[null,null,null,null,null,null,null,null,null,null,null,null,null,null,null,null,null,null,"MARKET ACCESS PROGRAM (7610)","MARKET ACCESS PROGRAM                             ",7610,"N/A","No"]
[null,null,null,null,null,null,null,null,null,null,null,null,null,null,null,null,null,null,"MARKET FACILITATION PROGRAM - DAHG (2868)","MARKET FACILITATION PROGRAM - DAHG                ",2868,"N/A","No"]
[null,null,null,null,null,null,null,null,null,null,null,null,null,null,null,null,null,null,"MILK LOSS PROGRAM (2435)","MILK LOSS PROGRAM                                 ",2435,"N/A","No"]
[null,null,null,null,null,null,null,null,null,null,null,null,null,null,null,null,null,null,"MONITOR,ASSESS,EVALUATE-CRP TECH ASSIST (3124)","MONITOR,ASSESS,EVALUATE-CRP TECH ASSIST           ",3124,"N/A","No"]
[null,null,null,null,null,null,null,null,null,null,null,null,null,null,null,null,null,null,"NAP EQUITABLE RELIEF SERVICE FEE (2740)","NAP EQUITABLE RELIEF SERVICE FEE                  ",2740,"N/A","No"]
[null,null,null,null,null,null,null,null,null,null,null,null,null,null,null,null,null,null,"NML - LOCAL SALES (1069)","NML - LOCAL SALES                                 ",1069,"N/A","No"]
[null,null,null,null,null,null,null,null,null,null,null,null,null,null,null,null,null,null,"NML MAL-SETTLEMENT PAYMENTS (1061)","NML MAL-SETTLEMENT PAYMENTS                       ",1061,"N/A","No"]
[null,null,null,null,null,null,null,null,null,null,null,null,null,null,null,null,null,null,"NON AUTOMATED TAP LOSS ADJSTR CONTRACTOR (2850)","NON AUTOMATED TAP LOSS ADJSTR CONTRACTOR          ",2850,"N/A","No"]
[null,null,null,null,null,null,null,null,null,null,null,null,null,null,null,null,null,null,"NON AUTOMATED TAP LOSS ADJSTR TRVL REIMB (2851)","NON AUTOMATED TAP LOSS ADJSTR TRVL REIMB          ",2851,"N/A","No"]
[null,null,null,null,null,null,null,null,null,null,null,null,null,null,null,null,null,null,"NONEMGNCY HAYING/GRAZING DC (6396)","NONEMGNCY HAYING/GRAZING DC                       ",6396,"N/A","No"]
[null,null,null,null,null,null,null,null,null,null,null,null,null,null,null,null,null,null,"NON-INSURED ASSISTANCE PROG AUTHORIZED (2695)","NON-INSURED ASSISTANCE PROG AUTHORIZED            ",2695,"N/A","No"]
[null,null,null,null,null,null,null,null,null,null,null,null,null,null,null,null,null,null,"NON-RECOURSE DEFAULTED LOAN (1062)","NON-RECOURSE DEFAULTED LOAN                       ",1062,"N/A","No"]
[null,null,null,null,null,null,null,null,null,null,null,null,null,null,null,null,null,null,"NON-RECOURSE RFND OF PEANUT PREPAID STRG (1068)","NON-RECOURSE RFND OF PEANUT PREPAID STRG          ",1068,"N/A","No"]
[null,null,null,null,null,null,null,null,null,null,null,null,null,null,null,null,null,null,"NON-RECOURSE UPLAND COTTON STG CREDIT (1063)","NON-RECOURSE UPLAND COTTON STG CREDIT             ",1063,"N/A","No"]
[null,null,null,null,null,null,null,null,null,null,null,null,null,null,null,null,null,null,"NON-SECTION 11 HAZARDOUS WASTE COSTS (7663)","NON-SECTION 11 HAZARDOUS WASTE COSTS              ",7663,"N/A","No"]
[null,null,null,null,null,null,null,null,null,null,null,null,null,null,null,null,null,null,"ONLINE MARKETING SERVICE (6030)","ONLINE MARKETING SERVICE                          ",6030,"N/A","No"]
[null,null,null,null,null,null,null,null,null,null,null,null,null,null,null,null,null,null,"ORGANIC & TRANSITIONAL EDU & CERT PRGM (8291)","ORGANIC & TRANSITIONAL EDU & CERT PRGM            ",8291,"N/A","No"]
[null,null,null,null,null,null,null,null,null,null,null,null,null,null,null,null,null,null,"PANDEMIC ASSISTANCE REVENUE PROGRAM (8290)","PANDEMIC ASSISTANCE REVENUE PROGRAM               ",8290,"N/A","No"]
[null,null,null,null,null,null,null,null,null,null,null,null,null,null,null,null,null,null,"PANDEMIC ASST-TIMBER HARVESTERS/HAULERS (8286)","PANDEMIC ASST-TIMBER HARVESTERS/HAULERS           ",8286,"N/A","No"]
[null,null,null,null,null,null,null,null,null,null,null,null,null,null,null,null,null,null,"PANDEMIC LIVESTOCK INDEMNITY PROGRAM (8287)","PANDEMIC LIVESTOCK INDEMNITY PROGRAM              ",8287,"N/A","No"]
[null,null,null,null,null,null,null,null,null,null,null,null,null,null,null,null,null,null,"PEANUT LOAN ADVANCE (1220)","PEANUT LOAN ADVANCE                               ",1220,"N/A","No"]
[null,null,null,null,null,null,null,null,null,null,null,null,null,null,null,null,null,null,"PEANUT LOAN ADVANCE (1221)","PEANUT LOAN ADVANCE                               ",1221,"N/A","No"]
[null,null,null,null,null,null,null,null,null,null,null,null,null,null,null,null,null,null,"PECAN TREES - ADDTNL SUPLMNTL APPROP (2885)","PECAN TREES - ADDTNL SUPLMNTL APPROP              ",2885,"N/A","No"]
[null,null,null,null,null,null,null,null,null,null,null,null,null,null,null,null,null,null,"PIMA COTTON TRUST FUND (2844)","PIMA COTTON TRUST FUND                            ",2844,"N/A","No"]
[null,null,null,null,null,null,null,null,null,null,null,null,null,null,null,null,null,null,"PRIORITY TRADE FUND (7680)","PRIORITY TRADE FUND                               ",7680,"N/A","No"]
[]
[null,null,null,null,null,null,null,null,null,null,null,null,null,null,null,null,null,null,"QUALITY SAMPLES PROGRAM (7845)","QUALITY SAMPLES PROGRAM                           ",7845,"N/A","No"]
[null,null,null,null,null,null,null,null,null,null,null,null,null,null,null,null,null,null,"RECOURSE DEFAULTED LOAN (1072)","RECOURSE DEFAULTED LOAN                           ",1072,"N/A","No"]
[null,null,null,null,null,null,null,null,null,null,null,null,null,null,null,null,null,null,"RECOURSE LOANS ACRS (1404)","RECOURSE LOANS ACRS                               ",1404,"N/A","No"]
[null,null,null,null,null,null,null,null,null,null,null,null,null,null,null,null,null,null,"RECOURSE MAL - VIOLATIONS (1091)","RECOURSE MAL - VIOLATIONS                         ",1091,"N/A","No"]
[null,null,null,null,null,null,null,null,null,null,null,null,null,null,null,null,null,null,"REMOTE SENSING ACTIVITIES (7850)","REMOTE SENSING ACTIVITIES                         ",7850,"N/A","No"]
[]
[null,null,null,null,null,null,null,null,null,null,null,null,null,null,null,null,null,null,"SPOT MARKET HOG PANDEMIC PROGRAM (8292)","SPOT MARKET HOG PANDEMIC PROGRAM                  ",8292,"N/A","No"]
[null,null,null,null,null,null,null,null,null,null,null,null,null,null,null,null,null,null,"STORAGE CHARGE - AUTOMATED (1205)","STORAGE CHARGE - AUTOMATED                        ",1205,"N/A","No"]
[null,null,null,null,null,null,null,null,null,null,null,null,null,null,null,null,null,null,"STORAGE PAYMENT TO WAREHOUSE (2432)","STORAGE PAYMENT TO WAREHOUSE                      ",2432,"N/A","No"]
[null,null,null,null,null,null,null,null,null,null,null,null,null,null,null,null,null,null,"STORAGE RECEIVABLE-NON-AUTOMATED (2431)","STORAGE RECEIVABLE-NON-AUTOMATED                  ",2431,"N/A","No"]
[null,null,null,null,null,null,null,null,null,null,null,null,null,null,null,null,null,null,"STORAGE REFUND (2430)","STORAGE REFUND                                    ",2430,"N/A","No"]
[null,null,null,null,null,null,null,null,null,null,null,null,null,null,null,null,null,null,"SUBSCRIPTION DTN SERV PRICE DISCOVER OP (6048)","SUBSCRIPTION DTN SERV PRICE DISCOVER OP           ",6048,"N/A","No"]
[null,null,null,null,null,null,null,null,null,null,null,null,null,null,null,null,null,null,"SUGAR STORAGE FACILITY LOAN NON-AUTO (250)","SUGAR STORAGE FACILITY LOAN NON-AUTO              ",250,"N/A","No"]
[null,null,null,null,null,null,null,null,null,null,null,null,null,null,null,null,null,null,"TAP LOSS ADJUSTOR CONTRACTOR (2847)","TAP LOSS ADJUSTOR CONTRACTOR                      ",2847,"N/A","No"]
[null,null,null,null,null,null,null,null,null,null,null,null,null,null,null,null,null,null,"TAP LOSS ADJUSTOR TRAVEL REIMBURSEMENT (2848)","TAP LOSS ADJUSTOR TRAVEL REIMBURSEMENT            ",2848,"N/A","No"]
[null,null,null,null,null,null,null,null,null,null,null,null,null,null,null,null,null,null,"TASCP (2677)","TASCP                                             ",2677,"N/A","No"]
[null,null,null,null,null,null,null,null,null,null,null,null,null,null,null,null,null,null,{"$f":"TRIM(T275)&\" (\"&U275&\")\"","v":"TITLE 2 GRANT,FOOD FOR PEACE-FOOD BARS (8371)"},"TITLE 2 GRANT,FOOD FOR PEACE-FOOD BARS            ",8371,"N/A","No"]
[null,null,null,null,null,null,null,null,null,null,null,null,null,null,null,null,null,null,"TITLE II GRANTS, FOOD FOR PEACE (8406)","TITLE II GRANTS, FOOD FOR PEACE                   ",8406,"N/A","No"]
[null,null,null,null,null,null,null,null,null,null,null,null,null,null,null,null,null,null,"TITLE II GRANTS, FOOD FOR PEACE-UKRAINE (8407)","TITLE II GRANTS, FOOD FOR PEACE-UKRAINE           ",8407,"N/A","No"]
[null,null,null,null,null,null,null,null,null,null,null,null,null,null,null,null,null,null,"TITLE II GRANTS,FOOD FOR PEACE-SOYBEANS (8394)","TITLE II GRANTS,FOOD FOR PEACE-SOYBEANS           ",8394,"N/A","No"]
[null,null,null,null,null,null,null,null,null,null,null,null,null,null,null,null,null,null,"TMP/MFP 2019 LIVESTOCK (2879)","TMP/MFP 2019 LIVESTOCK                            ",2879,"N/A","No"]
[null,null,null,null,null,null,null,null,null,null,null,null,null,null,null,null,null,null,"TMP/MFP 2019 NON-SPECIALITY CROPS-A (2880)","TMP/MFP 2019 NON-SPECIALITY CROPS-A               ",2880,"N/A","No"]
[null,null,null,null,null,null,null,null,null,null,null,null,null,null,null,null,null,null,"TRANSPTN COSTS FOR SINGLE YR AGRMNTS (8530)","TRANSPTN COSTS FOR SINGLE YR AGRMNTS              ",8530,"N/A","No"]
[null,null,null,null,null,null,null,null,null,null,null,null,null,null,null,null,null,null,"TREE ASSISTANCE PROGRAM (2834)","TREE ASSISTANCE PROGRAM                           ",2834,"N/A","No"]
[null,null,null,null,null,null,null,null,null,null,null,null,null,null,null,null,null,null,"TREE ASSISTANCE PROGRAM (2872)","TREE ASSISTANCE PROGRAM                           ",2872,"N/A","No"]
[null,null,null,null,null,null,null,null,null,null,null,null,null,null,null,null,null,null,"TREE THINNING INCENTIVE (3352)","TREE THINNING INCENTIVE                           ",3352,"N/A","No"]
[null,null,null,null,null,null,null,null,null,null,null,null,null,null,null,null,null,null,"TREE THINNING INCENTIVE PROGRAM (3355)","TREE THINNING INCENTIVE PROGRAM                   ",3355,"N/A","No"]
[null,null,null,null,null,null,null,null,null,null,null,null,null,null,null,null,null,null,"VESSEL LOADING OBSERVATIONS PROGRAM (8345)","VESSEL LOADING OBSERVATIONS PROGRAM               ",8345,"N/A","No"]
[null,null,null,null,null,null,null,null,null,null,null,null,null,null,null,null,null,null,"WEB-BASED NAP LOSS ADJUSTOR CONTRACTOR (2786)","WEB-BASED NAP LOSS ADJUSTOR CONTRACTOR            ",2786,"N/A","No"]
[null,null,null,null,null,null,null,null,null,null,null,null,null,null,null,null,null,null,"WEBBS NAP LOSS ADJSTR CNTRCTR TRVL REIMB (2790)","WEBBS NAP LOSS ADJSTR CNTRCTR TRVL REIMB          ",2790,"N/A","No"]
[null,null,null,null,null,null,null,null,null,null,null,null,null,null,null,null,null,null,"WET LAND CONSERVATION (2830)","WET LAND CONSERVATION                             ",2830,"N/A","No"]
[null,null,null,null,null,null,null,null,null,null,null,null,null,null,null,null,null,null,"WHIP - SUGAR BEET COOPERATIVES (2889)","WHIP - SUGAR BEET COOPERATIVES                    ",2889,"N/A","No"]
[null,null,null,null,null,null,null,null,null,null,null,null,null,null,null,null,null,null,{"$f":"TRIM(T291)&\" (\"&U291&\")\"","v":"WML/WML 19 WHIP MILK LOSS (2881)"},"WML/WML 19 WHIP MILK LOSS                         ",2881,"N/A","No"]
[null,null,null,null,null,null,null,null,null,null,null,null,null,null,null,null,null,null,{"$f":"TRIM(T292)&\" (\"&U292&\")\"","v":"WOOL MANUFACTURERS TRUST FUND (2845)"},"WOOL MANUFACTURERS TRUST FUND                     ",2845,"N/A","No"]

{"sheet":"Instructions","index":7,"n_rows":75,"n_cols":4,"rows_kept":75,"cut":false,"hidden":false,"merged":[[73,3,73,4],[71,3,71,4],[72,3,72,4],[74,3,74,4],[58,3,58,4],[59,3,59,4],[67,3,67,4],[68,3,68,4],[65,3,65,4],[66,3,66,4],[64,1,64,4],[69,1,69,4],[70,1,70,4],[60,3,60,4],[61,3,61,4],[62,1,62,4],[55,3,55,4],[52,1,52,4],[53,1,53,4],[56,1,56,4],[57,1,57,4],[54,3,54,4],[42,3,42,4],[40,1,40,4],[43,3,43,4],[44,3,44,4],[45,3,45,4],[41,1,41,4],[46,3,46,4],[47,3,47,4],[50,3,50,4],[51,3,51,4],[48,1,48,4],[49,1,49,4],[63,1,63,4],[0,2,0,4],[1,1,1,2],[2,1,2,4],[3,1,3,4],[4,3,4,4],[1,3,1,4],[28,1,28,4],[11,3,11,4],[22,3,27,4],[16,1,16,4],[21,1,21,4],[10,3,10,4],[15,3,15,4],[29,3,29,4],[12,3,12,4],[13,3,13,4],[5,3,5,4],[9,3,9,4],[6,3,6,4],[7,3,7,4],[8,3,8,4],[17,3,17,4],[18,3,18,4],[19,3,19,4],[20,3,20,4],[14,3,14,4],[37,3,37,4],[30,1,37,1],[38,1,38,4],[39,1,39,4],[30,3,30,4],[31,3,31,4],[32,3,32,4],[33,3,33,4],[34,3,34,4],[35,3,35,4],[36,3,36,4]]}
[]
[null,"Data Field Name",null,"Instructions"]
[null,"Data Entry"]
[null,"Producer Information"]
[null,1,"Producer’s Name (Person or Legal Entity)","Enter the producer or legal entity’s full name. "]
[null,2,"Address Line 1","Enter producer's address."]
[null,3,"Address Line 2","Enter producer's address if second line is required."]
[null,4,"City","Enter producer's city"]
[null,5,"State","Enter producer's state"]
[null,6,"Zip","Enter producers zip code."]
[null,7,"Information Line","Entersecondary name or c/o (care of for the producer), if applicable.  Optional field."]
[null,"8A","Primary Phone Number","Enter producer's alternate phone number under home or cell, if applicable."]
[null,"8B","Alternate Phone Number","Enter producer's primary phone number under home or cell, as applicable."]
[null,9,"Email Address","Enter producer's email address."]
[null,10,"Recording State","Using the dropdown, enter the producer’s recording state."]
[null,11,"Recording County","Using the dropdown, enter the producer’s recording county."]
[null,"Disaster Information"]
[null,12,"B)  What benchmark year (2018 tax year, 2019 tax year) represents a typical year of revenue or will you use expected revenue?","Using the dropdown, select one of the following options intended to represent a typical year of revenue for the operation:  \n*  2018 Tax Year\n*  2019 Tax Year\n*  Expected Revenue   \nNotes:  Producers who received a payment under ERP Phase 2 for the 2021 program year and elected the 2022 tax year for their representative disaster year are required to us the Tax Year Option if they: \n*  did not have revenue in the 2018 or 2019 tax years\n*  experienced a decrease in operation capacity\n*  did not have revenue directly from the sale of an eligible crop due to their ordinary operation (such as forage crops grown and fed to livestock on the farm).    "]
[null,13,"What representative revenue year did you experience a crop loss for crop year 2022 due to the qualifying disaster event?","Using the dropdown select one of the following options intended to represent the disaster year revenue for the operation: \n*  2022 Tax Year\n*  2023 Tax Year \n*  Actual\nNotes:  If the tax year option was selected in the benchmark year in Item 10 then the producer must use either the 2022 or 2023 tax year as the representative revenue year. \nThe 2023 tax year must be selected if the producer received a payment under ERP Phase 2 for the 2021 program year and elected the 2022 tax year for their representative revenue year.\nIf the expected revenue option was selected in the benchmark year in Item 10, then the producer must use the actual disaster year revenue received for all eligible crops that could have been affected by a qualifying disaster event in calendar year 2022 in the representative disaster year. "]
[null,14,"Were all eligible crops covered by crop insurance or NAP?","Using the dropdown, the producer must certify if all acreage of eligible crops (including crops grown, prevented from being planted, and in storage or inventory in the disaster year) was covered by crop insurance or NAP for the purpose of determining the applicable ERP factor.  \nProducers will select “Yes” if all eligible crops and acreage were covered by crop insurance or NAP during the applicable growing season. \nProducers will select  “No” if all eligible crops were not covered by crop insurance or NAP during the applicable growing season. \nNote:  Producers of eligible crops in storage may certify that the crops were covered by crop insurance or NAP only if all acres of the crops were insured at the time the crop was grown. For example, a grain bin may contain corn from both the 2021 and 2022 crop years. To be considered insured, all the corn must have been insured in the 2021 and 2022 growing seasons. "]
[null,15,"What percentage of Expected Revenue from Specialty & High Value Crops","The producers will provide the percentage of their disaster year revenue that they expected to receive from specialty and high value crops.  \n\nNotes:  The percentage must be based on what the producer would have reasonably expected to receive in the disaster year if the qualifying disaster event had not occurred for both the tax year option and the expected revenue option.  "]
[null,"Adjustment Only Applicable to Producers Required to Take Tax Year Option"]
[null,"16A","Are you a new producer that did not have any allowable revenue in 2018 or 2019?","Using the dropdown select \"Yes\" or :\"No\".  Answering Yes to one of these questions will allow you to adjust the benchmark revenue if using a \"Tax Year\" option in item 12.  Click on the blue \"button\" to go to the adjustments page.\n"]
[null,"16B","Do you have allowable revenue in 2018 or 2019, but your operation has undergone an increase in operating capacity from Benchmark Year to Disaster Year? "]
[null,"16C","Do you have allowable revenue in 2018 or 2019, but your operation has undergone a decrease in operating capacity from Benchmark Year to Disaster Year? "]
[null,"16D","Do you have crops with no revenue from sales ( DAFP approved crops)? "]
[null,null,"Navigates to Adjustments Screen"]
[null,null,"Navigates to DAFP Approved Screen"]
[null,"Allowable Revenue"]
[null,"17-24 or 17-29","The questions will vary depending if you chose a tax year or expected revenue in item 12.  ","Ener the revenue for the applicable question in the yellow cells under the applicable Revenue column.  Comments will assist in completing the form."]
[null,"Blue Buttons","Go to Instructions","Navigates to the Instruction tab"]
[null,null,"Go to FSA-524","Navigates to the FSA-524"]
[null,null,"Go to FSA-524-A","Navigates to the FSA-524-A"]
[null,null,"Go to FSA-524-B","Navigates to the FSA-524-B"]
[null,null,"Print FSA-524","Prints the FSA-524"]
[null,null,"Print FSA-524-A","Prints the FSA-524-A"]
[null,null,"Print FSA-524-B","Prints the FSA-524-B"]
[null,null,"Go to Adjustments Sheet","Navigates to the adjustments sheet as indicated in the instructions on 16"]
[null,"Adjustments"]
[null,"Note:  Are The data entered in these sections will populate on the FSA-524A and FSA-524B to aid in completion of the forms."]
[null,"Eligible Yield-Based Crops"]
[null,"Note:  This information will populate on the FSA-524A for adjustments to the benchmark revenue and the  FSA-524B to determine the Expected Revenue."]
[null,1,"Crop:","Enter the yield-based crop that could have been affected by a qualifying 2022 disaster event. "]
[null,2,"Expected Acres:","Enter the expected acres for the crop identified in item 31."]
[null,3,"Expected Yield/Acre:","Enter the expected yield per acre for the crop identified in item 31."]
[null,4,"Unit of Measure:","Enter the unit of measure for the crop identified in item 31."]
[null,5,"Expected Price/Unit:","Enter the expected price per unit of measure for the crop identified in item 31."]
[null,6,"Expected Revenue:","Item 2 multiplied by item 3 multiplied by item 5.   Autocalculated."]
[null,"ELIGIBLE SALES FROM VALUE ADDED THROUGH POST-PRODUCTION ACTIVITES"]
[null,"Note:  This information will populate on the FSA-524A for adjustments to the benchmark revenue."]
[null,7,"Crop:","Enter the value added based crop  that could have been affected by a qualifying 2022 disaster event. "]
[null,8,"Expected Revenue:","Enter the expected revenue from the croplisted in item 7. "]
[null,"Eligible Inventory Crops"]
[null,"Note:  This information will populate on the FSA-524A for adjustments to the benchmark revenue and the  FSA-524B to determine the Expected Revenue."]
[null,9,"Crop:","Enter the inventory crop that could have been affected by a qualifying 2022 disaster event. "]
[null,10,"Expected Revenue:","Enter the expected revenue from the crop listed in item 9. "]
[null,"Expected Value from Eligible Stored Crops"]
[null,"Note:  This information will populate on the  FSA-524B to determine Expected Revenue."]
[null,11,"Crop:","Enter the yield based crop that could have been affected by a qualifying 2022 disaster event. "]
[null,12,"Total Production:","Enter the total production stored for the eligible crop in item 11"]
[null,13,"Expected Price/Unit:","Enter the expected price per unit of measure for the crop identified in item 11."]
[null,14,"Expected Revenue:","Item 12 multiplied by item 13.   Autocalculated."]
[null,"VALUE OF DEPUTY ADMINISTRATOR-APPROVED CROPS PRODUCED BUT NOT SOLD IN THE BENCHMARK YEAR\\"]
[null,"Benchmark Year Value of Deputy Administrator Approved Cops Produced but not Sold"]
[null,"Note:  This information will populate on the FSA-524A for adjustments to the benchmark revenue."]
[null,1,"Crop:","Enter the DAFP approved crop that was produced but not sold in the benchmark year. "]
[null,2,"Total Production:","Enter the total production for the crop identified in item 1."]
[null,3,"Expected Price/Unit:","Enter the expected price per unit of measure for the crop identified in item 1."]
[null,4,"Benchmark Value:","Item 2 multiplied by item 3.   Autocalculated."]
[null,"Disaster Year Value of Deputy Administrator Approved Cops Produced but not Sold"]
[null,"Note:  This information will populate on the FSA-524A for adjustments to the actual revenue."]
[null,5,"Crop:","Enter the Deputy Administrator approved crop that was produced but not sold that could have been affected by a qualifying 2022 disaster event. "]
[null,6,"Total Production:","Enter the total production for the crop identified in item 5."]
[null,7,"Expected Price/Unit:","Enter the expected price per unit of measure for the crop identified in item 5."]
[null,8,"Disaster Year Value:","Item 6 multiplied by item 7.   Autocalculated."]

{"sheet":"st_cty_dropdowns","index":8,"n_rows":255,"n_cols":58,"rows_kept":255,"cut":false,"hidden":true,"merged":[]}
[" ","Alabama (01)","Alaska (02)","Arizona (04)","Arkansas (05)","California (06)","Colorado (08)","Connecticut (09)","Delaware (10)","District of Columbia (11)","Florida (12)","Georgia (13)","Guam (14)","Hawaii (15)","Idaho (16)","Illinois (17)","Indiana (18)","Iowa (19)","Kansas (20)","Kentucky (21)","Louisiana (22)","Maine (23)","Maryland (24)","Massachusetts (25)","Michigan (26)","Minnesota (27)","Mississippi (28)","Missouri (29)","Montana (30)","Nebraska (31)","Nevada (32)","New Hampshire (33)","New Jersey (34)","New Mexico (35)","New York (36)","North Carolina (37)","North Dakota (38)","Ohio (39)","Oklahoma (40)","Oregon (41)","Pennsylvania (42)","Rhode Island (44)","South Carolina (45)","South Dakota (46)","Tennessee (47)","Texas (48)","Utah (49)","Vermont (50)","Virginia (51)","Virgin Islands of the U.S. (52)","Washington (53)","West Virginia (54)","Wisconsin (55)","Wyoming (56)","American Samoa (60)","Federated States of Micronesia (64)","Northern Mariana Islands (69)","Puerto Rico (72)"]
[null,"Autauga (001)","Fairbanks (001)","Apache (001)","Arkansas (001)","Alameda (001)","Adams (001)","Fairfield (001)","Kent (001)","District of Columbia (001)","Alachua (001)","Appling (001)","Guam (001)","Hawaii (001)","Ada (001)","Adams (001)","Adams (001)","Adair (001)","Allen (001)","Adair (001)","Acadia (001)","Androscoggin (001)","Allegany (001)","Barnstable (001)","Alcona (001)","Aitkin (001)","Adams (001)","Adair (001)","Beaverhead (001)","Adams (001)","Churchill (001)","Belknap (001)","Atlantic (001)","Bernalillo (001)","Albany (001)","Alamance (001)","Adams (001)","Adams (001)","Adair (001)","Baker (001)","Adams (001)","Bristol (001)","Abbeville (001)","Aurora (003)","Anderson (001)","Anderson (001)","Beaver (001)","Addison (001)","Accomack (001)","St. Croix (001)","Adams (001)","Barbour (001)","Adams (001)","Albany (001)","American Samoa (001)","Pohnpei (040)","Rota (100)","Adjuntas (001)"]
[null,"Baldwin (003)","Delta (002)","Cochise (003)","Ashley (003)","Alpine (003)","Alamosa (003)","Hartford (003)","New Castle (003)",null,"Baker (003)","Atkinson (003)",null,"Honolulu (003)","Adams (003)","Alexander (003)","Allen (003)","Adams (003)","Anderson (003)","Allen (003)","Allen (003)","Houlton (002)","Anne Arundel (003)","Berkshire (003)","Alger (003)","Anoka (003)","Alcorn (003)","Andrew (003)","Big Horn (003)","Antelope (003)","Clark (003)","Carroll (003)","Burlington (005)","Catron (003)","Allegany (003)","Alexander (003)","Barnes (003)","Allen (003)","Alfalfa (003)","Benton (003)","Allegheny (003)","Kent (003)","Aiken (003)","Beadle (005)","Bedford (003)","Andrews (003)","Box Elder (003)","Bennington (003)","Albemarle, Charlottesville City (003)","St. John (003)","Asotin (003)","Berkeley (003)","Ashland (003)","Big Horn (003)",null,null,"Saipan (110)","Arecibo (013)"]
[null,"Barbour (005)","Homer (003)","Coconino (005)","Baxter (005)","Amador (005)","Arapahoe (005)","Litchfield (005)","Sussex (005)",null,"Bay (005)","Bacon (005)",null,"Kalawao (005)","Bannock (005)","Bond (005)","Bartholomew (005)","Allamakee (005)","Atchison (005)","Anderson (005)","Ascension (005)","Aroostook (003)","Baltimore (005)","Bristol (005)","Allegan (005)","Becker (005)","Amite (005)","Atchison (005)","Blaine (005)","Arthur (005)","Douglas (005)","Cheshire (005)","Camden (007)","Chaves (005)","Bronx (005)","Alleghany (005)","Benson (005)","Ashland (005)","Atoka (005)","Clackamas (005)","Armstrong (005)","Newport (005)","Allendale (005)","Bennett (007)","Benton (005)","Angelina (005)","Cache (005)","Caledonia (005)","Alleghany, Covington City (005)","St. Thomas (005)","Benton (005)","Boone (005)","Barron (005)","Campbell (005)",null,null,"Tinian (120)","Barranquitas (019)"]
[null,"Bibb (007)","Palmer (005)","Gila (007)","Benton (007)","Butte (007)","Archuleta (007)","Middlesex (007)",null,null,"Bradford (007)","Baker (007)",null,"Kauai (007)","Bear Lake (007)","Boone (007)","Benton (007)","Appanoose (007)","Barber (007)","Ballard (007)","Assumption (007)","Fort Kent (004)","Calvert (009)","Dukes (007)","Alpena (007)","Beltrami (007)","Attala (007)","Audrain (007)","Broadwater (007)","Banner (007)","Elko (007)","Coos (007)","Cape May (009)","Cibola (006)","Broome (007)","Anson (007)","Billings (007)","Ashtabula (007)","Beaver (007)","Clatsop (007)","Beaver (007)","Providence (007)","Anderson (007)","Bon Homme (009)","Bledsoe (007)","Aransas (007)","Carbon (007)","Chittenden (007)","Amelia (007)",null,"Chelan (007)","Braxton (007)","Bayfield (007)","Carbon (007)",null,null,null,"Caguas (025)"]
[null,"Blount (009)",null,"Graham (009)","Boone (009)","Calaveras (009)","Baca (009)","New Haven (009)",null,null,"Brevard (009)","Baldwin (009)",null,"Maui (009)","Benewah, South Shoshone (009)","Brown (009)","Blackford (009)","Audubon (009)","Barton (009)","Barren (009)","Avoyelles (009)","Cumberland (005)","Caroline (011)","Essex (009)","Antrim (009)","Benton (009)","Benton (009)","Barry (009)","Carbon (009)","Blaine (009)","Esmeralda (009)","Grafton (009)","Cumberland (011)","Colfax (007)","Cattaraugus (009)","Ashe (009)","Bottineau (009)","Athens (009)","Beckham (009)","Columbia (009)","Bedford (009)","Washington (009)","Bamberg (009)","Brookings (011)","Blount (009)","Archer (009)","Daggett (009)","Essex (009)","Amherst (009)",null,"Clallam (009)","Brooke (009)","Brown (009)","Converse (009)",null,null,null,"Corozal (047)"]
[null,"Bullock (011)",null,"Greenlee (011)","Bradley (011)","Colusa (011)","Bent (011)","New London (011)",null,null,"Broward (011)","Banks (011)",null,null,"Bingham (011)","Bureau (011)","Boone (011)","Benton (011)","Bourbon (011)","Bath (011)","Beauregard (011)","Franklin (007)","Carroll (013)","Franklin (011)","Arenac (011)","Big Stone (011)","Bolivar (011)","Barton (011)","Carter (011)","Boone (011)","Eureka (011)","Hillsborough (011)","Gloucester (015)","Curry (009)","Cayuga (011)","Avery (011)","Bowman (011)","Auglaize (011)","Blaine (011)","Coos (011)","Berks (011)",null,"Barnwell (011)","Brown (013)","Bradley (011)","Armstrong (011)","Davis (011)","Franklin (011)","Appomattox (011)",null,"Clark (011)","Cabell (011)","Buffalo (011)","Crook (011)",null,null,null,"Lares (081)"]
[null,"Butler (013)",null,"La Paz (012)","Calhoun (013)","Contra Costa (013)","Boulder (013)","Tolland (013)",null,null,"Calhoun (013)","Barrow (013)",null,null,"Blaine (013)","Calhoun (013)","Brown (013)","Black Hawk (013)","Brown (013)","Bell (013)","Bienville (013)","Hancock (009)","Cecil (015)","Hampden (013)","Baraga (013)","Blue Earth (013)","Calhoun (013)","Bates (013)","Cascade (013)","Box Butte (013)","Humboldt (013)","Merrimack (013)","Hunterdon (019)","De Baca (011)","Chautauqua (013)","Beaufort (013)","Burke (013)","Belmont (013)","Bryan (013)","Crook (013)","Blair (013)",null,"Beaufort (013)","Brule (015)","Campbell (013)","Atascosa (013)","Duchesne (013)","Grand Isle (013)","Arlington (013)",null,"Columbia (013)","Calhoun (013)","Burnett (013)","Fremont (013)",null,null,null,"Mayaguez (097)"]
[null,"Calhoun (015)",null,"Maricopa (013)","Carroll (015)","Del Norte (015)","Broomfield (014)","Windham (015)",null,null,"Charlotte (015)","Bartow (015)",null,null,"Boise (015)","Carroll (015)","Carroll (015)","Boone (015)","Butler (015)","Boone (015)","Bossier (015)","Kennebec (011)","Charles (017)","Hampshire (015)","Barry (015)","Brown (015)","Carroll (015)","Benton (015)","Chouteau (015)","Boyd (015)","Lander (015)","Rockingham (015)","Mercer (021)","Dona Ana (013)","Chemung (015)","Bertie (015)","Burleigh (015)","Brown (015)","Caddo (015)","Curry (015)","Bradford (015)",null,"Berkeley (015)","Buffalo (017)","Cannon (015)","Austin (015)","Emery (015)","Lamoille (015)","Augusta (015)",null,"Cowlitz (015)","Clay (015)","Calumet (015)","Goshen (015)",null,null,null,"Ponce (113)"]
[null,"Chambers (017)",null,"Mohave (015)","Chicot (017)","El Dorado (017)","Chaffee (015)",null,null,null,"Citrus (017)","Ben Hill (017)",null,null,"Bonner (017)","Cass (017)","Cass (017)","Bremer (017)","Chase (017)","Bourbon (017)","Caddo (017)","Knox (013)","Dorchester (019)","Middlesex (017)","Bay (017)","Carlton (017)","Chickasaw (017)","Bollinger (017)","Custer (017)","Brown (017)","Lincoln (017)","Strafford (017)","Middlesex (023)","Eddy (015)","Chenango (017)","Bladen (017)","Cass (017)","Butler (017)","Canadian (017)","Deschutes (017)","Bucks (017)",null,"Calhoun (017)","Butte (019)","Carroll (017)","Bailey (017)","Garfield (017)","Orange (017)","Bath (017)",null,"Douglas (017)","Doddridge (017)","Chippewa (017)","Hot Springs (017)",null,null,null,"Utuado (141)"]
[null,"Cherokee (019)",null,"Navajo (017)","Clark (019)","Fresno (019)","Cheyenne (017)",null,null,null,"Clay (019)","Berrien (019)",null,null,"Bonneville (019)","Champaign (019)","Clark (019)","Buchanan (019)","Chautauqua (019)","Boyd (019)","Calcasieu (019)","Lincoln (015)","Frederick (021)","Nantucket (019)","Benzie (019)","Carver (019)","Choctaw (019)","Boone (019)","Daniels (019)","Buffalo (019)","Lyon (019)","Sullivan (019)","Monmouth (025)","Grant (017)","Clinton (019)","Brunswick (019)","Cavalier (019)","Carroll (019)","Carter (019)","Douglas (019)","Butler (019)",null,"Charleston (019)","Campbell (021)","Carter (019)","Bandera (019)","Grand (019)","Orleans (019)","Bedford (019)",null,"Ferry (019)","Fayette (019)","Clark (019)","Johnson (019)"]
[null,"Chilton (021)",null,"Pima (019)","Clay (021)","Glenn (021)","Clear Creek (019)",null,null,null,"Collier (021)","Bibb (021)",null,null,"Boundary (021)","Christian (021)","Clay (021)","Buena Vista (021)","Cherokee (021)","Boyle (021)","Caldwell (021)","Oxford (017)","Garrett (023)","Norfolk (021)","Berrien (021)","Cass (021)","Claiborne (021)","Buchanan (021)","Dawson (021)","Burt (021)","Mineral (021)",null,"Morris, Bergen, Essex, Hudson, Passaic (027)","Guadalupe (019)","Columbia (021)","Buncombe (021)","Dickey (021)","Champaign (021)","Cherokee (021)","Gilliam (021)","Cambria (021)",null,"Cherokee (021)","Charles Mix (023)","Cheatham (021)","Bastrop (021)","Iron (021)","Rutland (021)","Bland (021)",null,"Franklin (021)","Gilmer (021)","Columbia (021)","Laramie (021)"]
[null,"Choctaw (023)",null,"Pinal (021)","Cleburne (023)","Humboldt (023)","Conejos (021)",null,null,null,"Columbia (023)","Bleckley (023)",null,null,"Butte (023)","Clark (023)","Clinton (023)","Butler (023)","Cheyenne (023)","Bracken (023)","Cameron (023)","Penobscot (019)","Harford (025)","Plymouth (023)","Branch (023)","Chippewa (023)","Clarke (023)","Butler (023)","Deer Lodge (023)","Butler (023)","Northwest Nye (023)",null,"Ocean (029)","Harding (021)","Cortland (023)","Burke (023)","Divide (023)","Clark (023)","Choctaw (023)","Grant (023)","Cameron (023)",null,"Chester (023)","Clark (025)","Chester (023)","Baylor (023)","Juab (023)","Washington (023)","Botetourt (023)",null,"Garfield (023)","Grant (023)","Crawford (023)","Lincoln (023)"]
[null,"Clarke (025)",null,"Santa Cruz (023)","Cleveland (025)","Imperial (025)","Costilla (023)",null,null,null,"Dade, Monroe (025)","Brantley (025)",null,null,"Camas (025)","Clay (025)","Crawford (025)","Calhoun (025)","Clark (025)","Breathitt (025)","Catahoula (025)","Piscataquis (021)","Howard (027)","Suffolk (025)","Calhoun (025)","Chisago (025)","Clay (025)","Caldwell (025)","Fallon (025)","Cass (025)","Pershing (027)",null,"Salem (033)","Hidalgo (023)","Delaware (025)","Cabarrus (025)","Dunn (025)","Clermont (025)","Cimarron (025)","Harney (025)","Carbon (025)",null,"Chesterfield (025)","Clay (027)","Claiborne (025)","Bee (025)","Kane (025)","Windham (025)","Brunswick (025)",null,"Grant (025)","Greenbrier (025)","Dane (025)","Natrona (025)"]
[null,"Clay (027)",null,"Yavapai (025)","Columbia (027)","Inyo (027)","Crowley (025)",null,null,null,"DeSoto (027)","Brooks (027)",null,null,"Canyon (027)","Clinton (027)","Daviess (027)","Carroll (027)","Clay (027)","Breckinridge (027)","Claiborne (027)","Sagadahoc (023)","Kent (029)","Worcester (027)","Cass (027)","Clay (027)","Coahoma (027)","Callaway (027)","Fergus (027)","Cedar (027)","Storey (029)",null,"Somerset, Union (035)","Lea (025)","Dutchess (027)","Caldwell (027)","Eddy (027)","Clinton (027)","Cleveland (027)","Hood River (027)","Centre (027)",null,"Clarendon (027)","Codington (029)","Clay (027)","Bell (027)","Millard (027)","Windsor (027)","Buchanan (027)",null,"Grays Harbor (027)","Hampshire (027)","Dodge (027)","Niobrara (027)"]
[null,"Cleburne (029)",null,"Yuma (027)","Conway (029)","Kern (029)","Custer (027)",null,null,null,"Dixie (029)","Bryan (029)",null,null,"Caribou (029)","Coles (029)","Dearborn (029)","Cass (029)","Cloud (029)","Bullitt (029)","Concordia (029)","Somerset (025)","Montgomery (031)",null,"Charlevoix (029)","Clearwater (029)","Copiah (029)","Camden (029)","Flathead (029)","Chase (029)","Washoe (031)",null,"Sussex (037)","Lincoln (027)","Erie (029)","Camden (029)","Emmons (029)","Columbiana (029)","Coal (029)","Jackson (029)","Chester (029)",null,"Colleton (029)","Corson (031)","Cocke (029)","Bexar (029)","Morgan (029)",null,"Buckingham (029)",null,"Island (029)","Hancock (029)","Door (029)","Park (029)"]
[null,"Coffee (031)",null,null,"Craighead (031)","Kings (031)","Delta (029)",null,null,null,"Duval (031)","Bulloch (031)",null,null,"Cassia (031)","Cook (031)","Decatur (031)","Cedar (031)","Coffey (031)","Butler (031)","De Soto (031)","Waldo (027)","Prince George's (033)",null,"Cheboygan (031)","Cook (031)","Covington (031)","Cape Girardeau (031)","Gallatin (031)","Cherry (031)","White Pine (033)",null,"Warren (041)","Luna (029)","Essex (031)","Carteret (031)","Foster (031)","Coshocton (031)","Comanche (031)","Jefferson (031)","Clarion (031)",null,"Darlington (031)","Custer (033)","Coffee (031)","Blanco (031)","Piute (031)",null,"Campbell, Lynchburg City (031)",null,"Jefferson (031)","Hardy (031)","Douglas (031)","Platte (031)"]
[null,"Colbert (033)",null,null,"Crawford (033)","Lake (033)","Denver (031)",null,null,null,"Escambia (033)","Burke (033)",null,null,"Clark (033)","Crawford (033)","DeKalb (033)","Cerro Gordo (033)","Comanche (033)","Caldwell (033)","East Baton Rouge (033)","Washington (029)","Queen Anne's (035)",null,"Chippewa (033)","Cottonwood (033)","DeSoto (033)","Carroll (033)","Garfield (033)","Cheyenne (033)","Southeast Nye (035)",null,null,"McKinley (031)","Franklin (033)","Caswell (033)","Golden Valley (033)","Crawford (033)","Cotton (033)","Josephine (033)","Clearfield (033)",null,"Dillon (033)","Davison (035)","Crockett (033)","Borden (033)","Rich (033)",null,"Caroline (033)",null,"South King (033)","Harrison (033)","Dunn (033)","Sheridan (033)"]
[null,"Conecuh (035)",null,null,"Crittenden (035)","Lassen (035)","Dolores (033)",null,null,null,"Flagler (035)","Butts (035)",null,null,"Clearwater (035)","Cumberland (035)","Delaware (035)","Cherokee (035)","Cowley (035)","Calloway (035)","East Carroll (035)","York (031)","St. Mary's (037)",null,"Clare (035)","Crow Wing (035)","Forrest (035)","Carter (035)","Glacier (035)","Clay (035)","Carson City (510)",null,null,"Mora (033)","Fulton (035)","Catawba (035)","Grand Forks (035)","Cuyahoga (035)","Craig (035)","Klamath (035)","Clinton (035)",null,"Dorchester (035)","Day (037)","Cumberland (035)","Bosque (035)","Salt Lake (035)",null,"Carroll, East Galax City (035)",null,"Kitsap (035)","Jackson (035)","Eau Claire (035)","Sublette (035)"]
[null,"Coosa (037)",null,null,"Cross (037)","Los Angeles (037)","Douglas (035)",null,null,null,"Franklin (037)","Calhoun (037)",null,null,"South Custer (037)","DeKalb (037)","Dubois (037)","Chickasaw (037)","Crawford (037)","Campbell (037)","East Feliciana (037)",null,"Somerset (039)",null,"Clinton (037)","Dakota (037)","Franklin (037)","Cass (037)","Golden Valley (037)","Colfax (037)",null,null,null,"Otero (035)","Genesee (037)","Chatham (037)","Grant (037)","Darke (037)","Creek (037)","Lake (037)","Columbia (037)",null,"Edgefield (037)","Deuel (039)","Davidson (037)","Bowie (037)","San Juan (037)",null,"Charles City (036)",null,"Kittitas (037)","Jefferson (037)","Florence (037)","Sweetwater (037)"]
[null,"Covington (039)",null,null,"Dallas (039)","Madera (039)","Eagle (037)",null,null,null,"Gadsden (039)","Camden (039)",null,null,"Elmore (039)","DeWitt (039)","Elkhart (039)","Clarke (039)","Decatur (039)","Carlisle (039)","Evangeline (039)",null,"Talbot (041)",null,"Crawford (039)","Dodge (039)","George (039)","Cedar (039)","Granite (039)","Cuming (039)",null,null,null,"Quay (037)","Greene (039)","Cherokee (039)","Griggs (039)","Defiance (039)","Custer (039)","Lane (039)","Crawford (039)",null,"Fairfield (039)","Dewey (041)","Decatur (039)","Brazoria (039)","Sanpete (039)",null,"Charlotte (037)",null,"Klickitat (039)","Kanawha (039)","Fond du Lac (039)","Teton (039)"]
[null,"Crenshaw (041)",null,null,"Desha (041)","Marin (041)","Elbert (039)",null,null,null,"Gilchrist (041)","Candler (043)",null,null,"Franklin (041)","Douglas (041)","Fayette (041)","Clay (041)","Dickinson (041)","Carroll (041)","Franklin (041)",null,"Washington (043)",null,"Delta (041)","Douglas (041)","Greene (041)","Chariton (041)","Hill (041)","Custer (041)",null,null,null,"Rio Arriba (039)","Hamilton (041)","Chowan (041)","Hettinger (041)","Delaware (041)","Delaware (041)","Lincoln (041)","Cumberland (041)",null,"Florence (041)","Douglas (043)","DeKalb (041)","Brazos (041)","Sevier (041)",null,"Chesterfield (041)",null,"Lewis (041)","Lewis (041)","Forest (041)","Uinta (041)"]
[null,"Cullman (043)",null,null,"Drew (043)","Mariposa (043)","El Paso (041)",null,null,null,"Glades (043)","Carroll (045)",null,null,"Fremont (043)","DuPage (043)","Floyd (043)","Clayton (043)","Doniphan (043)","Carter (043)","Grant (043)",null,"Wicomico (045)",null,"Dickinson (043)","Faribault (043)","Grenada (043)","Christian (043)","Jefferson (043)","Dakota (043)",null,null,null,"Roosevelt (041)","Herkimer (043)","Clay (043)","Kidder (043)","Erie (043)","Dewey (043)","Linn (043)","Dauphin (043)",null,"Georgetown (043)","Edmunds (045)","Dickson (043)","Brewster (043)","Summit (043)",null,"Clarke (043)",null,"Lincoln (043)","Lincoln (043)","Grant (043)","Washakie (043)"]
[null,"Dale (045)",null,null,"Faulkner (045)","Mendocino (045)","Fremont (043)",null,null,null,"Gulf (045)","Catoosa (047)",null,null,"Gem (045)","Edgar (045)","Fountain (045)","Clinton (045)","Douglas (045)","Casey (045)","Iberia (045)",null,"Worcester (047)",null,"Eaton (045)","Fillmore (045)","Hancock (045)","Clark (045)","Judith Basin (045)","Dawes, North Sioux (045)",null,null,null,"Sandoval (043)","Jefferson (045)","Cleveland (045)","LaMoure (045)","Fairfield (045)","Ellis (045)","Malheur (045)","Delaware (045)",null,"Greenville (045)","Fall River (047)","Dyer (045)","Briscoe (045)","Tooele (045)",null,"Craig (045)",null,"Mason (045)","Logan, Mingo (045)","Green (045)","Weston (045)"]
[null,"Dallas (047)",null,null,"Franklin (047)","Merced (047)","Garfield (045)",null,null,null,"Hamilton (047)","Charlton (049)",null,null,"Gooding (047)","Edwards (047)","Franklin (047)","Crawford (047)","Edwards (047)","Christian (047)","Iberville (047)",null,"Baltimore (510)",null,"Emmet (047)","Freeborn (047)","Harrison (047)","Clay (047)","Lake (047)","Dawson (047)",null,null,null,"San Juan (045)","Kings (047)","Columbus (047)","Logan (047)","Fayette (047)","Garfield (047)","Marion (047)","Elk (047)",null,"Greenwood (047)","Faulk (049)","Fayette (047)","Brooks (047)","Uintah (047)",null,"Culpeper (047)",null,"Okanogan (047)","Marion (049)","Green Lake (047)"]
[null,"DeKalb (049)",null,null,"Fulton (049)","Modoc (049)","Gilpin (047)",null,null,null,"Hardee (049)","Chatham (051)",null,null,"Idaho (049)","Effingham (049)","Fulton (049)","Dallas (049)","Elk (049)","Clark (049)","Jackson (049)",null,null,null,"Genesee (049)","Goodhue (049)","Hinds (049)","Clinton (049)","Lewis and Clark (049)","Deuel (049)",null,null,null,"San Miguel (047)","Lewis (049)","Craven (049)","McHenry (049)","Franklin (049)","Garvin (049)","Morrow (049)","Erie (049)",null,"Hampton (049)","Grant (051)","Fentress (049)","Brown (049)","Utah (049)",null,"Cumberland (049)",null,"Pacific (049)","Marshall (051)","Iowa (049)"]
[null,"Elmore (051)",null,null,"Garland (051)","Mono (051)","Grand (049)",null,null,null,"Hendry (051)","Chattahoochee (053)",null,null,"Jefferson (051)","Fayette (051)","Gibson (051)","Davis (051)","Ellis (051)","Clay (051)","Jefferson (051)",null,null,null,"Gladwin (051)","Grant (051)","Holmes (051)","Cole (051)","Liberty (051)","Dixon (051)",null,null,null,"Santa Fe (049)","Livingston (051)","Cumberland (051)","McIntosh (051)","Fulton (051)","Grady (051)","Multnomah (051)","Fayette (051)",null,"Horry (051)","Gregory (053)","Franklin (051)","Burleson (051)","Wasatch (051)",null,"Dickenson (051)",null,"Pend Oreille (051)","Mason (053)","Iron (051)"]
[null,"Escambia (053)",null,null,"Grant (053)","Monterey (053)","Gunnison (051)",null,null,null,"Hernando (053)","Chattooga (055)",null,null,"Jerome (053)","Ford (053)","Grant (053)","Decatur (053)","Ellsworth (053)","Clinton (053)","Jefferson Davis (053)",null,null,null,"Gogebic (053)","Hennepin (053)","Humphreys (053)","Cooper (053)","Lincoln (053)","Dodge (053)",null,null,null,"Sierra (051)","Madison (053)","Currituck (053)","McKenzie (053)","Gallia (053)","Grant (053)","Polk (053)","Forest (053)",null,"Jasper (053)","Haakon (055)","Gibson (053)","Burnet (053)","Washington (053)",null,"Dinwiddie, Petersburg City (053)",null,"Pierce (053)","Mercer, McDowell (055)","Jackson (053)"]
[null,"Etowah (055)",null,null,"Greene (055)","Napa (055)","Hinsdale (053)",null,null,null,"Highlands (055)","Cherokee (057)",null,null,"Kootenai, North Shoshone (055)","Franklin (055)","Greene (055)","Delaware (055)","Finney (055)","Crittenden (055)","Lafayette (055)",null,null,null,"Grand Traverse (055)","Houston (055)","Issaquena (055)","Crawford (055)","McCone (055)","Douglas (055)",null,null,null,"Socorro (053)","Monroe (055)","Dare (055)","McLean (055)","Geauga (055)","Greer (055)","Sherman (055)","Franklin (055)",null,"Kershaw (055)","Hamlin (057)","Giles (055)","Caldwell (055)","Wayne (055)",null,"Essex (057)",null,"San Juan (055)","Mineral (057)","Jefferson (055)"]
[null,"Fayette (057)",null,null,"Hempstead (057)","Nevada (057)","Huerfano (055)",null,null,null,"Hillsborough (057)","Clarke (059)",null,null,"Latah (057)","Fulton (057)","Hamilton (057)","Des Moines (057)","Ford (057)","Cumberland (057)","Lafourche (057)",null,null,null,"Gratiot (057)","Hubbard (057)","Itawamba (057)","Dade (057)","Madison (057)","Dundy (057)",null,null,null,"Taos (055)","Montgomery (057)","Davidson (057)","Mercer (057)","Greene (057)","Harmon (057)","Tillamook (057)","Fulton (057)",null,"Lancaster (057)","Hand (059)","Grainger (057)","Calhoun (057)","Weber (057)",null,"Fairfax (059)",null,"Skagit (057)","Monongalia (061)","Juneau (057)"]
[null,"Franklin (059)",null,null,"Hot Spring (059)","Orange (059)","Jackson (057)",null,null,null,"Holmes (059)","Clay (061)",null,null,"Lemhi, North Custer (059)","Gallatin (059)","Hancock (059)","Dickinson (059)","Franklin (059)","Daviess (059)","La Salle (059)",null,null,null,"Hillsdale (059)","Isanti (059)","Jackson (059)","Dallas (059)","Meagher (059)","Fillmore (059)",null,null,null,"Torrance (057)","New York (061)","Davie (059)","Morton (059)","Guernsey (059)","Harper (059)","Umatilla (059)","Greene (059)",null,"Laurens (059)","Hanson (061)","Greene (059)","Callahan (059)",null,null,"Fauquier (061)",null,"Skamania (059)","Monroe (063)","Kenosha (059)"]
[null,"Geneva (061)",null,null,"Howard (061)","Placer (061)","Jefferson (059)",null,null,null,"Indian River (061)","Clayton (063)",null,null,"Lewis (061)","Greene (061)","Harrison (061)","Dubuque (061)","Geary (061)","Edmonson (061)","Lincoln (061)",null,null,null,"Houghton (061)","Itasca (061)","Jasper (061)","Daviess (061)","Mineral (061)","Franklin (061)",null,null,null,"Union (059)","Niagara (063)","Duplin (061)","Mountrail (061)","Hamilton (061)","Haskell (061)","Union (061)","Huntingdon (061)",null,"Lee (061)","Harding (063)","Grundy (061)","Cameron (061)",null,null,"Floyd (063)",null,"Snohomish, North King (061)","Morgan (065)","Kewaunee (061)"]
[null,"Greene (063)",null,null,"Independence (063)","Plumas (063)","Kiowa (061)",null,null,null,"Jackson (063)","Clinch (065)",null,null,"Lincoln (063)","Grundy (063)","Hendricks (063)","Emmet (063)","Gove (063)","Elliott (063)","Livingston (063)",null,null,null,"Huron (063)","Jackson (063)","Jefferson (063)","DeKalb (063)","Missoula (063)","Frontier (063)",null,null,null,"Valencia (061)","Oneida (065)","Durham (063)","Nelson (063)","Hancock (063)","Hughes (063)","Wallowa (063)","Indiana (063)",null,"Lexington (063)","Hughes (065)","Hamblen (063)","Camp (063)",null,null,"Fluvanna (065)",null,"Spokane (063)","Nicholas (067)","La Crosse (063)"]
[null,"Hale (065)",null,null,"Izard (065)","Riverside (065)","Kit Carson (063)",null,null,null,"Jefferson (065)","Cobb (067)",null,null,"Madison (065)","Hamilton (065)","Henry (065)","Fayette (065)","Graham (065)","Estill (065)","Madison (065)",null,null,null,"Ingham (065)","Kanabec (065)","Jefferson Davis (065)","Dent (065)","Musselshell (065)","Furnas (065)",null,null,null,null,"Onondaga (067)","Edgecombe (065)","Oliver (065)","Hardin (065)","Jackson (065)","Wasco (065)","Jefferson (065)",null,"McCormick (065)","Hutchinson (067)","Hamilton (065)","Carson (065)",null,null,"Franklin (067)",null,"Stevens (065)","Ohio (069)","Lafayette (065)"]
[null,"Henry (067)",null,null,"Jackson (067)","Sacramento (067)","Lake (065)",null,null,null,"Lafayette (067)","Coffee (069)",null,null,"Minidoka (067)","Hancock (067)","Howard (067)","Floyd (067)","Grant (067)","Fayette (067)","Morehouse (067)",null,null,null,"Ionia (067)","Kandiyohi (067)","Jones (067)","Douglas (067)","Park (067)","Gage (067)",null,null,null,null,"Ontario (069)","Forsyth (067)","Pembina (067)","Harrison (067)","Jefferson (067)","Washington (067)","Juniata (067)",null,"Marion (067)","Hyde (069)","Hancock (067)","Cass (067)",null,null,"Frederick, Winchester City (069)",null,"Thurston (067)","Pendleton (071)","Langlade (067)"]
[null,"Houston (069)",null,null,"Jefferson (069)","San Benito (069)","La Plata (067)",null,null,null,"Lake (069)","Colquitt (071)",null,null,"Nez Perce (069)","Hardin (069)","Huntington (069)","Franklin (069)","Gray (069)","Fleming (069)","Natchitoches (069)",null,null,null,"Iosco (069)","Kittson (069)","Kemper (069)","Dunklin (069)","Petroleum (069)","Garden (069)",null,null,null,null,"Orange, Rockland (071)","Franklin (069)","Pierce (069)","Henry (069)","Johnston (069)","Wheeler (069)","Lackawanna (069)",null,"Marlboro (069)","Jackson (071)","Hardeman (069)","Castro (069)",null,null,"Giles (071)",null,"Wahkiakum (069)","Pleasants (073)","Lincoln (069)"]
[null,"Jackson (071)",null,null,"Johnson (071)","San Bernardino (071)","Larimer (069)",null,null,null,"Lee (071)","Columbia (073)",null,null,"Oneida (071)","Henderson (071)","Jackson (071)","Fremont (071)","Greeley (071)","Floyd (071)","Orleans (071)",null,null,null,"Iron (071)","Koochiching (071)","Lafayette (071)","Franklin (071)","Phillips (071)","Garfield (071)",null,null,null,null,"Orleans (073)","Gaston (071)","Ramsey (071)","Highland (071)","Kay (071)","Yamhill (071)","Lancaster (071)",null,"Newberry (071)","Jerauld (073)","Hardin (071)","Chambers (071)",null,null,"Gloucester (073)",null,"Walla Walla (071)","Pocahontas (075)","Manitowoc (071)"]
[null,"Jefferson (073)",null,null,"Lafayette (073)","San Diego (073)","Las Animas (071)",null,null,null,"Leon (073)","Cook (075)",null,null,"Owyhee (073)","Henry (073)","Jasper (073)","Greene (073)","Greenwood (073)","Franklin (073)","Ouachita (073)",null,null,null,"Isabella (073)","Lac qui Parle (073)","Lamar (073)","Gasconade (073)","Pondera (073)","Gosper (073)",null,null,null,null,"Oswego (075)","Gates (073)","Ransom (073)","Hocking (073)","Kingfisher (073)",null,"Lawrence (073)",null,"Oconee (073)","Jones (075)","Hawkins (073)","Cherokee (073)",null,null,"Goochland (075)",null,"Whatcom (073)","Preston (077)","Marathon (073)"]
[null,"Lamar (075)",null,null,"Lawrence (075)","San Joaquin (077)","Lincoln (073)",null,null,null,"Levy (075)","Coweta (077)",null,null,"Payette (075)","Iroquois (075)","Jay (075)","Grundy (075)","Hamilton (075)","Fulton (075)","Plaquemines (075)",null,null,null,"Jackson (075)","Lake (075)","Lauderdale (075)","Gentry (075)","Powder River (075)","Grant (075)",null,null,null,null,"Otsego (077)","Graham (075)","Renville (075)","Holmes (075)","Kiowa (075)",null,"Lebanon (075)",null,"Orangeburg (075)","Kingsbury (077)","Haywood (075)","Childress (075)",null,null,"Grayson, West Galax City (077)",null,"Whitman (075)","Putnam (079)","Marinette (075)"]
[null,"Lauderdale (077)",null,null,"Lee (077)","San Luis Obispo (079)","Logan (075)",null,null,null,"Liberty (077)","Crawford (079)",null,null,"Power (077)","Jackson (077)","Jefferson (077)","Guthrie (077)","Harper (077)","Gallatin (077)","Pointe Coupee (077)",null,null,null,"Kalamazoo (077)","Lake of the Woods (077)","Lawrence (077)","Greene (077)","Powell (077)","Greeley (077)",null,null,null,null,"Putnam (079)","Granville (077)","Richland (077)","Huron (077)","Latimer (077)",null,"Lehigh (077)",null,"Pickens (077)","Lake (079)","Henderson (077)","Clay (077)",null,null,"Greene (079)",null,"Yakima (077)","Raleigh (081)","Marquette (077)"]
[null,"Lawrence (079)",null,null,"Lincoln (079)","San Mateo (081)","Mesa (077)",null,null,null,"Madison (079)","Crisp (081)",null,null,"Teton (081)","Jasper (079)","Jennings (079)","Hamilton (079)","Harvey (079)","Garrard (079)","Rapides (079)",null,null,null,"Kalkaska (079)","Le Sueur (079)","Leake (079)","Grundy (079)","Prairie (079)","Hall (079)",null,null,null,null,"Queens (081)","Greene (079)","Rolette (079)","Jackson (079)","Le Flore (079)",null,"Luzerne (079)",null,"Richland (079)","Lawrence (081)","Henry (079)","Cochran (079)",null,null,"Greensville, Emporia City (081)",null,null,"Randolph (083)","Menominee (078)"]
[null,"Lee (081)",null,null,"Little River (081)","Santa Barbara (083)","Mineral (079)",null,null,null,"Manatee (081)","Dade (083)",null,null,"Twin Falls (083)","Jefferson (081)","Johnson (081)","Hancock (081)","Haskell (081)","Grant (081)","Red River (081)",null,null,null,"Kent (081)","Lincoln (081)","Lee (081)","Harrison (081)","Ravalli (081)","Hamilton (081)",null,null,null,null,"Rensselaer (083)","Guilford (081)","Sargent (081)","Jefferson (081)","Lincoln (081)",null,"Lycoming (081)",null,"Saluda (081)","Lincoln (083)","Hickman (081)","Coke (081)",null,null,"Halifax (083)",null,null,"Ritchie (085)","Milwaukee (079)"]
[null,"Limestone (083)",null,null,"Logan (083)","Santa Clara (085)","Moffat (081)",null,null,null,"Marion (083)","Dawson (085)",null,null,"Valley (085)","Jersey (083)","Knox (083)","Hardin (083)","Hodgeman (083)","Graves (083)","Richland (083)",null,null,null,"Keweenaw (083)","Lyon (083)","Leflore (083)","Henry (083)","Richland (083)","Harlan (083)",null,null,null,null,"Richmond (085)","Halifax (083)","Sheridan (083)","Knox (083)","Logan (083)",null,"McKean (083)",null,"Spartanburg (083)","Lyman (085)","Houston (083)","Coleman (083)",null,null,"Hanover (085)",null,null,"Roane (087)","Monroe (081)"]
[null,"Lowndes (085)",null,null,"Lonoke (085)","Santa Cruz (087)","Montezuma (083)",null,null,null,"Martin (085)","Decatur (087)",null,null,"Washington (087)","Jo Daviess (085)","Kosciusko (085)","Harrison (085)","Jackson (085)","Grayson (085)","Sabine (085)",null,null,null,"Lake (085)","McLeod (085)","Lincoln (085)","Hickory (085)","Roosevelt (085)","Hayes (085)",null,null,null,null,"St. Lawrence (089)","Harnett (085)","Sioux (085)","Lake (085)","Love (085)",null,"Mercer (085)",null,"Sumter (085)","McCook (087)","Humphreys (085)","Collin (085)",null,null,"Henrico, Richmond City (087)",null,null,"Summers (089)","Oconto (083)"]
[null,"Macon (087)",null,null,"Madison (087)","Shasta (089)","Montrose (085)",null,null,null,"Nassau (089)","DeKalb (089)",null,null,null,"Johnson (087)","LaGrange (087)","Henry (087)","Jefferson (087)","Green (087)","St. Bernard (087)",null,null,null,"Lapeer (087)","Mahnomen (087)","Lowndes (087)","Holt (087)","Rosebud (087)","Hitchcock (087)",null,null,null,null,"Saratoga (091)","Haywood (087)","Slope (087)","Lawrence (087)","McClain (087)",null,"Mifflin (087)",null,"Union (087)","McPherson (089)","Jackson (087)","Collingsworth (087)",null,null,"Henry, Martinsville City (089)",null,null,"Taylor (091)","Oneida (085)"]
[null,"Madison (089)",null,null,"Marion (089)","Sierra (091)","Morgan (087)",null,null,null,"Okaloosa (091)","Dodge (091)",null,null,null,"Kane (089)","Lake (089)","Howard (089)","Jewell (089)","Greenup (089)","St. Charles (089)",null,null,null,"Leelanau (089)","Marshall (089)","Madison (089)","Howard (089)","Sanders (089)","Holt (089)",null,null,null,null,"Schenectady (093)","Henderson (089)","Stark (089)","Licking (089)","McCurtain (089)",null,"Monroe (089)",null,"Williamsburg (089)","Marshall (091)","Jefferson (089)","Colorado (089)",null,null,"Highland (091)",null,null,"Tucker (093)","Outagamie (087)"]
[null,"Marengo (091)",null,null,"Miller (091)","Siskiyou (093)","Otero (089)",null,null,null,"Okeechobee (093)","Dooly (093)",null,null,null,"Kankakee (091)","LaPorte (091)","Humboldt (091)","Johnson (091)","Hancock (091)","St. Helena (091)",null,null,null,"Lenawee (091)","Martin (091)","Marion (091)","Howell (091)","Sheridan (091)","Hooker (091)",null,null,null,null,"Schoharie (095)","Hertford (091)","Steele (091)","Logan (091)","McIntosh (091)",null,"Montgomery (091)",null,"York (091)","Meade (093)","Johnson (091)","Comal (091)",null,null,"Isle of Wight (093)",null,null,"Tyler (095)","Ozaukee (089)"]
[null,"Marion (093)",null,null,"Mississippi (093)","Solano (095)","Ouray (091)",null,null,null,"Orange (095)","Dougherty (095)",null,null,null,"Kendall (093)","Lawrence (093)","Ida (093)","Kearny (093)","Hardin (093)","St. James (093)",null,null,null,"Livingston (093)","Meeker (093)","Marshall (093)","Iron (093)","Silver Bow (093)","Howard (093)",null,null,null,null,"Schuyler (097)","Hoke (093)","Stutsman (093)","Lorain (093)","Major (093)",null,"Montour (093)",null,null,"Mellette (095)","Knox (093)","Comanche (093)",null,null,"James City, Williamsburg City (095)",null,null,"Upshur (097)","Pepin (091)"]
[null,"Marshall (095)",null,null,"Monroe (095)","Sonoma (097)","Park (093)",null,null,null,"Osceola (097)","Douglas (097)",null,null,null,"Knox (095)","Madison (095)","Iowa (095)","Kingman (095)","Harlan (095)","St. John the Baptist (095)",null,null,null,"Luce (095)","Mille Lacs (095)","Monroe (095)","Jackson (095)","Stillwater (095)","Jefferson (095)",null,null,null,null,"Seneca (099)","Hyde (095)","Towner (095)","East Lucas (094)","Marshall (095)",null,"Northampton (095)",null,null,"Miner (097)","Lake (095)","Concho (095)",null,null,"King and Queen (097)",null,null,"Wayne (099)","Pierce (093)"]
[null,"Mobile (097)",null,null,"Montgomery (097)","Stanislaus (099)","Phillips (095)",null,null,null,"Palm Beach (099)","Early (099)",null,null,null,"Lake (097)","Marion (097)","Jackson (097)","Kiowa (097)","Harrison (097)","St. Landry (097)",null,null,null,"Mackinac (097)","Morrison (097)","Montgomery (097)","Jasper (097)","Sweet Grass (097)","Johnson (097)",null,null,null,null,"Steuben (101)","Iredell (097)","Traill (097)","West Lucas (095)","Mayes (097)",null,"Northumberland (097)",null,null,"Minnehaha (099)","Lauderdale (097)","Cooke (097)",null,null,"King George (099)",null,null,"Webster (101)","Polk (095)"]
[null,"Monroe (099)",null,null,"Nevada (099)","Sutter (101)","Pitkin (097)",null,null,null,"Pasco (101)","Echols (101)",null,null,null,"LaSalle (099)","Marshall (099)","Jasper (099)","Labette (099)","Hart (099)","St. Martin (099)",null,null,null,"Macomb (099)","Mower (099)","Neshoba (099)","Jefferson (099)","Teton (099)","Kearney (099)",null,null,null,null,"Suffolk, Nassau (103)","Jackson (099)","Walsh (099)","Madison (097)","Murray (099)",null,"Perry (099)",null,null,"Moody (101)","Lawrence (099)","Coryell (099)",null,null,"King William (101)",null,null,"Wetzel (103)","Portage (097)"]
[null,"Montgomery (101)",null,null,"Newton (101)","Tehama (103)","Prowers (099)",null,null,null,"Pinellas (103)","Effingham (103)",null,null,null,"Lawrence (101)","Martin (101)","Jefferson (101)","Lane (101)","Henderson (101)","St. Mary (101)",null,null,null,"Manistee (101)","Murray (101)","Newton (101)","Johnson (101)","Toole (101)","Keith (101)",null,null,null,null,"Sullivan (105)","Johnston (101)","Ward (101)","Mahoning (099)","Muskogee (101)",null,"Philadelphia (101)",null,null,"Pennington (103)","Lewis (101)","Cottle (101)",null,null,"Lancaster (103)",null,null,"Wirt (105)","Price (099)"]
[null,"Morgan (103)",null,null,"Ouachita (103)","Trinity (105)","Pueblo (101)",null,null,null,"Polk (105)","Elbert (105)",null,null,null,"Lee (103)","Miami (103)","Johnson (103)","Leavenworth (103)","Henry (103)","St. Tammany (103)",null,null,null,"Marquette (103)","Nicollet (103)","Noxubee (103)","Knox (103)","Treasure (103)","Keya Paha (103)",null,null,null,null,"Tioga (107)","Jones (103)","Wells (103)","Marion (101)","Noble (103)",null,"Pike (103)",null,null,"Perkins (105)","Lincoln (103)","Crane (103)",null,null,"Lee (105)",null,null,"Wood (107)","Racine (101)"]
[null,"Perry (105)",null,null,"Perry (105)","Tulare (107)","Rio Blanco (103)",null,null,null,"Putnam (107)","Emanuel (107)",null,null,null,"Livingston (105)","Monroe (105)","Jones (105)","Lincoln (105)","Hickman (105)","Tangipahoa (105)",null,null,null,"Mason (105)","Nobles (105)","Oktibbeha (105)","Laclede (105)","Valley (105)","Kimball (105)",null,null,null,null,"Tompkins (109)","Lee (105)","Williams (105)","Medina (103)","Nowata (105)",null,"Potter (105)",null,null,"Potter (107)","Loudon (105)","Crockett (105)",null,null,"Loudoun (107)",null,null,"Wyoming (109)","Richland (103)"]
[null,"Pickens (107)",null,null,"Phillips (107)","Tuolumne (109)","Rio Grande (105)",null,null,null,"St. Johns (109)","Evans (109)",null,null,null,"Logan (107)","Montgomery (107)","Keokuk (107)","Linn (107)","Hopkins (107)","Tensas (107)",null,null,null,"Mecosta (107)","Norman (107)","Panola (107)","Lafayette (107)","Wheatland (107)","Knox (107)",null,null,null,null,"Ulster (111)","Lenoir (107)",null,"Meigs (105)","Okfuskee (107)",null,"Schuylkill (107)",null,null,"Roberts (109)","McMinn (107)","Crosby (107)",null,null,"Louisa (109)",null,null,null,"Rock (105)"]
[null,"Pike (109)",null,null,"Pike (109)","Ventura (111)","Routt (107)",null,null,null,"St. Lucie (111)","Fannin (111)",null,null,null,"McDonough (109)","Morgan (109)","Kossuth (109)","Logan (109)","Jackson (109)","Terrebonne (109)",null,null,null,"Menominee (109)","Olmsted (109)","Pearl River (109)","Lawrence (109)","Wibaux (109)","Lancaster (109)",null,null,null,null,"Warren (113)","Lincoln (109)",null,"Mercer (107)","Oklahoma (109)",null,"Snyder (109)",null,null,"Sanborn (111)","McNairy (109)","Culberson (109)",null,null,"Lunenburg (111)",null,null,null,"Rusk (107)"]
[null,"Randolph (111)",null,null,"Poinsett (111)","Yolo (113)","Saguache (109)",null,null,null,"Santa Rosa (113)","Fayette (113)",null,null,null,"McHenry (111)","Newton (111)","Lee (111)","Lyon (111)","Jefferson (111)","Union (111)",null,null,null,"Midland (111)","East Otter Tail (111)","Perry (111)","Lewis (111)","Yellowstone (111)","Lincoln (111)",null,null,null,null,"Washington (115)","McDowell (111)",null,"Miami (109)","Okmulgee (111)",null,"Somerset (111)",null,null,"Oglala Lakota (113)","Macon (111)","Dallam (111)",null,null,"Madison (113)",null,null,null,"St. Croix (109)"]
[null,"Russell (113)",null,null,"Polk (113)","Yuba (115)","San Juan (111)",null,null,null,"Sarasota (115)","Floyd (115)",null,null,null,"McLean (113)","Noble (113)","Linn (113)","McPherson (113)","Jessamine (113)","Vermilion (113)",null,null,null,"Missaukee (113)","West Otter Tail (112)","Pike (113)","Lincoln (113)",null,"Logan (113)",null,null,null,null,"Wayne (117)","Macon (113)",null,"Monroe (111)","Osage (113)",null,"Sullivan (113)",null,null,"Spink (115)","Madison (113)","Dallas (113)",null,null,"Mathews (115)",null,null,null,"Sauk (111)"]
[null,"St. Clair (115)",null,null,"Pope (115)",null,"San Miguel (113)",null,null,null,"Seminole (117)","Forsyth (117)",null,null,null,"Macon (115)","Ohio (115)","Louisa (115)","Marion (115)","Johnson (115)","Vernon (115)",null,null,null,"Monroe (115)","Pennington (113)","Pontotoc (115)","Linn (115)",null,"Loup (115)",null,null,null,null,"Westchester (119)","Madison (115)",null,"Montgomery (113)","Ottawa (115)",null,"Susquehanna (115)",null,null,"Stanley (117)","Marion (115)","Dawson (115)",null,null,"Mecklenburg (117)",null,null,null,"Sawyer (113)"]
[null,"Shelby (117)",null,null,"Prairie (117)",null,"Sedgwick (115)",null,null,null,"Sumter (119)","Franklin (119)",null,null,null,"Macoupin (117)","Orange (117)","Lucas (117)","Marshall (117)","Kenton (117)","Washington (117)",null,null,null,"Montcalm (117)","Pine (115)","Prentiss (117)","Livingston (117)",null,"McPherson (117)",null,null,null,null,"Wyoming (121)","Martin (117)",null,"Morgan (115)","Pawnee (117)",null,"Tioga (117)",null,null,"Sully (119)","Marshall (117)","Deaf Smith (117)",null,null,"Middlesex (119)",null,null,null,"Shawano (115)"]
[null,"Sumter (119)",null,null,"Pulaski (119)",null,"Summit (117)",null,null,null,"Suwannee (121)","Fulton (121)",null,null,null,"Madison (119)","Owen (119)","Lyon (119)","Meade (119)","Knott (119)","Webster (119)",null,null,null,"Montmorency (119)","Pipestone (117)","Quitman (119)","McDonald (119)",null,"Madison (119)",null,null,null,null,"Yates (123)","Mecklenburg (119)",null,"Morrow (117)","Payne (119)",null,"Union (119)",null,null,"Todd (121)","Maury (119)","Delta (119)",null,null,"Montgomery, Radford City (121)",null,null,null,"Sheboygan (117)"]
[null,"Talladega (121)",null,null,"Randolph (121)",null,"Teller (119)",null,null,null,"Taylor (123)","Gilmer (123)",null,null,null,"Marion (121)","Parke (121)","Madison (121)","Miami (121)","Knox (121)","West Baton Rouge (121)",null,null,null,"Muskegon (121)","East Polk (119)","Rankin (121)","Macon (121)",null,"Merrick (121)",null,null,null,null,null,"Mitchell (121)",null,"Muskingum (119)","Pittsburg (121)",null,"Venango (121)",null,null,"Tripp (123)","Meigs (121)","Denton (121)",null,null,"Nelson (125)",null,null,null,"Taylor (119)"]
[null,"Tallapoosa (123)",null,null,"St. Francis (123)",null,"Washington (121)",null,null,null,"Union (125)","Glascock (125)",null,null,null,"Marshall (123)","Perry (123)","Mahaska (123)","Mitchell (123)","Larue (123)","West Carroll (123)",null,null,null,"Newaygo (123)","West Polk (120)","Scott (123)","Madison (123)",null,"Morrill (123)",null,null,null,null,null,"Montgomery (123)",null,"Noble (121)","Pontotoc (123)",null,"Warren (123)",null,null,"Turner (125)","Monroe (123)","DeWitt (123)",null,null,"New Kent (127)",null,null,null,"Trempealeau (121)"]
[null,"Tuscaloosa (125)",null,null,"Saline (125)",null,"Weld (123)",null,null,null,"Volusia (127)","Glynn (127)",null,null,null,"Mason (125)","Pike (125)","Marion (125)","Montgomery (125)","Laurel (125)","West Feliciana (125)",null,null,null,"Oakland (125)","Pope (121)","Sharkey (125)","Maries (125)",null,"Nance (125)",null,null,null,null,null,"Moore (125)",null,"Ottawa (123)","Pottawatomie (125)",null,"Washington (125)",null,null,"Union (127)","Montgomery (125)","Dickens (125)",null,null,"Northampton (131)",null,null,null,"Vernon (123)"]
[null,"Walker (127)",null,null,"Scott (127)",null,"Yuma (125)",null,null,null,"Wakulla (129)","Gordon (129)",null,null,null,"Massac (127)","Porter (127)","Marshall (127)","Morris (127)","Lawrence (127)","Winn (127)",null,null,null,"Oceana (127)","Ramsey (123)","Simpson (127)","Marion (127)",null,"Nemaha (127)",null,null,null,null,null,"Nash (127)",null,"Paulding (125)","Pushmataha (127)",null,"Wayne (127)",null,null,"Walworth (129)","Moore (127)","Dimmit (127)",null,null,"Northumberland (133)",null,null,null,"Vilas (125)"]
[null,"Washington (129)",null,null,"Searcy (129)",null,null,null,null,null,"Walton (131)","Grady (131)",null,null,null,"Menard (129)","Posey (129)","Mills (129)","Morton (129)","Lee (129)",null,null,null,null,"Ogemaw (129)","Red Lake (125)","Smith (129)","Mercer (129)",null,"Nuckolls (129)",null,null,null,null,null,"New Hanover (129)",null,"Perry (127)","Roger Mills (129)",null,"Westmoreland (129)",null,null,"Yankton (135)","Morgan (129)","Donley (129)",null,null,"Nottoway (135)",null,null,null,"Walworth (127)"]
[null,"Wilcox (131)",null,null,"Sebastian (131)",null,null,null,null,null,"Washington (133)","Greene (133)",null,null,null,"Mercer (131)","Pulaski (131)","Mitchell (131)","Nemaha (131)","Leslie (131)",null,null,null,null,"Ontonagon (131)","Redwood (127)","Stone (131)","Miller (131)",null,"Otoe (131)",null,null,null,null,null,"Northampton (131)",null,"Pickaway (129)","Rogers (131)",null,"Wyoming (131)",null,null,"Ziebach (137)","Obion (131)","Duval (131)",null,null,"Orange (137)",null,null,null,"Washburn (129)"]
[null,"Winston (133)",null,null,"Sevier (133)",null,null,null,null,null,null,"Gwinnett (135)",null,null,null,"Monroe (133)","Putnam (133)","Monona (133)","Neosho (133)","Letcher (133)",null,null,null,null,"Osceola (133)","Renville (129)","Sunflower (133)","Mississippi (133)",null,"Pawnee (133)",null,null,null,null,null,"Onslow (133)",null,"Pike (131)","Seminole (133)",null,"York (133)",null,null,null,"Overton (133)","Eastland (133)",null,null,"Page (139)",null,null,null,"Washington (131)"]
[null,null,null,null,"Sharp (135)",null,null,null,null,null,null,"Habersham (137)",null,null,null,"Montgomery (135)","Randolph (135)","Monroe (135)","Ness (135)","Lewis (135)",null,null,null,null,"Oscoda (135)","Rice (131)","Tallahatchie (135)","Moniteau (135)",null,"Perkins (135)",null,null,null,null,null,"Orange (135)",null,"Portage (133)","Sequoyah (135)",null,null,null,null,null,"Perry (135)","Ector (135)",null,null,"Patrick (141)",null,null,null,"Waukesha (133)"]
[null,null,null,null,"Stone (137)",null,null,null,null,null,null,"Hall (139)",null,null,null,"Morgan (137)","Ripley (137)","Montgomery (137)","Norton (137)","Lincoln (137)",null,null,null,null,"Otsego (137)","Rock (133)","Tate (137)","Monroe (137)",null,"Phelps (137)",null,null,null,null,null,"Pamlico (137)",null,"Preble (135)","Stephens (137)",null,null,null,null,null,"Pickett (137)","Edwards (137)",null,null,"Pittsylvania (143)",null,null,null,"Waupaca (135)"]
[null,null,null,null,"Union (139)",null,null,null,null,null,null,"Hancock (141)",null,null,null,"Moultrie (139)","Rush (139)","Muscatine (139)","Osage (139)","Livingston (139)",null,null,null,null,"Ottawa (139)","Roseau (135)","Tippah (139)","Montgomery (139)",null,"Pierce (139)",null,null,null,null,null,"Pasquotank (139)",null,"Putnam (137)","Texas (139)",null,null,null,null,null,"Polk (139)","Ellis (139)",null,null,"Powhatan (145)",null,null,null,"Waushara (137)"]
[null,null,null,null,"Van Buren (141)",null,null,null,null,null,null,"Haralson (143)",null,null,null,"Ogle (141)","St. Joseph (141)","O'Brien (141)","Osborne (141)","Logan (141)",null,null,null,null,"Presque Isle (141)","North St. Louis (137)","Tishomingo (141)","Morgan (141)",null,"Platte (141)",null,null,null,null,null,"Pender (141)",null,"Richland (139)","Tillman (141)",null,null,null,null,null,"Putnam (141)","El Paso (141)",null,null,"Prince Edward (147)",null,null,null,"Winnebago (139)"]
[null,null,null,null,"Washington (143)",null,null,null,null,null,null,"Harris (145)",null,null,null,"Peoria (143)","Scott (143)","Osceola (143)","Ottawa (143)","Lyon (143)",null,null,null,null,"Roscommon (143)","South St. Louis (138)","Tunica (143)","New Madrid (143)",null,"Polk (143)",null,null,null,null,null,"Perquimans (143)",null,"Ross (141)","Tulsa (143)",null,null,null,null,null,"Rhea (143)","Erath (143)",null,null,"Prince George (149)",null,null,null,"Wood (141)"]
[null,null,null,null,"White (145)",null,null,null,null,null,null,"Hart (147)",null,null,null,"Perry (145)","Shelby (145)","Page (145)","Pawnee (145)","McCracken (145)",null,null,null,null,"Saginaw (145)","Scott (139)","Union (145)","Newton (145)",null,"Red Willow (145)",null,null,null,null,null,"Person (145)",null,"Sandusky (143)","Wagoner (145)",null,null,null,null,null,"Roane (145)","Falls (145)",null,null,"Prince William (153)"]
[null,null,null,null,"Woodruff (147)",null,null,null,null,null,null,"Heard (149)",null,null,null,"Piatt (147)","Spencer (147)","Palo Alto (147)","Phillips (147)","McCreary (147)",null,null,null,null,"St. Clair (147)","Sherburne (141)","Walthall (147)","Nodaway (147)",null,"Richardson (147)",null,null,null,null,null,"Pitt (147)",null,"Scioto (145)","Washington (147)",null,null,null,null,null,"Robertson (147)","Fannin (147)",null,null,"Pulaski (155)"]
[null,null,null,null,"Yell (149)",null,null,null,null,null,null,"Henry (151)",null,null,null,"Pike (149)","Starke (149)","Plymouth (149)","Pottawatomie (149)","McLean (149)",null,null,null,null,"St. Joseph (149)","Sibley (143)","Warren (149)","Oregon (149)",null,"Rock (149)",null,null,null,null,null,"Polk (149)",null,"Seneca (147)","Washita (149)",null,null,null,null,null,"Rutherford (149)","Fayette (149)",null,null,"Rappahannock (157)"]
[null,null,null,null,null,null,null,null,null,null,null,"Houston (153)",null,null,null,"Pope (151)","Steuben (151)","Pocahontas (151)","Pratt (151)","Madison (151)",null,null,null,null,"Sanilac (151)","Stearns (145)","Washington (151)","Osage (151)",null,"Saline (151)",null,null,null,null,null,"Randolph (151)",null,"Shelby (149)","Woods (151)",null,null,null,null,null,"Scott (151)","Fisher (151)",null,null,"Richmond (159)"]
[null,null,null,null,null,null,null,null,null,null,null,"Irwin (155)",null,null,null,"Pulaski (153)","Sullivan (153)","Polk (153)","Rawlins (153)","Magoffin (153)",null,null,null,null,"Schoolcraft (153)","Steele (147)","Wayne (153)","Ozark (153)",null,"Sarpy (153)",null,null,null,null,null,"Richmond (153)",null,"Stark (151)","Woodward (153)",null,null,null,null,null,"Sequatchie (153)","Floyd (153)",null,null,"Roanoke, Roanoke City, Salem City (161)"]
[null,null,null,null,null,null,null,null,null,null,null,"Jackson (157)",null,null,null,"Putnam (155)","Switzerland (155)","East Pottawattamie (155)","Reno (155)","Marion (155)",null,null,null,null,"Shiawassee (155)","Stevens (149)","Webster (155)","Pemiscot (155)",null,"Saunders (155)",null,null,null,null,null,"Robeson (155)",null,"Summit (153)",null,null,null,null,null,null,"Sevier (155)","Foard (155)",null,null,"Rockbridge, Buena Vista City, Lexington City (163)"]
[null,null,null,null,null,null,null,null,null,null,null,"Jasper (159)",null,null,null,"Randolph (157)","Tippecanoe (157)","West Pottawattamie (156)","Republic (157)","Marshall (157)",null,null,null,null,"Tuscola (157)","Swift (151)","Wilkinson (157)","Perry (157)",null,"Scotts Bluff (157)",null,null,null,null,null,"Rockingham (157)",null,"Trumbull (155)",null,null,null,null,null,null,"Shelby (157)","Fort Bend (157)",null,null,"Rockingham, Harrisonburg City (165)"]
[null,null,null,null,null,null,null,null,null,null,null,"Jeff Davis (161)",null,null,null,"Richland (159)","Tipton (159)","Poweshiek (157)","Rice (159)","Martin (159)",null,null,null,null,"Van Buren (159)","Todd (153)","Winston (159)","Pettis (159)",null,"Seward (159)",null,null,null,null,null,"Rowan (159)",null,"Tuscarawas (157)",null,null,null,null,null,null,"Smith (159)","Franklin (159)",null,null,"Russell (167)"]
[null,null,null,null,null,null,null,null,null,null,null,"Jefferson (163)",null,null,null,"Rock Island (161)","Union (161)","Ringgold (159)","Riley (161)","Mason (161)",null,null,null,null,"Washtenaw (161)","Traverse (155)","Yalobusha (161)","Phelps (161)",null,"Sheridan (161)",null,null,null,null,null,"Rutherford (161)",null,"Union (159)",null,null,null,null,null,null,"Stewart (161)","Freestone (161)",null,null,"Scott (169)"]
[null,null,null,null,null,null,null,null,null,null,null,"Jenkins (165)",null,null,null,"St. Clair (163)","Vanderburgh (163)","Sac (161)","Rooks (163)","Meade (163)",null,null,null,null,"Wayne (163)","Wabasha (157)","Yazoo (163)","Pike (163)",null,"Sherman (163)",null,null,null,null,null,"Sampson (163)",null,"Van Wert (161)",null,null,null,null,null,null,"Sullivan (163)","Frio (163)",null,null,"Shenandoah (171)"]
[null,null,null,null,null,null,null,null,null,null,null,"Johnson (167)",null,null,null,"Saline (165)","Vermillion (165)","Scott (163)","Rush (165)","Menifee (165)",null,null,null,null,"Wexford (165)","Wadena (159)",null,"Platte (165)",null,"South Sioux (165)",null,null,null,null,null,"Scotland (165)",null,"Vinton (163)",null,null,null,null,null,null,"Sumner (165)","Gaines (165)",null,null,"Smyth (173)"]
[null,null,null,null,null,null,null,null,null,null,null,"Jones (169)",null,null,null,"Sangamon (167)","Vigo (167)","Shelby (165)","Russell (167)","Mercer (167)",null,null,null,null,null,"Waseca (161)",null,"Polk (167)",null,"Stanton (167)",null,null,null,null,null,"Stanly (167)",null,"Warren (165)",null,null,null,null,null,null,"Tipton (167)","Galveston (167)",null,null,"Southampton, Franklin City (175)"]
[null,null,null,null,null,null,null,null,null,null,null,"Lamar (171)",null,null,null,"Schuyler (169)","Wabash (169)","Sioux (167)","Saline (169)","Metcalfe (169)",null,null,null,null,null,"Washington (163)",null,"Pulaski (169)",null,"Thayer (169)",null,null,null,null,null,"Stokes (169)",null,"Washington (167)",null,null,null,null,null,null,"Trousdale (169)","Garza (169)",null,null,"Spotsylvania, Fredericksburg City (177)"]
[null,null,null,null,null,null,null,null,null,null,null,"Lanier (173)",null,null,null,"Scott (171)","Warren (171)","Story (169)","Scott (171)","Monroe (171)",null,null,null,null,null,"Watonwan (165)",null,"Putnam (171)",null,"Thomas (171)",null,null,null,null,null,"Surry (171)",null,"Wayne (169)",null,null,null,null,null,null,"Unicoi (171)","Gillespie (171)",null,null,"Stafford (179)"]
[null,null,null,null,null,null,null,null,null,null,null,"Laurens (175)",null,null,null,"Shelby (173)","Warrick (173)","Tama (171)","Sedgwick (173)","Montgomery (173)",null,null,null,null,null,"Wilkin (167)",null,"Ralls (173)",null,"Thurston (173)",null,null,null,null,null,"Swain (173)",null,"Williams (171)",null,null,null,null,null,null,"Union (173)","Glasscock (173)",null,null,"Surry (181)"]
[null,null,null,null,null,null,null,null,null,null,null,"Lee (177)",null,null,null,"Stark (175)","Washington (175)","Taylor (173)","Seward (175)","Morgan (175)",null,null,null,null,null,"Winona (169)",null,"Randolph (175)",null,"Valley (175)",null,null,null,null,null,"Transylvania (175)",null,"Wood (173)",null,null,null,null,null,null,"Van Buren (175)","Goliad (175)",null,null,"Sussex (183)"]
[null,null,null,null,null,null,null,null,null,null,null,"Liberty (179)",null,null,null,"Stephenson (177)","Wayne (177)","Union (175)","Shawnee (177)","Muhlenberg (177)",null,null,null,null,null,"Wright (171)",null,"Ray (177)",null,"Washington (177)",null,null,null,null,null,"Tyrrell (177)",null,"Wyandot (175)",null,null,null,null,null,null,"Warren (177)","Gonzales (177)",null,null,"Tazewell (185)"]
[null,null,null,null,null,null,null,null,null,null,null,"Lincoln (181)",null,null,null,"Tazewell (179)","Wells (179)","Van Buren (177)","Sheridan (179)","Nelson (179)",null,null,null,null,null,"Yellow Medicine (173)",null,"Reynolds (179)",null,"Wayne (179)",null,null,null,null,null,"Union (179)",null,null,null,null,null,null,null,null,"Washington (179)","Gray (179)",null,null,"Warren (187)"]
[null,null,null,null,null,null,null,null,null,null,null,"Long (183)",null,null,null,"Union (181)","White (181)","Wapello (179)","Sherman (181)","Nicholas (181)",null,null,null,null,null,null,null,"Ripley (181)",null,"Webster (181)",null,null,null,null,null,"Vance (181)",null,null,null,null,null,null,null,null,"Wayne (181)","Grayson (181)",null,null,"Washington, Bristol City (191)"]
[null,null,null,null,null,null,null,null,null,null,null,"Lowndes (185)",null,null,null,"Vermilion (183)","Whitley (183)","Warren (181)","Smith (183)","Ohio (183)",null,null,null,null,null,null,null,"St. Charles (183)",null,"Wheeler (183)",null,null,null,null,null,"Wake (183)",null,null,null,null,null,null,null,null,"Weakley (183)","Gregg (183)",null,null,"Westmoreland (193)"]
[null,null,null,null,null,null,null,null,null,null,null,"Lumpkin (187)",null,null,null,"Wabash (185)",null,"Washington (183)","Stafford (185)","Oldham (185)",null,null,null,null,null,null,null,"St. Clair (185)",null,"York (185)",null,null,null,null,null,"Warren (185)",null,null,null,null,null,null,null,null,"White (185)","Grimes (185)",null,null,"Wise (195)"]
[null,null,null,null,null,null,null,null,null,null,null,"McDuffie (189)",null,null,null,"Warren (187)",null,"Wayne (185)","Stanton (187)","Owen (187)",null,null,null,null,null,null,null,"St. Francois (187)",null,null,null,null,null,null,null,"Washington (187)",null,null,null,null,null,null,null,null,"Williamson (187)","Guadalupe (187)",null,null,"Wythe (197)"]
[null,null,null,null,null,null,null,null,null,null,null,"McIntosh (191)",null,null,null,"Washington (189)",null,"Webster (187)","Stevens (189)","Owsley (189)",null,null,null,null,null,null,null,"St. Louis (189)",null,null,null,null,null,null,null,"Watauga (189)",null,null,null,null,null,null,null,null,"Wilson (189)","Hale (189)",null,null,"York, Poquoson City (199)"]
[null,null,null,null,null,null,null,null,null,null,null,"Macon (193)",null,null,null,"Wayne (191)",null,"Winnebago (189)","Sumner (191)","Pendleton (191)",null,null,null,null,null,null,null,"Ste. Genevieve (193)",null,null,null,null,null,null,null,"Wayne (191)",null,null,null,null,null,null,null,null,null,"Hall (191)",null,null,"Alexandria (510)"]
[null,null,null,null,null,null,null,null,null,null,null,"Madison (195)",null,null,null,"White (193)",null,"Winneshiek (191)","Thomas (193)","Perry (193)",null,null,null,null,null,null,null,"Saline (195)",null,null,null,null,null,null,null,"Wilkes (193)",null,null,null,null,null,null,null,null,null,"Hamilton (193)",null,null,"Bedford (515)"]
[null,null,null,null,null,null,null,null,null,null,null,"Marion (197)",null,null,null,"Whiteside (195)",null,"Woodbury (193)","Trego (195)","Pike (195)",null,null,null,null,null,null,null,"Schuyler (197)",null,null,null,null,null,null,null,"Wilson (195)",null,null,null,null,null,null,null,null,null,"Hansford (195)",null,null,"Chesapeake (550)"]
[null,null,null,null,null,null,null,null,null,null,null,"Meriwether (199)",null,null,null,"Will (197)",null,"Worth (195)","Wabaunsee (197)","Powell (197)",null,null,null,null,null,null,null,"Scotland (199)",null,null,null,null,null,null,null,"Yadkin (197)",null,null,null,null,null,null,null,null,null,"Hardeman (197)",null,null,"Colonial Heights (570)"]
[null,null,null,null,null,null,null,null,null,null,null,"Miller (201)",null,null,null,"Williamson (199)",null,"Wright (197)","Wallace (199)","Pulaski (199)",null,null,null,null,null,null,null,"Scott (201)",null,null,null,null,null,null,null,"Yancey (199)",null,null,null,null,null,null,null,null,null,"Hardin (199)",null,null,"Danville (590)"]
[null,null,null,null,null,null,null,null,null,null,null,"Mitchell (205)",null,null,null,"Winnebago (201)",null,null,"Washington (201)","Robertson (201)",null,null,null,null,null,null,null,"Shannon (203)",null,null,null,null,null,null,null,null,null,null,null,null,null,null,null,null,null,"Harris (201)",null,null,"Fairfax (600)"]
[null,null,null,null,null,null,null,null,null,null,null,"Monroe (207)",null,null,null,"Woodford (203)",null,null,"Wichita (203)","Rockcastle (203)",null,null,null,null,null,null,null,"Shelby (205)",null,null,null,null,null,null,null,null,null,null,null,null,null,null,null,null,null,"Harrison (203)",null,null,"Falls Church (610)"]
[null,null,null,null,null,null,null,null,null,null,null,"Montgomery (209)",null,null,null,null,null,null,"Wilson (205)","Rowan (205)",null,null,null,null,null,null,null,"Stoddard (207)",null,null,null,null,null,null,null,null,null,null,null,null,null,null,null,null,null,"Hartley (205)",null,null,"Hampton (650)"]
[null,null,null,null,null,null,null,null,null,null,null,"Morgan (211)",null,null,null,null,null,null,"Woodson (207)","Russell (207)",null,null,null,null,null,null,null,"Stone (209)",null,null,null,null,null,null,null,null,null,null,null,null,null,null,null,null,null,"Haskell (207)",null,null,"Hopewell (670)"]
[null,null,null,null,null,null,null,null,null,null,null,"Murray (213)",null,null,null,null,null,null,"Wyandotte (209)","Scott (209)",null,null,null,null,null,null,null,"Sullivan (211)",null,null,null,null,null,null,null,null,null,null,null,null,null,null,null,null,null,"Hays (209)",null,null,"Manassas (683)"]
[null,null,null,null,null,null,null,null,null,null,null,"Muscogee (215)",null,null,null,null,null,null,null,"Shelby (211)",null,null,null,null,null,null,null,"Taney (213)",null,null,null,null,null,null,null,null,null,null,null,null,null,null,null,null,null,"Hemphill (211)",null,null,"Manassas Park (685)"]
[null,null,null,null,null,null,null,null,null,null,null,"Newton (217)",null,null,null,null,null,null,null,"Simpson (213)",null,null,null,null,null,null,null,"Texas (215)",null,null,null,null,null,null,null,null,null,null,null,null,null,null,null,null,null,"Henderson (213)",null,null,"Newport News (700)"]
[null,null,null,null,null,null,null,null,null,null,null,"Oconee (219)",null,null,null,null,null,null,null,"Spencer (215)",null,null,null,null,null,null,null,"Vernon (217)",null,null,null,null,null,null,null,null,null,null,null,null,null,null,null,null,null,"Hidalgo (215)",null,null,"Norfolk (710)"]
[null,null,null,null,null,null,null,null,null,null,null,"Oglethorpe (221)",null,null,null,null,null,null,null,"Taylor (217)",null,null,null,null,null,null,null,"Warren (219)",null,null,null,null,null,null,null,null,null,null,null,null,null,null,null,null,null,"Hill (217)",null,null,"Norton (720)"]
[null,null,null,null,null,null,null,null,null,null,null,"Paulding (223)",null,null,null,null,null,null,null,"Todd (219)",null,null,null,null,null,null,null,"Washington (221)",null,null,null,null,null,null,null,null,null,null,null,null,null,null,null,null,null,"Hockley (219)",null,null,"Portsmouth (740)"]
[null,null,null,null,null,null,null,null,null,null,null,"Peach (225)",null,null,null,null,null,null,null,"Trigg (221)",null,null,null,null,null,null,null,"Wayne (223)",null,null,null,null,null,null,null,null,null,null,null,null,null,null,null,null,null,"Hood (221)",null,null,"Staunton (790)"]
[null,null,null,null,null,null,null,null,null,null,null,"Pickens (227)",null,null,null,null,null,null,null,"Trimble (223)",null,null,null,null,null,null,null,"Webster (225)",null,null,null,null,null,null,null,null,null,null,null,null,null,null,null,null,null,"Hopkins (223)",null,null,"Suffolk (800)"]
[null,null,null,null,null,null,null,null,null,null,null,"Pierce (229)",null,null,null,null,null,null,null,"Union (225)",null,null,null,null,null,null,null,"Worth (227)",null,null,null,null,null,null,null,null,null,null,null,null,null,null,null,null,null,"Houston (225)",null,null,"Virginia Beach (810)"]
[null,null,null,null,null,null,null,null,null,null,null,"Pike (231)",null,null,null,null,null,null,null,"Warren (227)",null,null,null,null,null,null,null,"Wright (229)",null,null,null,null,null,null,null,null,null,null,null,null,null,null,null,null,null,"Howard (227)",null,null,"Waynesboro (820)"]
[null,null,null,null,null,null,null,null,null,null,null,"Polk (233)",null,null,null,null,null,null,null,"Washington (229)",null,null,null,null,null,null,null,"St. Louis (510)",null,null,null,null,null,null,null,null,null,null,null,null,null,null,null,null,null,"Hudspeth (229)"]
[null,null,null,null,null,null,null,null,null,null,null,"Pulaski (235)",null,null,null,null,null,null,null,"Wayne (231)",null,null,null,null,null,null,null,null,null,null,null,null,null,null,null,null,null,null,null,null,null,null,null,null,null,"Hunt (231)"]
[null,null,null,null,null,null,null,null,null,null,null,"Putnam (237)",null,null,null,null,null,null,null,"Webster (233)",null,null,null,null,null,null,null,null,null,null,null,null,null,null,null,null,null,null,null,null,null,null,null,null,null,"Hutchinson (233)"]
[null,null,null,null,null,null,null,null,null,null,null,"Quitman (239)",null,null,null,null,null,null,null,"Whitley (235)",null,null,null,null,null,null,null,null,null,null,null,null,null,null,null,null,null,null,null,null,null,null,null,null,null,"Irion (235)"]
[null,null,null,null,null,null,null,null,null,null,null,"Rabun (241)",null,null,null,null,null,null,null,"Wolfe (237)",null,null,null,null,null,null,null,null,null,null,null,null,null,null,null,null,null,null,null,null,null,null,null,null,null,"Jack (237)"]
[null,null,null,null,null,null,null,null,null,null,null,"Randolph (243)",null,null,null,null,null,null,null,"Woodford (239)",null,null,null,null,null,null,null,null,null,null,null,null,null,null,null,null,null,null,null,null,null,null,null,null,null,"Jackson (239)"]
[null,null,null,null,null,null,null,null,null,null,null,"Richmond (245)",null,null,null,null,null,null,null,null,null,null,null,null,null,null,null,null,null,null,null,null,null,null,null,null,null,null,null,null,null,null,null,null,null,"Jasper (241)"]
[null,null,null,null,null,null,null,null,null,null,null,"Rockdale (247)",null,null,null,null,null,null,null,null,null,null,null,null,null,null,null,null,null,null,null,null,null,null,null,null,null,null,null,null,null,null,null,null,null,"Jeff Davis (243)"]
[null,null,null,null,null,null,null,null,null,null,null,"Schley (249)",null,null,null,null,null,null,null,null,null,null,null,null,null,null,null,null,null,null,null,null,null,null,null,null,null,null,null,null,null,null,null,null,null,"Jefferson (245)"]
[null,null,null,null,null,null,null,null,null,null,null,"Screven (251)",null,null,null,null,null,null,null,null,null,null,null,null,null,null,null,null,null,null,null,null,null,null,null,null,null,null,null,null,null,null,null,null,null,"Jim Hogg (247)"]
[null,null,null,null,null,null,null,null,null,null,null,"Seminole (253)",null,null,null,null,null,null,null,null,null,null,null,null,null,null,null,null,null,null,null,null,null,null,null,null,null,null,null,null,null,null,null,null,null,"Jim Wells (249)"]
[null,null,null,null,null,null,null,null,null,null,null,"Spalding (255)",null,null,null,null,null,null,null,null,null,null,null,null,null,null,null,null,null,null,null,null,null,null,null,null,null,null,null,null,null,null,null,null,null,"Johnson (251)"]
[null,null,null,null,null,null,null,null,null,null,null,"Stephens (257)",null,null,null,null,null,null,null,null,null,null,null,null,null,null,null,null,null,null,null,null,null,null,null,null,null,null,null,null,null,null,null,null,null,"Jones (253)"]
[null,null,null,null,null,null,null,null,null,null,null,"Stewart (259)",null,null,null,null,null,null,null,null,null,null,null,null,null,null,null,null,null,null,null,null,null,null,null,null,null,null,null,null,null,null,null,null,null,"Karnes (255)"]
[null,null,null,null,null,null,null,null,null,null,null,"Sumter (261)",null,null,null,null,null,null,null,null,null,null,null,null,null,null,null,null,null,null,null,null,null,null,null,null,null,null,null,null,null,null,null,null,null,"Kaufman (257)"]
[null,null,null,null,null,null,null,null,null,null,null,"Talbot (263)",null,null,null,null,null,null,null,null,null,null,null,null,null,null,null,null,null,null,null,null,null,null,null,null,null,null,null,null,null,null,null,null,null,"Kendall (259)"]
[null,null,null,null,null,null,null,null,null,null,null,"Taliaferro (265)",null,null,null,null,null,null,null,null,null,null,null,null,null,null,null,null,null,null,null,null,null,null,null,null,null,null,null,null,null,null,null,null,null,"Kenedy (261)"]
[null,null,null,null,null,null,null,null,null,null,null,"Tattnall (267)",null,null,null,null,null,null,null,null,null,null,null,null,null,null,null,null,null,null,null,null,null,null,null,null,null,null,null,null,null,null,null,null,null,"Kent (263)"]
[null,null,null,null,null,null,null,null,null,null,null,"Taylor (269)",null,null,null,null,null,null,null,null,null,null,null,null,null,null,null,null,null,null,null,null,null,null,null,null,null,null,null,null,null,null,null,null,null,"Kerr (265)"]
[null,null,null,null,null,null,null,null,null,null,null,"Telfair (271)",null,null,null,null,null,null,null,null,null,null,null,null,null,null,null,null,null,null,null,null,null,null,null,null,null,null,null,null,null,null,null,null,null,"Kimble (267)"]
[null,null,null,null,null,null,null,null,null,null,null,"Terrell (273)",null,null,null,null,null,null,null,null,null,null,null,null,null,null,null,null,null,null,null,null,null,null,null,null,null,null,null,null,null,null,null,null,null,"King (269)"]
[null,null,null,null,null,null,null,null,null,null,null,"Thomas (275)",null,null,null,null,null,null,null,null,null,null,null,null,null,null,null,null,null,null,null,null,null,null,null,null,null,null,null,null,null,null,null,null,null,"Kinney (271)"]
[null,null,null,null,null,null,null,null,null,null,null,"Tift (277)",null,null,null,null,null,null,null,null,null,null,null,null,null,null,null,null,null,null,null,null,null,null,null,null,null,null,null,null,null,null,null,null,null,"Kleberg (273)"]
[null,null,null,null,null,null,null,null,null,null,null,"Toombs (279)",null,null,null,null,null,null,null,null,null,null,null,null,null,null,null,null,null,null,null,null,null,null,null,null,null,null,null,null,null,null,null,null,null,"Knox (275)"]
[null,null,null,null,null,null,null,null,null,null,null,"Towns (281)",null,null,null,null,null,null,null,null,null,null,null,null,null,null,null,null,null,null,null,null,null,null,null,null,null,null,null,null,null,null,null,null,null,"Lamar (277)"]
[null,null,null,null,null,null,null,null,null,null,null,"Treutlen (283)",null,null,null,null,null,null,null,null,null,null,null,null,null,null,null,null,null,null,null,null,null,null,null,null,null,null,null,null,null,null,null,null,null,"Lamb (279)"]
[null,null,null,null,null,null,null,null,null,null,null,"Troup (285)",null,null,null,null,null,null,null,null,null,null,null,null,null,null,null,null,null,null,null,null,null,null,null,null,null,null,null,null,null,null,null,null,null,"Lampasas (281)"]
[null,null,null,null,null,null,null,null,null,null,null,"Turner (287)",null,null,null,null,null,null,null,null,null,null,null,null,null,null,null,null,null,null,null,null,null,null,null,null,null,null,null,null,null,null,null,null,null,"La Salle (283)"]
[null,null,null,null,null,null,null,null,null,null,null,"Twiggs (289)",null,null,null,null,null,null,null,null,null,null,null,null,null,null,null,null,null,null,null,null,null,null,null,null,null,null,null,null,null,null,null,null,null,"Lavaca (285)"]
[null,null,null,null,null,null,null,null,null,null,null,"Union (291)",null,null,null,null,null,null,null,null,null,null,null,null,null,null,null,null,null,null,null,null,null,null,null,null,null,null,null,null,null,null,null,null,null,"Lee (287)"]
[null,null,null,null,null,null,null,null,null,null,null,"Upson (293)",null,null,null,null,null,null,null,null,null,null,null,null,null,null,null,null,null,null,null,null,null,null,null,null,null,null,null,null,null,null,null,null,null,"Leon (289)"]
[null,null,null,null,null,null,null,null,null,null,null,"Walker (295)",null,null,null,null,null,null,null,null,null,null,null,null,null,null,null,null,null,null,null,null,null,null,null,null,null,null,null,null,null,null,null,null,null,"Liberty (291)"]
[null,null,null,null,null,null,null,null,null,null,null,"Walton (297)",null,null,null,null,null,null,null,null,null,null,null,null,null,null,null,null,null,null,null,null,null,null,null,null,null,null,null,null,null,null,null,null,null,"Limestone (293)"]
[null,null,null,null,null,null,null,null,null,null,null,"Ware (299)",null,null,null,null,null,null,null,null,null,null,null,null,null,null,null,null,null,null,null,null,null,null,null,null,null,null,null,null,null,null,null,null,null,"Lipscomb (295)"]
[null,null,null,null,null,null,null,null,null,null,null,"Warren (301)",null,null,null,null,null,null,null,null,null,null,null,null,null,null,null,null,null,null,null,null,null,null,null,null,null,null,null,null,null,null,null,null,null,"Live Oak (297)"]
[null,null,null,null,null,null,null,null,null,null,null,"Washington (303)",null,null,null,null,null,null,null,null,null,null,null,null,null,null,null,null,null,null,null,null,null,null,null,null,null,null,null,null,null,null,null,null,null,"Llano (299)"]
[null,null,null,null,null,null,null,null,null,null,null,"Wayne (305)",null,null,null,null,null,null,null,null,null,null,null,null,null,null,null,null,null,null,null,null,null,null,null,null,null,null,null,null,null,null,null,null,null,"Loving (301)"]
[null,null,null,null,null,null,null,null,null,null,null,"Webster (307)",null,null,null,null,null,null,null,null,null,null,null,null,null,null,null,null,null,null,null,null,null,null,null,null,null,null,null,null,null,null,null,null,null,"Lubbock (303)"]
[null,null,null,null,null,null,null,null,null,null,null,"Wheeler (309)",null,null,null,null,null,null,null,null,null,null,null,null,null,null,null,null,null,null,null,null,null,null,null,null,null,null,null,null,null,null,null,null,null,"Lynn (305)"]
[null,null,null,null,null,null,null,null,null,null,null,"White (311)",null,null,null,null,null,null,null,null,null,null,null,null,null,null,null,null,null,null,null,null,null,null,null,null,null,null,null,null,null,null,null,null,null,"McCulloch (307)"]
[null,null,null,null,null,null,null,null,null,null,null,"Whitfield (313)",null,null,null,null,null,null,null,null,null,null,null,null,null,null,null,null,null,null,null,null,null,null,null,null,null,null,null,null,null,null,null,null,null,"McLennan (309)"]
[null,null,null,null,null,null,null,null,null,null,null,"Wilcox (315)",null,null,null,null,null,null,null,null,null,null,null,null,null,null,null,null,null,null,null,null,null,null,null,null,null,null,null,null,null,null,null,null,null,"McMullen (311)"]
[null,null,null,null,null,null,null,null,null,null,null,"Wilkes (317)",null,null,null,null,null,null,null,null,null,null,null,null,null,null,null,null,null,null,null,null,null,null,null,null,null,null,null,null,null,null,null,null,null,"Madison (313)"]
[null,null,null,null,null,null,null,null,null,null,null,"Wilkinson (319)",null,null,null,null,null,null,null,null,null,null,null,null,null,null,null,null,null,null,null,null,null,null,null,null,null,null,null,null,null,null,null,null,null,"Marion (315)"]
[null,null,null,null,null,null,null,null,null,null,null,"Worth (321)",null,null,null,null,null,null,null,null,null,null,null,null,null,null,null,null,null,null,null,null,null,null,null,null,null,null,null,null,null,null,null,null,null,"Martin (317)"]
[null,null,null,null,null,null,null,null,null,null,null,null,null,null,null,null,null,null,null,null,null,null,null,null,null,null,null,null,null,null,null,null,null,null,null,null,null,null,null,null,null,null,null,null,null,"Mason (319)"]
[null,null,null,null,null,null,null,null,null,null,null,null,null,null,null,null,null,null,null,null,null,null,null,null,null,null,null,null,null,null,null,null,null,null,null,null,null,null,null,null,null,null,null,null,null,"Matagorda (321)"]
[null,null,null,null,null,null,null,null,null,null,null,null,null,null,null,null,null,null,null,null,null,null,null,null,null,null,null,null,null,null,null,null,null,null,null,null,null,null,null,null,null,null,null,null,null,"Maverick (323)"]
[null,null,null,null,null,null,null,null,null,null,null,null,null,null,null,null,null,null,null,null,null,null,null,null,null,null,null,null,null,null,null,null,null,null,null,null,null,null,null,null,null,null,null,null,null,"Medina (325)"]
[null,null,null,null,null,null,null,null,null,null,null,null,null,null,null,null,null,null,null,null,null,null,null,null,null,null,null,null,null,null,null,null,null,null,null,null,null,null,null,null,null,null,null,null,null,"Menard (327)"]
[null,null,null,null,null,null,null,null,null,null,null,null,null,null,null,null,null,null,null,null,null,null,null,null,null,null,null,null,null,null,null,null,null,null,null,null,null,null,null,null,null,null,null,null,null,"Midland (329)"]
[null,null,null,null,null,null,null,null,null,null,null,null,null,null,null,null,null,null,null,null,null,null,null,null,null,null,null,null,null,null,null,null,null,null,null,null,null,null,null,null,null,null,null,null,null,"Milam (331)"]
[null,null,null,null,null,null,null,null,null,null,null,null,null,null,null,null,null,null,null,null,null,null,null,null,null,null,null,null,null,null,null,null,null,null,null,null,null,null,null,null,null,null,null,null,null,"Mills (333)"]
[null,null,null,null,null,null,null,null,null,null,null,null,null,null,null,null,null,null,null,null,null,null,null,null,null,null,null,null,null,null,null,null,null,null,null,null,null,null,null,null,null,null,null,null,null,"Mitchell (335)"]
[null,null,null,null,null,null,null,null,null,null,null,null,null,null,null,null,null,null,null,null,null,null,null,null,null,null,null,null,null,null,null,null,null,null,null,null,null,null,null,null,null,null,null,null,null,"Montague (337)"]
[null,null,null,null,null,null,null,null,null,null,null,null,null,null,null,null,null,null,null,null,null,null,null,null,null,null,null,null,null,null,null,null,null,null,null,null,null,null,null,null,null,null,null,null,null,"Montgomery (339)"]
[null,null,null,null,null,null,null,null,null,null,null,null,null,null,null,null,null,null,null,null,null,null,null,null,null,null,null,null,null,null,null,null,null,null,null,null,null,null,null,null,null,null,null,null,null,"Moore (341)"]
[null,null,null,null,null,null,null,null,null,null,null,null,null,null,null,null,null,null,null,null,null,null,null,null,null,null,null,null,null,null,null,null,null,null,null,null,null,null,null,null,null,null,null,null,null,"Morris (343)"]
[null,null,null,null,null,null,null,null,null,null,null,null,null,null,null,null,null,null,null,null,null,null,null,null,null,null,null,null,null,null,null,null,null,null,null,null,null,null,null,null,null,null,null,null,null,"Motley (345)"]
[null,null,null,null,null,null,null,null,null,null,null,null,null,null,null,null,null,null,null,null,null,null,null,null,null,null,null,null,null,null,null,null,null,null,null,null,null,null,null,null,null,null,null,null,null,"Nacogdoches (347)"]
[null,null,null,null,null,null,null,null,null,null,null,null,null,null,null,null,null,null,null,null,null,null,null,null,null,null,null,null,null,null,null,null,null,null,null,null,null,null,null,null,null,null,null,null,null,"Navarro (349)"]
[null,null,null,null,null,null,null,null,null,null,null,null,null,null,null,null,null,null,null,null,null,null,null,null,null,null,null,null,null,null,null,null,null,null,null,null,null,null,null,null,null,null,null,null,null,"Newton (351)"]
[null,null,null,null,null,null,null,null,null,null,null,null,null,null,null,null,null,null,null,null,null,null,null,null,null,null,null,null,null,null,null,null,null,null,null,null,null,null,null,null,null,null,null,null,null,"Nolan (353)"]
[null,null,null,null,null,null,null,null,null,null,null,null,null,null,null,null,null,null,null,null,null,null,null,null,null,null,null,null,null,null,null,null,null,null,null,null,null,null,null,null,null,null,null,null,null,"Nueces (355)"]
[null,null,null,null,null,null,null,null,null,null,null,null,null,null,null,null,null,null,null,null,null,null,null,null,null,null,null,null,null,null,null,null,null,null,null,null,null,null,null,null,null,null,null,null,null,"Ochiltree (357)"]
[null,null,null,null,null,null,null,null,null,null,null,null,null,null,null,null,null,null,null,null,null,null,null,null,null,null,null,null,null,null,null,null,null,null,null,null,null,null,null,null,null,null,null,null,null,"Oldham (359)"]
[null,null,null,null,null,null,null,null,null,null,null,null,null,null,null,null,null,null,null,null,null,null,null,null,null,null,null,null,null,null,null,null,null,null,null,null,null,null,null,null,null,null,null,null,null,"Orange (361)"]
[null,null,null,null,null,null,null,null,null,null,null,null,null,null,null,null,null,null,null,null,null,null,null,null,null,null,null,null,null,null,null,null,null,null,null,null,null,null,null,null,null,null,null,null,null,"Palo Pinto (363)"]
[null,null,null,null,null,null,null,null,null,null,null,null,null,null,null,null,null,null,null,null,null,null,null,null,null,null,null,null,null,null,null,null,null,null,null,null,null,null,null,null,null,null,null,null,null,"Panola (365)"]
[null,null,null,null,null,null,null,null,null,null,null,null,null,null,null,null,null,null,null,null,null,null,null,null,null,null,null,null,null,null,null,null,null,null,null,null,null,null,null,null,null,null,null,null,null,"Parker (367)"]
[null,null,null,null,null,null,null,null,null,null,null,null,null,null,null,null,null,null,null,null,null,null,null,null,null,null,null,null,null,null,null,null,null,null,null,null,null,null,null,null,null,null,null,null,null,"Parmer (369)"]
[null,null,null,null,null,null,null,null,null,null,null,null,null,null,null,null,null,null,null,null,null,null,null,null,null,null,null,null,null,null,null,null,null,null,null,null,null,null,null,null,null,null,null,null,null,"Pecos (371)"]
[null,null,null,null,null,null,null,null,null,null,null,null,null,null,null,null,null,null,null,null,null,null,null,null,null,null,null,null,null,null,null,null,null,null,null,null,null,null,null,null,null,null,null,null,null,"Polk (373)"]
[null,null,null,null,null,null,null,null,null,null,null,null,null,null,null,null,null,null,null,null,null,null,null,null,null,null,null,null,null,null,null,null,null,null,null,null,null,null,null,null,null,null,null,null,null,"Potter (375)"]
[null,null,null,null,null,null,null,null,null,null,null,null,null,null,null,null,null,null,null,null,null,null,null,null,null,null,null,null,null,null,null,null,null,null,null,null,null,null,null,null,null,null,null,null,null,"Presidio (377)"]
[null,null,null,null,null,null,null,null,null,null,null,null,null,null,null,null,null,null,null,null,null,null,null,null,null,null,null,null,null,null,null,null,null,null,null,null,null,null,null,null,null,null,null,null,null,"Rains (379)"]
[null,null,null,null,null,null,null,null,null,null,null,null,null,null,null,null,null,null,null,null,null,null,null,null,null,null,null,null,null,null,null,null,null,null,null,null,null,null,null,null,null,null,null,null,null,"Randall (381)"]
[null,null,null,null,null,null,null,null,null,null,null,null,null,null,null,null,null,null,null,null,null,null,null,null,null,null,null,null,null,null,null,null,null,null,null,null,null,null,null,null,null,null,null,null,null,"Reagan (383)"]
[null,null,null,null,null,null,null,null,null,null,null,null,null,null,null,null,null,null,null,null,null,null,null,null,null,null,null,null,null,null,null,null,null,null,null,null,null,null,null,null,null,null,null,null,null,"Real (385)"]
[null,null,null,null,null,null,null,null,null,null,null,null,null,null,null,null,null,null,null,null,null,null,null,null,null,null,null,null,null,null,null,null,null,null,null,null,null,null,null,null,null,null,null,null,null,"Red River (387)"]
[null,null,null,null,null,null,null,null,null,null,null,null,null,null,null,null,null,null,null,null,null,null,null,null,null,null,null,null,null,null,null,null,null,null,null,null,null,null,null,null,null,null,null,null,null,"Reeves (389)"]
[null,null,null,null,null,null,null,null,null,null,null,null,null,null,null,null,null,null,null,null,null,null,null,null,null,null,null,null,null,null,null,null,null,null,null,null,null,null,null,null,null,null,null,null,null,"Refugio (391)"]
[null,null,null,null,null,null,null,null,null,null,null,null,null,null,null,null,null,null,null,null,null,null,null,null,null,null,null,null,null,null,null,null,null,null,null,null,null,null,null,null,null,null,null,null,null,"Roberts (393)"]
[null,null,null,null,null,null,null,null,null,null,null,null,null,null,null,null,null,null,null,null,null,null,null,null,null,null,null,null,null,null,null,null,null,null,null,null,null,null,null,null,null,null,null,null,null,"Robertson (395)"]
[null,null,null,null,null,null,null,null,null,null,null,null,null,null,null,null,null,null,null,null,null,null,null,null,null,null,null,null,null,null,null,null,null,null,null,null,null,null,null,null,null,null,null,null,null,"Rockwall (397)"]
[null,null,null,null,null,null,null,null,null,null,null,null,null,null,null,null,null,null,null,null,null,null,null,null,null,null,null,null,null,null,null,null,null,null,null,null,null,null,null,null,null,null,null,null,null,"Runnels (399)"]
[null,null,null,null,null,null,null,null,null,null,null,null,null,null,null,null,null,null,null,null,null,null,null,null,null,null,null,null,null,null,null,null,null,null,null,null,null,null,null,null,null,null,null,null,null,"Rusk (401)"]
[null,null,null,null,null,null,null,null,null,null,null,null,null,null,null,null,null,null,null,null,null,null,null,null,null,null,null,null,null,null,null,null,null,null,null,null,null,null,null,null,null,null,null,null,null,"Sabine (403)"]
[null,null,null,null,null,null,null,null,null,null,null,null,null,null,null,null,null,null,null,null,null,null,null,null,null,null,null,null,null,null,null,null,null,null,null,null,null,null,null,null,null,null,null,null,null,"San Augustine (405)"]
[null,null,null,null,null,null,null,null,null,null,null,null,null,null,null,null,null,null,null,null,null,null,null,null,null,null,null,null,null,null,null,null,null,null,null,null,null,null,null,null,null,null,null,null,null,"San Jacinto (407)"]
[null,null,null,null,null,null,null,null,null,null,null,null,null,null,null,null,null,null,null,null,null,null,null,null,null,null,null,null,null,null,null,null,null,null,null,null,null,null,null,null,null,null,null,null,null,"San Patricio (409)"]
[null,null,null,null,null,null,null,null,null,null,null,null,null,null,null,null,null,null,null,null,null,null,null,null,null,null,null,null,null,null,null,null,null,null,null,null,null,null,null,null,null,null,null,null,null,"San Saba (411)"]
[null,null,null,null,null,null,null,null,null,null,null,null,null,null,null,null,null,null,null,null,null,null,null,null,null,null,null,null,null,null,null,null,null,null,null,null,null,null,null,null,null,null,null,null,null,"Schleicher (413)"]
[null,null,null,null,null,null,null,null,null,null,null,null,null,null,null,null,null,null,null,null,null,null,null,null,null,null,null,null,null,null,null,null,null,null,null,null,null,null,null,null,null,null,null,null,null,"Scurry (415)"]
[null,null,null,null,null,null,null,null,null,null,null,null,null,null,null,null,null,null,null,null,null,null,null,null,null,null,null,null,null,null,null,null,null,null,null,null,null,null,null,null,null,null,null,null,null,"Shackelford (417)"]
[null,null,null,null,null,null,null,null,null,null,null,null,null,null,null,null,null,null,null,null,null,null,null,null,null,null,null,null,null,null,null,null,null,null,null,null,null,null,null,null,null,null,null,null,null,"Shelby (419)"]
[null,null,null,null,null,null,null,null,null,null,null,null,null,null,null,null,null,null,null,null,null,null,null,null,null,null,null,null,null,null,null,null,null,null,null,null,null,null,null,null,null,null,null,null,null,"Sherman (421)"]
[null,null,null,null,null,null,null,null,null,null,null,null,null,null,null,null,null,null,null,null,null,null,null,null,null,null,null,null,null,null,null,null,null,null,null,null,null,null,null,null,null,null,null,null,null,"Smith (423)"]
[null,null,null,null,null,null,null,null,null,null,null,null,null,null,null,null,null,null,null,null,null,null,null,null,null,null,null,null,null,null,null,null,null,null,null,null,null,null,null,null,null,null,null,null,null,"Somervell (425)"]
[null,null,null,null,null,null,null,null,null,null,null,null,null,null,null,null,null,null,null,null,null,null,null,null,null,null,null,null,null,null,null,null,null,null,null,null,null,null,null,null,null,null,null,null,null,"Starr (427)"]
[null,null,null,null,null,null,null,null,null,null,null,null,null,null,null,null,null,null,null,null,null,null,null,null,null,null,null,null,null,null,null,null,null,null,null,null,null,null,null,null,null,null,null,null,null,"Stephens (429)"]
[null,null,null,null,null,null,null,null,null,null,null,null,null,null,null,null,null,null,null,null,null,null,null,null,null,null,null,null,null,null,null,null,null,null,null,null,null,null,null,null,null,null,null,null,null,"Sterling (431)"]
[null,null,null,null,null,null,null,null,null,null,null,null,null,null,null,null,null,null,null,null,null,null,null,null,null,null,null,null,null,null,null,null,null,null,null,null,null,null,null,null,null,null,null,null,null,"Stonewall (433)"]
[null,null,null,null,null,null,null,null,null,null,null,null,null,null,null,null,null,null,null,null,null,null,null,null,null,null,null,null,null,null,null,null,null,null,null,null,null,null,null,null,null,null,null,null,null,"Sutton (435)"]
[null,null,null,null,null,null,null,null,null,null,null,null,null,null,null,null,null,null,null,null,null,null,null,null,null,null,null,null,null,null,null,null,null,null,null,null,null,null,null,null,null,null,null,null,null,"Swisher (437)"]
[null,null,null,null,null,null,null,null,null,null,null,null,null,null,null,null,null,null,null,null,null,null,null,null,null,null,null,null,null,null,null,null,null,null,null,null,null,null,null,null,null,null,null,null,null,"Tarrant (439)"]
[null,null,null,null,null,null,null,null,null,null,null,null,null,null,null,null,null,null,null,null,null,null,null,null,null,null,null,null,null,null,null,null,null,null,null,null,null,null,null,null,null,null,null,null,null,"Taylor (441)"]
[null,null,null,null,null,null,null,null,null,null,null,null,null,null,null,null,null,null,null,null,null,null,null,null,null,null,null,null,null,null,null,null,null,null,null,null,null,null,null,null,null,null,null,null,null,"Terrell (443)"]
[null,null,null,null,null,null,null,null,null,null,null,null,null,null,null,null,null,null,null,null,null,null,null,null,null,null,null,null,null,null,null,null,null,null,null,null,null,null,null,null,null,null,null,null,null,"Terry (445)"]
[null,null,null,null,null,null,null,null,null,null,null,null,null,null,null,null,null,null,null,null,null,null,null,null,null,null,null,null,null,null,null,null,null,null,null,null,null,null,null,null,null,null,null,null,null,"Throckmorton (447)"]
[null,null,null,null,null,null,null,null,null,null,null,null,null,null,null,null,null,null,null,null,null,null,null,null,null,null,null,null,null,null,null,null,null,null,null,null,null,null,null,null,null,null,null,null,null,"Titus (449)"]
[null,null,null,null,null,null,null,null,null,null,null,null,null,null,null,null,null,null,null,null,null,null,null,null,null,null,null,null,null,null,null,null,null,null,null,null,null,null,null,null,null,null,null,null,null,"Tom Green (451)"]
[null,null,null,null,null,null,null,null,null,null,null,null,null,null,null,null,null,null,null,null,null,null,null,null,null,null,null,null,null,null,null,null,null,null,null,null,null,null,null,null,null,null,null,null,null,"Travis (453)"]
[null,null,null,null,null,null,null,null,null,null,null,null,null,null,null,null,null,null,null,null,null,null,null,null,null,null,null,null,null,null,null,null,null,null,null,null,null,null,null,null,null,null,null,null,null,"Trinity (455)"]
[null,null,null,null,null,null,null,null,null,null,null,null,null,null,null,null,null,null,null,null,null,null,null,null,null,null,null,null,null,null,null,null,null,null,null,null,null,null,null,null,null,null,null,null,null,"Tyler (457)"]
[null,null,null,null,null,null,null,null,null,null,null,null,null,null,null,null,null,null,null,null,null,null,null,null,null,null,null,null,null,null,null,null,null,null,null,null,null,null,null,null,null,null,null,null,null,"Upshur (459)"]
[null,null,null,null,null,null,null,null,null,null,null,null,null,null,null,null,null,null,null,null,null,null,null,null,null,null,null,null,null,null,null,null,null,null,null,null,null,null,null,null,null,null,null,null,null,"Upton (461)"]
[null,null,null,null,null,null,null,null,null,null,null,null,null,null,null,null,null,null,null,null,null,null,null,null,null,null,null,null,null,null,null,null,null,null,null,null,null,null,null,null,null,null,null,null,null,"Uvalde (463)"]
[null,null,null,null,null,null,null,null,null,null,null,null,null,null,null,null,null,null,null,null,null,null,null,null,null,null,null,null,null,null,null,null,null,null,null,null,null,null,null,null,null,null,null,null,null,"Val Verde (465)"]
[null,null,null,null,null,null,null,null,null,null,null,null,null,null,null,null,null,null,null,null,null,null,null,null,null,null,null,null,null,null,null,null,null,null,null,null,null,null,null,null,null,null,null,null,null,"Van Zandt (467)"]
[null,null,null,null,null,null,null,null,null,null,null,null,null,null,null,null,null,null,null,null,null,null,null,null,null,null,null,null,null,null,null,null,null,null,null,null,null,null,null,null,null,null,null,null,null,"Victoria (469)"]
[null,null,null,null,null,null,null,null,null,null,null,null,null,null,null,null,null,null,null,null,null,null,null,null,null,null,null,null,null,null,null,null,null,null,null,null,null,null,null,null,null,null,null,null,null,"Walker (471)"]
[null,null,null,null,null,null,null,null,null,null,null,null,null,null,null,null,null,null,null,null,null,null,null,null,null,null,null,null,null,null,null,null,null,null,null,null,null,null,null,null,null,null,null,null,null,"Waller (473)"]
[null,null,null,null,null,null,null,null,null,null,null,null,null,null,null,null,null,null,null,null,null,null,null,null,null,null,null,null,null,null,null,null,null,null,null,null,null,null,null,null,null,null,null,null,null,"Ward (475)"]
[null,null,null,null,null,null,null,null,null,null,null,null,null,null,null,null,null,null,null,null,null,null,null,null,null,null,null,null,null,null,null,null,null,null,null,null,null,null,null,null,null,null,null,null,null,"Washington (477)"]
[null,null,null,null,null,null,null,null,null,null,null,null,null,null,null,null,null,null,null,null,null,null,null,null,null,null,null,null,null,null,null,null,null,null,null,null,null,null,null,null,null,null,null,null,null,"Webb (479)"]
[null,null,null,null,null,null,null,null,null,null,null,null,null,null,null,null,null,null,null,null,null,null,null,null,null,null,null,null,null,null,null,null,null,null,null,null,null,null,null,null,null,null,null,null,null,"Wharton (481)"]
[null,null,null,null,null,null,null,null,null,null,null,null,null,null,null,null,null,null,null,null,null,null,null,null,null,null,null,null,null,null,null,null,null,null,null,null,null,null,null,null,null,null,null,null,null,"Wheeler (483)"]
[null,null,null,null,null,null,null,null,null,null,null,null,null,null,null,null,null,null,null,null,null,null,null,null,null,null,null,null,null,null,null,null,null,null,null,null,null,null,null,null,null,null,null,null,null,"Wichita (485)"]
[null,null,null,null,null,null,null,null,null,null,null,null,null,null,null,null,null,null,null,null,null,null,null,null,null,null,null,null,null,null,null,null,null,null,null,null,null,null,null,null,null,null,null,null,null,"Wilbarger (487)"]
[null,null,null,null,null,null,null,null,null,null,null,null,null,null,null,null,null,null,null,null,null,null,null,null,null,null,null,null,null,null,null,null,null,null,null,null,null,null,null,null,null,null,null,null,null,"Willacy (489)"]
[null,null,null,null,null,null,null,null,null,null,null,null,null,null,null,null,null,null,null,null,null,null,null,null,null,null,null,null,null,null,null,null,null,null,null,null,null,null,null,null,null,null,null,null,null,"Williamson (491)"]
[null,null,null,null,null,null,null,null,null,null,null,null,null,null,null,null,null,null,null,null,null,null,null,null,null,null,null,null,null,null,null,null,null,null,null,null,null,null,null,null,null,null,null,null,null,"Wilson (493)"]
[null,null,null,null,null,null,null,null,null,null,null,null,null,null,null,null,null,null,null,null,null,null,null,null,null,null,null,null,null,null,null,null,null,null,null,null,null,null,null,null,null,null,null,null,null,"Winkler (495)"]
[null,null,null,null,null,null,null,null,null,null,null,null,null,null,null,null,null,null,null,null,null,null,null,null,null,null,null,null,null,null,null,null,null,null,null,null,null,null,null,null,null,null,null,null,null,"Wise (497)"]
[null,null,null,null,null,null,null,null,null,null,null,null,null,null,null,null,null,null,null,null,null,null,null,null,null,null,null,null,null,null,null,null,null,null,null,null,null,null,null,null,null,null,null,null,null,"Wood (499)"]
[null,null,null,null,null,null,null,null,null,null,null,null,null,null,null,null,null,null,null,null,null,null,null,null,null,null,null,null,null,null,null,null,null,null,null,null,null,null,null,null,null,null,null,null,null,"Yoakum (501)"]
[null,null,null,null,null,null,null,null,null,null,null,null,null,null,null,null,null,null,null,null,null,null,null,null,null,null,null,null,null,null,null,null,null,null,null,null,null,null,null,null,null,null,null,null,null,"Young (503)"]
[null,null,null,null,null,null,null,null,null,null,null,null,null,null,null,null,null,null,null,null,null,null,null,null,null,null,null,null,null,null,null,null,null,null,null,null,null,null,null,null,null,null,null,null,null,"Zapata (505)"]
[null,null,null,null,null,null,null,null,null,null,null,null,null,null,null,null,null,null,null,null,null,null,null,null,null,null,null,null,null,null,null,null,null,null,null,null,null,null,null,null,null,null,null,null,null,"Zavala (507)"]